Workbook

Sheet Sheet1 (hidden)
C2: Countries | D2: Years | E2: Definition public sector | F2: Guarantees | G2: Long-run values | H2: Fan chart
C3: Choose Country | D3: Choose Year | E3: Choose Sector | F3: Choose Guarantees | G3: Set constant value manually (column C) | H3: Activate shocks
C4: Afghanistan | D4: 2010 | E4: consolidated public sector | F4: Yes | G4: 10-year historical average | H4: On
C5: Albania | D5: 2011 | E5: non-financial public sector | F5: No | G5: 5-year historical average | H5: Off
C6: Algeria | D6: 2012 | E6: general government | G6: 5-year projection average
C7: Angola | D7: 2013 | E7: central government | G7: 10-year projection average
C8: Anguilla | D8: 2014 | E8: other | G8: latest year before projections start
C9: Antigua and Barbuda | D9: 2015 | G9: time-varying values
C10: Argentina | D10: 2016
C11: Armenia | D11: 2017
C12: Australia | D12: 2018
C13: Austria | D13: 2019
C14: Azerbaijan | D14: 2020
C15: Bahamas, The | D15: 2021
C16: Bahrain | D16: 2022
C17: Bangladesh | D17: 2023
C18: Barbados | D18: 2024
C19: Belarus | D19: 2025
C20: Belgium | D20: 2026
C21: Belize | D21: 2027
C22: Benin | D22: 2028
C23: Bhutan | D23: 2029
C24: Bolivia | D24: 2030
C25: Bosnia and Herzegovina | D25: 2031
C26: Botswana | D26: 2032
C27: Brazil | D27: 2033
C28: Brunei Darussalam | D28: 2034
C29: Bulgaria | D29: 2035
C30: Burkina Faso | D30: 2036
C31: Burundi
C32: Cambodia
C33: Cameroon
C34: Canada
C35: Cabo Verde
C36: Central African Republic
C37: Chad
C38: Chile
C39: China
C40: Colombia
C41: Comoros
C42: Democratic Republic of the Congo
C43: Congo, Republic of
C44: Costa Rica
C45: Côte d'Ivoire
C46: Croatia
C47: Cyprus
C48: Czech Republic
C49: Czechoslovakia, former
C50: Denmark
C51: Djibouti
C52: Dominica
C53: Dominican Republic
C54: Eastern Caribbean Currency Union
C55: Ecuador
C56: Egypt
C57: El Salvador
C58: Equatorial Guinea
C59: Eritrea
C60: Estonia
C61: Ethiopia
C62: Euro area
C63: Fiji
C64: Finland
C65: France
C66: Gabon
C67: Gambia, The
C68: Georgia
C69: Germany
C70: Ghana
C71: Greece
C72: Grenada
C73: Guatemala
C74: Guinea
C75: Guinea-Bissau
C76: Guyana
C77: Haiti
C78: Honduras
C79: Hong Kong SAR
C80: Hungary
C81: Iceland
C82: India
C83: Indonesia
C84: Iran
C85: Iraq
C86: Ireland
C87: Israel
C88: Italy
C89: Jamaica
C90: Japan
C91: Jordan
C92: Kazakhstan
C93: Kenya
C94: Kiribati
C95: Korea
C96: Kosovo
C97: Kuwait
C98: Kyrgyz Republic
C99: Lao P.D.R.
C100: Latvia
C101: Lebanon
C102: Lesotho
C103: Liberia
C104: Libya
C105: Lithuania
C106: Luxembourg
C107: FYR Macedonia
C108: Macondo
C109: Macroland
C110: Madagascar
C111: Malawi
C112: Malaysia
C113: Maldives
C114: Mali
C115: Malta
C116: Marshall Islands
C117: Mauritania
C118: Mauritius
C119: Mexico
C120: Micronesia, Fed. States of
C121: Moldova
C122: Mongolia
C123: Montenegro, Rep. of
C124: Montserrat
C125: Morocco
C126: Mozambique
C127: Myanmar
C128: Namibia
C129: Nepal
C130: Netherlands
C131: Netherlands Antilles
C132: New Zealand
C133: Nicaragua
C134: Niger
C135: Nigeria
C136: Norway
C137: Oman
C138: Pakistan
C139: Palau
C140: Panama
C141: Papua New Guinea
C142: Paraguay
C143: Peru
C144: Philippines
C145: Poland
C146: Portugal
C147: Qatar
C148: Romania
C149: Russia
C150: Rwanda
C151: Samoa
C152: San Marino
C153: São Tomé and Príncipe
C154: Saudi Arabia
C155: Senegal
C156: Serbia
C157: Serbia and Montenegro
C158: Seychelles
C159: Sierra Leone
C160: Singapore
C161: Slovak Republic
C162: Slovenia
C163: Solomon Islands
C164: Somalia
C165: South Africa
C166: South Sudan
C167: Spain
C168: Sri Lanka
C169: St. Kitts and Nevis
C170: St. Lucia
C171: St. Vincent and the Grenadines
C172: Sudan
C173: Suriname
C174: Swaziland
C175: Sweden
C176: Switzerland
C177: Syria
C178: Taiwan Province of China
C179: Tajikistan
C180: Tanzania
C181: Thailand
C182: Timor-Leste, Dem. Rep. of
C183: Togo
C184: Tonga
C185: Trinidad and Tobago
C186: Tunisia
C187: Turkey
C188: Turkmenistan
C189: Tuvalu
C190: Uganda
C191: Ukraine
C192: United Arab Emirates
C193: United Kingdom
C194: United States
C195: Uruguay
C196: Uzbekistan
C197: Vanuatu
C198: Venezuela
C199: Vietnam
C200: Yemen, Former P. D. Rep. of
C201: Yemen
... 2 more rows

Sheet Readme
A1: ICD Public Debt Dynamics Tool (DDT): Prepared by Santiago Acosta-Ormaechea and Leonardo Martinez with inputs from Juan José Pradelli.
A2: This spreadsheet is for capacity development purposes. The accompanying technical note explains in detail how to populate and use the tool.
A3: The material is property of the International Monetary Fund (IMF). Any reuse requires the permission of the IMF Institute for Capacity Development (ICD).
A4: This Version: May 5, 2021
A6: Basic Inputs
A8: Select country | B8: Macondo
A10: First year of projection | B10: 2021
A12: Year for medium-term indicators | B12: 2027
A14: Definition of the public sector | B14: central government
A15: Includes public guarantees? | B15: Yes
A16: =IF(Guarantees="Yes","Specify or define the guarantees","") -> Specify or define the guarantees | B16: outstanding amount of loans guaranteed by the central government
A18: Adjustment Paths Inputs | F18: Baseline Assumptions From "Input - Data" Sheet, plus Additions to Baseline for Fiscal Adjustment Paths | G18: =FirstYear-1 -> 2020 | H18: =FirstYear -> 2021 | I18: =H18+1 -> 2022 | J18: =I18+1 -> 2023 | K18: 2024 | L18: 2025 | M18: 2026 | N18: 2027 | O18: 2028 | P18: 2029 | Q18: 2030 | R18: 2031 | S18: 2032
A20: Debt target and adjustment period | F20: αt (share excl. guarantees): share of foreign currency denominated debt in total debt, percent of total debt | G20: ='Input - Data'!K12 -> 60.45 | H20: ='Input - Data'!L12+H31 -> 63.4725 | I20: ='Input - Data'!M12+I31 -> 63.4725 | J20: ='Input - Data'!N12+J31 -> 60.298875 | K20: ='Input - Data'!O12+K31 -> 57.28393125 | L20: ='Input - Data'!P12+L31 -> 57.28393125 | M20: ='Input - Data'!Q12+M31 -> 57.28393125 | N20: ='Input - Data'!R12+N31 -> 60.14812781 | O20: ='Input - Data'!S12+O31 -> 57.14072142 | P20: ='Input - Data'!T12+P31 -> 57.14072142 | Q20: ='Input - Data'!U12+Q31 -> 59.99775749 | R20: ='Input - Data'!V12+R31 -> 56.99786962 | S20: ='Input - Data'!W12+S31 -> 56.99786962
F21: et (LCU/FCU, avg): nominal average exchange rate, local currency per unit of foreign currency | G21: ='Input - Data'!K13 -> 24.5823 | H21: ='Input - Data'!L13+H32 -> 25.02294171 | I21: ='Input - Data'!M13+I32 -> 25.48398814 | J21: ='Input - Data'!N13+J32 -> 25.97181833 | K21: ='Input - Data'!O13+K32 -> 26.43689781 | L21: ='Input - Data'!P13+L32 -> 26.89357423 | M21: ='Input - Data'!Q13+M32 -> 27.4324246 | N21: ='Input - Data'!R13+N32 -> 27.98207159 | O21: ='Input - Data'!S13+O32 -> 28.54273153 | P21: ='Input - Data'!T13+P32 -> 29.11462507 | Q21: ='Input - Data'!U13+Q32 -> 29.6979773 | R21: ='Input - Data'!V13+R32 -> 30.2930178 | S21: ='Input - Data'!W13+S32 -> 30.89998078
A22: To be completed after "Input - Data" Sheet is populated | F22: et (LCU/FCU, eop): nominal end of period exchange rate, local currency per unit of foreign currency | G22: ='Input - Data'!K14 -> 24.1141 | H22: ='Input - Data'!L14+H33 -> 24.29623427 | I22: ='Input - Data'!M14+I33 -> 24.47051014 | J22: ='Input - Data'!N14+J33 -> 24.95941552 | K22: ='Input - Data'!O14+K33 -> 25.45808893 | L22: ='Input - Data'!P14+L33 -> 25.96672551 | M22: ='Input - Data'!Q14+M33 -> 26.48606002 | N22: ='Input - Data'!R14+N33 -> 27.01578122 | O22: ='Input - Data'!S14+O33 -> 27.55609685 | P22: ='Input - Data'!T14+P33 -> 28.10721878 | Q22: ='Input - Data'!U14+Q33 -> 28.66936316 | R22: ='Input - Data'!V14+R33 -> 29.24275042 | S22: ='Input - Data'!W14+S33 -> 29.82760543
F23: itd: nominal effective interest rate on local currency denominated debt, percent | G23: ='Input - Data'!K15 -> 10.38867089 | H23: ='Input - Data'!L15+H34 -> 9.869237348 | I23: ='Input - Data'!M15+I34 -> 9.37577548 | J23: ='Input - Data'!N15+J34 -> 9.844564254 | K23: ='Input - Data'!O15+K34 -> 10.33679247 | L23: ='Input - Data'!P15+L34 -> 10.33679247 | M23: ='Input - Data'!Q15+M34 -> 10.33679247 | N23: ='Input - Data'!R15+N34 -> 10.33679247 | O23: ='Input - Data'!S15+O34 -> 10.33679247 | P23: ='Input - Data'!T15+P34 -> 10.33679247 | Q23: ='Input - Data'!U15+Q34 -> 10.33679247 | R23: ='Input - Data'!V15+R34 -> 10.33679247 | S23: ='Input - Data'!W15+S34 -> 10.33679247
A24: Public debt-to-GDP target (e.g., for 60 percent of GDP write 60) | B24: 60 | F24: itf: nominal effective interest rate on foreign currency denominated debt, percent | G24: ='Input - Data'!K16 -> 3.60111838 | H24: ='Input - Data'!L16+H35 -> 3.781174299 | I24: ='Input - Data'!M16+I35 -> 3.781174299 | J24: ='Input - Data'!N16+J35 -> 3.592115584 | K24: ='Input - Data'!O16+K35 -> 3.412509804 | L24: ='Input - Data'!P16+L35 -> 3.412509804 | M24: ='Input - Data'!Q16+M35 -> 3.412509804 | N24: ='Input - Data'!R16+N35 -> 3.583135295 | O24: ='Input - Data'!S16+O35 -> 3.40397853 | P24: ='Input - Data'!T16+P35 -> 3.40397853 | Q24: ='Input - Data'!U16+Q35 -> 3.574177456 | R24: ='Input - Data'!V16+R35 -> 3.395468584 | S24: ='Input - Data'!W16+S35 -> 3.395468584
A25: Adjustment path starts | B25: 2022 | F25: πt: GDP deflator inflation, percent | G25: ='Input - Data'!K17 -> 4.013079667 | H25: ='Input - Data'!L17+H36 -> 4.041365315 | I25: ='Input - Data'!M17+I36 -> 3.654278014 | J25: ='Input - Data'!N17+J36 -> 3.761262889 | K25: ='Input - Data'!O17+K36 -> 3.737199002 | L25: ='Input - Data'!P17+L36 -> 3.71837475 | M25: ='Input - Data'!Q17+M36 -> 4 | N25: ='Input - Data'!R17+N36 -> 4 | O25: ='Input - Data'!S17+O36 -> 4 | P25: ='Input - Data'!T17+P36 -> 4 | Q25: ='Input - Data'!U17+Q36 -> 4 | R25: ='Input - Data'!V17+R36 -> 4 | S25: ='Input - Data'!W17+S36 -> 4
A26: Adjustment path ends | B26: 2030 | F26: gt: Real GDP growth, percent | G26: ='Input - Data'!K18 -> -8.993690565 | H26: ='Input - Data'!L18+H37 -> 4.230933496 | I26: ='Input - Data'!M18+I37 -> 3.746288693 | J26: ='Input - Data'!N18+J37 -> 3.408191185 | K26: ='Input - Data'!O18+K37 -> 3.660486026 | L26: ='Input - Data'!P18+L37 -> 3.835522081 | M26: ='Input - Data'!Q18+M37 -> 3.835491687 | N26: ='Input - Data'!R18+N37 -> 3.835528595 | O26: ='Input - Data'!S18+O37 -> 3.835544872 | P26: ='Input - Data'!T18+P37 -> 3.83549772 | Q26: ='Input - Data'!U18+Q37 -> 3.835523257 | R26: ='Input - Data'!V18+R37 -> 3.835520597 | S26: ='Input - Data'!W18+S37 -> 3.83553137
F27: oft (other net debt-creating flows): Other net debt creating flows, percent of GDP | G27: ='Input - Data'!K20 -> 0 | H27: ='Input - Data'!L20+H38 -> 0.9 | I27: ='Input - Data'!M20+I38 -> 0.9 | J27: ='Input - Data'!N20+J38 -> 0.9 | K27: ='Input - Data'!O20+K38 -> 0.9 | L27: ='Input - Data'!P20+L38 -> 0.9 | M27: ='Input - Data'!Q20+M38 -> 0.9 | N27: ='Input - Data'!R20+N38 -> 0.9 | O27: ='Input - Data'!S20+O38 -> 0.9 | P27: ='Input - Data'!T20+P38 -> 0.9 | Q27: ='Input - Data'!U20+Q38 -> 0.9 | R27: ='Input - Data'!V20+R38 -> 0.9 | S27: ='Input - Data'!W20+S38 -> 0.9
A29: Values of Key Variables for Adjustment Paths (for time-varying values please review cells F29:S38) | F29: Additions to Baseline Assumptions for Fiscal Adjustment Paths (for time-varying values) | G29: =FirstYear-1 -> 2020 | H29: =FirstYear -> 2021 | I29: =H29+1 -> 2022 | J29: =I29+1 -> 2023 | K29: 2024 | L29: 2025 | M29: 2026 | N29: 2027 | O29: 2028 | P29: 2029 | Q29: 2030 | R29: 2031 | S29: 2032
C30: Manually-set constant values | D30: Drop-down menu constant values
A31: α = Share of foreign currency debt | B31: time-varying values | D31: =IF(B31="10-year historical average",AVERAGE('Input - Data'!B12:K12),IF(B31="5-year historical average",AVERAGE('Input - Data'!G12:K12),IF(B31="5-year projection average",AVERAGE('Input - Data'!L12:P12),IF(B31="10-year projection average",AVERAGE('Input - Data'!L12:U12),IF(B31="Latest year before projections start",'Input - Data'!K12,IF(ISNUMBER(C31),C31,"")))))) ->  | F31: αt (share excl. guarantees): share of foreign currency denominated debt in total debt, percent of total debt
A32: ε = Depreciation rate | B32: time-varying values | D32: =IF(B32="10-year historical average",AVERAGE(Baseline!B16:K16),IF(B32="5-year historical average",AVERAGE(Baseline!G16:K16),IF(B32="5-year projection average",AVERAGE(Baseline!L16:P16),IF(B32="10-year projection average",AVERAGE(Baseline!L16:U16),IF(B32="Latest year before projections start",Baseline!K16,IF(ISNUMBER(C32),C32,"")))))) ->  | F32: et (LCU/FCU, avg): nominal average exchange rate, local currency per unit of foreign currency
A33: id = Local-currency effective interest rate | B33: time-varying values | D33: =IF(B33="10-year historical average",AVERAGE('Input - Data'!B15:K15),IF(B33="5-year historical average",AVERAGE('Input - Data'!G15:K15),IF(B33="5-year projection average",AVERAGE('Input - Data'!L15:P15),IF(B33="10-year projection average",AVERAGE('Input - Data'!L15:U15),IF(B33="Latest year before projections start",'Input - Data'!K15,IF(ISNUMBER(C33),C33,"")))))) ->  | F33: et (LCU/FCU, eop): nominal end of period exchange rate, local currency per unit of foreign currency
A34: if = Foreign-currency effective interest rate | B34: time-varying values | D34: =IF(B34="10-year historical average",AVERAGE('Input - Data'!B16:K16),IF(B34="5-year historical average",AVERAGE('Input - Data'!G16:K16),IF(B34="5-year projection average",AVERAGE('Input - Data'!L16:P16),IF(B34="10-year projection average",AVERAGE('Input - Data'!L16:U16),IF(B34="Latest year before projections start",'Input - Data'!K16,IF(ISNUMBER(C34),C34,"")))))) ->  | F34: itd: nominal effective interest rate on local currency denominated debt, percent
A35: π = Inflation rate | B35: time-varying values | D35: =IF(B35="10-year historical average",AVERAGE('Input - Data'!B17:K17),IF(B35="5-year historical average",AVERAGE('Input - Data'!G17:K17),IF(B35="5-year projection average",AVERAGE('Input - Data'!L17:P17),IF(B35="10-year projection average",AVERAGE('Input - Data'!L17:U17),IF(B35="Latest year before projections start",'Input - Data'!K17,IF(ISNUMBER(C35),C35,"")))))) ->  | F35: itf: nominal effective interest rate on foreign currency denominated debt, percent
A36: g = Real GDP growth rate | B36: 10-year projection average | D36: =IF(B36="10-year historical average",AVERAGE('Input - Data'!B18:K18),IF(B36="5-year historical average",AVERAGE('Input - Data'!G18:K18),IF(B36="5-year projection average",AVERAGE('Input - Data'!L18:P18),IF(B36="10-year projection average",AVERAGE('Input - Data'!L18:U18),IF(B36="Latest year before projections start",'Input - Data'!K18,IF(ISNUMBER(C36),C36,"")))))) -> 3.805900761 | F36: πt: GDP deflator inflation, percent
A37: of = Other net debt-creating flows | B37: 10-year projection average | D37: =IF(B37="10-year historical average",AVERAGE('Input - Data'!B20:K20),IF(B37="5-year historical average",AVERAGE('Input - Data'!G20:K20),IF(B37="5-year projection average",AVERAGE('Input - Data'!L20:P20),IF(B37="10-year projection average",AVERAGE('Input - Data'!L20:U20),IF(B37="Latest year before projections start",'Input - Data'!K20,IF(ISNUMBER(C37),C37,"")))))) -> 0.9 | F37: gt: Real GDP growth, percent
F38: oft (other net debt-creating flows): Other net debt creating flows, percent of GDP
A40: Stress Tests Inputs
A42: Stress testing scenario design: size of shocks | B42: Size of shocks (number of historical standard deviations)
A43: Primary balance shock | B43: -1
A44: GDP growth shock | B44: -1
A45: Interest rate shock | B45: 1
A46: Exchange rate depreciation shock | B46: 1
A48: Stress testing scenario design: duration of shocks
A49: Primary balance shock starts | B49: 2022
A50: Primary balance shock ends | B50: 2023
A51: GDP growth shock starts | B51: 2022
A52: GDP growth shock ends | B52: 2023
A53: Interest rate shock starts | B53: 2022
A54: Interest rate shock ends | B54: 2023
A55: Exchange rate depreciation shock starts | B55: 2022
A56: Exchange rate depreciation shock ends | B56: 2023

Sheet Input - Data
A1: Cell codes: Yellow-shaded cells contain historical data to be populate by users. Grey (empty) cells refer to values to be generated by the template in other worksheets.
A4: Historical Data and Forecasts. Variables in percent or percent of GDP, unless otherwise indicated.
A5: ="Country:"&" "&CountryName -> Country: Macondo
L7: First Year of Projection
A8: Year/Variable | B8: =C8-1 -> 2011 | C8: 2012 | D8: 2013 | E8: 2014 | F8: 2015 | G8: 2016 | H8: 2017 | I8: 2018 | J8: 2019 | K8: =L8-1 -> 2020 | L8: =FirstYear -> 2021 | M8: =L8+1 -> 2022 | N8: 2023 | O8: 2024 | P8: 2025 | Q8: 2026 | R8: 2027 | S8: 2028 | T8: 2029 | U8: 2030 | V8: 2031 | W8: 2032
A9: dt (debt including uncalled guarantees): stock of total gross public debt, percent of GDP | B9: 31.5933688 | C9: 35.33939124 | D9: 43.11561343 | E9: 44.44062131 | F9: 44.32556858 | G9: 45.98041253 | H9: 47.43639858 | I9: 48.5464043 | J9: 48.67164741 | K9: 58.86485128
A10: o/w stock of local-currency guarantees (uncalled): stock of uncalled guarantees in local currency included in total debt, percent of GDP | B10: 0 | C10: 0 | D10: 0 | E10: 0 | F10: 0 | G10: 0.3558637011 | H10: 0.1351742319 | I10: 0.1125486542 | J10: 0.9540746431 | K10: 0.8204433033 | L10: 0.56925678 | M10: 0.5008202286 | N10: 0.4393407941 | O10: 0.3848479606 | P10: 0.3584565938 | Q10: 0.3584565938 | R10: 0.3672537161 | S10: 0.3613889679 | T10: 0.3623664259 | U10: 0.3636697033 | V10: 0.3624750324 | W10: 0.3624750324
A11: o/w stock of foreign-currency guarantees (uncalled): stock of uncalled guarantees in foreign currency included in total debt, percent of GDP | B11: 0 | C11: 0 | D11: 0 | E11: 0 | F11: 0 | G11: 1.067591103 | H11: 0.4055226956 | I11: 0.3376459625 | J11: 2.862223929 | K11: 2.46132991 | L11: 1.70777034 | M11: 1.502460686 | N11: 1.318022382 | O11: 1.154543882 | P11: 1.075369782 | Q11: 1.075369782 | R11: 1.101761148 | S11: 1.084166904 | T11: 1.087099278 | U11: 1.09100911 | V11: 1.087425097 | W11: 1.087425097
A12: αt (share excl. guarantees): share of foreign currency denominated debt in total debt, percent of total debt | B12: 55.05 | C12: 58.87 | D12: 69.61 | E12: 68.47 | F12: 67.99 | G12: 63.36 | H12: 64.18 | I12: 61.2 | J12: 60.67 | K12: 60.45 | L12: 63.4725 | M12: 63.4725 | N12: 60.298875 | O12: 57.28393125 | P12: 57.28393125 | Q12: 57.28393125 | R12: 60.14812781 | S12: 57.14072142 | T12: 57.14072142 | U12: 59.99775749 | V12: 56.99786962 | W12: 56.99786962
A13: et (LCU/FCU, avg): nominal average exchange rate, local currency per unit of foreign currency | B13: 18.91655317 | C13: 19.50405608 | D13: 20.35654016 | E13: 20.98862077 | F13: 21.9467 | G13: 22.8385 | H13: 23.49258333 | I13: 23.90111647 | J13: 24.50763036 | K13: 24.5823 | L13: 25.02294171 | M13: 25.48398814 | N13: 25.97181833 | O13: 26.43689781 | P13: 26.89357423 | Q13: 27.4324246 | R13: 27.98207159 | S13: 28.54273153 | T13: 29.11462507 | U13: 29.6979773 | V13: 30.2930178 | W13: 30.89998078
A14: et (LCU/FCU, eop): nominal end of period exchange rate, local currency per unit of foreign currency | B14: 19.052 | C14: 19.9623 | D14: 20.5975 | E14: 21.5124 | F14: 22.3676 | G14: 23.5029 | H14: 23.5879 | I14: 24.3388 | J14: 24.635 | K14: 24.1141 | L14: 24.29623427 | M14: 24.47051014 | N14: 24.95941552 | O14: 25.45808893 | P14: 25.96672551 | Q14: 26.48606002 | R14: 27.01578122 | S14: 27.55609685 | T14: 28.10721878 | U14: 28.66936316 | V14: 29.24275042 | W14: 29.82760543
A15: itd: nominal effective interest rate on local currency denominated debt, percent | B15: 8.918758936 | C15: 9.232938599 | D15: 10.53400775 | E15: 10.84946009 | F15: 10.94940995 | G15: 10.10003746 | H15: 9.697729214 | I15: 10.15733532 | J15: 10.20819257 | K15: 10.38867089 | L15: 9.869237348 | M15: 9.37577548 | N15: 9.844564254 | O15: 10.33679247 | P15: 10.33679247 | Q15: 10.33679247 | R15: 10.33679247 | S15: 10.33679247 | T15: 10.33679247 | U15: 10.33679247 | V15: 10.33679247 | W15: 10.33679247
A16: itf: nominal effective interest rate on foreign currency denominated debt, percent | B16: 2.463200262 | C16: 2.03472765 | D16: 2.803817976 | E16: 3.412469993 | F16: 3.506312078 | G16: 3.497051911 | H16: 3.871803137 | I16: 3.611484114 | J16: 3.583462805 | K16: 3.60111838 | L16: 3.781174299 | M16: 3.781174299 | N16: 3.592115584 | O16: 3.412509804 | P16: 3.412509804 | Q16: 3.412509804 | R16: 3.583135295 | S16: 3.40397853 | T16: 3.40397853 | U16: 3.574177456 | V16: 3.395468584 | W16: 3.395468584
A17: πt: GDP deflator inflation, percent | B17: 5.6 | C17: 5.39 | D17: 4.916732752 | E17: 5.82 | F17: 2.36 | G17: 3.314724355 | H17: 4.73 | I17: 4.23 | J17: 4.08 | K17: 4.013079667 | L17: 4.041365315 | M17: 3.654278014 | N17: 3.761262889 | O17: 3.737199002 | P17: 3.71837475 | Q17: 4 | R17: 4 | S17: 4 | T17: 4 | U17: 4 | V17: 4 | W17: 4
A18: gt: Real GDP growth, percent | B18: 3.835682117 | C18: 4.128725633 | D18: 2.791554075 | E18: 3.058096332 | F18: 3.840046512 | G18: 3.893003331 | H18: 4.842866705 | I18: 3.845025913 | J18: 2.662336047 | K18: -8.993690565 | L18: 4.230933496 | M18: 3.746288693 | N18: 3.408191185 | O18: 3.660486026 | P18: 3.835522081 | Q18: 3.835491687 | R18: 3.835528595 | S18: 3.835544872 | T18: 3.83549772 | U18: 3.835523257 | V18: 3.835520597 | W18: 3.83553137
A19: pbt: Primary balance, percent of GDP | B19: -3.283564952 | C19: -4.033543483 | D19: -5.610796375 | E19: -1.880094999 | F19: -0.3516936022 | G19: -0.1264194147 | H19: 0.01847718413 | I19: 0.8537145611 | J19: 0.564213633 | K19: -3.548590878 | L19: -4.040950675 | M19: -1.054812503 | N19: 0.4523486729 | O19: 0.2669914016 | P19: 0.1974697979 | Q19: 0.3056032908 | R19: 0.2566881634 | S19: 0.2532537507 | T19: 0.2718484016 | U19: 0.2605967719 | V19: 0.2618996414 | W19: 0.264781605
A20: oft (other net debt-creating flows): Other net debt creating flows, percent of GDP | B20: 0 | C20: 0 | D20: 0 | E20: 0 | F20: 0 | G20: 0 | H20: 0 | I20: 0 | J20: 0 | K20: 0 | L20: 0.9 | M20: 0.9 | N20: 0.9 | O20: 0.9 | P20: 0.9 | Q20: 0.9 | R20: 0.9 | S20: 0.9 | T20: 0.9 | U20: 0.9 | V20: 0.9 | W20: 0.9
A21: πft: Foreign GDP deflator inflation, percent (used in fan chart) | B21: 2.088956 | C21: 1.918108 | D21: 1.75442 | E21: 1.850734 | F21: 0.9517819 | G21: 1.049318 | H21: 1.880033 | I21: 2.400971 | J21: 1.785224 | K21: 1.411731 | L21: 2.209248 | M21: 1.779005 | N21: 1.812309 | O21: 1.912248 | P21: 1.957146 | Q21: 1.957146 | R21: 1.957146 | S21: 1.957146 | T21: 1.957146 | U21: 1.957146 | V21: 1.957146 | W21: 1.957146

Sheet CustomizedAdj
A1: Cell code: Yellow cells are values to be inputed by the user. White cells refer to values generated by the template, or constructed to satisfy certain constraints, using formulas (e.g., accounting definitions, solutions to equations).
A4: Debt Target Customized Adjustment Scenario, to reduce debt in k periods. Units of macrofiscal variables are as indicated in "Input - Data".
A5: ="Country:"&" "&CountryName -> Country: Macondo
L7: First Year of Projection
A8: Year | B8: =C8-1 -> 2011 | C8: 2012 | D8: 2013 | E8: 2014 | F8: 2015 | G8: 2016 | H8: 2017 | I8: 2018 | J8: 2019 | K8: =L8-1 -> 2020 | L8: =FirstYear -> 2021 | M8: =L8+1 -> 2022 | N8: 2023 | O8: 2024 | P8: 2025 | Q8: 2026 | R8: 2027 | S8: 2028 | T8: 2029 | U8: 2030 | V8: 2031 | W8: 2032
A9: dt (debt including uncalled guarantees) | B9: ='Input - Data'!B9 -> 31.5933688 | C9: ='Input - Data'!C9 -> 35.33939124 | D9: ='Input - Data'!D9 -> 43.11561343 | E9: ='Input - Data'!E9 -> 44.44062131 | F9: ='Input - Data'!F9 -> 44.32556858 | G9: ='Input - Data'!G9 -> 45.98041253 | H9: ='Input - Data'!H9 -> 47.43639858 | I9: ='Input - Data'!I9 -> 48.5464043 | J9: ='Input - Data'!J9 -> 48.67164741 | K9: ='Input - Data'!K9 -> 58.86485128 | L9: =(K9-K10-K11)*L23-L20*L24+L20*L25+(L10+L11) -> 61.72884638 | M9: =(L9-L10-L11)*M23-M20*M24+M20*M25+(M10+M11) -> 62.64909813 | N9: 68.35984017 | O9: 78.15373358 | P9: 92.04591802 | Q9: 86.64926652 | R9: 81.31130046 | S9: 75.91612789 | T9: 70.59571122 | U9: 65.30035677 | V9: 60 | W9: 54.74650755
A10: o/w stock of local-currency guarantees (uncalled) | B10: ='Input - Data'!B10 -> 0 | C10: ='Input - Data'!C10 -> 0 | D10: ='Input - Data'!D10 -> 0 | E10: ='Input - Data'!E10 -> 0 | F10: ='Input - Data'!F10 -> 0 | G10: ='Input - Data'!G10 -> 0.3558637011 | H10: ='Input - Data'!H10 -> 0.1351742319 | I10: ='Input - Data'!I10 -> 0.1125486542 | J10: ='Input - Data'!J10 -> 0.9540746431 | K10: ='Input - Data'!K10 -> 0.8204433033 | L10: ='Input - Data'!L10 -> 0.56925678 | M10: ='Input - Data'!M10 -> 0.5008202286 | N10: ='Input - Data'!N10 -> 0.4393407941 | O10: ='Input - Data'!O10 -> 0.3848479606 | P10: ='Input - Data'!P10 -> 0.3584565938 | Q10: ='Input - Data'!Q10 -> 0.3584565938 | R10: ='Input - Data'!R10 -> 0.3672537161 | S10: ='Input - Data'!S10 -> 0.3613889679 | T10: ='Input - Data'!T10 -> 0.3623664259 | U10: ='Input - Data'!U10 -> 0.3636697033 | V10: ='Input - Data'!V10 -> 0.3624750324 | W10: ='Input - Data'!W10 -> 0.3624750324
A11: o/w stock of foreign-currency guarantees (uncalled) | B11: ='Input - Data'!B11 -> 0 | C11: ='Input - Data'!C11 -> 0 | D11: ='Input - Data'!D11 -> 0 | E11: ='Input - Data'!E11 -> 0 | F11: ='Input - Data'!F11 -> 0 | G11: ='Input - Data'!G11 -> 1.067591103 | H11: ='Input - Data'!H11 -> 0.4055226956 | I11: ='Input - Data'!I11 -> 0.3376459625 | J11: ='Input - Data'!J11 -> 2.862223929 | K11: ='Input - Data'!K11 -> 2.46132991 | L11: ='Input - Data'!L11 -> 1.70777034 | M11: ='Input - Data'!M11 -> 1.502460686 | N11: ='Input - Data'!N11 -> 1.318022382 | O11: ='Input - Data'!O11 -> 1.154543882 | P11: ='Input - Data'!P11 -> 1.075369782 | Q11: ='Input - Data'!Q11 -> 1.075369782 | R11: ='Input - Data'!R11 -> 1.101761148 | S11: ='Input - Data'!S11 -> 1.084166904 | T11: ='Input - Data'!T11 -> 1.087099278 | U11: ='Input - Data'!U11 -> 1.09100911 | V11: ='Input - Data'!V11 -> 1.087425097 | W11: ='Input - Data'!W11 -> 1.087425097
A12: 1 - αt (share excl. guarantees) | B12: =100-B13 -> 44.95 | C12: =100-C13 -> 41.13 | D12: 30.39 | E12: 31.53 | F12: 32.01 | G12: 36.64 | H12: 35.82 | I12: 38.8 | J12: 39.33 | K12: 39.55 | L12: 36.5275 | M12: 36.5275 | N12: 39.701125 | O12: 42.71606875 | P12: 42.71606875 | Q12: 42.71606875 | R12: 39.85187219 | S12: 42.85927858 | T12: 42.85927858 | U12: 40.00224251 | V12: 43.00213038 | W12: 43.00213038
A13: αt (share excl. guarantees) | B13: ='Input - Data'!B12 -> 55.05 | C13: ='Input - Data'!C12 -> 58.87 | D13: ='Input - Data'!D12 -> 69.61 | E13: ='Input - Data'!E12 -> 68.47 | F13: ='Input - Data'!F12 -> 67.99 | G13: ='Input - Data'!G12 -> 63.36 | H13: ='Input - Data'!H12 -> 64.18 | I13: ='Input - Data'!I12 -> 61.2 | J13: ='Input - Data'!J12 -> 60.67 | K13: =IF(OR(K8<$B$46-1,K8>$B$47),'Input - Data'!K12,Readme!G20) -> 60.45 | L13: =IF(OR(L8<$B$46-1,L8>$B$47),'Input - Data'!L12,Readme!H20+Readme!H31) -> 63.4725 | M13: =IF(OR(M8<$B$46-1,M8>$B$47),'Input - Data'!M12,Readme!I20+Readme!I31) -> 63.4725 | N13: =IF(OR(N8<$B$46-1,N8>$B$47),'Input - Data'!N12,Readme!J20+Readme!J31) -> 60.298875 | O13: =IF(OR(O8<$B$46-1,O8>$B$47),'Input - Data'!O12,Readme!K20+Readme!K31) -> 57.28393125 | P13: =IF(OR(P8<$B$46-1,P8>$B$47),'Input - Data'!P12,Readme!L20+Readme!L31) -> 57.28393125 | Q13: =IF(OR(Q8<$B$46-1,Q8>$B$47),'Input - Data'!Q12,Readme!M20+Readme!M31) -> 57.28393125 | R13: =IF(OR(R8<$B$46-1,R8>$B$47),'Input - Data'!R12,Readme!N20+Readme!N31) -> 60.14812781 | S13: =IF(OR(S8<$B$46-1,S8>$B$47),'Input - Data'!S12,Readme!O20+Readme!O31) -> 57.14072142 | T13: =IF(OR(T8<$B$46-1,T8>$B$47),'Input - Data'!T12,Readme!P20+Readme!P31) -> 57.14072142 | U13: =IF(OR(U8<$B$46-1,U8>$B$47),'Input - Data'!U12,Readme!Q20+Readme!Q31) -> 59.99775749 | V13: =IF(OR(V8<$B$46-1,V8>$B$47),'Input - Data'!V12,Readme!R20+Readme!R31) -> 56.99786962 | W13: =IF(OR(W8<$B$46-1,W8>$B$47),'Input - Data'!W12,Readme!S20+Readme!S31) -> 56.99786962
A14: et (avg) | B14: ='Input - Data'!B13 -> 18.91655317 | C14: ='Input - Data'!C13 -> 19.50405608 | D14: ='Input - Data'!D13 -> 20.35654016 | E14: ='Input - Data'!E13 -> 20.98862077 | F14: ='Input - Data'!F13 -> 21.9467 | G14: ='Input - Data'!G13 -> 22.8385 | H14: ='Input - Data'!H13 -> 23.49258333 | I14: ='Input - Data'!I13 -> 23.90111647 | J14: ='Input - Data'!J13 -> 24.50763036 | K14: ='Input - Data'!K13 -> 24.5823 | L14: =IF(OR(L8<$B$46,L8>$B$47),'Input - Data'!L13,Readme!H21+Readme!H32) -> 25.02294171 | M14: =IF(OR(M8<$B$46,M8>$B$47),'Input - Data'!M13,Readme!I21+Readme!I32) -> 25.48398814 | N14: =IF(OR(N8<$B$46,N8>$B$47),'Input - Data'!N13,Readme!J21+Readme!J32) -> 25.97181833 | O14: =IF(OR(O8<$B$46,O8>$B$47),'Input - Data'!O13,Readme!K21+Readme!K32) -> 26.43689781 | P14: =IF(OR(P8<$B$46,P8>$B$47),'Input - Data'!P13,Readme!L21+Readme!L32) -> 26.89357423 | Q14: =IF(OR(Q8<$B$46,Q8>$B$47),'Input - Data'!Q13,Readme!M21+Readme!M32) -> 27.4324246 | R14: =IF(OR(R8<$B$46,R8>$B$47),'Input - Data'!R13,Readme!N21+Readme!N32) -> 27.98207159 | S14: =IF(OR(S8<$B$46,S8>$B$47),'Input - Data'!S13,Readme!O21+Readme!O32) -> 28.54273153 | T14: =IF(OR(T8<$B$46,T8>$B$47),'Input - Data'!T13,Readme!P21+Readme!P32) -> 29.11462507 | U14: =IF(OR(U8<$B$46,U8>$B$47),'Input - Data'!U13,Readme!Q21+Readme!Q32) -> 29.6979773 | V14: =IF(OR(V8<$B$46,V8>$B$47),'Input - Data'!V13,Readme!R21+Readme!R32) -> 30.2930178 | W14: =IF(OR(W8<$B$46,W8>$B$47),'Input - Data'!W13,Readme!S21+Readme!S32) -> 30.89998078
A15: et (eop) | B15: ='Input - Data'!B14 -> 19.052 | C15: ='Input - Data'!C14 -> 19.9623 | D15: ='Input - Data'!D14 -> 20.5975 | E15: ='Input - Data'!E14 -> 21.5124 | F15: ='Input - Data'!F14 -> 22.3676 | G15: ='Input - Data'!G14 -> 23.5029 | H15: ='Input - Data'!H14 -> 23.5879 | I15: ='Input - Data'!I14 -> 24.3388 | J15: ='Input - Data'!J14 -> 24.635 | K15: ='Input - Data'!K14 -> 24.1141 | L15: =IF(OR(L8<$B$46,L8>$B$47),'Input - Data'!L14,Readme!H22+Readme!H33) -> 24.29623427 | M15: =IF(OR(M8<$B$46,M8>$B$47),'Input - Data'!M14,Readme!I22+Readme!I33) -> 24.47051014 | N15: =IF(OR(N8<$B$46,N8>$B$47),'Input - Data'!N14,Readme!J22+Readme!J33) -> 24.95941552 | O15: =IF(OR(O8<$B$46,O8>$B$47),'Input - Data'!O14,Readme!K22+Readme!K33) -> 25.45808893 | P15: =IF(OR(P8<$B$46,P8>$B$47),'Input - Data'!P14,Readme!L22+Readme!L33) -> 25.96672551 | Q15: =IF(OR(Q8<$B$46,Q8>$B$47),'Input - Data'!Q14,Readme!M22+Readme!M33) -> 26.48606002 | R15: =IF(OR(R8<$B$46,R8>$B$47),'Input - Data'!R14,Readme!N22+Readme!N33) -> 27.01578122 | S15: =IF(OR(S8<$B$46,S8>$B$47),'Input - Data'!S14,Readme!O22+Readme!O33) -> 27.55609685 | T15: =IF(OR(T8<$B$46,T8>$B$47),'Input - Data'!T14,Readme!P22+Readme!P33) -> 28.10721878 | U15: =IF(OR(U8<$B$46,U8>$B$47),'Input - Data'!U14,Readme!Q22+Readme!Q33) -> 28.66936316 | V15: =IF(OR(V8<$B$46,V8>$B$47),'Input - Data'!V14,Readme!R22+Readme!R33) -> 29.24275042 | W15: =IF(OR(W8<$B$46,W8>$B$47),'Input - Data'!W14,Readme!S22+Readme!S33) -> 29.82760543
A16: εt | B16: n.a. | C16: =(C15/B15-1)*100 -> 4.777976066 | D16: 3.181998066 | E16: 4.441801189 | F16: 3.97538164 | G16: 5.07564513 | H16: 0.3616574976 | I16: 3.183411834 | J16: 1.216986869 | K16: -2.114471281 | L16: =IF(OR(L$8<$B$46,L$8>$B$47),('Input - Data'!L14/'Input - Data'!K14-1)*100,((Readme!H22+Readme!H33)/(Readme!G22+Readme!G33)-1)*100) -> 0.755301981 | M16: =IF(OR(M$8<$B$46,M$8>$B$47),('Input - Data'!M14/'Input - Data'!L14-1)*100,((Readme!I22+Readme!I33)/(Readme!H22+Readme!H33)-1)*100) -> 0.71729577 | N16: =IF(OR(N$8<$B$46,N$8>$B$47),('Input - Data'!N14/'Input - Data'!M14-1)*100,((Readme!J22+Readme!J33)/(Readme!I22+Readme!I33)-1)*100) -> 1.997937032 | O16: =IF(OR(O$8<$B$46,O$8>$B$47),('Input - Data'!O14/'Input - Data'!N14-1)*100,((Readme!K22+Readme!K33)/(Readme!J22+Readme!J33)-1)*100) -> 1.997937032 | P16: =IF(OR(P$8<$B$46,P$8>$B$47),('Input - Data'!P14/'Input - Data'!O14-1)*100,((Readme!L22+Readme!L33)/(Readme!K22+Readme!K33)-1)*100) -> 1.997937032 | Q16: =IF(OR(Q$8<$B$46,Q$8>$B$47),('Input - Data'!Q14/'Input - Data'!P14-1)*100,((Readme!M22+Readme!M33)/(Readme!L22+Readme!L33)-1)*100) -> 2 | R16: =IF(OR(R$8<$B$46,R$8>$B$47),('Input - Data'!R14/'Input - Data'!Q14-1)*100,((Readme!N22+Readme!N33)/(Readme!M22+Readme!M33)-1)*100) -> 2 | S16: =IF(OR(S$8<$B$46,S$8>$B$47),('Input - Data'!S14/'Input - Data'!R14-1)*100,((Readme!O22+Readme!O33)/(Readme!N22+Readme!N33)-1)*100) -> 2 | T16: =IF(OR(T$8<$B$46,T$8>$B$47),('Input - Data'!T14/'Input - Data'!S14-1)*100,((Readme!P22+Readme!P33)/(Readme!O22+Readme!O33)-1)*100) -> 2 | U16: =IF(OR(U$8<$B$46,U$8>$B$47),('Input - Data'!U14/'Input - Data'!T14-1)*100,((Readme!Q22+Readme!Q33)/(Readme!P22+Readme!P33)-1)*100) -> 2 | V16: =IF(OR(V$8<$B$46,V$8>$B$47),('Input - Data'!V14/'Input - Data'!U14-1)*100,((Readme!R22+Readme!R33)/(Readme!Q22+Readme!Q33)-1)*100) -> 2 | W16: =IF(OR(W$8<$B$46,W$8>$B$47),('Input - Data'!W14/'Input - Data'!V14-1)*100,((Readme!S22+Readme!S33)/(Readme!R22+Readme!R33)-1)*100) -> 2
A17: itd | B17: ='Input - Data'!B15 -> 8.918758936 | C17: ='Input - Data'!C15 -> 9.232938599 | D17: ='Input - Data'!D15 -> 10.53400775 | E17: ='Input - Data'!E15 -> 10.84946009 | F17: ='Input - Data'!F15 -> 10.94940995 | G17: ='Input - Data'!G15 -> 10.10003746 | H17: ='Input - Data'!H15 -> 9.697729214 | I17: ='Input - Data'!I15 -> 10.15733532 | J17: ='Input - Data'!J15 -> 10.20819257 | K17: ='Input - Data'!K15 -> 10.38867089 | L17: =IF(OR(L$8<$B$46,L$8>$B$47),'Input - Data'!L15,Readme!H23+Readme!H34) -> 9.869237348 | M17: =IF(OR(M$8<$B$46,M$8>$B$47),'Input - Data'!M15,Readme!I23+Readme!I34) -> 9.37577548 | N17: =IF(OR(N$8<$B$46,N$8>$B$47),'Input - Data'!N15,Readme!J23+Readme!J34) -> 9.844564254 | O17: =IF(OR(O$8<$B$46,O$8>$B$47),'Input - Data'!O15,Readme!K23+Readme!K34) -> 10.33679247 | P17: =IF(OR(P$8<$B$46,P$8>$B$47),'Input - Data'!P15,Readme!L23+Readme!L34) -> 10.33679247 | Q17: =IF(OR(Q$8<$B$46,Q$8>$B$47),'Input - Data'!Q15,Readme!M23+Readme!M34) -> 10.33679247 | R17: =IF(OR(R$8<$B$46,R$8>$B$47),'Input - Data'!R15,Readme!N23+Readme!N34) -> 10.33679247 | S17: =IF(OR(S$8<$B$46,S$8>$B$47),'Input - Data'!S15,Readme!O23+Readme!O34) -> 10.33679247 | T17: =IF(OR(T$8<$B$46,T$8>$B$47),'Input - Data'!T15,Readme!P23+Readme!P34) -> 10.33679247 | U17: =IF(OR(U$8<$B$46,U$8>$B$47),'Input - Data'!U15,Readme!Q23+Readme!Q34) -> 10.33679247 | V17: =IF(OR(V$8<$B$46,V$8>$B$47),'Input - Data'!V15,Readme!R23+Readme!R34) -> 10.33679247 | W17: =IF(OR(W$8<$B$46,W$8>$B$47),'Input - Data'!W15,Readme!S23+Readme!S34) -> 10.33679247
A18: itf | B18: ='Input - Data'!B16 -> 2.463200262 | C18: ='Input - Data'!C16 -> 2.03472765 | D18: ='Input - Data'!D16 -> 2.803817976 | E18: ='Input - Data'!E16 -> 3.412469993 | F18: ='Input - Data'!F16 -> 3.506312078 | G18: ='Input - Data'!G16 -> 3.497051911 | H18: ='Input - Data'!H16 -> 3.871803137 | I18: ='Input - Data'!I16 -> 3.611484114 | J18: ='Input - Data'!J16 -> 3.583462805 | K18: ='Input - Data'!K16 -> 3.60111838 | L18: =IF(OR(L$8<$B$46,L$8>$B$47),'Input - Data'!L16,Readme!H24+Readme!H35) -> 3.781174299 | M18: =IF(OR(M$8<$B$46,M$8>$B$47),'Input - Data'!M16,Readme!I24+Readme!I35) -> 3.781174299 | N18: =IF(OR(N$8<$B$46,N$8>$B$47),'Input - Data'!N16,Readme!J24+Readme!J35) -> 3.592115584 | O18: =IF(OR(O$8<$B$46,O$8>$B$47),'Input - Data'!O16,Readme!K24+Readme!K35) -> 3.412509804 | P18: =IF(OR(P$8<$B$46,P$8>$B$47),'Input - Data'!P16,Readme!L24+Readme!L35) -> 3.412509804 | Q18: =IF(OR(Q$8<$B$46,Q$8>$B$47),'Input - Data'!Q16,Readme!M24+Readme!M35) -> 3.412509804 | R18: =IF(OR(R$8<$B$46,R$8>$B$47),'Input - Data'!R16,Readme!N24+Readme!N35) -> 3.583135295 | S18: =IF(OR(S$8<$B$46,S$8>$B$47),'Input - Data'!S16,Readme!O24+Readme!O35) -> 3.40397853 | T18: =IF(OR(T$8<$B$46,T$8>$B$47),'Input - Data'!T16,Readme!P24+Readme!P35) -> 3.40397853 | U18: =IF(OR(U$8<$B$46,U$8>$B$47),'Input - Data'!U16,Readme!Q24+Readme!Q35) -> 3.574177456 | V18: =IF(OR(V$8<$B$46,V$8>$B$47),'Input - Data'!V16,Readme!R24+Readme!R35) -> 3.395468584 | W18: =IF(OR(W$8<$B$46,W$8>$B$47),'Input - Data'!W16,Readme!S24+Readme!S35) -> 3.395468584
A19: π t | B19: ='Input - Data'!B17 -> 5.6 | C19: ='Input - Data'!C17 -> 5.39 | D19: ='Input - Data'!D17 -> 4.916732752 | E19: ='Input - Data'!E17 -> 5.82 | F19: ='Input - Data'!F17 -> 2.36 | G19: ='Input - Data'!G17 -> 3.314724355 | H19: ='Input - Data'!H17 -> 4.73 | I19: ='Input - Data'!I17 -> 4.23 | J19: ='Input - Data'!J17 -> 4.08 | K19: ='Input - Data'!K17 -> 4.013079667 | L19: =IF(OR(L$8<$B$46,L$8>$B$47),'Input - Data'!L17,Readme!H25+Readme!H36) -> 4.041365315 | M19: =IF(OR(M$8<$B$46,M$8>$B$47),'Input - Data'!M17,Readme!I25+Readme!I36) -> 3.654278014 | N19: =IF(OR(N$8<$B$46,N$8>$B$47),'Input - Data'!N17,Readme!J25+Readme!J36) -> 3.761262889 | O19: =IF(OR(O$8<$B$46,O$8>$B$47),'Input - Data'!O17,Readme!K25+Readme!K36) -> 3.737199002 | P19: =IF(OR(P$8<$B$46,P$8>$B$47),'Input - Data'!P17,Readme!L25+Readme!L36) -> 3.71837475 | Q19: =IF(OR(Q$8<$B$46,Q$8>$B$47),'Input - Data'!Q17,Readme!M25+Readme!M36) -> 4 | R19: =IF(OR(R$8<$B$46,R$8>$B$47),'Input - Data'!R17,Readme!N25+Readme!N36) -> 4 | S19: =IF(OR(S$8<$B$46,S$8>$B$47),'Input - Data'!S17,Readme!O25+Readme!O36) -> 4 | T19: =IF(OR(T$8<$B$46,T$8>$B$47),'Input - Data'!T17,Readme!P25+Readme!P36) -> 4 | U19: =IF(OR(U$8<$B$46,U$8>$B$47),'Input - Data'!U17,Readme!Q25+Readme!Q36) -> 4 | V19: =IF(OR(V$8<$B$46,V$8>$B$47),'Input - Data'!V17,Readme!R25+Readme!R36) -> 4 | W19: =IF(OR(W$8<$B$46,W$8>$B$47),'Input - Data'!W17,Readme!S25+Readme!S36) -> 4
A20: µt | B20: =1/(1-B13/100*(1-B14/B15)) -> 1.00392906 | C20: 1.01369901 | D20: 1.008210183 | E20: 1.016953558 | F20: 1.012959754 | G20: 1.018237805 | H20: 1.002600202 | I20: 1.011128039 | J20: 1.003146674 | K20: 0.9883991709 | L20: 0.9813688986 | M20: 0.9743853943 | N20: 0.9761255261 | O20: 0.9784501804 | P20: 0.9799629338 | Q20: 0.9799426029 | R20: 0.978939528 | S20: 0.9799511792 | T20: 0.9799308974 | U20: 0.9789273134 | V20: 0.9799395999 | W20: 0.9799193671
A21: rˆtw | B21: n.a. | C21: =(((1+C18/100)*(1+C16/100)*C14/C15*B13/100+(1+C17/100)*B12/100)*C20/(1+C19/100)-1)*100 -> 2.536726589 | D21: 2.994472777 | E21: 2.867307232 | F21: 6.16867726 | G21: 5.546646073 | H21: 1.45430779 | I21: 3.643982912 | J21: 2.737327536 | K21: 0.857444211 | L21: 2.392921214 | M21: 2.506008286 | N21: 3.396934736 | O21: 3.613211062 | P21: 3.657874587 | Q21: 3.37832787 | R21: 3.371810334 | S21: 3.349203511 | T21: 3.380004111 | U21: 3.372948412 | V21: 3.351053021 | W21: 3.381699612
A22: gt | B22: ='Input - Data'!B18 -> 3.835682117 | C22: ='Input - Data'!C18 -> 4.128725633 | D22: ='Input - Data'!D18 -> 2.791554075 | E22: ='Input - Data'!E18 -> 3.058096332 | F22: ='Input - Data'!F18 -> 3.840046512 | G22: ='Input - Data'!G18 -> 3.893003331 | H22: ='Input - Data'!H18 -> 4.842866705 | I22: ='Input - Data'!I18 -> 3.845025913 | J22: ='Input - Data'!J18 -> 2.662336047 | K22: ='Input - Data'!K18 -> -8.993690565 | L22: =IF(OR(L$8<$B$46,L$8>$B$47),'Input - Data'!L18,Readme!H26+Readme!H37) -> 4.230933496 | M22: =IF(OR(M$8<$B$46,M$8>$B$47),'Input - Data'!M18,Readme!I26+Readme!I37) -> 3.746288693 | N22: =IF(OR(N$8<$B$46,N$8>$B$47),'Input - Data'!N18,Readme!J26+Readme!J37) -> 3.408191185 | O22: =IF(OR(O$8<$B$46,O$8>$B$47),'Input - Data'!O18,Readme!K26+Readme!K37) -> 3.660486026 | P22: =IF(OR(P$8<$B$46,P$8>$B$47),'Input - Data'!P18,Readme!L26+Readme!L37) -> 3.835522081 | Q22: =IF(OR(Q$8<$B$46,Q$8>$B$47),'Input - Data'!Q18,Readme!M26+Readme!M37) -> 3.835491687 | R22: =IF(OR(R$8<$B$46,R$8>$B$47),'Input - Data'!R18,Readme!N26+Readme!N37) -> 3.835528595 | S22: =IF(OR(S$8<$B$46,S$8>$B$47),'Input - Data'!S18,Readme!O26+Readme!O37) -> 3.835544872 | T22: =IF(OR(T$8<$B$46,T$8>$B$47),'Input - Data'!T18,Readme!P26+Readme!P37) -> 3.83549772 | U22: =IF(OR(U$8<$B$46,U$8>$B$47),'Input - Data'!U18,Readme!Q26+Readme!Q37) -> 3.835523257 | V22: =IF(OR(V$8<$B$46,V$8>$B$47),'Input - Data'!V18,Readme!R26+Readme!R37) -> 3.835520597 | W22: =IF(OR(W$8<$B$46,W$8>$B$47),'Input - Data'!W18,Readme!S26+Readme!S37) -> 3.83553137
A23: φˆt | B23: n.a. | C23: =(1+C21/100)/(1+C22/100) -> 0.9847112405 | D23: =(1+D21/100)/(1+D22/100) -> 1.00197408 | E23: 0.9981487228 | F23: 1.022425171 | G23: 1.015916786 | H23: 0.9676796427 | I23: 0.9980640093 | J23: 1.000730467 | K23: 1.108246723 | L23: 0.9823659616 | M23: 0.9880450624 | N23: 0.9998911455 | O23: 0.9995439442 | P23: 0.9982891453 | Q23: 0.9955972297 | R23: 0.9955341079 | S23: 0.9953162343 | T23: 0.9956133151 | U23: 0.9955451195 | V23: 0.9953342789 | W23: 0.9956293212
A24: pbt | B24: ='Input - Data'!B19 -> -3.283564952 | C24: ='Input - Data'!C19 -> -4.033543483 | D24: ='Input - Data'!D19 -> -5.610796375 | E24: ='Input - Data'!E19 -> -1.880094999 | F24: ='Input - Data'!F19 -> -0.3516936022 | G24: ='Input - Data'!G19 -> -0.1264194147 | H24: ='Input - Data'!H19 -> 0.01847718413 | I24: ='Input - Data'!I19 -> 0.8537145611 | J24: ='Input - Data'!J19 -> 0.564213633 | K24: ='Input - Data'!K19 -> -3.548590878 | L24: =IF(L$8<$B$51,'Input - Data'!L19,IF(L$8>=$D$51,$B$54,K24+L27)) -> -4.040950675 | M24: =IF(M$8<$B$51,'Input - Data'!M19,IF(M$8>=$D$51,$B$54,L24+M27)) -> -1.054812503 | N24: =IF(N$8<$B$51,'Input - Data'!N19,IF(N$8>=$D$51,$B$54,M24+N27)) -> -5.209113207 | O24: =IF(O$8<$B$51,'Input - Data'!O19,IF(O$8>=$D$51,$B$54,N24+O27)) -> -9.36341391 | P24: =IF(P$8<$B$51,'Input - Data'!P19,IF(P$8>=$D$51,$B$54,O24+P27)) -> -13.51771461 | Q24: =IF(Q$8<$B$51,'Input - Data'!Q19,IF(Q$8>=$D$51,$B$54,P24+Q27)) -> 6 | R24: =IF(R$8<$B$51,'Input - Data'!R19,IF(R$8>=$D$51,$B$54,Q24+R27)) -> 6 | S24: =IF(S$8<$B$51,'Input - Data'!S19,IF(S$8>=$D$51,$B$54,R24+S27)) -> 6 | T24: =IF(T$8<$B$51,'Input - Data'!T19,IF(T$8>=$D$51,$B$54,S24+T27)) -> 6 | U24: =IF(U$8<$B$51,'Input - Data'!U19,IF(U$8>=$D$51,$B$54,T24+U27)) -> 6 | V24: =IF(V$8<$B$51,'Input - Data'!V19,IF(V$8>=$D$51,$B$54,U24+V27)) -> 6 | W24: =IF(W$8<$B$51,'Input - Data'!W19,IF(W$8>=$D$51,$B$54,V24+W27)) -> 6
A25: oft (other net debt-creating flows) | B25: ='Input - Data'!B20 -> 0 | C25: ='Input - Data'!C20 -> 0 | D25: ='Input - Data'!D20 -> 0 | E25: ='Input - Data'!E20 -> 0 | F25: ='Input - Data'!F20 -> 0 | G25: ='Input - Data'!G20 -> 0 | H25: ='Input - Data'!H20 -> 0 | I25: ='Input - Data'!I20 -> 0 | J25: ='Input - Data'!J20 -> 0 | K25: ='Input - Data'!K20 -> 0 | L25: =IF(OR(L$8<$B$46,L$8>$B$47),'Input - Data'!L20,Readme!H27+Readme!H38) -> 0.9 | M25: =IF(OR(M$8<$B$46,M$8>$B$47),'Input - Data'!M20,Readme!I27+Readme!I38) -> 0.9 | N25: =IF(OR(N$8<$B$46,N$8>$B$47),'Input - Data'!N20,Readme!J27+Readme!J38) -> 0.9 | O25: =IF(OR(O$8<$B$46,O$8>$B$47),'Input - Data'!O20,Readme!K27+Readme!K38) -> 0.9 | P25: =IF(OR(P$8<$B$46,P$8>$B$47),'Input - Data'!P20,Readme!L27+Readme!L38) -> 0.9 | Q25: =IF(OR(Q$8<$B$46,Q$8>$B$47),'Input - Data'!Q20,Readme!M27+Readme!M38) -> 0.9 | R25: =IF(OR(R$8<$B$46,R$8>$B$47),'Input - Data'!R20,Readme!N27+Readme!N38) -> 0.9 | S25: =IF(OR(S$8<$B$46,S$8>$B$47),'Input - Data'!S20,Readme!O27+Readme!O38) -> 0.9 | T25: =IF(OR(T$8<$B$46,T$8>$B$47),'Input - Data'!T20,Readme!P27+Readme!P38) -> 0.9 | U25: =IF(OR(U$8<$B$46,U$8>$B$47),'Input - Data'!U20,Readme!Q27+Readme!Q38) -> 0.9 | V25: =IF(OR(V$8<$B$46,V$8>$B$47),'Input - Data'!V20,Readme!R27+Readme!R38) -> 0.9 | W25: =IF(OR(W$8<$B$46,W$8>$B$47),'Input - Data'!W20,Readme!S27+Readme!S38) -> 0.9
A26: sft | B26: n.a. | C26: =((C15-C14)/C15)*((C13/100)*(C9-C10-C11)-(B13/100)*(B9-B10-B11)*(1+C16/100)/((1+C22/100)*(1+C19/100))) -> 0.09638422131 | D26: 0.1182497729 | E26: 0.04104030149 | F26: 0.006986394362 | G26: -0.03592432385 | H26: 0.01734995444 | I26: 0.01335517226 | J26: -0.003459509734 | K26: -0.1059817807 | L26: -0.1949440127 | M26: -0.1305069076 | N26: -0.1447420014 | O26: -0.2228006405 | P26: -0.3690981127 | Q26: 0.007602481993 | R26: -0.06853431433 | S26: 0.100513213 | T26: 0.0244592124 | U26: -0.03539515935 | V26: 0.1008959358 | W26: 0.04111471041
A27: adjt | L27: =IF(L8=$B$51,(SUMIF($B$8:$W$8,$B$51-1,$B$33:$W$33)*SUMIF($L$8:$W$8,$B$52,$L$39:$W$39)-($B$50)+SUMIF($L$8:$W$8,$B$52,$L$43:$W$43)-(SUMIF($B$8:$W$8,$B$51-1,$B$24:$W$24)*SUMIF($L$8:$W$8,$B$52,$L$41:$W$41)))/SUMIF($L$8:$W$8,$B$52,$L$46:$W$46),K27) -> 0 | M27: =IF(M8=$B$51,(SUMIF($B$8:$W$8,$B$51-1,$B$33:$W$33)*SUMIF($L$8:$W$8,$B$52,$L$39:$W$39)-($B$50)+SUMIF($L$8:$W$8,$B$52,$L$43:$W$43)-(SUMIF($B$8:$W$8,$B$51-1,$B$24:$W$24)*SUMIF($L$8:$W$8,$B$52,$L$41:$W$41)))/SUMIF($L$8:$W$8,$B$52,$L$46:$W$46),L27) -> 0 | N27: -4.154300704 | O27: -4.154300704 | P27: -4.154300704 | Q27: -4.154300704 | R27: -4.154300704 | S27: -4.154300704 | T27: -4.154300704 | U27: -4.154300704 | V27: -4.154300704 | W27: -4.154300704
A28: Int paymentst (excl. guarantees) | B28: n.a. | C28: =(B9-B10-B11)*(1/((1+C22/100)*(1+C19/100)))*(B13/100*(1+C16/100)*(C14/C15)*(C18/100)+B12/100*(C17/100)) -> 1.524922734 | D28: 1.971303021 | E28: 2.260499189 | F28: 2.467481432 | G28: 2.337640614 | H28: 2.436932762 | I28: 2.593957444 | J28: 2.776848392 | K28: 2.969233883 | L28: 3.21635555 | M28: 3.285058385 | N28: 3.400231292 | O28: 3.891641339 | P28: 4.610181361 | Q28: 5.437813639 | R28: 5.195491178 | S28: 4.645045767 | T28: 4.472376714 | U28: 4.2184631 | V28: 3.717339111 | W28: 3.518822266
A29: ifisct (excl. guarantees), used in final output | B29: n.a. | C29: =(B13/100)*(1+C16/100)*(C14/C15)*C18+(B12/100)*C17 -> 5.296901047 | D29: =(C13/100)*(1+D16/100)*(D14/D15)*D18+(C12/100)*D17 -> 6.01584327 | E29: 5.717677547 | F29: 5.901588475 | G29: 5.660723619 | H29: 6.005345623 | I29: 5.986986041 | J29: 6.169070632 | K29: 6.26598899 | L29: 6.275150242 | M29: 5.942069737 | N29: 6.015861063 | O29: 6.283334568 | P29: 6.480516038 | Q29: 6.480631496 | R29: 6.583966882 | S29: 6.282556777 | T29: 6.485341894 | U29: 6.588172256 | V29: 6.287528434 | W29: 6.490064609
A30: φˆobt | B30: n.a. | C30: =((1+C16/100)*C14/C15*B13/100+B12/100)*C20/((1+C19/100)*(1+C22/100)) -> 0.9357828506 | D30: =((1+D16/100)*D14/D15*C13/100+C12/100)*D20/((1+D19/100)*(1+D22/100)) -> 0.9457340677 | E30: 0.9448310843 | F30: 0.9661824963 | G30: 0.9622169891 | H30: 0.9128449007 | I30: 0.94213515 | J30: 0.9428135079 | K30: 1.042818889 | L30: 0.925578331 | M30: 0.9342046089 | N30: 0.9451626793 | O30: 0.9423722392 | P30: 0.9393209841 | Q30: 0.9367889056 | R30: 0.9358492472 | S30: 0.9383048644 | T30: 0.936762953 | U30: 0.9358228784 | V30: 0.9382784544 | W30: 0.9367368155
A31: obt | B31: n.a. | C31: =C24-C28 -> -5.558466217 | D31: =D24-D28 -> -7.582099396 | E31: -4.140594188 | F31: -2.819175034 | G31: -2.464060029 | H31: -2.418455578 | I31: -1.740242883 | J31: -2.212634759 | K31: -6.517824761 | L31: -7.257306226 | M31: -4.339870888 | N31: -8.609344499 | O31: -13.25505525 | P31: -18.12789598 | Q31: 0.5621863609 | R31: 0.8045088218 | S31: 1.354954233 | T31: 1.527623286 | U31: 1.7815369 | V31: 2.282660889 | W31: 2.481177734
A32: residualt | B32: n.a. | C32: =((C9-C10-C11)-C23*(B9-B10-B11)+C20*C24-C20*C25)/C20 -> 0.138351542 | D32: =((D9-D10-D11)-D23*(C9-C10-C11)+D20*D24-D20*D25)/D20 -> 2.032906839 | E32: -0.4986879269 | F32: -1.449112564 | G32: -0.5920586438 | H32: 3.787517649 | I32: 2.130800767 | J32: -2.70150378 | K32: 2.392616761 | L32: 7.919102779e-16 | M32: 1.116620354e-14 | N32: -5.004460162e-15 | O32: -3.744427723e-15 | P32: 4.418401601e-15 | Q32: 1.359536391e-15 | R32: 1.440316997e-14 | S32: 4.984923139e-15 | T32: 5.664802628e-16 | U32: 1.02070982e-15 | V32: -6.797702786e-16 | W32: 4.418598041e-15
A33: dt (debt excluding uncalled guarantees) | B33: =B9-B10-B11 -> 31.5933688 | C33: =C9-C10-C11 -> 35.33939124 | D33: 43.11561343 | E33: 44.44062131 | F33: 44.32556858 | G33: 44.55695772 | H33: 46.89570166 | I33: 48.09620969 | J33: 44.85534884 | K33: 55.58307807 | L33: 59.45181926 | M33: 60.64581722 | N33: 66.60247699 | O33: 76.61434174 | P33: 90.61209164 | Q33: 85.21544014 | R33: 79.84228559 | S33: 74.47057202 | T33: 69.14624551 | U33: =U9-U10-U11 -> 63.84567795 | V33: 58.55009987 | W33: 53.29660742
A34: Π * φˆt | B34: =IF(B$8<$D$51,0,IF(B$8=$D$51,B$23,IF(B$8<=$D$52,B$23*A34,0))) -> 0 | C34: 0 | D34: 0 | E34: 0 | F34: 0 | G34: 0 | H34: 0 | I34: 0 | J34: 0 | K34: 0 | L34: 0 | M34: 0 | N34: 0 | O34: 0 | P34: 0 | Q34: 0.9955972297 | R34: 0.991151 | S34: 0.9865086809 | T34: 0.9821811782 | U34: 0.9778056785 | V34: 0.9732435099 | W34: 0
A35: µt * F(Π * φˆt) | B35: =IF(B$8<$D$51,0,IF(B$8>$D$52,0,B$20/B34*SUMIF($L$8:$W$8,$D$52,$L$34:$W$34))) -> 0 | C35: 0 | D35: 0 | E35: 0 | F35: 0 | G35: 0 | H35: 0 | I35: 0 | J35: 0 | K35: 0 | L35: 0 | M35: 0 | N35: 0 | O35: 0 | P35: 0 | Q35: 0.9579403697 | R35: 0.9612526671 | S35: 0.9667741842 | T35: 0.9710137063 | U35: 0.9743599116 | V35: 0.9799395999 | W35: 0
A36: Σ (µt * F(Π * φˆt)) | B36: =IF(B$8<$D$51,0,IF(B$8=$D$51,B$35,IF(B$8<=$D$52,B$35+A36,0))) -> 0 | C36: 0 | D36: 0 | E36: 0 | F36: 0 | G36: 0 | H36: 0 | I36: 0 | J36: 0 | K36: 0 | L36: 0 | M36: 0 | N36: 0 | O36: 0 | P36: 0 | Q36: 0.9579403697 | R36: 1.919193037 | S36: 2.885967221 | T36: 3.856980927 | U36: 4.831340839 | V36: 5.811280439 | W36: 0
A37: oft * µt * F(Π * φˆt) | C37: =C25*C35 -> 0 | D37: 0 | E37: 0 | F37: 0 | G37: 0 | H37: 0 | I37: 0 | J37: 0 | K37: 0 | L37: 0 | M37: 0 | N37: 0 | O37: 0 | P37: 0 | Q37: 0.8621463328 | R37: 0.8651274004 | S37: 0.8700967658 | T37: 0.8739123356 | U37: 0.8769239205 | V37: 0.8819456399 | W37: 0
A38: Σ (oft * µt * F(Π * φˆt)) | C38: =IF(C$8<$D$51,0,IF(C$8=$D$51,C$37,IF(C$8<=$D$52,C$37+B38,0))) -> 0 | D38: 0 | E38: 0 | F38: 0 | G38: 0 | H38: 0 | I38: 0 | J38: 0 | K38: 0 | L38: 0 | M38: 0 | N38: 0 | O38: 0 | P38: 0 | Q38: 0.8621463328 | R38: 1.727273733 | S38: 2.597370499 | T38: 3.471282835 | U38: 4.348206755 | V38: 5.230152395 | W38: 0
A39: Π * φˆt | B39: =IF(B$8<$B$51,0,IF(B$8=$B$51,B$23,IF(B$8<=$B$52,B$23*A39,0))) -> 0 | C39: 0 | D39: 0 | E39: 0 | F39: 0 | G39: 0 | H39: 0 | I39: 0 | J39: 0 | K39: 0 | L39: 0 | M39: 0 | N39: 0.9998911455 | O39: 0.9994351393 | P39: 0.997725251 | Q39: 0 | R39: 0 | S39: 0 | T39: 0 | U39: 0 | V39: 0 | W39: 0
A40: µt * F(Π * φˆt) | B40: =IF(B$8<$B$51,0,IF(B$8>$B$52,0,B$20/B39*SUMIF($L$8:$W$8,$B$52,$L$39:$W$39))) -> 0 | C40: 0 | D40: 0 | E40: 0 | F40: 0 | G40: 0 | H40: 0 | I40: 0 | J40: 0 | K40: 0 | L40: 0 | M40: 0 | N40: 0.9740111111 | O40: 0.9767761943 | P40: 0.9799629338 | Q40: 0 | R40: 0 | S40: 0 | T40: 0 | U40: 0 | V40: 0 | W40: 0
A41: Σ (µt * F(Π * φˆt)) | B41: =IF(B$8<$B$51,0,IF(B$8=$B$51,B$40,IF(B$8<=$B$52,B$40+A41,0))) -> 0 | C41: 0 | D41: 0 | E41: 0 | F41: 0 | G41: 0 | H41: 0 | I41: 0 | J41: 0 | K41: 0 | L41: 0 | M41: 0 | N41: 0.9740111111 | O41: 1.950787305 | P41: 2.930750239 | Q41: 0 | R41: 0 | S41: 0 | T41: 0 | U41: 0 | V41: 0 | W41: 0
A42: oft * µt * F(Π * φˆt) | C42: =C25*C40 -> 0 | D42: 0 | E42: 0 | F42: 0 | G42: 0 | H42: 0 | I42: 0 | J42: 0 | K42: 0 | L42: 0 | M42: 0 | N42: 0.87661 | O42: 0.8790985749 | P42: 0.8819666404 | Q42: 0 | R42: 0 | S42: 0 | T42: 0 | U42: 0 | V42: 0 | W42: 0
A43: Σ (oft * µt * F(Π * φˆt)) | C43: =IF(C$8<$B$51,0,IF(C$8=$B$51,C$42,IF(C$8<=$B$52,C$42+B43,0))) -> 0 | D43: 0 | E43: 0 | F43: 0 | G43: 0 | H43: 0 | I43: 0 | J43: 0 | K43: 0 | L43: 0 | M43: 0 | N43: 0.87661 | O43: 1.755708575 | P43: 2.637675215 | Q43: 0 | R43: 0 | S43: 0 | T43: 0 | U43: 0 | V43: 0 | W43: 0
A44: # years of Δ(pb) | C44: =IF(C$8<$B$51,0,IF(C$8=$B$51,1,IF(C$8<=$B$52,1+B44,0))) -> 0 | D44: 0 | E44: 0 | F44: 0 | G44: 0 | H44: 0 | I44: 0 | J44: 0 | K44: 0 | L44: 0 | M44: 0 | N44: 1 | O44: 2 | P44: 3 | Q44: 0 | R44: 0 | S44: 0 | T44: 0 | U44: 0 | V44: 0 | W44: 0
A45: # years of Δ(pb) * µt * F(Π * φˆt) | C45: =IF(C$8<$B$51,0,IF(C$8>$B$52,0,C$20*C44/C39*SUMIF($L$8:$W$8,$B$52,$L$39:$W$39))) -> 0 | D45: 0 | E45: 0 | F45: 0 | G45: 0 | H45: 0 | I45: 0 | J45: 0 | K45: 0 | L45: 0 | M45: 0 | N45: 0.9740111111 | O45: 1.953552389 | P45: 2.939888801 | Q45: 0 | R45: 0 | S45: 0 | T45: 0 | U45: 0 | V45: 0 | W45: 0
A46: Σ (# years of Δ(pb) * µt * F(Π * φˆt)) | C46: =IF(C$8<$B$51,0,IF(C$8=$B$51,C$45,IF(C$8<=$B$52,C$45+B46,0))) -> 0 | D46: 0 | E46: 0 | F46: 0 | G46: 0 | H46: 0 | I46: 0 | J46: 0 | K46: 0 | L46: 0 | M46: 0 | N46: 0.9740111111 | O46: 2.9275635 | P46: 5.867452301 | Q46: 0 | R46: 0 | S46: 0 | T46: 0 | U46: 0 | V46: 0 | W46: 0
A48: Debt Target
A49: ="d to start adjustment" -> d to start adjustment | B49: =SUMIF($B$8:$W$8,$B$51-1,$B$33:$W$33) -> 60.64581722
A50: Sub-target d (by end of first adjustment subperiod) | B50: =($D$50-SUMIF($L$8:$W$8,$D$52,$L$10:$W$10)-SUMIF($L$8:$W$8,$D$52,$L$11:$W$11))/SUMIF($L$8:$W$8,$D$52,$L$34:$W$34)+$B$54*SUMIF($L$8:$W$8,$D$52,$L$36:$W$36)/SUMIF($L$8:$W$8,$D$52,$L$34:$W$34)-SUMIF($L$8:$W$8,$D$52,$L$38:$W$38)/SUMIF($L$8:$W$8,$D$52,$L$34:$W$34) -> 90.61209164 | C50: Target d (end of adjustment) | D50: =Readme!B24 -> 60
A51: First adjustment subperiod starts | B51: 2023 | C51: Second adjustment subperiod starts | D51: =B52+1 -> 2026
A52: First adjustment subperiod ends | B52: 2025 | C52: Second adjustment subperiod ends | D52: 2031
A53: years of first adjustment subperiod | B53: =B52-B51+1 -> 3 | C53: years of first adjustment subperiod | D53: =D52-D51+1 -> 6
A54: pb for second adjustment subperiod | B54: 6

Sheet CustomizedSc
A1: Cell code: Yellow cells are values to be inputed by the user. White cells refer to values generated by the template, or constructed to satisfy certain constraints, using formulas (e.g., accounting definitions, solutions to equations).
A4: Customized Scenario. Units of macrofiscal variables are as indicated in "Input - Data".
A5: ="Country:"&" "&CountryName -> Country: Macondo
L7: First Year of Projection
A8: Year | B8: =C8-1 -> 2011 | C8: 2012 | D8: 2013 | E8: 2014 | F8: 2015 | G8: 2016 | H8: 2017 | I8: 2018 | J8: 2019 | K8: =L8-1 -> 2020 | L8: =FirstYear -> 2021 | M8: =L8+1 -> 2022 | N8: 2023 | O8: 2024 | P8: 2025 | Q8: 2026 | R8: 2027 | S8: 2028 | T8: 2029 | U8: 2030 | V8: 2031 | W8: 2032
A9: dt (debt including uncalled guarantees) | B9: ='Input - Data'!B9 -> 31.5933688 | C9: ='Input - Data'!C9 -> 35.33939124 | D9: ='Input - Data'!D9 -> 43.11561343 | E9: ='Input - Data'!E9 -> 44.44062131 | F9: ='Input - Data'!F9 -> 44.32556858 | G9: ='Input - Data'!G9 -> 45.98041253 | H9: ='Input - Data'!H9 -> 47.43639858 | I9: ='Input - Data'!I9 -> 48.5464043 | J9: ='Input - Data'!J9 -> 48.67164741 | K9: ='Input - Data'!K9 -> 58.86485128 | L9: =(K9-K10-K11)*(L23)-L20*L24+L20*L25+(L10+L11) -> 61.72884638 | M9: =(L9-L10-L11)*(M23)-M20*M24+M20*M25+(M10+M11) -> 62.64909813 | N9: =(M9-M10-M11)*(N23)-N20*N24+N20*N25+(N10+N11) -> 62.83354271 | O9: =(N9-N10-N11)*(O23)-O20*O24+O20*O25+(O10+O11) -> 63.20708461 | P9: =(O9-O10-O11)*(P23)-P20*P24+P20*P25+(P10+P11) -> 63.68446824 | Q9: =(P9-P10-P11)*(Q23)-Q20*Q24+Q20*Q25+(Q10+Q11) -> 63.99286762 | R9: =(Q9-Q10-Q11)*(R23)-R20*R24+R20*R25+(R10+R11) -> 64.37843757 | S9: =(R9-R10-R11)*(S23)-S20*S24+S20*S25+(S10+S11) -> 64.69410533 | T9: =(S9-S10-S11)*(T23)-T20*T24+T20*T25+(T10+T11) -> 65.03610887 | U9: =(T9-T10-T11)*(U23)-U20*U24+U20*U25+(U10+U11) -> 65.38398037 | V9: =(U9-U10-U11)*(V23)-V20*V24+V20*V25+(V10+V11) -> 65.7062252 | W9: =(V9-V10-V11)*(W23)-W20*W24+W20*W25+(W10+W11) -> 66.04784425
A10: o/w stock of local-currency guarantees (uncalled) | B10: ='Input - Data'!B10 -> 0 | C10: ='Input - Data'!C10 -> 0 | D10: ='Input - Data'!D10 -> 0 | E10: ='Input - Data'!E10 -> 0 | F10: ='Input - Data'!F10 -> 0 | G10: ='Input - Data'!G10 -> 0.3558637011 | H10: ='Input - Data'!H10 -> 0.1351742319 | I10: ='Input - Data'!I10 -> 0.1125486542 | J10: ='Input - Data'!J10 -> 0.9540746431 | K10: ='Input - Data'!K10 -> 0.8204433033 | L10: ='Input - Data'!L10 -> 0.56925678 | M10: ='Input - Data'!M10 -> 0.5008202286 | N10: ='Input - Data'!N10 -> 0.4393407941 | O10: ='Input - Data'!O10 -> 0.3848479606 | P10: ='Input - Data'!P10 -> 0.3584565938 | Q10: ='Input - Data'!Q10 -> 0.3584565938 | R10: ='Input - Data'!R10 -> 0.3672537161 | S10: ='Input - Data'!S10 -> 0.3613889679 | T10: ='Input - Data'!T10 -> 0.3623664259 | U10: ='Input - Data'!U10 -> 0.3636697033 | V10: ='Input - Data'!V10 -> 0.3624750324 | W10: ='Input - Data'!W10 -> 0.3624750324
A11: o/w stock of foreign-currency guarantees (uncalled) | B11: ='Input - Data'!B11 -> 0 | C11: ='Input - Data'!C11 -> 0 | D11: ='Input - Data'!D11 -> 0 | E11: ='Input - Data'!E11 -> 0 | F11: ='Input - Data'!F11 -> 0 | G11: ='Input - Data'!G11 -> 1.067591103 | H11: ='Input - Data'!H11 -> 0.4055226956 | I11: ='Input - Data'!I11 -> 0.3376459625 | J11: ='Input - Data'!J11 -> 2.862223929 | K11: ='Input - Data'!K11 -> 2.46132991 | L11: ='Input - Data'!L11 -> 1.70777034 | M11: ='Input - Data'!M11 -> 1.502460686 | N11: ='Input - Data'!N11 -> 1.318022382 | O11: ='Input - Data'!O11 -> 1.154543882 | P11: ='Input - Data'!P11 -> 1.075369782 | Q11: ='Input - Data'!Q11 -> 1.075369782 | R11: ='Input - Data'!R11 -> 1.101761148 | S11: ='Input - Data'!S11 -> 1.084166904 | T11: ='Input - Data'!T11 -> 1.087099278 | U11: ='Input - Data'!U11 -> 1.09100911 | V11: ='Input - Data'!V11 -> 1.087425097 | W11: ='Input - Data'!W11 -> 1.087425097
A12: 1 - αt (share excl. guarantees) | B12: =100-B13 -> 44.95 | C12: =100-C13 -> 41.13 | D12: 30.39 | E12: 31.53 | F12: 32.01 | G12: 36.64 | H12: 35.82 | I12: 38.8 | J12: 39.33 | K12: 39.55 | L12: 36.5275 | M12: 36.5275 | N12: 39.701125 | O12: 42.71606875 | P12: 42.71606875 | Q12: 42.71606875 | R12: 39.85187219 | S12: 42.85927858 | T12: 42.85927858 | U12: 40.00224251 | V12: 43.00213038 | W12: 43.00213038
A13: αt (share excl. guarantees) | B13: ='Input - Data'!B12 -> 55.05 | C13: ='Input - Data'!C12 -> 58.87 | D13: ='Input - Data'!D12 -> 69.61 | E13: ='Input - Data'!E12 -> 68.47 | F13: ='Input - Data'!F12 -> 67.99 | G13: ='Input - Data'!G12 -> 63.36 | H13: ='Input - Data'!H12 -> 64.18 | I13: ='Input - Data'!I12 -> 61.2 | J13: ='Input - Data'!J12 -> 60.67 | K13: ='Input - Data'!K12 -> 60.45 | L13: ='Input - Data'!L12 -> 63.4725 | M13: ='Input - Data'!M12 -> 63.4725 | N13: ='Input - Data'!N12 -> 60.298875 | O13: ='Input - Data'!O12 -> 57.28393125 | P13: ='Input - Data'!P12 -> 57.28393125 | Q13: ='Input - Data'!Q12 -> 57.28393125 | R13: ='Input - Data'!R12 -> 60.14812781 | S13: ='Input - Data'!S12 -> 57.14072142 | T13: ='Input - Data'!T12 -> 57.14072142 | U13: ='Input - Data'!U12 -> 59.99775749 | V13: ='Input - Data'!V12 -> 56.99786962 | W13: ='Input - Data'!W12 -> 56.99786962
A14: et (LCU/US$, avg) | B14: ='Input - Data'!B13 -> 18.91655317 | C14: ='Input - Data'!C13 -> 19.50405608 | D14: ='Input - Data'!D13 -> 20.35654016 | E14: ='Input - Data'!E13 -> 20.98862077 | F14: ='Input - Data'!F13 -> 21.9467 | G14: ='Input - Data'!G13 -> 22.8385 | H14: ='Input - Data'!H13 -> 23.49258333 | I14: ='Input - Data'!I13 -> 23.90111647 | J14: ='Input - Data'!J13 -> 24.50763036 | K14: ='Input - Data'!K13 -> 24.5823 | L14: ='Input - Data'!L13 -> 25.02294171 | M14: ='Input - Data'!M13 -> 25.48398814 | N14: ='Input - Data'!N13 -> 25.97181833 | O14: ='Input - Data'!O13 -> 26.43689781 | P14: ='Input - Data'!P13 -> 26.89357423 | Q14: ='Input - Data'!Q13 -> 27.4324246 | R14: ='Input - Data'!R13 -> 27.98207159 | S14: ='Input - Data'!S13 -> 28.54273153 | T14: ='Input - Data'!T13 -> 29.11462507 | U14: ='Input - Data'!U13 -> 29.6979773 | V14: ='Input - Data'!V13 -> 30.2930178 | W14: ='Input - Data'!W13 -> 30.89998078
A15: et (LCU/US$, eop) | B15: ='Input - Data'!B14 -> 19.052 | C15: ='Input - Data'!C14 -> 19.9623 | D15: ='Input - Data'!D14 -> 20.5975 | E15: ='Input - Data'!E14 -> 21.5124 | F15: ='Input - Data'!F14 -> 22.3676 | G15: ='Input - Data'!G14 -> 23.5029 | H15: ='Input - Data'!H14 -> 23.5879 | I15: ='Input - Data'!I14 -> 24.3388 | J15: ='Input - Data'!J14 -> 24.635 | K15: ='Input - Data'!K14 -> 24.1141 | L15: ='Input - Data'!L14 -> 24.29623427 | M15: ='Input - Data'!M14 -> 24.47051014 | N15: ='Input - Data'!N14 -> 24.95941552 | O15: ='Input - Data'!O14 -> 25.45808893 | P15: ='Input - Data'!P14 -> 25.96672551 | Q15: ='Input - Data'!Q14 -> 26.48606002 | R15: ='Input - Data'!R14 -> 27.01578122 | S15: ='Input - Data'!S14 -> 27.55609685 | T15: ='Input - Data'!T14 -> 28.10721878 | U15: ='Input - Data'!U14 -> 28.66936316 | V15: ='Input - Data'!V14 -> 29.24275042 | W15: ='Input - Data'!W14 -> 29.82760543
A16: εt | B16: n.a. | C16: =(C15/B15-1)*100 -> 4.777976066 | D16: 3.181998066 | E16: 4.441801189 | F16: 3.97538164 | G16: 5.07564513 | H16: 0.3616574976 | I16: 3.183411834 | J16: 1.216986869 | K16: -2.114471281 | L16: 0.755301981 | M16: 0.71729577 | N16: 1.997937032 | O16: 1.997937032 | P16: 1.997937032 | Q16: 2 | R16: 2 | S16: 2 | T16: 2 | U16: 2 | V16: 2 | W16: 2
A17: itd | B17: ='Input - Data'!B15 -> 8.918758936 | C17: ='Input - Data'!C15 -> 9.232938599 | D17: ='Input - Data'!D15 -> 10.53400775 | E17: ='Input - Data'!E15 -> 10.84946009 | F17: ='Input - Data'!F15 -> 10.94940995 | G17: ='Input - Data'!G15 -> 10.10003746 | H17: ='Input - Data'!H15 -> 9.697729214 | I17: ='Input - Data'!I15 -> 10.15733532 | J17: ='Input - Data'!J15 -> 10.20819257 | K17: ='Input - Data'!K15 -> 10.38867089 | L17: ='Input - Data'!L15 -> 9.869237348 | M17: ='Input - Data'!M15 -> 9.37577548 | N17: ='Input - Data'!N15 -> 9.844564254 | O17: ='Input - Data'!O15 -> 10.33679247 | P17: ='Input - Data'!P15 -> 10.33679247 | Q17: ='Input - Data'!Q15 -> 10.33679247 | R17: ='Input - Data'!R15 -> 10.33679247 | S17: ='Input - Data'!S15 -> 10.33679247 | T17: ='Input - Data'!T15 -> 10.33679247 | U17: ='Input - Data'!U15 -> 10.33679247 | V17: ='Input - Data'!V15 -> 10.33679247 | W17: ='Input - Data'!W15 -> 10.33679247
A18: itf | B18: ='Input - Data'!B16 -> 2.463200262 | C18: ='Input - Data'!C16 -> 2.03472765 | D18: ='Input - Data'!D16 -> 2.803817976 | E18: ='Input - Data'!E16 -> 3.412469993 | F18: ='Input - Data'!F16 -> 3.506312078 | G18: ='Input - Data'!G16 -> 3.497051911 | H18: ='Input - Data'!H16 -> 3.871803137 | I18: ='Input - Data'!I16 -> 3.611484114 | J18: ='Input - Data'!J16 -> 3.583462805 | K18: ='Input - Data'!K16 -> 3.60111838 | L18: ='Input - Data'!L16 -> 3.781174299 | M18: ='Input - Data'!M16 -> 3.781174299 | N18: ='Input - Data'!N16 -> 3.592115584 | O18: ='Input - Data'!O16 -> 3.412509804 | P18: ='Input - Data'!P16 -> 3.412509804 | Q18: ='Input - Data'!Q16 -> 3.412509804 | R18: ='Input - Data'!R16 -> 3.583135295 | S18: ='Input - Data'!S16 -> 3.40397853 | T18: ='Input - Data'!T16 -> 3.40397853 | U18: ='Input - Data'!U16 -> 3.574177456 | V18: ='Input - Data'!V16 -> 3.395468584 | W18: ='Input - Data'!W16 -> 3.395468584
A19: π t | B19: ='Input - Data'!B17 -> 5.6 | C19: ='Input - Data'!C17 -> 5.39 | D19: ='Input - Data'!D17 -> 4.916732752 | E19: ='Input - Data'!E17 -> 5.82 | F19: ='Input - Data'!F17 -> 2.36 | G19: ='Input - Data'!G17 -> 3.314724355 | H19: ='Input - Data'!H17 -> 4.73 | I19: ='Input - Data'!I17 -> 4.23 | J19: ='Input - Data'!J17 -> 4.08 | K19: ='Input - Data'!K17 -> 4.013079667 | L19: ='Input - Data'!L17 -> 4.041365315 | M19: ='Input - Data'!M17 -> 3.654278014 | N19: ='Input - Data'!N17 -> 3.761262889 | O19: ='Input - Data'!O17 -> 3.737199002 | P19: ='Input - Data'!P17 -> 3.71837475 | Q19: ='Input - Data'!Q17 -> 4 | R19: ='Input - Data'!R17 -> 4 | S19: ='Input - Data'!S17 -> 4 | T19: ='Input - Data'!T17 -> 4 | U19: ='Input - Data'!U17 -> 4 | V19: ='Input - Data'!V17 -> 4 | W19: ='Input - Data'!W17 -> 4
A20: µt | B20: =1/(1-B13/100*(1-B14/B15)) -> 1.00392906 | C20: 1.01369901 | D20: 1.008210183 | E20: 1.016953558 | F20: 1.012959754 | G20: 1.018237805 | H20: 1.002600202 | I20: 1.011128039 | J20: 1.003146674 | K20: 0.9883991709 | L20: 0.9813688986 | M20: 0.9743853943 | N20: 0.9761255261 | O20: 0.9784501804 | P20: 0.9799629338 | Q20: 0.9799426029 | R20: 0.978939528 | S20: 0.9799511792 | T20: 0.9799308974 | U20: 0.9789273134 | V20: 0.9799395999 | W20: 0.9799193671
A21: rˆtw | B21: n.a. | C21: =(((1+C18/100)*(1+C16/100)*C14/C15*B13/100+(1+C17/100)*B12/100)*C20/(1+C19/100)-1)*100 -> 2.536726589 | D21: 2.994472777 | E21: 2.867307232 | F21: 6.16867726 | G21: 5.546646073 | H21: 1.45430779 | I21: 3.643982912 | J21: 2.737327536 | K21: 0.857444211 | L21: 2.392921214 | M21: 2.506008286 | N21: 3.396934736 | O21: 3.613211062 | P21: 3.657874587 | Q21: 3.37832787 | R21: 3.371810334 | S21: 3.349203511 | T21: 3.380004111 | U21: 3.372948412 | V21: 3.351053021 | W21: 3.381699612
A22: gt | B22: ='Input - Data'!B18 -> 3.835682117 | C22: ='Input - Data'!C18 -> 4.128725633 | D22: ='Input - Data'!D18 -> 2.791554075 | E22: ='Input - Data'!E18 -> 3.058096332 | F22: ='Input - Data'!F18 -> 3.840046512 | G22: ='Input - Data'!G18 -> 3.893003331 | H22: ='Input - Data'!H18 -> 4.842866705 | I22: ='Input - Data'!I18 -> 3.845025913 | J22: ='Input - Data'!J18 -> 2.662336047 | K22: ='Input - Data'!K18 -> -8.993690565 | L22: ='Input - Data'!L18 -> 4.230933496 | M22: ='Input - Data'!M18 -> 3.746288693 | N22: ='Input - Data'!N18 -> 3.408191185 | O22: ='Input - Data'!O18 -> 3.660486026 | P22: ='Input - Data'!P18 -> 3.835522081 | Q22: ='Input - Data'!Q18 -> 3.835491687 | R22: ='Input - Data'!R18 -> 3.835528595 | S22: ='Input - Data'!S18 -> 3.835544872 | T22: ='Input - Data'!T18 -> 3.83549772 | U22: ='Input - Data'!U18 -> 3.835523257 | V22: ='Input - Data'!V18 -> 3.835520597 | W22: ='Input - Data'!W18 -> 3.83553137
A23: φˆt | B23: n.a. | C23: =(1+C21/100)/(1+C22/100) -> 0.9847112405 | D23: =(1+D21/100)/(1+D22/100) -> 1.00197408 | E23: 0.9981487228 | F23: 1.022425171 | G23: 1.015916786 | H23: 0.9676796427 | I23: 0.9980640093 | J23: 1.000730467 | K23: 1.108246723 | L23: 0.9823659616 | M23: 0.9880450624 | N23: 0.9998911455 | O23: 0.9995439442 | P23: 0.9982891453 | Q23: 0.9955972297 | R23: 0.9955341079 | S23: 0.9953162343 | T23: 0.9956133151 | U23: 0.9955451195 | V23: 0.9953342789 | W23: 0.9956293212
A24: pbt | B24: ='Input - Data'!B19 -> -3.283564952 | C24: ='Input - Data'!C19 -> -4.033543483 | D24: ='Input - Data'!D19 -> -5.610796375 | E24: ='Input - Data'!E19 -> -1.880094999 | F24: ='Input - Data'!F19 -> -0.3516936022 | G24: ='Input - Data'!G19 -> -0.1264194147 | H24: ='Input - Data'!H19 -> 0.01847718413 | I24: ='Input - Data'!I19 -> 0.8537145611 | J24: ='Input - Data'!J19 -> 0.564213633 | K24: ='Input - Data'!K19 -> -3.548590878 | L24: ='Input - Data'!L19 -> -4.040950675 | M24: ='Input - Data'!M19 -> -1.054812503 | N24: ='Input - Data'!N19 -> 0.4523486729 | O24: ='Input - Data'!O19 -> 0.2669914016 | P24: ='Input - Data'!P19 -> 0.1974697979 | Q24: ='Input - Data'!Q19 -> 0.3056032908 | R24: ='Input - Data'!R19 -> 0.2566881634 | S24: ='Input - Data'!S19 -> 0.2532537507 | T24: ='Input - Data'!T19 -> 0.2718484016 | U24: ='Input - Data'!U19 -> 0.2605967719 | V24: ='Input - Data'!V19 -> 0.2618996414 | W24: ='Input - Data'!W19 -> 0.264781605
A25: oft (other net debt-creating flows) | B25: ='Input - Data'!B20 -> 0 | C25: ='Input - Data'!C20 -> 0 | D25: ='Input - Data'!D20 -> 0 | E25: ='Input - Data'!E20 -> 0 | F25: ='Input - Data'!F20 -> 0 | G25: ='Input - Data'!G20 -> 0 | H25: ='Input - Data'!H20 -> 0 | I25: ='Input - Data'!I20 -> 0 | J25: ='Input - Data'!J20 -> 0 | K25: ='Input - Data'!K20 -> 0 | L25: ='Input - Data'!L20 -> 0.9 | M25: ='Input - Data'!M20 -> 0.9 | N25: ='Input - Data'!N20 -> 0.9 | O25: ='Input - Data'!O20 -> 0.9 | P25: ='Input - Data'!P20 -> 0.9 | Q25: ='Input - Data'!Q20 -> 0.9 | R25: ='Input - Data'!R20 -> 0.9 | S25: ='Input - Data'!S20 -> 0.9 | T25: ='Input - Data'!T20 -> 0.9 | U25: ='Input - Data'!U20 -> 0.9 | V25: ='Input - Data'!V20 -> 0.9 | W25: ='Input - Data'!W20 -> 0.9
A26: sft | B26: n.a. | C26: =((C15-C14)/C15)*((C13/100)*(C9-C10-C11)-(B13/100)*(B9-B10-B11)*(1+C16/100)/((1+C22/100)*(1+C19/100))) -> 0.09638422131 | D26: 0.1182497729 | E26: 0.04104030149 | F26: 0.006986394362 | G26: -0.03592432385 | H26: 0.01734995444 | I26: 0.01335517226 | J26: -0.003459509734 | K26: -0.1059817807 | L26: =((L15-L14)/L15)*((L13/100)*(L9-L10-L11)-(K13/100)*(K9-K10-K11)*(1+L16/100)/((1+L22/100)*(1+L19/100))) -> -0.1949440127 | M26: =((M15-M14)/M15)*((M13/100)*(M9-M10-M11)-(L13/100)*(L9-L10-L11)*(1+M16/100)/((1+M22/100)*(1+M19/100))) -> -0.1305069076 | N26: =((N15-N14)/N15)*((N13/100)*(N9-N10-N11)-(M13/100)*(M9-M10-M11)*(1+N16/100)/((1+N22/100)*(1+N19/100))) -> -0.009577577649 | O26: =((O15-O14)/O15)*((O13/100)*(O9-O10-O11)-(N13/100)*(N9-N10-N11)*(1+O16/100)/((1+O22/100)*(1+O19/100))) -> -0.01513223396 | P26: =((P15-P14)/P15)*((P13/100)*(P9-P10-P11)-(O13/100)*(O9-O10-O11)*(1+P16/100)/((1+P22/100)*(1+P19/100))) -> -0.07863804587 | Q26: =((Q15-Q14)/Q15)*((Q13/100)*(Q9-Q10-Q11)-(P13/100)*(P9-P10-P11)*(1+Q16/100)/((1+Q22/100)*(1+Q19/100))) -> -0.07697438892 | R26: =((R15-R14)/R15)*((R13/100)*(R9-R10-R11)-(Q13/100)*(Q9-Q10-Q11)*(1+R16/100)/((1+R22/100)*(1+R19/100))) -> -0.1427129303 | S26: =((S15-S14)/S15)*((S13/100)*(S9-S10-S11)-(R13/100)*(R9-R10-R11)*(1+S16/100)/((1+S22/100)*(1+S19/100))) -> -0.01433415184 | T26: =((T15-T14)/T15)*((T13/100)*(T9-T10-T11)-(S13/100)*(S9-S10-S11)*(1+T16/100)/((1+T22/100)*(1+T19/100))) -> -0.07876186715 | U26: =((U15-U14)/U15)*((U13/100)*(U9-U10-U11)-(T13/100)*(T9-T10-T11)*(1+U16/100)/((1+U22/100)*(1+U19/100))) -> -0.1448528849 | V26: =((V15-V14)/V15)*((V13/100)*(V9-V10-V11)-(U13/100)*(U9-U10-U11)*(1+V16/100)/((1+V22/100)*(1+V19/100))) -> -0.01421450282 | W26: =((W15-W14)/W15)*((W13/100)*(W9-W10-W11)-(V13/100)*(V9-V10-V11)*(1+W16/100)/((1+W22/100)*(1+W19/100))) -> -0.0800259925
A27: adjt | B27: n.a. | C27: =C24-B24 -> -0.749978531 | D27: =D24-C24 -> -1.577252893 | E27: 3.730701376 | F27: 1.528401397 | G27: 0.2252741875 | H27: 0.1448965988 | I27: 0.835237377 | J27: -0.2895009281 | K27: -4.112804511 | L27: -0.492359797 | M27: 2.986138173 | N27: 1.507161176 | O27: -0.1853572713 | P27: -0.06952160368 | Q27: 0.1081334929 | R27: -0.04891512737 | S27: -0.003434412718 | T27: 0.01859465093 | U27: -0.01125162972 | V27: 0.0013028695 | W27: 0.002881963572
A28: Int paymentst (excl. guarantees) | B28: n.a. | C28: =(B9-B10-B11)*(1/((1+C22/100)*(1+C19/100)))*(B13/100*(1+C16/100)*(C14/C15)*(C18/100)+B12/100*(C17/100)) -> 1.524922734 | D28: 1.971303021 | E28: 2.260499189 | F28: 2.467481432 | G28: 2.337640614 | H28: 2.436932762 | I28: 2.593957444 | J28: 2.776848392 | K28: 2.969233883 | L28: =(K9-K10-K11)*(1/((1+L22/100)*(1+L19/100)))*(K13/100*(1+L16/100)*(L14/L15)*(L18/100)+K12/100*(L17/100)) -> 3.21635555 | M28: =(L9-L10-L11)*(1/((1+M22/100)*(1+M19/100)))*(L13/100*(1+M16/100)*(M14/M15)*(M18/100)+L12/100*(M17/100)) -> 3.285058385 | N28: =(M9-M10-M11)*(1/((1+N22/100)*(1+N19/100)))*(M13/100*(1+N16/100)*(N14/N15)*(N18/100)+M12/100*(N17/100)) -> 3.400231292 | O28: =(N9-N10-N11)*(1/((1+O22/100)*(1+O19/100)))*(N13/100*(1+O16/100)*(O14/O15)*(O18/100)+N12/100*(O17/100)) -> 3.568734916 | P28: =(O9-O10-O11)*(1/((1+P22/100)*(1+P19/100)))*(O13/100*(1+P16/100)*(P14/P15)*(P18/100)+O12/100*(P17/100)) -> 3.710783664 | Q28: =(P9-P10-P11)*(1/((1+Q22/100)*(1+Q19/100)))*(P13/100*(1+Q16/100)*(Q14/Q15)*(Q18/100)+P12/100*(Q17/100)) -> 3.735786066 | R28: =(Q9-Q10-Q11)*(1/((1+R22/100)*(1+R19/100)))*(Q13/100*(1+R16/100)*(R14/R15)*(R18/100)+Q12/100*(R17/100)) -> 3.814155584 | S28: =(R9-R10-R11)*(1/((1+S22/100)*(1+S19/100)))*(R13/100*(1+S16/100)*(S14/S15)*(S18/100)+R12/100*(S17/100)) -> 3.659929641 | T28: =(S9-S10-S11)*(1/((1+T22/100)*(1+T19/100)))*(S13/100*(1+T16/100)*(T14/T15)*(T18/100)+S12/100*(T17/100)) -> 3.79843114 | U28: =(T9-T10-T11)*(1/((1+U22/100)*(1+U19/100)))*(T13/100*(1+U16/100)*(U14/U15)*(U18/100)+T12/100*(U17/100)) -> 3.879283768 | V28: =(U9-U10-U11)*(1/((1+V22/100)*(1+V19/100)))*(U13/100*(1+V16/100)*(V14/V15)*(V18/100)+U12/100*(V17/100)) -> 3.722207996 | W28: =(V9-V10-V11)*(1/((1+W22/100)*(1+W19/100)))*(V13/100*(1+W16/100)*(W14/W15)*(W18/100)+V12/100*(W17/100)) -> 3.861762626
A29: ifisct (excl. guarantees), used in final output | B29: n.a. | C29: =(B13/100)*(1+C16/100)*(C14/C15)*C18+(B12/100)*C17 -> 5.296901047 | D29: =(C13/100)*(1+D16/100)*(D14/D15)*D18+(C12/100)*D17 -> 6.01584327 | E29: 5.717677547 | F29: 5.901588475 | G29: 5.660723619 | H29: 6.005345623 | I29: 5.986986041 | J29: 6.169070632 | K29: 6.26598899 | L29: 6.275150242 | M29: 5.942069737 | N29: 6.015861063 | O29: 6.283334568 | P29: 6.480516038 | Q29: 6.480631496 | R29: 6.583966882 | S29: 6.282556777 | T29: 6.485341894 | U29: 6.588172256 | V29: 6.287528434 | W29: 6.490064609
A30: φˆobt | B30: n.a. | C30: =((1+C16/100)*C14/C15*B13/100+B12/100)*C20/((1+C19/100)*(1+C22/100)) -> 0.9357828506 | D30: =((1+D16/100)*D14/D15*C13/100+C12/100)*D20/((1+D19/100)*(1+D22/100)) -> 0.9457340677 | E30: 0.9448310843 | F30: 0.9661824963 | G30: 0.9622169891 | H30: 0.9128449007 | I30: 0.94213515 | J30: 0.9428135079 | K30: 1.042818889 | L30: 0.925578331 | M30: 0.9342046089 | N30: 0.9451626793 | O30: 0.9423722392 | P30: 0.9393209841 | Q30: 0.9367889056 | R30: 0.9358492472 | S30: 0.9383048644 | T30: 0.936762953 | U30: 0.9358228784 | V30: 0.9382784544 | W30: 0.9367368155
A31: obt | B31: n.a. | C31: =C24-C28 -> -5.558466217 | D31: =D24-D28 -> -7.582099396 | E31: -4.140594188 | F31: -2.819175034 | G31: -2.464060029 | H31: -2.418455578 | I31: -1.740242883 | J31: -2.212634759 | K31: -6.517824761 | L31: -7.257306226 | M31: -4.339870888 | N31: -2.947882619 | O31: -3.301743514 | P31: -3.513313867 | Q31: -3.430182775 | R31: -3.557467421 | S31: -3.40667589 | T31: -3.526582739 | U31: -3.618686996 | V31: -3.460308355 | W31: -3.596981021
A32: residualt | B32: n.a. | C32: =((C9-C10-C11)-C23*(B9-B10-B11)+C20*C24-C20*C25)/C20 -> 0.138351542 | D32: =((D9-D10-D11)-D23*(C9-C10-C11)+D20*D24-D20*D25)/D20 -> 2.032906839 | E32: -0.4986879269 | F32: -1.449112564 | G32: -0.5920586438 | H32: 3.787517649 | I32: 2.130800767 | J32: -2.70150378 | K32: 2.392616761 | L32: 7.919102779e-16 | M32: 1.116620354e-14 | N32: 5.914362009e-15 | O32: -9.190868047e-15 | P32: 4.078524555e-15 | Q32: 1.359536391e-15 | R32: 1.179472187e-14 | S32: -1.008313999e-14 | T32: 2.719105261e-15 | U32: 2.721892854e-15 | V32: -3.398851393e-16 | W32: -3.965408498e-15
A34: Note: of = Other Factors refer to below-the-line debt-creating transactions (e.g., realization of contingent liabilities, guarantees). Amount expressed as percentage of GDP. Historical data is just a residual calculated using the debt dynamics equation.

Sheet Fan Chart
A1: 1 - Fan charts are generated based on the calculations of historical averages, variances and covariances of relevant macroeconomic variables.
A2: 2 - As a default, averages, variances and covariances are calculated based on the historical data in the Input - Data worksheet (last 9 years). Users may extend the historical period by populating the yellow-shaded cells in rows 7-10.
A3: 3 - Click on the blue button to generate the fan charts. Individual shocks can be turned off, using cells B42-B45. To generate asymmetric fan charts, specify restrictions on the magnitude of positive shocks can be chosen in cells D42-D45.
A5: Fan Chart | BB5: First Year of projection
A6: Series | B6: Units | C6: =D6-1 -> 1970 | D6: 1971 | E6: 1972 | F6: 1973 | G6: 1974 | H6: 1975 | I6: 1976 | J6: 1977 | K6: 1978 | L6: 1979 | M6: 1980 | N6: 1981 | O6: 1982 | P6: 1983 | Q6: 1984 | R6: 1985 | S6: 1986 | T6: 1987 | U6: 1988 | V6: 1989 | W6: 1990 | X6: 1991 | Y6: 1992 | Z6: 1993 | AA6: 1994 | AB6: 1995 | AC6: 1996 | AD6: 1997 | AE6: 1998 | AF6: 1999 | AG6: 2000 | AH6: 2001 | AI6: 2002 | AJ6: 2003 | AK6: 2004 | AL6: 2005 | AM6: 2006 | AN6: 2007 | AO6: 2008 | AP6: 2009 | AQ6: 2010 | AR6: 2011 | AS6: 2012 | AT6: 2013 | AU6: 2014 | AV6: 2015 | AW6: 2016 | AX6: 2017 | AY6: 2018 | AZ6: 2019 | BA6: =BB6-1 -> 2020 | BB6: =FirstYear -> 2021 | BC6: =BB6+1 -> 2022 | BD6: 2023 | BE6: 2024 | BF6: 2025 | BG6: 2026 | BH6: 2027 | BI6: =BH6+1 -> 2028 | BJ6: =BI6+1 -> 2029 | BK6: =BJ6+1 -> 2030 | BL6: =BK6+1 -> 2031 | BM6: =BL6+1 -> 2032
A7: Real GDP growth rate (g) | B7: Percent | AS7: =IFERROR(Baseline!C22,0) -> 4.128725633 | AT7: =IFERROR(Baseline!D22,0) -> 2.791554075 | AU7: =IFERROR(Baseline!E22,0) -> 3.058096332 | AV7: =IFERROR(Baseline!F22,0) -> 3.840046512 | AW7: =IFERROR(Baseline!G22,0) -> 3.893003331 | AX7: =IFERROR(Baseline!H22,0) -> 4.842866705 | AY7: =IFERROR(Baseline!I22,0) -> 3.845025913 | AZ7: =IFERROR(Baseline!J22,0) -> 2.662336047 | BA7: =IFERROR(Baseline!K22,0) -> -8.993690565 | BB7: =Baseline!L22 -> 4.230933496 | BC7: =Baseline!M22 -> 3.746288693 | BD7: =Baseline!N22 -> 3.408191185 | BE7: =Baseline!O22 -> 3.660486026 | BF7: =Baseline!P22 -> 3.835522081 | BG7: =Baseline!Q22 -> 3.835491687 | BH7: =Baseline!R22 -> 3.835528595 | BI7: =Baseline!S22 -> 3.835544872 | BJ7: =Baseline!T22 -> 3.83549772 | BK7: =Baseline!U22 -> 3.835523257 | BL7: =Baseline!V22 -> 3.835520597 | BM7: =Baseline!W22 -> 3.83553137
A8: Real effective interest rate on local-currency debt | B8: Percent | AS8: =IFERROR(Baseline!C34,0) -> 5.066250837 | AT8: =IFERROR(Baseline!D34,0) -> 6.219007502 | AU8: =IFERROR(Baseline!E34,0) -> 6.528777952 | AV8: =IFERROR(Baseline!F34,0) -> 9.79609911 | AW8: =IFERROR(Baseline!G34,0) -> 8.511174111 | AX8: =IFERROR(Baseline!H34,0) -> 5.015721815 | AY8: =IFERROR(Baseline!I34,0) -> 6.862870959 | AZ8: =IFERROR(Baseline!J34,0) -> 6.221158567 | BA8: =IFERROR(Baseline!K34,0) -> 4.898413867 | BB8: =Baseline!L34 -> 3.634022987 | BC8: =Baseline!M34 -> 2.816941243 | BD8: =Baseline!N34 -> 3.335368219 | BE8: =Baseline!O34 -> 4.069760451 | BF8: =Baseline!P34 -> 4.249576909 | BG8: =Baseline!Q34 -> 3.965118851 | BH8: =Baseline!R34 -> 3.858699559 | BI8: =Baseline!S34 -> 3.966028739 | BJ8: =Baseline!T34 -> 3.963876983 | BK8: =Baseline!U34 -> 3.857403676 | BL8: =Baseline!V34 -> 3.964800253 | BM8: =Baseline!W34 -> 3.962653697
A9: Primary balance (pb) augmented | B9: Percent of GDP | AS9: =IFERROR(Baseline!C20*(Baseline!C24-Baseline!C25)-Baseline!C32,0) -> -4.227150579 | AT9: =IFERROR(Baseline!D20*(Baseline!D24-Baseline!D25)-Baseline!D32,0) -> -7.689768882 | AU9: =IFERROR(Baseline!E20*(Baseline!E24-Baseline!E25)-Baseline!E32,0) -> -1.413281372 | AV9: =IFERROR(Baseline!F20*(Baseline!F24-Baseline!F25)-Baseline!F32,0) -> 1.092861099 | AW9: =IFERROR(Baseline!G20*(Baseline!G24-Baseline!G25)-Baseline!G32,0) -> 0.4633336166 | AX9: =IFERROR(Baseline!H20*(Baseline!H24-Baseline!H25)-Baseline!H32,0) -> -3.76899242 | AY9: =IFERROR(Baseline!I20*(Baseline!I24-Baseline!I25)-Baseline!I32,0) -> -1.267586037 | AZ9: =IFERROR(Baseline!J20*(Baseline!J24-Baseline!J25)-Baseline!J32,0) -> 3.267492809 | BA9: =IFERROR(Baseline!K20*(Baseline!K24-Baseline!K25)-Baseline!K32,0) -> -5.900041043 | BB9: =Baseline!L20*(Baseline!L24-Baseline!L25)-Baseline!L32 -> -4.848895322 | BC9: =Baseline!M20*(Baseline!M24-Baseline!M25)-Baseline!M32 -> -1.904740751 | BD9: =Baseline!N20*(Baseline!N24-Baseline!N25)-Baseline!N32 -> -0.4369638872 | BE9: =Baseline!O20*(Baseline!O24-Baseline!O25)-Baseline!O32 -> -0.6193673774 | BF9: =Baseline!P20*(Baseline!P24-Baseline!P25)-Baseline!P32 -> -0.6884535579 | BG9: =Baseline!Q20*(Baseline!Q24-Baseline!Q25)-Baseline!Q32 -> -0.5824746584 | BH9: =Baseline!R20*(Baseline!R24-Baseline!R25)-Baseline!R32 -> -0.6297633857 | BI9: =Baseline!S20*(Baseline!S24-Baseline!S25)-Baseline!S32 -> -0.6337797497 | BJ9: =Baseline!T20*(Baseline!T24-Baseline!T25)-Baseline!T32 -> -0.6155451595 | BK9: =Baseline!U20*(Baseline!U24-Baseline!U25)-Baseline!U32 -> -0.6259292843 | BL9: =Baseline!V20*(Baseline!V24-Baseline!V25)-Baseline!V32 -> -0.6252998101 | BM9: =Baseline!W20*(Baseline!W24-Baseline!W25)-Baseline!W32 -> -0.6224628076
A10: Real effective interest rate on foreign-currency debt augmented by changes in real exchange rate | B10: Percent | AS10: =IFERROR((Baseline!C36/100+Baseline!C35/100+(Baseline!C36/100)*(Baseline!C35/100))*100,0) -> 0.4712930751 | AT10: =IFERROR((Baseline!D36/100+Baseline!D35/100+(Baseline!D36/100)*(Baseline!D35/100))*100,0) -> 0.7416256011 | AU10: =IFERROR((Baseline!E36/100+Baseline!E35/100+(Baseline!E36/100)*(Baseline!E35/100))*100,0) -> 1.268799903 | AV10: =IFERROR((Baseline!F36/100+Baseline!F35/100+(Baseline!F36/100)*(Baseline!F35/100))*100,0) -> 4.498272544 | AW10: =IFERROR((Baseline!G36/100+Baseline!G35/100+(Baseline!G36/100)*(Baseline!G35/100))*100,0) -> 4.150932844 | AX10: =IFERROR((Baseline!H36/100+Baseline!H35/100+(Baseline!H36/100)*(Baseline!H35/100))*100,0) -> -0.6051967846 | AY10: =IFERROR((Baseline!I36/100+Baseline!I35/100+(Baseline!I36/100)*(Baseline!I35/100))*100,0) -> 1.847464218 | AZ10: =IFERROR((Baseline!J36/100+Baseline!J35/100+(Baseline!J36/100)*(Baseline!J35/100))*100,0) -> 0.5286242032 | BA10: =IFERROR((Baseline!K36/100+Baseline!K35/100+(Baseline!K36/100)*(Baseline!K35/100))*100,0) -> -1.762159161 | BB10: =(Baseline!L36/100+Baseline!L35/100+(Baseline!L36/100)*(Baseline!L35/100))*100 -> 1.580918316 | BC10: =(Baseline!M36/100+Baseline!M35/100+(Baseline!M36/100)*(Baseline!M35/100))*100 -> 2.327070894 | BD10: =(Baseline!N36/100+Baseline!N35/100+(Baseline!N36/100)*(Baseline!N35/100))*100 -> 3.43236537 | BE10: =(Baseline!O36/100+Baseline!O35/100+(Baseline!O36/100)*(Baseline!O35/100))*100 -> 3.312616328 | BF10: =(Baseline!P36/100+Baseline!P35/100+(Baseline!P36/100)*(Baseline!P35/100))*100 -> 3.216647937 | BG10: =(Baseline!Q36/100+Baseline!Q35/100+(Baseline!Q36/100)*(Baseline!Q35/100))*100 -> 2.94076356 | BH10: =(Baseline!R36/100+Baseline!R35/100+(Baseline!R36/100)*(Baseline!R35/100))*100 -> 3.008741788 | BI10: =(Baseline!S36/100+Baseline!S35/100+(Baseline!S36/100)*(Baseline!S35/100))*100 -> 2.940518468 | BJ10: =(Baseline!T36/100+Baseline!T35/100+(Baseline!T36/100)*(Baseline!T35/100))*100 -> 2.942061266 | BK10: =(Baseline!U36/100+Baseline!U35/100+(Baseline!U36/100)*(Baseline!U35/100))*100 -> 3.009575277 | BL10: =(Baseline!V36/100+Baseline!V35/100+(Baseline!V36/100)*(Baseline!V35/100))*100 -> 2.941849967 | BM10: =(Baseline!W36/100+Baseline!W35/100+(Baseline!W36/100)*(Baseline!W35/100))*100 -> 2.943397909
C12: Moments Calculated Based on Historical Data | K12: Moments Calculated Based on Draws | Q12: Difference Between History and Draws
C14: Means (Mu) | K14: Means | Q14: Means
C15: g | D15: =AVERAGE('Fan Chart'!$C7:$BA7) -> 2.229773776 | K15: g | L15: =AVERAGE(B$69:B$12068) -> 2.260292053 | Q15: g | R15: =L15-D15 -> 0.03051827708
C16: rd | D16: =AVERAGE('Fan Chart'!$C8:$BA8) -> 6.568830524 | K16: rd | L16: =AVERAGE(C$69:C$12068) -> 6.563754438 | Q16: rd | R16: =L16-D16 -> -0.005076086152
C17: pbaug | D17: =AVERAGE('Fan Chart'!$C9:$BA9) -> -2.16034809 | K17: pbaug | L17: =AVERAGE(D$69:D$12068) -> -2.152242178 | Q17: pbaug | R17: =L17-D17 -> 0.008105911545
C18: rf,aug | D18: =AVERAGE('Fan Chart'!$C10:$BA10) -> 1.237739605 | K18: rf,aug | L18: =AVERAGE(E$69:E$12068) -> 1.234244229 | Q18: rf,aug | R18: =L18-D18 -> -0.003495375287
C20: Var-Covar (Sigma) | K20: Var-Covar (Sigma) | Q20: Var-Covar (Sigma)
E21: g | F21: r | G21: pbaug | H21: rf,aug | I21: Obs | L21: g | M21: r | N21: pbaug | O21: rf,aug
D22: g | E22: =VAR('Fan Chart'!$C$7:$BA$7) -> 18.19470005 | F22: =E23 -> 2.544790415 | G22: =E24 -> 5.593595191 | H22: =E25 -> 4.739855925 | I22: =COUNT(C7:BA7) -> 9 | K22: g | L22: =VAR(B$69:B$12068) -> 18.05685531 | M22: =L23 -> 2.572914559 | N22: =L24 -> 5.629565981 | O22: =L25 -> 4.738994782 | Q22: g | R22: =L22-E22 -> -0.137844738 | S22: 0.0281241443 | T22: 0.0359707905 | U22: -0.0008611428644
D23: rd | E23: =COVAR('Fan Chart'!$C$7:$BA$7,'Fan Chart'!$C8:$BA8)*(MIN($I$22,$I$23))/(MIN($I$22,$I$23)-1) -> 2.544790415 | F23: =VAR('Fan Chart'!$C$8:$BA$8) -> 2.747432655 | G23: =F24 -> 3.465706042 | H23: =F25 -> 3.225522178 | I23: =COUNT(C8:BA8) -> 9 | K23: rd | L23: =(12000/11999)*COVAR($B$69:$B$12068,$C$69:$C$12068) -> 2.572914559 | M23: =VAR(C$69:C$12068) -> 2.736284446 | N23: =M24 -> 3.501283517 | O23: =M25 -> 3.220772235 | Q23: rd | R23: 0.0281241443 | S23: -0.0111482092 | T23: 0.03557747539 | U23: -0.004749943835
D24: pbaug | E24: =COVAR('Fan Chart'!$C$7:$BA$7,'Fan Chart'!$C9:$BA9)*(MIN($I$22,$I$24))/(MIN($I$22,$I$24)-1) -> 5.593595191 | F24: =COVAR('Fan Chart'!$C$8:$BA$8,'Fan Chart'!$C9:$BA9)*(MIN($I$24,$I$23))/(MIN($I$24,$I$23)-1) -> 3.465706042 | G24: =VAR('Fan Chart'!$C$9:$BA$9) -> 12.46285901 | H24: =G25 -> 4.184963899 | I24: =COUNT(C9:BA9) -> 9 | K24: pbaug | L24: =(12000/11999)*COVAR($B$69:$B$12068,$D$69:$D$12068) -> 5.629565981 | M24: =(12000/11999)*COVAR($C$69:$C$12068,$D$69:$D$12068) -> 3.501283517 | N24: =VAR(D$69:D$12068) -> 12.5494549 | O24: =N25 -> 4.222365816 | Q24: pbaug | R24: 0.0359707905 | S24: 0.03557747539 | T24: 0.08659588597 | U24: 0.03740191646
D25: rf,aug | E25: =COVAR('Fan Chart'!$C$7:$BA$7,'Fan Chart'!$C10:$BA10)*(MIN($I$22,$I$25))/(MIN($I$22,$I$25)-1) -> 4.739855925 | F25: =COVAR('Fan Chart'!$C$8:$BA$8,'Fan Chart'!$C10:$BA10)*(MIN($I$23,$I$25))/(MIN($I$23,$I$25)-1) -> 3.225522178 | G25: =COVAR('Fan Chart'!$C$9:$BA$9,'Fan Chart'!$C10:$BA10)*(MIN($I$24,$I$25))/(MIN($I$24,$I$25)-1) -> 4.184963899 | H25: =VAR('Fan Chart'!$C$10:$BA$10) -> 4.152839991 | I25: =COUNT(C10:BA10) -> 9 | K25: rf,aug | L25: =(12000/11999)*COVAR($B$69:$B$12068,$E$69:$E$12068) -> 4.738994782 | M25: =(12000/11999)*COVAR($C$69:$C$12068,$E$69:$E$12068) -> 3.220772235 | N25: =(12000/11999)*COVAR($D$69:$D$12068,$E$69:$E$12068) -> 4.222365816 | O25: =VAR(E$69:E$12068) -> 4.149481458 | Q25: rf,aug | R25: -0.0008611428644 | S25: -0.004749943835 | T25: 0.03740191646 | U25: -0.003358533041
M27: Option A: No restrictions on the distribution | Y27: Chart data | AU27: Option B: Restrictions on the distribution | BG27: Chart data
K28: ` | Y28: Percentile | Z28: =AA28-1 -> 2016 | AA28: 2017 | AB28: 2018 | AC28: 2019 | AD28: =AE28-1 -> 2020 | AE28: =BB6 -> 2021 | AF28: =AE28+1 -> 2022 | AG28: =AF28+1 -> 2023 | AH28: 2024 | AI28: 2025 | AJ28: 2026 | AK28: =AJ28+1 -> 2027 | AL28: =AK28+1 -> 2028 | AM28: =AL28+1 -> 2029 | AN28: =AM28+1 -> 2030 | AO28: =AN28+1 -> 2031 | AP28: =AO28+1 -> 2032 | BG28: Percentile | BH28: =Z28 -> 2016 | BI28: 2017 | BJ28: 2018 | BK28: 2019 | BL28: 2020 | BM28: 2021 | BN28: 2022 | BO28: 2023 | BP28: 2024 | BQ28: 2025 | BR28: 2026 | BS28: =AK28 -> 2027 | BT28: 2028 | BU28: 2029 | BV28: 2030 | BW28: 2031 | BX28: 2032
Y29: 0 | Z29: =O$53/100 -> 0.4598041253 | AA29: =P$53/100 -> 0.4743639858 | AB29: =Q$53/100 -> 0.485464043 | AC29: =R$53/100 -> 0.4867164741 | AD29: =S$53/100 -> 0.5886485128 | AE29: =PERCENTILE(BE$69:BE$1068,$Y29)/100 -> 0.4996759801 | AF29: =PERCENTILE(BF$69:BF$1068,$Y29)/100 -> 0.4145442375 | AG29: =PERCENTILE(BG$69:BG$1068,$Y29)/100 -> 0.3743283504 | AH29: =PERCENTILE(BH$69:BH$1068,$Y29)/100 -> 0.3718723645 | AI29: =PERCENTILE(BI$69:BI$1068,$Y29)/100 -> 0.3780366829 | AJ29: =PERCENTILE(BJ$69:BJ$1068,$Y29)/100 -> 0.353414023 | AK29: =PERCENTILE(BK$69:BK$1068,$Y29)/100 -> 0.3312683043 | AL29: 0.317079741 | AM29: 0.2843531932 | AN29: 0.1978010057 | AO29: 0.1501132308 | AP29: 0.169471526 | BG29: 0 | BH29: =O$53/100 -> 0.4598041253 | BI29: =P$53/100 -> 0.4743639858 | BJ29: =Q$53/100 -> 0.485464043 | BK29: =R$53/100 -> 0.4867164741 | BL29: =S$53/100 -> 0.5886485128 | BM29: =PERCENTILE(DP$69:DP$1068,$BG29)/100 -> 0.5679222161 | BN29: =PERCENTILE(DQ$69:DQ$1068,$BG29)/100 -> 0.5552157157 | BO29: =PERCENTILE(DR$69:DR$1068,$BG29)/100 -> 0.533351704 | BP29: =PERCENTILE(DS$69:DS$1068,$BG29)/100 -> 0.5273626909 | BQ29: =PERCENTILE(DT$69:DT$1068,$BG29)/100 -> 0.5096633861 | BR29: =PERCENTILE(DU$69:DU$1068,$BG29)/100 -> 0.5016409465 | BS29: =PERCENTILE(DV$69:DV$1068,$BG29)/100 -> 0.5080740353 | BT29: 0.5338620382 | BU29: 0.5288318038 | BV29: 0.5497392564 | BW29: 0.5039386043 | BX29: 0.5212136893
Y30: 0.05 | Z30: 0.4598041253 | AA30: 0.4743639858 | AB30: 0.485464043 | AC30: 0.4867164741 | AD30: 0.5886485128 | AE30: 0.551564945 | AF30: 0.537131392 | AG30: 0.5022026008 | AH30: 0.4874006539 | AI30: 0.4778018978 | AJ30: 0.4663627781 | AK30: 0.4570637142 | AL30: 0.4510989984 | AM30: 0.4358586901 | AN30: 0.4310407985 | AO30: 0.422186403 | AP30: 0.4204023312 | BG30: 0.05 | BH30: 0.4598041253 | BI30: 0.4743639858 | BJ30: 0.485464043 | BK30: 0.4867164741 | BL30: 0.5886485128 | BM30: 0.5908866267 | BN30: 0.5941802895 | BO30: 0.5910842786 | BP30: 0.5918853322 | BQ30: 0.6025548513 | BR30: 0.604127841 | BS30: 0.6155481826 | BT30: 0.6225994775 | BU30: 0.6246037067 | BV30: 0.6363234373 | BW30: 0.6439262814 | BX30: 0.6532852857
Y31: 0.1 | Z31: 0.4598041253 | AA31: 0.4743639858 | AB31: 0.485464043 | AC31: 0.4867164741 | AD31: 0.5886485128 | AE31: 0.5669265909 | AF31: 0.5559980228 | AG31: 0.5305195123 | AH31: 0.5193920198 | AI31: 0.5194616061 | AJ31: 0.5027398487 | AK31: 0.4997818009 | AL31: 0.492287748 | AM31: 0.4838159393 | AN31: 0.4753971163 | AO31: 0.4664133797 | AP31: 0.4700738333 | BG31: 0.1 | BH31: 0.4598041253 | BI31: 0.4743639858 | BJ31: 0.485464043 | BK31: 0.4867164741 | BL31: 0.5886485128 | BM31: 0.5971130313 | BN31: 0.6059069704 | BO31: 0.6054712702 | BP31: 0.6156559383 | BQ31: 0.6238376133 | BR31: 0.6286431862 | BS31: 0.6384883615 | BT31: 0.6518473552 | BU31: 0.6554204835 | BV31: 0.6687445734 | BW31: 0.6745302559 | BX31: 0.6898573685
Y32: 0.25 | Z32: 0.4598041253 | AA32: 0.4743639858 | AB32: 0.485464043 | AC32: 0.4867164741 | AD32: 0.5886485128 | AE32: 0.5904385116 | AF32: 0.5893042962 | AG32: 0.581052461 | AH32: 0.5764451418 | AI32: 0.5738965129 | AJ32: 0.5706328659 | AK32: 0.5683746619 | AL32: 0.562946431 | AM32: 0.5592323549 | AN32: 0.5593905982 | AO32: 0.5632483811 | AP32: 0.5620418551 | BG32: 0.25 | BH32: 0.4598041253 | BI32: 0.4743639858 | BJ32: 0.485464043 | BK32: 0.4867164741 | BL32: 0.5886485128 | BM32: 0.6104017055 | BN32: 0.6247590133 | BO32: 0.6316057476 | BP32: 0.6430061041 | BQ32: 0.6591649032 | BR32: 0.6685877088 | BS32: 0.6807650805 | BT32: 0.6968266515 | BU32: 0.7069013633 | BV32: 0.7249867037 | BW32: 0.7418156864 | BX32: 0.7556691253
Y33: 0.5 | Z33: 0.4598041253 | AA33: 0.4743639858 | AB33: 0.485464043 | AC33: 0.4867164741 | AD33: 0.5886485128 | AE33: 0.6175990012 | AF33: 0.6289160333 | AG33: 0.6326073668 | AH33: 0.635137174 | AI33: 0.6428509227 | AJ33: 0.6447882467 | AK33: 0.6491220925 | AL33: 0.6495412952 | AM33: 0.6545903442 | AN33: 0.6589213083 | AO33: 0.6649118809 | AP33: 0.674794879 | BG33: 0.5 | BH33: 0.4598041253 | BI33: 0.4743639858 | BJ33: 0.485464043 | BK33: 0.4867164741 | BL33: 0.5886485128 | BM33: 0.6285978457 | BN33: 0.6520299486 | BO33: 0.6689914882 | BP33: 0.6853874494 | BQ33: 0.70541881 | BR33: 0.7225097259 | BS33: 0.7403629603 | BT33: 0.7588934225 | BU33: 0.7764476901 | BV33: 0.7914032068 | BW33: 0.8115230705 | BX33: 0.8293574061
Y34: 0.75 | Z34: 0.4598041253 | AA34: 0.4743639858 | AB34: 0.485464043 | AC34: 0.4867164741 | AD34: 0.5886485128 | AE34: 0.646729631 | AF34: 0.6694272392 | AG34: 0.6815230523 | AH34: 0.6951906719 | AI34: 0.7130343741 | AJ34: 0.7205117966 | AK34: 0.7291776375 | AL34: 0.7364522083 | AM34: 0.7470856214 | AN34: 0.7528664114 | AO34: 0.7582291985 | AP34: 0.7610684038 | BG34: 0.75 | BH34: 0.4598041253 | BI34: 0.4743639858 | BJ34: 0.485464043 | BK34: 0.4867164741 | BL34: 0.5886485128 | BM34: 0.6489193693 | BN34: 0.6828229753 | BO34: 0.7085638627 | BP34: 0.7352180007 | BQ34: 0.7606203675 | BR34: 0.7838919314 | BS34: 0.8053893724 | BT34: 0.8315494595 | BU34: 0.8532726582 | BV34: 0.8676358293 | BW34: 0.8848475136 | BX34: 0.9069880386
Y35: 0.9 | Z35: 0.4598041253 | AA35: 0.4743639858 | AB35: 0.485464043 | AC35: 0.4867164741 | AD35: 0.5886485128 | AE35: 0.6736811758 | AF35: 0.7063364171 | AG35: 0.7274357983 | AH35: 0.7524580144 | AI35: 0.7672079066 | AJ35: 0.7837625914 | AK35: 0.7975217346 | AL35: 0.8177867315 | AM35: 0.8367658241 | AN35: 0.8349048438 | AO35: 0.8481750858 | AP35: 0.8583158199 | BG35: 0.9 | BH35: 0.4598041253 | BI35: 0.4743639858 | BJ35: 0.485464043 | BK35: 0.4867164741 | BL35: 0.5886485128 | BM35: 0.6742352982 | BN35: 0.7154895604 | BO35: 0.7465871613 | BP35: 0.7755615041 | BQ35: 0.8085078629 | BR35: 0.8397348244 | BS35: 0.8693991132 | BT35: 0.894681549 | BU35: 0.9209616519 | BV35: 0.9390134045 | BW35: 0.9641728587 | BX35: 0.979635809
Y36: 0.95 | Z36: 0.4598041253 | AA36: 0.4743639858 | AB36: 0.485464043 | AC36: 0.4867164741 | AD36: 0.5886485128 | AE36: 0.6899454126 | AF36: 0.7287711325 | AG36: 0.7633997204 | AH36: 0.7812683984 | AI36: 0.7979066526 | AJ36: 0.8279588197 | AK36: 0.8543640378 | AL36: 0.8687505837 | AM36: 0.8829005454 | AN36: 0.8962992022 | AO36: 0.9134999771 | AP36: 0.924571243 | BG36: 0.95 | BH36: 0.4598041253 | BI36: 0.4743639858 | BJ36: 0.485464043 | BK36: 0.4867164741 | BL36: 0.5886485128 | BM36: 0.6899454126 | BN36: 0.7333622758 | BO36: 0.773388689 | BP36: 0.8082953237 | BQ36: 0.8399465109 | BR36: 0.876196172 | BS36: 0.9051615231 | BT36: 0.9401092425 | BU36: 0.9632061177 | BV36: 0.9844908817 | BW36: 1.008194904 | BX36: 1.034130966
Y37: 1 | Z37: 0.4598041253 | AA37: 0.4743639858 | AB37: 0.485464043 | AC37: 0.4867164741 | AD37: 0.5886485128 | AE37: 0.7933208588 | AF37: 0.8514368035 | AG37: 0.9214615931 | AH37: 0.9915975662 | AI37: 0.990409731 | AJ37: 1.002076059 | AK37: 1.036848311 | AL37: 1.040074297 | AM37: 1.083864084 | AN37: 1.151605303 | AO37: 1.235063587 | AP37: 1.241858013 | BG37: 1 | BH37: 0.4598041253 | BI37: 0.4743639858 | BJ37: 0.485464043 | BK37: 0.4867164741 | BL37: 0.5886485128 | BM37: 0.7933208588 | BN37: 0.8514368035 | BO37: 0.9214615931 | BP37: 0.9915975662 | BQ37: 0.990409731 | BR37: 1.014738379 | BS37: 1.055506874 | BT37: 1.085890487 | BU37: 1.154498232 | BV37: 1.22414217 | BW37: 1.310571167 | BX37: 1.313087088
A40: Turning-off shocks | D40: Restrictions on good shocks | Y40: Transform for chart | BG40: Transform for chart | BZ40: chart legend
X41: Series Name | Y41: Percentile | Z41: =Z28 -> 2016 | AA41: 2017 | AB41: 2018 | AC41: 2019 | AD41: 2020 | AE41: 2021 | AF41: 2022 | AG41: 2023 | AH41: 2024 | AI41: 2025 | AJ41: 2026 | AK41: =AK28 -> 2027 | AL41: 2028 | AM41: 2029 | AN41: 2030 | AO41: 2031 | AP41: 2032 | BF41: Series Name | BG41: Percentile | BH41: =BH28 -> 2016 | BI41: 2017 | BJ41: 2018 | BK41: 2019 | BL41: 2020 | BM41: 2021 | BN41: 2022 | BO41: 2023 | BP41: 2024 | BQ41: 2025 | BR41: 2026 | BS41: =BS28 -> 2027 | BT41: 2028 | BU41: 2029 | BV41: 2030 | BW41: 2031 | BX41: 2032 | BZ41: Restrictions on upside shocks:
A42: Real GDP growth rate (g) | B42: On | E42: is the max positive growth rate shock (percent) | Y42: 0.1 | Z42: =Z31*100 -> 45.98041253 | AA42: 47.43639858 | AB42: 48.5464043 | AC42: 48.67164741 | AD42: 58.86485128 | AE42: 56.69265909 | AF42: 55.59980228 | AG42: 53.05195123 | AH42: 51.93920198 | AI42: 51.94616061 | AJ42: 50.27398487 | AK42: =AK31*100 -> 49.97818009 | AL42: 49.2287748 | AM42: 48.38159393 | AN42: 47.53971163 | AO42: 46.64133797 | AP42: 47.00738333 | BG42: 0.1 | BH42: =BH31*100 -> 45.98041253 | BI42: 47.43639858 | BJ42: 48.5464043 | BK42: 48.67164741 | BL42: 58.86485128 | BM42: 59.71130313 | BN42: 60.59069704 | BO42: 60.54712702 | BP42: 61.56559383 | BQ42: 62.38376133 | BR42: 62.86431862 | BS42: =BS31*100 -> 63.84883615 | BT42: 65.18473552 | BU42: 65.54204835 | BV42: 66.87445734 | BW42: 67.45302559 | BX42: 68.98573685
A43: Real effective interest rate on local-currency debt | B43: On | E43: is the max negative local-currency interest rate shock (percent) | X43: 10th-25th | Y43: 0.25 | Z43: =(Z32-Z31)*100 -> 0 | AA43: 0 | AB43: 0 | AC43: 0 | AD43: 0 | AE43: 2.351192069 | AF43: 3.330627339 | AG43: 5.053294863 | AH43: 5.705312203 | AI43: 5.443490683 | AJ43: 6.789301716 | AK43: =(AK32-AK31)*100 -> 6.8592861 | AL43: 7.065868294 | AM43: 7.541641558 | AN43: 8.399348189 | AO43: 9.683500144 | AP43: 9.196802178 | BF43: 10th-25th | BG43: 0.25 | BH43: =(BH32-BH31)*100 -> 0 | BI43: 0 | BJ43: 0 | BK43: 0 | BL43: 0 | BM43: 1.328867418 | BN43: 1.885204286 | BO43: 2.613447742 | BP43: 2.735016574 | BQ43: 3.532728991 | BR43: 3.994452262 | BS43: =(BS32-BS31)*100 -> 4.2276719 | BT43: 4.497929627 | BU43: 5.14808798 | BV43: 5.624213023 | BW43: 6.728543055 | BX43: 6.581175682 | BZ43: =IF(ISNUMBER(D42),D42&" "&E42,"no restriction on the growth rate shock") -> no restriction on the growth rate shock
A44: Primary balance (pb) augmented | B44: On | D44: 0 | E44: is the max positive pb augmented shock (percent GDP) | X44: 25th-50th | Y44: 0.5 | Z44: =(Z33-Z32)*100 -> 0 | AA44: 0 | AB44: 0 | AC44: 0 | AD44: 0 | AE44: 2.71604896 | AF44: 3.961173715 | AG44: 5.155490586 | AH44: 5.869203214 | AI44: 6.895440983 | AJ44: 7.415538088 | AK44: =(AK33-AK32)*100 -> 8.074743058 | AL44: 8.65948642 | AM44: 9.535798928 | AN44: 9.953071009 | AO44: 10.16634998 | AP44: 11.2753024 | BF44: 25th-50th | BG44: 0.5 | BH44: =(BH33-BH32)*100 -> 0 | BI44: 0 | BJ44: 0 | BK44: 0 | BL44: 0 | BM44: 1.819614017 | BN44: 2.727093533 | BO44: 3.738574055 | BP44: 4.238134529 | BQ44: 4.625390679 | BR44: 5.392201705 | BS44: =(BS33-BS32)*100 -> 5.959787973 | BT44: 6.206677103 | BU44: 6.954632686 | BV44: 6.641650312 | BW44: 6.970738411 | BX44: 7.368828078 | BZ44: =IF(ISNUMBER(D43),D43&" "&E43,"no restriction on the local-currency interest rate shock") -> no restriction on the local-currency interest rate shock
A45: Real effective interest rate on foreign-currency debt augmented by changes in real exchange rate | B45: On | E45: is the max negative foreing-currency aug. int. rate shock (percent) | X45: 50th-75th | Y45: 0.75 | Z45: =(Z34-Z33)*100 -> 0 | AA45: 0 | AB45: 0 | AC45: 0 | AD45: 0 | AE45: 2.913062983 | AF45: 4.051120588 | AG45: 4.891568554 | AH45: 6.005349793 | AI45: 7.018345134 | AJ45: 7.572354988 | AK45: =(AK34-AK33)*100 -> 8.005554502 | AL45: 8.691091314 | AM45: 9.249527721 | AN45: 9.394510309 | AO45: 9.331731758 | AP45: 8.627352478 | BF45: 50th-75th | BG45: 0.75 | BH45: =(BH34-BH33)*100 -> 0 | BI45: 0 | BJ45: 0 | BK45: 0 | BL45: 0 | BM45: 2.03215236 | BN45: 3.079302666 | BO45: 3.957237456 | BP45: 4.983055135 | BQ45: 5.520155748 | BR45: 6.138220552 | BS45: =(BS34-BS33)*100 -> 6.502641217 | BT45: 7.265603701 | BU45: 7.682496809 | BV45: 7.62326225 | BW45: 7.332444311 | BX45: 7.763063252 | BZ45: =IF(ISNUMBER(D44),D44&" "&E44,"no restriction on the primary balance augmented shock") -> 0 is the max positive pb augmented shock (percent GDP)
X46: 75th-90th | Y46: 0.9 | Z46: =(Z35-Z34)*100 -> 0 | AA46: 0 | AB46: 0 | AC46: 0 | AD46: 0 | AE46: 2.695154474 | AF46: 3.690917792 | AG46: 4.591274595 | AH46: 5.726734252 | AI46: 5.417353253 | AJ46: 6.325079479 | AK46: =(AK35-AK34)*100 -> 6.834409704 | AL46: 8.133452316 | AM46: 8.968020268 | AN46: 8.203843247 | AO46: 8.994588731 | AP46: 9.724741612 | BF46: 75th-90th | BG46: 0.9 | BH46: =(BH35-BH34)*100 -> 0 | BI46: 0 | BJ46: 0 | BK46: 0 | BL46: 0 | BM46: 2.531592892 | BN46: 3.26665851 | BO46: 3.802329856 | BP46: 4.034350342 | BQ46: 4.788749543 | BR46: 5.5842893 | BS46: =(BS35-BS34)*100 -> 6.400974078 | BT46: 6.313208945 | BU46: 6.768899363 | BV46: 7.13775752 | BW46: 7.932534508 | BX46: 7.264777038 | BZ46: =IF(ISNUMBER(D45),D45&" "&E45,"no restriction on the foreing-currency aug. int. rate shock") -> no restriction on the foreing-currency aug. int. rate shock
T51: First Year of projection
H52: =I52-1 -> 2009 | I52: 2010 | J52: 2011 | K52: 2012 | L52: 2013 | M52: 2014 | N52: 2015 | O52: 2016 | P52: 2017 | Q52: 2018 | R52: 2019 | S52: =T52-1 -> 2020 | T52: =$BB$6 -> 2021 | U52: =BC6 -> 2022 | V52: 2023 | W52: 2024 | X52: 2025 | Y52: 2026 | Z52: =BH6 -> 2027 | AA52: =BI6 -> 2028 | AB52: =BJ6 -> 2029 | AC52: =BK6 -> 2030 | AD52: =BL6 -> 2031 | AE52: =BM6 -> 2032
A53: d: Public debt/GDP | J53: =Baseline!B9 -> 31.5933688 | K53: =Baseline!C9 -> 35.33939124 | L53: =Baseline!D9 -> 43.11561343 | M53: =Baseline!E9 -> 44.44062131 | N53: =Baseline!F9 -> 44.32556858 | O53: =Baseline!G9 -> 45.98041253 | P53: =Baseline!H9 -> 47.43639858 | Q53: =Baseline!I9 -> 48.5464043 | R53: =Baseline!J9 -> 48.67164741 | S53: =Baseline!K9 -> 58.86485128 | T53: =Baseline!L9 -> 61.72884638 | U53: =Baseline!M9 -> 62.64909813 | V53: =Baseline!N9 -> 62.83354271 | W53: =Baseline!O9 -> 63.20708461 | X53: =Baseline!P9 -> 63.68446824 | Y53: =Baseline!Q9 -> 63.99286762 | Z53: =Baseline!R9 -> 64.37843757 | AA53: =Baseline!S9 -> 64.69410533 | AB53: =Baseline!T9 -> 65.03610887 | AC53: =Baseline!U9 -> 65.38398037 | AD53: =Baseline!V9 -> 65.7062252 | AE53: =Baseline!W9 -> 66.04784425
A54: g: Real GDP growth rate | H54: =AP7 -> 0 | I54: 0 | J54: 0 | K54: 4.128725633 | L54: 2.791554075 | M54: 3.058096332 | N54: 3.840046512 | O54: 3.893003331 | P54: 4.842866705 | Q54: 3.845025913 | R54: =AZ7 -> 2.662336047 | S54: -8.993690565 | T54: 4.230933496 | U54: 3.746288693 | V54: 3.408191185 | W54: 3.660486026 | X54: 3.835522081 | Y54: 3.835491687 | Z54: =BH7 -> 3.835528595 | AA54: =BI7 -> 3.835544872 | AB54: =BJ7 -> 3.83549772 | AC54: =BK7 -> 3.835523257 | AD54: =BL7 -> 3.835520597 | AE54: =BM7 -> 3.83553137
A55: rd: Real effective interest rate on local-currency debt | H55: 0 | I55: 0 | J55: 0 | K55: 5.066250837 | L55: =AT8 -> 6.219007502 | M55: 6.528777952 | N55: 9.79609911 | O55: 8.511174111 | P55: 5.015721815 | Q55: 6.862870959 | R55: 6.221158567 | S55: 4.898413867 | T55: 3.634022987 | U55: 2.816941243 | V55: =BD8 -> 3.335368219 | W55: =BE8 -> 4.069760451 | X55: =BF8 -> 4.249576909 | Y55: 3.965118851 | Z55: 3.858699559 | AA55: 3.966028739 | AB55: 3.963876983 | AC55: 3.857403676 | AD55: 3.964800253 | AE55: 3.962653697
A56: pbaug: Primary balance augmented | H56: 0 | I56: 0 | J56: 0 | K56: -4.227150579 | L56: -7.689768882 | M56: -1.413281372 | N56: 1.092861099 | O56: 0.4633336166 | P56: -3.76899242 | Q56: -1.267586037 | R56: 3.267492809 | S56: -5.900041043 | T56: -4.848895322 | U56: =BC9 -> -1.904740751 | V56: -0.4369638872 | W56: -0.6193673774 | X56: =BF9 -> -0.6884535579 | Y56: -0.5824746584 | Z56: -0.6297633857 | AA56: -0.6337797497 | AB56: -0.6155451595 | AC56: -0.6259292843 | AD56: -0.6252998101 | AE56: -0.6224628076
A57: rf,aug: Real effective interest rate on foreign-currency debt augmented by changes in real exchange rate | H57: 0 | I57: 0 | J57: 0 | K57: 0.4712930751 | L57: 0.7416256011 | M57: 1.268799903 | N57: 4.498272544 | O57: 4.150932844 | P57: -0.6051967846 | Q57: 1.847464218 | R57: 0.5286242032 | S57: -1.762159161 | T57: 1.580918316 | U57: 2.327070894 | V57: 3.43236537 | W57: =BE10 -> 3.312616328 | X57: 3.216647937 | Y57: 2.94076356 | Z57: 3.008741788 | AA57: 2.940518468 | AB57: 2.942061266 | AC57: 3.009575277 | AD57: 2.941849967 | AE57: 2.943397909
A58: Guarantees (uncalled) | J58: =(Baseline!B10+Baseline!B11) -> 0 | K58: =(Baseline!C10+Baseline!C11) -> 0 | L58: =(Baseline!D10+Baseline!D11) -> 0 | M58: =(Baseline!E10+Baseline!E11) -> 0 | N58: =(Baseline!F10+Baseline!F11) -> 0 | O58: =(Baseline!G10+Baseline!G11) -> 1.423454805 | P58: =(Baseline!H10+Baseline!H11) -> 0.5406969275 | Q58: =(Baseline!I10+Baseline!I11) -> 0.4501946167 | R58: =(Baseline!J10+Baseline!J11) -> 3.816298572 | S58: =(Baseline!K10+Baseline!K11) -> 3.281773213 | T58: =(Baseline!L10+Baseline!L11) -> 2.27702712 | U58: =(Baseline!M10+Baseline!M11) -> 2.003280914 | V58: =(Baseline!N10+Baseline!N11) -> 1.757363177 | W58: =(Baseline!O10+Baseline!O11) -> 1.539391842 | X58: =(Baseline!P10+Baseline!P11) -> 1.433826375 | Y58: =(Baseline!Q10+Baseline!Q11) -> 1.433826375 | Z58: =(Baseline!R10+Baseline!R11) -> 1.469014864 | AA58: =(Baseline!S10+Baseline!S11) -> 1.445555872 | AB58: =(Baseline!T10+Baseline!T11) -> 1.449465704 | AC58: =(Baseline!U10+Baseline!U11) -> 1.454678813 | AD58: =(Baseline!V10+Baseline!V11) -> 1.44990013 | AE58: =(Baseline!W10+Baseline!W11) -> 1.44990013
A61: Calculated debt/GDP ratio (first year of history equals baseline) | J61: =J53 -> 31.5933688 | K61: =(J53-J58)*((1+K55/100)*(1-J62)+(1+K57/100)*J62)/(1+K54/100)-K56+K58 -> 35.33749596 | L61: =(K53-K58)*((1+L55/100)*(1-K62)+(1+L57/100)*K62)/(1+L54/100)-L56+L58 -> 43.09892289 | M61: 44.44907585 | N61: 44.34434872 | O61: 45.99121038 | P61: 47.42655027 | Q61: 48.52269267 | R61: 48.68014816 | S61: =(R53-R58)*((1+S55/100)*(1-R62)+(1+S57/100)*R62)/(1+S54/100)-S56+S58 -> 58.89260762 | T61: =(S53-S58)*((1+T55/100)*(1-S62)+(1+T57/100)*S62)/(1+T54/100)-T56+T58 -> 61.72884638 | U61: =(T53-T58)*((1+U55/100)*(1-T62)+(1+U57/100)*T62)/(1+U54/100)-U56+U58 -> 62.64909813 | V61: =(U53-U58)*((1+V55/100)*(1-U62)+(1+V57/100)*U62)/(1+V54/100)-V56+V58 -> 62.83354271 | W61: 63.20708461 | X61: 63.68446824 | Y61: 63.99286762 | Z61: 64.37843757 | AA61: 64.69410533 | AB61: 65.03610887 | AC61: 65.38398037 | AD61: 65.7062252 | AE61: =(AD53-AD58)*((1+AE55/100)*(1-AD62)+(1+AE57/100)*AD62)/(1+AE54/100)-AE56+AE58 -> 66.04784425
A62: Foreign currency debt share | J62: =Baseline!B13/100 -> 0.5505 | K62: =Baseline!C13/100 -> 0.5887 | L62: =Baseline!D13/100 -> 0.6961 | M62: =Baseline!E13/100 -> 0.6847 | N62: =Baseline!F13/100 -> 0.6799 | O62: =Baseline!G13/100 -> 0.6336 | P62: =Baseline!H13/100 -> 0.6418 | Q62: =Baseline!I13/100 -> 0.612 | R62: =Baseline!J13/100 -> 0.6067 | S62: =Baseline!K13/100 -> 0.6045 | T62: =Baseline!L13/100 -> 0.634725 | U62: =Baseline!M13/100 -> 0.634725 | V62: =Baseline!N13/100 -> 0.60298875 | W62: =Baseline!O13/100 -> 0.5728393125 | X62: =Baseline!P13/100 -> 0.5728393125 | Y62: =Baseline!Q13/100 -> 0.5728393125 | Z62: =Baseline!R13/100 -> 0.6014812781 | AA62: =Baseline!S13/100 -> 0.5714072142 | AB62: =Baseline!T13/100 -> 0.5714072142 | AC62: =Baseline!U13/100 -> 0.5999775749 | AD62: =Baseline!V13/100 -> 0.5699786962 | AE62: =Baseline!W13/100 -> 0.5699786962
A65: For z, Use RER if 0, REER if 1 | BD65: d prob. (medium-term indicator) | BE65: =ROUND(IFERROR(PERCENTRANK(BE$69:BE$1068,Readme!$B$24)*100,IF(Readme!$B$24<MIN(BE$69:BE$1068),0,100)),1) -> 32.5 | BF65: =ROUND(IFERROR(PERCENTRANK(BF$69:BF$1068,Readme!$B$24)*100,IF(Readme!$B$24<MIN(BF$69:BF$1068),0,100)),1) -> 32.5 | BG65: =ROUND(IFERROR(PERCENTRANK(BG$69:BG$1068,Readme!$B$24)*100,IF(Readme!$B$24<MIN(BG$69:BG$1068),0,100)),1) -> 34.4 | BH65: =ROUND(IFERROR(PERCENTRANK(BH$69:BH$1068,Readme!$B$24)*100,IF(Readme!$B$24<MIN(BH$69:BH$1068),0,100)),1) -> 33.7 | BI65: =ROUND(IFERROR(PERCENTRANK(BI$69:BI$1068,Readme!$B$24)*100,IF(Readme!$B$24<MIN(BI$69:BI$1068),0,100)),1) -> 33.9 | BJ65: =ROUND(IFERROR(PERCENTRANK(BJ$69:BJ$1068,Readme!$B$24)*100,IF(Readme!$B$24<MIN(BJ$69:BJ$1068),0,100)),1) -> 34.5 | BK65: =ROUND(IFERROR(PERCENTRANK(BK$69:BK$1068,Readme!$B$24)*100,IF(Readme!$B$24<MIN(BK$69:BK$1068),0,100)),1) -> 34.8 | BL65: =ROUND(IFERROR(PERCENTRANK(BL$69:BL$1068,Readme!$B$24)*100,IF(Readme!$B$24<MIN(BL$69:BL$1068),0,100)),1) -> 33.5 | BM65: =ROUND(IFERROR(PERCENTRANK(BM$69:BM$1068,Readme!$B$24)*100,IF(Readme!$B$24<MIN(BM$69:BM$1068),0,100)),1) -> 34.9 | BN65: =ROUND(IFERROR(PERCENTRANK(BN$69:BN$1068,Readme!$B$24)*100,IF(Readme!$B$24<MIN(BN$69:BN$1068),0,100)),1) -> 34 | BO65: =ROUND(IFERROR(PERCENTRANK(BO$69:BO$1068,Readme!$B$24)*100,IF(Readme!$B$24<MIN(BO$69:BO$1068),0,100)),1) -> 33.4 | BP65: =ROUND(IFERROR(PERCENTRANK(BP$69:BP$1068,Readme!$B$24)*100,IF(Readme!$B$24<MIN(BP$69:BP$1068),0,100)),1) -> 32.4
BD66: d prob. (last historical year) | BE66: =ROUND(IFERROR(PERCENTRANK(BE$69:BE$1068,'Output - Baseline'!$L$9)*100,IF('Output - Baseline'!$L$9<MIN(BE$69:BE$1068),0,100)),1) -> 23.5 | BF66: =ROUND(IFERROR(PERCENTRANK(BF$69:BF$1068,'Output - Baseline'!$L$9)*100,IF('Output - Baseline'!$L$9<MIN(BF$69:BF$1068),0,100)),1) -> 24.3 | BG66: =ROUND(IFERROR(PERCENTRANK(BG$69:BG$1068,'Output - Baseline'!$L$9)*100,IF('Output - Baseline'!$L$9<MIN(BG$69:BG$1068),0,100)),1) -> 28.7 | BH66: =ROUND(IFERROR(PERCENTRANK(BH$69:BH$1068,'Output - Baseline'!$L$9)*100,IF('Output - Baseline'!$L$9<MIN(BH$69:BH$1068),0,100)),1) -> 29.8 | BI66: =ROUND(IFERROR(PERCENTRANK(BI$69:BI$1068,'Output - Baseline'!$L$9)*100,IF('Output - Baseline'!$L$9<MIN(BI$69:BI$1068),0,100)),1) -> 30 | BJ66: =ROUND(IFERROR(PERCENTRANK(BJ$69:BJ$1068,'Output - Baseline'!$L$9)*100,IF('Output - Baseline'!$L$9<MIN(BJ$69:BJ$1068),0,100)),1) -> 30.8 | BK66: =ROUND(IFERROR(PERCENTRANK(BK$69:BK$1068,'Output - Baseline'!$L$9)*100,IF('Output - Baseline'!$L$9<MIN(BK$69:BK$1068),0,100)),1) -> 31.7 | BL66: =ROUND(IFERROR(PERCENTRANK(BL$69:BL$1068,'Output - Baseline'!$L$9)*100,IF('Output - Baseline'!$L$9<MIN(BL$69:BL$1068),0,100)),1) -> 30.4 | BM66: =ROUND(IFERROR(PERCENTRANK(BM$69:BM$1068,'Output - Baseline'!$L$9)*100,IF('Output - Baseline'!$L$9<MIN(BM$69:BM$1068),0,100)),1) -> 31.5 | BN66: =ROUND(IFERROR(PERCENTRANK(BN$69:BN$1068,'Output - Baseline'!$L$9)*100,IF('Output - Baseline'!$L$9<MIN(BN$69:BN$1068),0,100)),1) -> 31.3 | BO66: =ROUND(IFERROR(PERCENTRANK(BO$69:BO$1068,'Output - Baseline'!$L$9)*100,IF('Output - Baseline'!$L$9<MIN(BO$69:BO$1068),0,100)),1) -> 30.5 | BP66: =ROUND(IFERROR(PERCENTRANK(BP$69:BP$1068,'Output - Baseline'!$L$9)*100,IF('Output - Baseline'!$L$9<MIN(BP$69:BP$1068),0,100)),1) -> 29.7
B67: g | C67: rd | D67: pbaug | E67: rf,aug | H67: g shocks | T67: rd shocks | AF67: pbaug shocks | AR67: rf,aug shocks | BE67: d projections | BS67: g shocks | CE67: rd shocks | CQ67: pbaug shocks | DC67: rf,aug shocks | DP67: d projections
A68: 12000 random draws from joint normal distribution. | H68: =$BB$6 -> 2021 | I68: =H68+1 -> 2022 | J68: =I68+1 -> 2023 | K68: 2024 | L68: 2025 | M68: 2026 | N68: =M68+1 -> 2027 | O68: =N68+1 -> 2028 | P68: =O68+1 -> 2029 | Q68: =P68+1 -> 2030 | R68: =Q68+1 -> 2031 | S68: =R68+1 -> 2032 | T68: =$BB$6 -> 2021 | U68: =T68+1 -> 2022 | V68: =U68+1 -> 2023 | W68: 2024 | X68: 2025 | Y68: 2026 | Z68: =Y68+1 -> 2027 | AA68: =Z68+1 -> 2028 | AB68: =AA68+1 -> 2029 | AC68: =AB68+1 -> 2030 | AD68: =AC68+1 -> 2031 | AE68: =AD68+1 -> 2032 | AF68: =$BB$6 -> 2021 | AG68: =AF68+1 -> 2022 | AH68: =AG68+1 -> 2023 | AI68: 2024 | AJ68: 2025 | AK68: 2026 | AL68: 2027 | AM68: =AL68+1 -> 2028 | AN68: =AM68+1 -> 2029 | AO68: =AN68+1 -> 2030 | AP68: =AO68+1 -> 2031 | AQ68: 2032 | AR68: =$BB$6 -> 2021 | AS68: =AR68+1 -> 2022 | AT68: =AS68+1 -> 2023 | AU68: =AT68+1 -> 2024 | AV68: =AU68+1 -> 2025 | AW68: =AV68+1 -> 2026 | AX68: =AW68+1 -> 2027 | AY68: 2028 | AZ68: 2029 | BA68: 2030 | BB68: 2031 | BC68: 2032 | BE68: =$BB$6 -> 2021 | BF68: =BE68+1 -> 2022 | BG68: =BF68+1 -> 2023 | BH68: 2024 | BI68: 2025 | BJ68: 2026 | BK68: =BJ68+1 -> 2027 | BL68: =BK68+1 -> 2028 | BM68: =BL68+1 -> 2029 | BN68: =BM68+1 -> 2030 | BO68: =BN68+1 -> 2031 | BP68: =BO68+1 -> 2032 | BS68: =$BB$6 -> 2021 | BT68: =BS68+1 -> 2022 | BU68: =BT68+1 -> 2023 | BV68: 2024 | BW68: 2025 | BX68: 2026 | BY68: =BX68+1 -> 2027 | BZ68: =BY68+1 -> 2028 | CA68: =BZ68+1 -> 2029 | CB68: =CA68+1 -> 2030 | CC68: =CB68+1 -> 2031 | CD68: =CC68+1 -> 2032 | CE68: =$BB$6 -> 2021 | CF68: =CE68+1 -> 2022 | CG68: =CF68+1 -> 2023 | CH68: 2024 | CI68: 2025 | CJ68: 2026 | CK68: =CJ68+1 -> 2027 | CL68: =CK68+1 -> 2028 | CM68: =CL68+1 -> 2029 | CN68: =CM68+1 -> 2030 | CO68: =CN68+1 -> 2031 | CP68: =CO68+1 -> 2032 | CQ68: =$BB$6 -> 2021 | CR68: =CQ68+1 -> 2022 | CS68: =CR68+1 -> 2023 | CT68: 2024 | CU68: 2025 | CV68: 2026 | CW68: =CV68+1 -> 2027 | CX68: =CW68+1 -> 2028 | CY68: =CX68+1 -> 2029 | CZ68: =CY68+1 -> 2030 | DA68: =CZ68+1 -> 2031 | DB68: =DA68+1 -> 2032 | DC68: =$BB$6 -> 2021 | DD68: =DC68+1 -> 2022 | DE68: =DD68+1 -> 2023 | DF68: 2024 | DG68: 2025 | DH68: 2026 | DI68: =DH68+1 -> 2027 | DJ68: =DI68+1 -> 2028 | DK68: =DJ68+1 -> 2029 | DL68: =DK68+1 -> 2030 | DM68: =DL68+1 -> 2031 | DN68: 2032 | DP68: =$BB$6 -> 2021 | DQ68: =DP68+1 -> 2022 | DR68: =DQ68+1 -> 2023 | DS68: 2024 | DT68: 2025 | DU68: 2026 | DV68: =DU68+1 -> 2027 | DW68: =DV68+1 -> 2028 | DX68: =DW68+1 -> 2029 | DY68: =DX68+1 -> 2030 | DZ68: =DY68+1 -> 2031 | EA68: =DZ68+1 -> 2032
A69: 1 | B69: 10.11034995 | C69: 8.135630231 | D69: 2.530965979 | E69: 3.066983792 | H69: =IF($B$42="On",$B69-$D$15,0) -> 7.880576175 | I69: =IF($B$42="On",$B1069-$D$15,0) -> 2.874241803 | J69: =IF($B$42="On",$B2069-$D$15,0) -> 5.028145082 | K69: =IF($B$42="On",$B3069-$D$15,0) -> -1.178299032 | L69: =IF($B$42="On",$B4069-$D$15,0) -> -0.1202514015 | M69: =IF($B$42="On",$B5069-$D$15,0) -> -2.931829641 | N69: =IF($B$42="On",$B6069-$D$15,0) -> 4.201897203 | O69: =IF($B$42="On",$B7069-$D$15,0) -> -2.088098911 | P69: =IF($B$42="On",$B8069-$D$15,0) -> -0.00497123948 | Q69: =IF($B$42="On",$B9069-$D$15,0) -> 0.9266411364 | R69: =IF($B$42="On",$B10069-$D$15,0) -> -5.047121527 | S69: =IF($B$42="On",$B11069-$D$15,0) -> 6.637491466 | T69: =IF($B$43="On",$C69-$D$16,0) -> 1.566799706 | U69: =IF($B$43="On",$C1069-$D$16,0) -> 0.5749015463 | V69: =IF($B$43="On",$C2069-$D$16,0) -> 1.505990283 | W69: =IF($B$43="On",$C3069-$D$16,0) -> -1.496698022 | X69: =IF($B$43="On",$C4069-$D$16,0) -> -1.154941692 | Y69: =IF($B$43="On",$C5069-$D$16,0) -> 0.6082127358 | Z69: =IF($B$43="On",$C6069-$D$16,0) -> -0.3798316176 | AA69: =IF($B$43="On",$C7069-$D$16,0) -> -0.5409111725 | AB69: =IF($B$43="On",$C8069-$D$16,0) -> 0.7437722533 | AC69: =IF($B$43="On",$C9069-$D$16,0) -> -2.690783351 | AD69: =IF($B$43="On",$C10069-$D$16,0) -> -1.496427209 | AE69: =IF($B$43="On",$C11069-$D$16,0) -> 0.5821261281 | AF69: =IF($B$44="On",$D69-$D$17,0) -> 4.691314069 | AG69: =IF($B$44="On",$D1069-$D$17,0) -> 6.169744456 | AH69: =IF($B$44="On",$D2069-$D$17,0) -> 2.260471947 | AI69: =IF($B$44="On",$D3069-$D$17,0) -> 3.302889361 | AJ69: =IF($B$44="On",$D4069-$D$17,0) -> 2.434205472 | AK69: =IF($B$44="On",$D5069-$D$17,0) -> -0.2325113331 | AL69: =IF($B$44="On",$D6069-$D$17,0) -> 0.8282674526 | AM69: =IF($B$44="On",$D7069-$D$17,0) -> -0.3769247281 | AN69: =IF($B$44="On",$D8069-$D$17,0) -> -2.695679719 | AO69: =IF($B$44="On",$D9069-$D$17,0) -> -3.479682645 | AP69: =IF($B$44="On",$D10069-$D$17,0) -> -1.616694216 | AQ69: =IF($B$44="On",$D11069-$D$17,0) -> 3.889566768 | AR69: =IF($B$45="On",$E69-$D$18,0) -> 1.829244187 | AS69: =IF($B$45="On",$E1069-$D$18,0) -> 1.365825067 | AT69: =IF($B$45="On",$E2069-$D$18,0) -> 2.130622976 | AU69: =IF($B$45="On",$E3069-$D$18,0) -> -1.965782074 | AV69: =IF($B$45="On",$E4069-$D$18,0) -> -1.861983427 | AW69: =IF($B$45="On",$E5069-$D$18,0) -> 0.1966480802 | AX69: =IF($B$45="On",$E6069-$D$18,0) -> 0.5070102149 | AY69: =IF($B$45="On",$E7069-$D$18,0) -> -0.9476006765 | AZ69: =IF($B$45="On",$E8069-$D$18,0) -> 0.7598579211 | BA69: =IF($B$45="On",$E9069-$D$18,0) -> -3.228206372 | BB69: =IF($B$45="On",$E10069-$D$18,0) -> -1.847175898 | BC69: =IF($B$45="On",$E11069-$D$18,0) -> 1.29671837 | BE69: =(S$53-S$58)*((1+(T$55+T69)/100)*(1-S$62)+S$62*((1+(T$57+AR69)/100)))/(1+(T$54+H69)/100)-(T$56+AF69)+T$58 -> 54.05481604 | BF69: =(BE69-T$58)*((1+(U$55+U69)/100)*(1-T$62)+T$62*((1+(U$57+AS69)/100)))/(1+(U$54+I69)/100)-(U$56+AG69)+U$58 -> 48.04092526 | BG69: 44.63968219 | BH69: 41.46682157 | BI69: 38.99286694 | BJ69: 40.86762642 | BK69: 39.04814331 | BL69: 40.33685309 | BM69: 43.76527179 | BN69: 46.10405334 | BO69: 49.63199748 | BP69: 43.70359143 | BS69: =IF($B$42="On",MIN($B69-$D$15,$D$42),0) -> 7.880576175 | BT69: =IF($B$42="On",MIN($B1069-$D$15,$D$42),0) -> 2.874241803 | BU69: =IF($B$42="On",MIN($B2069-$D$15,$D$42),0) -> 5.028145082 | BV69: =IF($B$42="On",MIN($B3069-$D$15,$D$42),0) -> -1.178299032 | BW69: =IF($B$42="On",MIN($B4069-$D$15,$D$42),0) -> -0.1202514015 | BX69: =IF($B$42="On",MIN($B5069-$D$15,$D$42),0) -> -2.931829641 | BY69: =IF($B$42="On",MIN($B6069-$D$15,$D$42),0) -> 4.201897203 | BZ69: =IF($B$42="On",MIN($B7069-$D$15,$D$42),0) -> -2.088098911 | CA69: =IF($B$42="On",MIN($B8069-$D$15,$D$42),0) -> -0.00497123948 | CB69: =IF($B$42="On",MIN($B9069-$D$15,$D$42),0) -> 0.9266411364 | CC69: =IF($B$42="On",MIN($B10069-$D$15,$D$42),0) -> -5.047121527 | CD69: =IF($B$42="On",MIN($B11069-$D$15,$D$42),0) -> 6.637491466 | CE69: =IF($B$43="On",MAX($C69-$D$16,$D$43),0) -> 1.566799706 | CF69: =IF($B$43="On",MAX($C1069-$D$16,$D$43),0) -> 0.5749015463 | CG69: =IF($B$43="On",MAX($C2069-$D$16,$D$43),0) -> 1.505990283 | CH69: =IF($B$43="On",MAX($C3069-$D$16,$D$43),0) -> -1.496698022 | CI69: =IF($B$43="On",MAX($C4069-$D$16,$D$43),0) -> -1.154941692 | CJ69: =IF($B$43="On",MAX($C5069-$D$16,$D$43),0) -> 0.6082127358 | CK69: =IF($B$43="On",MAX($C6069-$D$16,$D$43),0) -> -0.3798316176 | CL69: =IF($B$43="On",MAX($C7069-$D$16,$D$43),0) -> -0.5409111725 | CM69: =IF($B$43="On",MAX($C8069-$D$16,$D$43),0) -> 0.7437722533 | CN69: =IF($B$43="On",MAX($C9069-$D$16,$D$43),0) -> -2.690783351 | CO69: =IF($B$43="On",MAX($C10069-$D$16,$D$43),0) -> -1.496427209 | CP69: =IF($B$43="On",MAX($C11069-$D$16,$D$43),0) -> 0.5821261281 | CQ69: =IF($B$44="On",MIN($D69-$D$17,$D$44),0) -> 0 | CR69: =IF($B$44="On",MIN($D1069-$D$17,$D$44),0) -> 0 | CS69: =IF($B$44="On",MIN($D2069-$D$17,$D$44),0) -> 0 | CT69: =IF($B$44="On",MIN($D3069-$D$17,$D$44),0) -> 0 | CU69: =IF($B$44="On",MIN($D4069-$D$17,$D$44),0) -> 0 | CV69: =IF($B$44="On",MIN($D5069-$D$17,$D$44),0) -> -0.2325113331 | CW69: =IF($B$44="On",MIN($D6069-$D$17,$D$44),0) -> 0 | CX69: =IF($B$44="On",MIN($D7069-$D$17,$D$44),0) -> -0.3769247281 | CY69: =IF($B$44="On",MIN($D8069-$D$17,$D$44),0) -> -2.695679719 | CZ69: =IF($B$44="On",MIN($D9069-$D$17,$D$44),0) -> -3.479682645 | DA69: =IF($B$44="On",MIN($D10069-$D$17,$D$44),0) -> -1.616694216 | DB69: =IF($B$44="On",MIN($D11069-$D$17,$D$44),0) -> 0 | DC69: =IF($B$45="On",MAX($E69-$D$18,$D$45),0) -> 1.829244187 | DD69: =IF($B$45="On",MAX($E1069-$D$18,$D$45),0) -> 1.365825067 | DE69: =IF($B$45="On",MAX($E2069-$D$18,$D$45),0) -> 2.130622976 | DF69: =IF($B$45="On",MAX($E3069-$D$18,$D$45),0) -> -1.965782074 | DG69: =IF($B$45="On",MAX($E4069-$D$18,$D$45),0) -> -1.861983427 | DH69: =IF($B$45="On",MAX($E5069-$D$18,$D$45),0) -> 0.1966480802 | DI69: =IF($B$45="On",MAX($E6069-$D$18,$D$45),0) -> 0.5070102149 | DJ69: =IF($B$45="On",MAX($E7069-$D$18,$D$45),0) -> -0.9476006765 | DK69: =IF($B$45="On",MAX($E8069-$D$18,$D$45),0) -> 0.7598579211 | DL69: =IF($B$45="On",MAX($E9069-$D$18,$D$45),0) -> -3.228206372 | DM69: =IF($B$45="On",MAX($E10069-$D$18,$D$45),0) -> -1.847175898 | DN69: =IF($B$45="On",MAX($E11069-$D$18,$D$45),0) -> 1.29671837 | DP69: =(S$53-S$58)*((1+(T$55+CE69)/100)*(1-S$62)+S$62*((1+(T$57+DC69)/100)))/(1+(T$54+BS69)/100)-(T$56+CQ69)+T$58 -> 58.74613011 | DQ69: =(DP69-T$58)*((1+(U$55+CF69)/100)*(1-T$62)+T$62*((1+(U$57+DD69)/100)))/(1+(U$54+BT69)/100)-(U$56+CR69)+U$58 -> 58.76832901 | DR69: 57.31722615 | DS69: 57.36702904 | DT69: 57.07932849 | DU69: 59.46441923 | DV69: 57.69216283 | DW69: 59.13043718 | DX69: 62.61359852 | DY69: 64.16307561 | DZ69: 68.21307186 | EA69: 65.14792084
A70: =A69+1 -> 2 | B70: -0.8838342648 | C70: 7.699269841 | D70: 1.115580632 | E70: 2.299284696 | H70: =IF($B$42="On",$B70-$D$15,0) -> -3.113608041 | I70: =IF($B$42="On",$B1070-$D$15,0) -> 4.272081744 | J70: =IF($B$42="On",$B2070-$D$15,0) -> 5.438190844 | K70: =IF($B$42="On",$B3070-$D$15,0) -> 6.533493673 | L70: =IF($B$42="On",$B4070-$D$15,0) -> 0.0947262531 | M70: =IF($B$42="On",$B5070-$D$15,0) -> 1.917554147 | N70: =IF($B$42="On",$B6070-$D$15,0) -> -0.09287120448 | O70: =IF($B$42="On",$B7070-$D$15,0) -> -3.019439683 | P70: =IF($B$42="On",$B8070-$D$15,0) -> 4.30667146 | Q70: =IF($B$42="On",$B9070-$D$15,0) -> -2.093869082 | R70: =IF($B$42="On",$B10070-$D$15,0) -> 0.8458841447 | S70: =IF($B$42="On",$B11070-$D$15,0) -> 4.282564916 | T70: =IF($B$43="On",$C70-$D$16,0) -> 1.130439317 | U70: =IF($B$43="On",$C1070-$D$16,0) -> -2.268333351 | V70: =IF($B$43="On",$C2070-$D$16,0) -> -0.03140779343 | W70: =IF($B$43="On",$C3070-$D$16,0) -> 1.452040096 | X70: =IF($B$43="On",$C4070-$D$16,0) -> -0.4258525612 | Y70: =IF($B$43="On",$C5070-$D$16,0) -> -0.4535142552 | Z70: =IF($B$43="On",$C6070-$D$16,0) -> -1.290690042 | AA70: =IF($B$43="On",$C7070-$D$16,0) -> 0.2946009672 | AB70: =IF($B$43="On",$C8070-$D$16,0) -> -0.999422804 | AC70: =IF($B$43="On",$C9070-$D$16,0) -> -1.312844789 | AD70: =IF($B$43="On",$C10070-$D$16,0) -> 1.16676437 | AE70: =IF($B$43="On",$C11070-$D$16,0) -> 1.322355474 | AF70: =IF($B$44="On",$D70-$D$17,0) -> 3.275928722 | AG70: =IF($B$44="On",$D1070-$D$17,0) -> -2.078583642 | AH70: =IF($B$44="On",$D2070-$D$17,0) -> -1.583635833 | AI70: =IF($B$44="On",$D3070-$D$17,0) -> 4.680397553 | AJ70: =IF($B$44="On",$D4070-$D$17,0) -> 3.035586725 | AK70: =IF($B$44="On",$D5070-$D$17,0) -> 0.3708366407 | AL70: =IF($B$44="On",$D6070-$D$17,0) -> -1.978312803 | AM70: =IF($B$44="On",$D7070-$D$17,0) -> -1.591348382 | AN70: =IF($B$44="On",$D8070-$D$17,0) -> 0.1625418771 | AO70: =IF($B$44="On",$D9070-$D$17,0) -> 0.3356935699 | AP70: =IF($B$44="On",$D10070-$D$17,0) -> 4.866450103 | AQ70: =IF($B$44="On",$D11070-$D$17,0) -> 7.510769706 | AR70: =IF($B$45="On",$E70-$D$18,0) -> 1.061545091 | AS70: =IF($B$45="On",$E1070-$D$18,0) -> -1.818280462 | AT70: =IF($B$45="On",$E2070-$D$18,0) -> 0.528078874 | AU70: =IF($B$45="On",$E3070-$D$18,0) -> 1.947602223 | AV70: =IF($B$45="On",$E4070-$D$18,0) -> -0.1267648274 | AW70: =IF($B$45="On",$E5070-$D$18,0) -> 0.6159566382 | AX70: =IF($B$45="On",$E6070-$D$18,0) -> -1.374139942 | AY70: =IF($B$45="On",$E7070-$D$18,0) -> -0.118559493 | AZ70: =IF($B$45="On",$E8070-$D$18,0) -> -1.236074288 | BA70: =IF($B$45="On",$E9070-$D$18,0) -> -1.658355419 | BB70: =IF($B$45="On",$E10070-$D$18,0) -> 1.655030151 | BC70: =IF($B$45="On",$E11070-$D$18,0) -> 1.75882894 | BE70: =(S$53-S$58)*((1+(T$55+T70)/100)*(1-S$62)+S$62*((1+(T$57+AR70)/100)))/(1+(T$54+H70)/100)-(T$56+AF70)+T$58 -> 60.73275007 | BF70: =(BE70-T$58)*((1+(U$55+U70)/100)*(1-T$62)+T$62*((1+(U$57+AS70)/100)))/(1+(U$54+I70)/100)-(U$56+AG70)+U$58 -> 60.38627994 | BG70: 59.41162133 | BH70: 52.60557717 | BI70: 49.89398735 | BJ70: 49.09035249 | BK70: 50.94839312 | BL70: 54.41589937 | BM70: 51.98442794 | BN70: 52.33998834 | BO70: 48.15694144 | BP70: 39.90124125 | BS70: =IF($B$42="On",MIN($B70-$D$15,$D$42),0) -> -3.113608041 | BT70: =IF($B$42="On",MIN($B1070-$D$15,$D$42),0) -> 4.272081744 | BU70: =IF($B$42="On",MIN($B2070-$D$15,$D$42),0) -> 5.438190844 | BV70: =IF($B$42="On",MIN($B3070-$D$15,$D$42),0) -> 6.533493673 | BW70: =IF($B$42="On",MIN($B4070-$D$15,$D$42),0) -> 0.0947262531 | BX70: =IF($B$42="On",MIN($B5070-$D$15,$D$42),0) -> 1.917554147 | BY70: =IF($B$42="On",MIN($B6070-$D$15,$D$42),0) -> -0.09287120448 | BZ70: =IF($B$42="On",MIN($B7070-$D$15,$D$42),0) -> -3.019439683 | CA70: =IF($B$42="On",MIN($B8070-$D$15,$D$42),0) -> 4.30667146 | CB70: =IF($B$42="On",MIN($B9070-$D$15,$D$42),0) -> -2.093869082 | CC70: =IF($B$42="On",MIN($B10070-$D$15,$D$42),0) -> 0.8458841447 | CD70: =IF($B$42="On",MIN($B11070-$D$15,$D$42),0) -> 4.282564916 | CE70: =IF($B$43="On",MAX($C70-$D$16,$D$43),0) -> 1.130439317 | CF70: =IF($B$43="On",MAX($C1070-$D$16,$D$43),0) -> -2.268333351 | CG70: =IF($B$43="On",MAX($C2070-$D$16,$D$43),0) -> -0.03140779343 | CH70: =IF($B$43="On",MAX($C3070-$D$16,$D$43),0) -> 1.452040096 | CI70: =IF($B$43="On",MAX($C4070-$D$16,$D$43),0) -> -0.4258525612 | CJ70: =IF($B$43="On",MAX($C5070-$D$16,$D$43),0) -> -0.4535142552 | CK70: =IF($B$43="On",MAX($C6070-$D$16,$D$43),0) -> -1.290690042 | CL70: =IF($B$43="On",MAX($C7070-$D$16,$D$43),0) -> 0.2946009672 | CM70: =IF($B$43="On",MAX($C8070-$D$16,$D$43),0) -> -0.999422804 | CN70: =IF($B$43="On",MAX($C9070-$D$16,$D$43),0) -> -1.312844789 | CO70: =IF($B$43="On",MAX($C10070-$D$16,$D$43),0) -> 1.16676437 | CP70: =IF($B$43="On",MAX($C11070-$D$16,$D$43),0) -> 1.322355474 | CQ70: =IF($B$44="On",MIN($D70-$D$17,$D$44),0) -> 0 | CR70: =IF($B$44="On",MIN($D1070-$D$17,$D$44),0) -> -2.078583642 | CS70: =IF($B$44="On",MIN($D2070-$D$17,$D$44),0) -> -1.583635833 | CT70: =IF($B$44="On",MIN($D3070-$D$17,$D$44),0) -> 0 | CU70: =IF($B$44="On",MIN($D4070-$D$17,$D$44),0) -> 0 | CV70: =IF($B$44="On",MIN($D5070-$D$17,$D$44),0) -> 0 | CW70: =IF($B$44="On",MIN($D6070-$D$17,$D$44),0) -> -1.978312803 | CX70: =IF($B$44="On",MIN($D7070-$D$17,$D$44),0) -> -1.591348382 | CY70: =IF($B$44="On",MIN($D8070-$D$17,$D$44),0) -> 0 | CZ70: =IF($B$44="On",MIN($D9070-$D$17,$D$44),0) -> 0 | DA70: =IF($B$44="On",MIN($D10070-$D$17,$D$44),0) -> 0 | DB70: =IF($B$44="On",MIN($D11070-$D$17,$D$44),0) -> 0 | DC70: =IF($B$45="On",MAX($E70-$D$18,$D$45),0) -> 1.061545091 | DD70: =IF($B$45="On",MAX($E1070-$D$18,$D$45),0) -> -1.818280462 | DE70: =IF($B$45="On",MAX($E2070-$D$18,$D$45),0) -> 0.528078874 | DF70: =IF($B$45="On",MAX($E3070-$D$18,$D$45),0) -> 1.947602223 | DG70: =IF($B$45="On",MAX($E4070-$D$18,$D$45),0) -> -0.1267648274 | DH70: =IF($B$45="On",MAX($E5070-$D$18,$D$45),0) -> 0.6159566382 | DI70: =IF($B$45="On",MAX($E6070-$D$18,$D$45),0) -> -1.374139942 | DJ70: =IF($B$45="On",MAX($E7070-$D$18,$D$45),0) -> -0.118559493 | DK70: =IF($B$45="On",MAX($E8070-$D$18,$D$45),0) -> -1.236074288 | DL70: =IF($B$45="On",MAX($E9070-$D$18,$D$45),0) -> -1.658355419 | DM70: =IF($B$45="On",MAX($E10070-$D$18,$D$45),0) -> 1.655030151 | DN70: =IF($B$45="On",MAX($E11070-$D$18,$D$45),0) -> 1.75882894 | DP70: =(S$53-S$58)*((1+(T$55+CE70)/100)*(1-S$62)+S$62*((1+(T$57+DC70)/100)))/(1+(T$54+BS70)/100)-(T$56+CQ70)+T$58 -> 64.00867879 | DQ70: =(DP70-T$58)*((1+(U$55+CF70)/100)*(1-T$62)+T$62*((1+(U$57+DD70)/100)))/(1+(U$54+BT70)/100)-(U$56+CR70)+U$58 -> 63.43490286 | DR70: 62.31668015 | DS70: 60.06370196 | DT70: 60.34988828 | DU70: 59.69803192 | DV70: 61.3812926 | DW70: 65.11570503 | DX70: 62.26333291 | DY70: 62.96681369 | DZ70: 63.66334909 | EA70: 62.46445371
A71: =A70+1 -> 3 | B71: -0.1041463526 | C71: 6.082402608 | D71: -1.872216331 | E71: 0.5753339962 | H71: -2.333920129 | I71: -1.771368164 | J71: -7.846833745 | K71: 2.238652736 | L71: -3.407409315 | M71: -0.3311969894 | N71: 12.18425486 | O71: -1.888594319 | P71: 2.067874439 | Q71: 2.908082868 | R71: 0.003355529151 | S71: -2.16178689 | T71: -0.4864279164 | U71: -1.072110569 | V71: -2.410178927 | W71: -0.9517072046 | X71: 1.346793769 | Y71: -2.272251302 | Z71: 1.893132282 | AA71: -1.429638523 | AB71: 4.583554253 | AC71: -1.077353878 | AD71: 1.052252362 | AE71: -0.2147173645 | AF71: 0.2881317589 | AG71: 0.6319494816 | AH71: -4.629407613 | AI71: 1.639025896 | AJ71: 0.1969796292 | AK71: 0.8311217513 | AL71: 7.474210334 | AM71: 7.723041236 | AN71: 3.609135114 | AO71: 2.203458564 | AP71: 2.249839844 | AQ71: 2.312173528 | AR71: -0.6624056085 | AS71: -1.755915972 | AT71: -3.317900411 | AU71: -0.5986381932 | AV71: 0.6357987703 | AW71: -3.408029315 | AX71: 3.276681286 | AY71: -2.037533957 | AZ71: 5.423898161 | BA71: -1.199121694 | BB71: 1.052767568 | BC71: -0.8527773066 | BE71: 62.36801223 | BF71: =(BE71-T$58)*((1+(U$55+U71)/100)*(1-T$62)+T$62*((1+(U$57+AS71)/100)))/(1+(U$54+I71)/100)-(U$56+AG71)+U$58 -> 62.79248674 | BG71: 70.69767842 | BH71: 67.49094465 | BI71: 70.61482959 | BJ71: 68.32837756 | BK71: 55.77507382 | BL71: 48.45299401 | BM71: 46.5909082 | BN71: 43.1081211 | BO71: 41.70533889 | BP71: 40.46285101 | BS71: -2.333920129 | BT71: -1.771368164 | BU71: -7.846833745 | BV71: 2.238652736 | BW71: -3.407409315 | BX71: -0.3311969894 | BY71: 12.18425486 | BZ71: -1.888594319 | CA71: 2.067874439 | CB71: 2.908082868 | CC71: 0.003355529151 | CD71: -2.16178689 | CE71: -0.4864279164 | CF71: -1.072110569 | CG71: -2.410178927 | CH71: -0.9517072046 | CI71: 1.346793769 | CJ71: -2.272251302 | CK71: 1.893132282 | CL71: -1.429638523 | CM71: 4.583554253 | CN71: -1.077353878 | CO71: 1.052252362 | CP71: -0.2147173645 | CQ71: 0 | CR71: 0 | CS71: -4.629407613 | CT71: 0 | CU71: 0 | CV71: 0 | CW71: 0 | CX71: 0 | CY71: 0 | CZ71: 0 | DA71: 0 | DB71: 0 | DC71: -0.6624056085 | DD71: -1.755915972 | DE71: -3.317900411 | DF71: -0.5986381932 | DG71: 0.6357987703 | DH71: -3.408029315 | DI71: 3.276681286 | DJ71: -2.037533957 | DK71: 5.423898161 | DL71: -1.199121694 | DM71: 1.052767568 | DN71: -0.8527773066 | DP71: 62.65614399 | DQ71: =(DP71-T$58)*((1+(U$55+CF71)/100)*(1-T$62)+T$62*((1+(U$57+DD71)/100)))/(1+(U$54+BT71)/100)-(U$56+CR71)+U$58 -> 63.70981295 | DR71: 71.6615542 | DS71: 70.06631568 | DT71: 73.49409669 | DU71: 71.95395433 | DV71: 66.56354294 | DW71: 66.92291293 | DX71: 69.11301074 | DY71: 66.88050438 | DZ71: 67.85685056 | EA71: 69.2170697
A72: 4 | B72: 1.7626153 | C72: 7.122161948 | D72: -0.2689474406 | E72: 1.694026793 | H72: -0.4671584758 | I72: -0.9720250006 | J72: -1.800805309 | K72: 6.503501909 | L72: -0.6506903029 | M72: 5.083076054 | N72: -0.9997839628 | O72: -7.314221304 | P72: 4.523812944 | Q72: 3.597885979 | R72: 4.856841142 | S72: 4.273297631 | T72: 0.553331424 | U72: -1.082358618 | V72: -1.209563331 | W72: -0.6403322404 | X72: 2.5410786 | Y72: 1.235967106 | Z72: -0.1808579467 | AA72: 1.604766929 | AB72: -0.8821202559 | AC72: -0.916105994 | AD72: -1.565007434 | AE72: 0.3791375643 | AF72: 1.891400649 | AG72: 0.0829877541 | AH72: 1.544685459 | AI72: -2.18037993 | AJ72: -1.668267823 | AK72: 0.2462277844 | AL72: -3.81038049 | AM72: 3.919105028 | AN72: -0.5236329361 | AO72: 4.639706488 | AP72: 3.126325037 | AQ72: 1.488332936 | AR72: 0.4562871882 | AS72: -1.497808539 | AT72: -1.550919677 | AU72: 0.08104910396 | AV72: 3.330430341 | AW72: 1.369922129 | AX72: -0.2519887795 | AY72: 0.8265890301 | AZ72: -0.4408215974 | BA72: -1.448511798 | BB72: -0.8534715935 | BC72: 0.4378974853 | BE72: 60.34825404 | BF72: =(BE72-T$58)*((1+(U$55+U72)/100)*(1-T$62)+T$62*((1+(U$57+AS72)/100)))/(1+(U$54+I72)/100)-(U$56+AG72)+U$58 -> 60.98411623 | BG72: 59.84137504 | BH72: 58.86098147 | BI72: 63.03774435 | BJ72: 60.98291215 | BK72: 65.64033955 | BL72: 67.62673884 | BM72: 65.34392983 | BN72: 58.19469395 | BO72: 52.30648257 | BP72: 49.41098431 | BS72: -0.4671584758 | BT72: -0.9720250006 | BU72: -1.800805309 | BV72: 6.503501909 | BW72: -0.6506903029 | BX72: 5.083076054 | BY72: -0.9997839628 | BZ72: -7.314221304 | CA72: 4.523812944 | CB72: 3.597885979 | CC72: 4.856841142 | CD72: 4.273297631 | CE72: 0.553331424 | CF72: -1.082358618 | CG72: -1.209563331 | CH72: -0.6403322404 | CI72: 2.5410786 | CJ72: 1.235967106 | CK72: -0.1808579467 | CL72: 1.604766929 | CM72: -0.8821202559 | CN72: -0.916105994 | CO72: -1.565007434 | CP72: 0.3791375643 | CQ72: 0 | CR72: 0 | CS72: 0 | CT72: -2.18037993 | CU72: -1.668267823 | CV72: 0 | CW72: -3.81038049 | CX72: 0 | CY72: -0.5236329361 | CZ72: 0 | DA72: 0 | DB72: 0 | DC72: 0.4562871882 | DD72: -1.497808539 | DE72: -1.550919677 | DF72: 0.08104910396 | DG72: 3.330430341 | DH72: 1.369922129 | DI72: -0.2519887795 | DJ72: 0.8265890301 | DK72: -0.4408215974 | DL72: -1.448511798 | DM72: -0.8534715935 | DN72: 0.4378974853 | DP72: 62.23965469 | DQ72: =(DP72-T$58)*((1+(U$55+CF72)/100)*(1-T$62)+T$62*((1+(U$57+DD72)/100)))/(1+(U$54+BT72)/100)-(U$56+CR72)+U$58 -> 62.92879576 | DR72: 63.33769363 | DS72: 62.14287823 | DT72: 66.42989004 | DU72: 64.48962373 | DV72: 69.15777429 | DW72: 75.35352449 | DX72: 72.67073515 | DY72: 69.80106359 | DZ72: 66.34729391 | EA72: 64.37977584
A73: 5 | B73: 2.85379238 | C73: 9.086103758 | D73: -0.8856465608 | E73: 4.086256798 | H73: 0.6240186043 | I73: -0.05773901487 | J73: -1.03135124 | K73: 5.197698001 | L73: -3.201423371 | M73: 2.018806721 | N73: -0.905922448 | O73: 3.379402144 | P73: -1.374000541 | Q73: -2.403907406 | R73: -0.1296318847 | S73: -4.269844251 | T73: 2.517273234 | U73: 0.2375065468 | V73: 0.91208686 | W73: 0.6393189637 | X73: 0.3661063572 | Y73: -1.130888763 | Z73: -1.156877627 | AA73: 2.917703 | AB73: -1.559387909 | AC73: -0.6513686185 | AD73: -0.8096877585 | AE73: -0.9742760624 | AF73: 1.274701529 | AG73: 2.456102004 | AH73: 5.948182137 | AI73: -0.05451591007 | AJ73: -2.084203966 | AK73: -0.3737487852 | AL73: 2.989023034 | AM73: 2.234313906 | AN73: -2.00775701 | AO73: -1.648747303 | AP73: -3.754317795 | AQ73: -2.607000904 | AR73: 2.848517194 | AS73: 0.6990180889 | AT73: 0.1309990302 | AU73: 1.586412357 | AV73: -0.9146231108 | AW73: -1.394246137 | AX73: -0.5399926073 | AY73: 3.657556572 | AZ73: -2.698632111 | BA73: -1.049489308 | BB73: -0.603705354 | BC73: -1.040283028 | BE73: 61.56972727 | BF73: =(BE73-T$58)*((1+(U$55+U73)/100)*(1-T$62)+T$62*((1+(U$57+AS73)/100)))/(1+(U$54+I73)/100)-(U$56+AG73)+U$58 -> 60.37172537 | BG73: 55.43353207 | BH73: 53.90006564 | BI73: 57.94921405 | BJ73: 56.89919827 | BK73: 54.38043582 | BL73: 52.50819221 | BM73: 54.49159713 | BN73: 57.32709204 | BO73: 61.14111658 | BP73: 66.05169125 | BS73: 0.6240186043 | BT73: -0.05773901487 | BU73: -1.03135124 | BV73: 5.197698001 | BW73: -3.201423371 | BX73: 2.018806721 | BY73: -0.905922448 | BZ73: 3.379402144 | CA73: -1.374000541 | CB73: -2.403907406 | CC73: -0.1296318847 | CD73: -4.269844251 | CE73: 2.517273234 | CF73: 0.2375065468 | CG73: 0.91208686 | CH73: 0.6393189637 | CI73: 0.3661063572 | CJ73: -1.130888763 | CK73: -1.156877627 | CL73: 2.917703 | CM73: -1.559387909 | CN73: -0.6513686185 | CO73: -0.8096877585 | CP73: -0.9742760624 | CQ73: 0 | CR73: 0 | CS73: 0 | CT73: -0.05451591007 | CU73: -2.084203966 | CV73: -0.3737487852 | CW73: 0 | CX73: 0 | CY73: -2.00775701 | CZ73: -1.648747303 | DA73: -3.754317795 | DB73: -2.607000904 | DC73: 2.848517194 | DD73: 0.6990180889 | DE73: 0.1309990302 | DF73: 1.586412357 | DG73: -0.9146231108 | DH73: -1.394246137 | DI73: -0.5399926073 | DJ73: 3.657556572 | DK73: -2.698632111 | DL73: -1.049489308 | DM73: -0.603705354 | DN73: -1.040283028 | DP73: 62.8444288 | DQ73: =(DP73-T$58)*((1+(U$55+CF73)/100)*(1-T$62)+T$62*((1+(U$57+DD73)/100)))/(1+(U$54+BT73)/100)-(U$56+CR73)+U$58 -> 64.09451225 | DR73: 65.15673392 | DS73: 63.26290035 | DT73: 67.55918013 | DU73: 66.16802025 | DV73: 66.60574597 | DW73: 66.91045739 | DX73: 68.71227592 | DY73: 71.69672945 | DZ73: 75.36652004 | EA73: 80.67773124
A74: 6 | B74: 0.9927779619 | C74: 3.503911678 | D74: -2.31362311 | E74: -1.629938776 | H74: -1.236995814 | I74: -1.53677464 | J74: 0.2461725378 | K74: 1.626286454 | L74: 3.846664523 | M74: 5.146333548 | N74: 2.456892391 | O74: 1.498796793 | P74: -3.545322631 | Q74: 1.812360193 | R74: -1.881239907 | S74: -2.218281563 | T74: -3.064918846 | U74: -2.028805028 | V74: 1.599298391 | W74: 1.480022845 | X74: 1.127593575 | Y74: 2.205940287 | Z74: 1.347393832 | AA74: -1.431862314 | AB74: -0.9127327101 | AC74: -1.802300197 | AD74: -0.4214195647 | AE74: -3.143788388 | AF74: -0.15327502 | AG74: -3.274639954 | AH74: -1.40360445 | AI74: 3.487226494 | AJ74: 3.664323975 | AK74: 7.360434645 | AL74: -1.326173173 | AM74: -0.4648918499 | AN74: -0.8348189147 | AO74: 2.598018805 | AP74: -6.210503563 | AQ74: -4.203655389 | AR74: -2.867678381 | AS74: -2.692477775 | AT74: 3.107242105 | AU74: 2.083545689 | AV74: 1.595382693 | AW74: 2.755278679 | AX74: 1.005344278 | AY74: -2.03422 | AZ74: -0.6589154428 | BA74: -2.736390889 | BB74: -0.4441247759 | BC74: -3.345508594 | BE74: 60.94821438 | BF74: =(BE74-T$58)*((1+(U$55+U74)/100)*(1-T$62)+T$62*((1+(U$57+AS74)/100)))/(1+(U$54+I74)/100)-(U$56+AG74)+U$58 -> 64.61764351 | BG74: 67.60104756 | BH74: 64.62176777 | BI74: 60.00035737 | BJ74: 51.56566919 | BK74: 52.72238796 | BL74: 51.95867277 | BM74: 54.58253273 | BN74: 50.29667391 | BO74: 57.58842294 | BP74: 61.58900585 | BS74: -1.236995814 | BT74: -1.53677464 | BU74: 0.2461725378 | BV74: 1.626286454 | BW74: 3.846664523 | BX74: 5.146333548 | BY74: 2.456892391 | BZ74: 1.498796793 | CA74: -3.545322631 | CB74: 1.812360193 | CC74: -1.881239907 | CD74: -2.218281563 | CE74: -3.064918846 | CF74: -2.028805028 | CG74: 1.599298391 | CH74: 1.480022845 | CI74: 1.127593575 | CJ74: 2.205940287 | CK74: 1.347393832 | CL74: -1.431862314 | CM74: -0.9127327101 | CN74: -1.802300197 | CO74: -0.4214195647 | CP74: -3.143788388 | CQ74: -0.15327502 | CR74: -3.274639954 | CS74: -1.40360445 | CT74: 0 | CU74: 0 | CV74: 0 | CW74: -1.326173173 | CX74: -0.4648918499 | CY74: -0.8348189147 | CZ74: 0 | DA74: -6.210503563 | DB74: -4.203655389 | DC74: -2.867678381 | DD74: -2.692477775 | DE74: 3.107242105 | DF74: 2.083545689 | DG74: 1.595382693 | DH74: 2.755278679 | DI74: 1.005344278 | DJ74: -2.03422 | DK74: -0.6589154428 | DL74: -2.736390889 | DM74: -0.4441247759 | DN74: -3.345508594 | DP74: 60.94821438 | DQ74: =(DP74-T$58)*((1+(U$55+CF74)/100)*(1-T$62)+T$62*((1+(U$57+DD74)/100)))/(1+(U$54+BT74)/100)-(U$56+CR74)+U$58 -> 64.61764351 | DR74: 67.60104756 | DS74: 68.10899427 | DT74: 67.06677724 | DU74: 65.79262905 | DV74: 66.71255093 | DW74: 65.44688049 | DX74: 68.38304784 | DY74: 66.09288701 | DZ74: 73.53364102 | EA74: 77.29974429
A75: 7 | B75: -1.887609362 | C75: 4.598478306 | D75: -3.880837126 | E75: -1.1894244 | H75: -4.117383139 | I75: -1.340039198 | J75: -3.289567922 | K75: 6.444031065 | L75: -3.644503121 | M75: 0.0978235672 | N75: -6.797542431 | O75: 4.279354033 | P75: 1.101007814 | Q75: 2.147757696 | R75: 7.088011051 | S75: 1.685718863 | T75: -1.970352219 | U75: -0.2915923871 | V75: 1.516033164 | W75: 1.362586447 | X75: 0.7887632497 | Y75: -0.1297162445 | Z75: -2.72698632 | AA75: -1.207114943 | AB75: 0.8509411892 | AC75: 1.408381093 | AD75: 0.5020050177 | AE75: 0.1870684384 | AF75: -1.720489036 | AG75: 2.667898937 | AH75: -0.1781265436 | AI75: 0.381889809 | AJ75: -1.963078941 | AK75: 2.319911725 | AL75: -6.066236576 | AM75: -2.259856142 | AN75: -4.88346581 | AO75: -1.904080796 | AP75: -0.7005600989 | AQ75: 0.9621077504 | AR75: -2.427164005 | AS75: 0.01431602904 | AT75: 1.020610053 | AU75: 1.384531991 | AV75: 0.6787878041 | AW75: -0.3868500915 | AX75: -3.59772431 | AY75: -1.353626639 | AZ75: 1.34510109 | BA75: 1.645201802 | BB75: 1.498508914 | BC75: 0.4228939144 | BE75: 64.44774226 | BF75: =(BE75-T$58)*((1+(U$55+U75)/100)*(1-T$62)+T$62*((1+(U$57+AS75)/100)))/(1+(U$54+I75)/100)-(U$56+AG75)+U$58 -> 63.41225492 | BG75: 66.52922085 | BH75: 63.53940846 | BI75: 68.67984504 | BJ75: 66.40409466 | BK75: 75.21622603 | BL75: 73.95212531 | BM75: 79.16263763 | BN75: 80.91574472 | BO75: 77.60012551 | BP75: 75.9484587 | BS75: -4.117383139 | BT75: -1.340039198 | BU75: -3.289567922 | BV75: 6.444031065 | BW75: -3.644503121 | BX75: 0.0978235672 | BY75: -6.797542431 | BZ75: 4.279354033 | CA75: 1.101007814 | CB75: 2.147757696 | CC75: 7.088011051 | CD75: 1.685718863 | CE75: -1.970352219 | CF75: -0.2915923871 | CG75: 1.516033164 | CH75: 1.362586447 | CI75: 0.7887632497 | CJ75: -0.1297162445 | CK75: -2.72698632 | CL75: -1.207114943 | CM75: 0.8509411892 | CN75: 1.408381093 | CO75: 0.5020050177 | CP75: 0.1870684384 | CQ75: -1.720489036 | CR75: 0 | CS75: -0.1781265436 | CT75: 0 | CU75: -1.963078941 | CV75: 0 | CW75: -6.066236576 | CX75: -2.259856142 | CY75: -4.88346581 | CZ75: -1.904080796 | DA75: -0.7005600989 | DB75: 0 | DC75: -2.427164005 | DD75: 0.01431602904 | DE75: 1.020610053 | DF75: 1.384531991 | DG75: 0.6787878041 | DH75: -0.3868500915 | DI75: -3.59772431 | DJ75: -1.353626639 | DK75: 1.34510109 | DL75: 1.645201802 | DM75: 1.498508914 | DN75: 0.4228939144 | DP75: 64.44774226 | DQ75: =(DP75-T$58)*((1+(U$55+CF75)/100)*(1-T$62)+T$62*((1+(U$57+DD75)/100)))/(1+(U$54+BT75)/100)-(U$56+CR75)+U$58 -> 66.08015385 | DR75: 69.31649705 | DS75: 66.57907683 | DT75: 71.8467122 | DU75: 71.86552235 | DV75: 80.85257865 | DW75: 79.27250331 | DX75: 84.46155932 | DY75: 86.16133733 | DZ75: 82.53962807 | EA75: 81.7649644
A76: 8 | B76: 2.395986173 | C76: 6.920597569 | D76: -1.204015723 | E76: 1.570628987 | H76: 0.166212397 | I76: -1.93208623 | J76: 4.776908437 | K76: 0.2078543492 | L76: -0.2421078206 | M76: -8.270438148 | N76: 2.386594202 | O76: -0.2591108872 | P76: 1.014258871 | Q76: 2.123754205 | R76: 1.800048776 | S76: 6.34599665 | T76: 0.3517670442 | U76: -2.503088626 | V76: 0.1549055759 | W76: 2.076798285 | X76: 0.8430054416 | Y76: -1.410370192 | Z76: 1.688793064 | AA76: 1.365853063 | AB76: -0.7541161855 | AC76: 0.1674174958 | AD76: -1.033395959 | AE76: 1.099914726 | AF76: 0.9563323672 | AG76: -3.707257584 | AH76: 2.649673262 | AI76: 3.515254525 | AJ76: -0.7973865902 | AK76: -3.312484248 | AL76: -0.4975171768 | AM76: 4.93627066 | AN76: -4.188871715 | AO76: 5.332999419 | AP76: 0.6908678375 | AQ76: 2.737138452 | AR76: 0.3328893825 | AS76: -3.190534803 | AT76: 0.4476642587 | AU76: 2.298703457 | AV76: 0.5377440995 | AW76: -2.365272162 | AX76: 1.031285008 | AY76: 1.21141573 | AZ76: -0.3813820656 | BA76: -0.002504669609 | BB76: -0.6638949032 | BC76: 2.526820301 | BE76: 60.86679172 | BF76: =(BE76-T$58)*((1+(U$55+U76)/100)*(1-T$62)+T$62*((1+(U$57+AS76)/100)))/(1+(U$54+I76)/100)-(U$56+AG76)+U$58 -> 64.91163246 | BG76: 59.8668729 | BH76: 57.84701197 | BI76: 59.62548732 | BJ76: 67.08623165 | BK76: 67.2980109 | BL76: 63.63668563 | BM76: 67.25226514 | BN76: 60.98791862 | BO76: 59.1726293 | BP76: 54.49792069 | BS76: 0.166212397 | BT76: -1.93208623 | BU76: 4.776908437 | BV76: 0.2078543492 | BW76: -0.2421078206 | BX76: -8.270438148 | BY76: 2.386594202 | BZ76: -0.2591108872 | CA76: 1.014258871 | CB76: 2.123754205 | CC76: 1.800048776 | CD76: 6.34599665 | CE76: 0.3517670442 | CF76: -2.503088626 | CG76: 0.1549055759 | CH76: 2.076798285 | CI76: 0.8430054416 | CJ76: -1.410370192 | CK76: 1.688793064 | CL76: 1.365853063 | CM76: -0.7541161855 | CN76: 0.1674174958 | CO76: -1.033395959 | CP76: 1.099914726 | CQ76: 0 | CR76: -3.707257584 | CS76: 0 | CT76: 0 | CU76: -0.7973865902 | CV76: -3.312484248 | CW76: -0.4975171768 | CX76: 0 | CY76: -4.188871715 | CZ76: 0 | DA76: 0 | DB76: 0 | DC76: 0.3328893825 | DD76: -3.190534803 | DE76: 0.4476642587 | DF76: 2.298703457 | DG76: 0.5377440995 | DH76: -2.365272162 | DI76: 1.031285008 | DJ76: 1.21141573 | DK76: -0.3813820656 | DL76: -0.002504669609 | DM76: -0.6638949032 | DN76: 2.526820301 | DP76: 61.82312408 | DQ76: =(DP76-T$58)*((1+(U$55+CF76)/100)*(1-T$62)+T$62*((1+(U$57+DD76)/100)))/(1+(U$54+BT76)/100)-(U$56+CR76)+U$58 -> 65.8468531 | DR76: 63.41332032 | DS76: 64.97548105 | DT76: 66.80436806 | DU76: 74.70500958 | DV76: 74.80646395 | DW76: 76.1572164 | DX76: 79.53266797 | DY76: 78.30972232 | DZ76: 76.67759198 | EA76: 73.96366765
A77: 9 | B77: -4.643575656 | C77: 5.937126343 | D77: -3.416725854 | E77: -0.5755458257 | H77: -6.873349432 | I77: 1.709941707 | J77: 6.343821027 | K77: -0.4730353164 | L77: -2.65542311 | M77: -1.571939344 | N77: 1.942775317 | O77: 0.1434055472 | P77: -0.3735300053 | Q77: -0.8569474714 | R77: -3.692803742 | S77: 1.240652569 | T77: -0.6317041819 | U77: -0.9458277207 | V77: -0.9000960599 | W77: -1.371852369 | X77: 3.461049986 | Y77: -1.678836332 | Z77: 0.4094865578 | AA77: 0.025044188 | AB77: -0.9538812702 | AC77: -1.035424686 | AD77: -0.5911517071 | AE77: -2.87928465 | AF77: -1.256377764 | AG77: 0.2025967653 | AH77: -0.7864521174 | AI77: -0.501510312 | AJ77: 4.244503436 | AK77: -6.235865822 | AL77: 5.976355988 | AM77: 2.575497241 | AN77: -0.04099873807 | AO77: -1.091579189 | AP77: -7.071042701 | AQ77: -3.59985046 | AR77: -1.81328543 | AS77: -1.090010156 | AT77: -0.7269323016 | AU77: -2.054088397 | AV77: 2.59981973 | AW77: -2.079625148 | AX77: 0.1559433167 | AY77: 0.6247214254 | AZ77: -1.128513766 | BA77: -0.6701683838 | BB77: -1.249957537 | BC77: -2.692919822 | BE77: 66.07169985 | BF77: =(BE77-T$58)*((1+(U$55+U77)/100)*(1-T$62)+T$62*((1+(U$57+AS77)/100)))/(1+(U$54+I77)/100)-(U$56+AG77)+U$58 -> 65.08786016 | BG77: 61.95831885 | BH77: 62.06925728 | BI77: 61.66533903 | BJ77: 68.01623395 | BK77: 61.35638759 | BL77: 59.25067302 | BM77: 59.27663958 | BN77: 60.75658139 | BO77: 69.76390571 | BP77: 71.08169883 | BS77: -6.873349432 | BT77: 1.709941707 | BU77: 6.343821027 | BV77: -0.4730353164 | BW77: -2.65542311 | BX77: -1.571939344 | BY77: 1.942775317 | BZ77: 0.1434055472 | CA77: -0.3735300053 | CB77: -0.8569474714 | CC77: -3.692803742 | CD77: 1.240652569 | CE77: -0.6317041819 | CF77: -0.9458277207 | CG77: -0.9000960599 | CH77: -1.371852369 | CI77: 3.461049986 | CJ77: -1.678836332 | CK77: 0.4094865578 | CL77: 0.025044188 | CM77: -0.9538812702 | CN77: -1.035424686 | CO77: -0.5911517071 | CP77: -2.87928465 | CQ77: -1.256377764 | CR77: 0 | CS77: -0.7864521174 | CT77: -0.501510312 | CU77: 0 | CV77: -6.235865822 | CW77: 0 | CX77: 0 | CY77: -0.04099873807 | CZ77: -1.091579189 | DA77: -7.071042701 | DB77: -3.59985046 | DC77: -1.81328543 | DD77: -1.090010156 | DE77: -0.7269323016 | DF77: -2.054088397 | DG77: 2.59981973 | DH77: -2.079625148 | DI77: 0.1559433167 | DJ77: 0.6247214254 | DK77: -1.128513766 | DL77: -0.6701683838 | DM77: -1.249957537 | DN77: -2.692919822 | DP77: 66.07169985 | DQ77: =(DP77-T$58)*((1+(U$55+CF77)/100)*(1-T$62)+T$62*((1+(U$57+DD77)/100)))/(1+(U$54+BT77)/100)-(U$56+CR77)+U$58 -> 65.29045693 | DR77: 62.14772582 | DS77: 62.25617252 | DT77: 66.10681742 | DU77: 72.42324286 | DV77: 71.65050073 | DW77: 72.09612613 | DX77: 71.98109695 | DY77: 73.40770078 | DZ77: 82.69572171 | EA77: 83.46369023
A78: 10 | B78: 1.693463835 | C78: 6.64021166 | D78: -6.339117756 | E78: 0.9773804763 | H78: -0.536309941 | I78: 2.350525519 | J78: 2.246795456 | K78: 2.188722212 | L78: -8.105160912 | M78: 2.548864991 | N78: 1.844835544 | O78: -1.024897096 | P78: -4.578746138 | Q78: 1.08778261 | R78: -2.260690911 | S78: -5.384854475 | T78: 0.07138113566 | U78: 2.783335754 | V78: 0.3808274479 | W78: -0.8965010829 | X78: -0.7500171216 | Y78: 2.526150725 | Z78: 0.6193005639 | AA78: 0.6115583386 | AB78: 1.52672721 | AC78: 1.274251572 | AD78: 0.2385174614 | AE78: -2.415216341 | AF78: -4.178769666 | AG78: 2.905025987 | AH78: -1.758339685 | AI78: 2.515255403 | AJ78: 0.1197035248 | AK78: 2.436305911 | AL78: 2.089301248 | AM78: 1.736986237 | AN78: -0.4559999332 | AO78: -0.2302674026 | AP78: 1.077192652 | AQ78: -6.989986931 | AR78: -0.2603591284 | AS78: 2.961584675 | AT78: 0.7352896612 | AU78: -1.05205736 | AV78: -1.599530955 | AW78: 3.314671496 | AX78: 1.021094459 | AY78: 0.5053732641 | AZ78: 1.119735445 | BA78: 1.710454293 | BB78: 0.497426903 | BC78: -4.06205143 | BE78: 66.1207921 | BF78: =(BE78-T$58)*((1+(U$55+U78)/100)*(1-T$62)+T$62*((1+(U$57+AS78)/100)))/(1+(U$54+I78)/100)-(U$56+AG78)+U$58 -> 64.42894686 | BG78: 65.40211673 | BH78: 61.34835742 | BI78: 65.99175705 | BJ78: 64.12082369 | BK78: 61.83097801 | BL78: 61.34206676 | BM78: 65.68666613 | BN78: 66.53163357 | BO78: 67.46528917 | BP78: 76.13528238 | BS78: -0.536309941 | BT78: 2.350525519 | BU78: 2.246795456 | BV78: 2.188722212 | BW78: -8.105160912 | BX78: 2.548864991 | BY78: 1.844835544 | BZ78: -1.024897096 | CA78: -4.578746138 | CB78: 1.08778261 | CC78: -2.260690911 | CD78: -5.384854475 | CE78: 0.07138113566 | CF78: 2.783335754 | CG78: 0.3808274479 | CH78: -0.8965010829 | CI78: -0.7500171216 | CJ78: 2.526150725 | CK78: 0.6193005639 | CL78: 0.6115583386 | CM78: 1.52672721 | CN78: 1.274251572 | CO78: 0.2385174614 | CP78: -2.415216341 | CQ78: -4.178769666 | CR78: 0 | CS78: -1.758339685 | CT78: 0 | CU78: 0 | CV78: 0 | CW78: 0 | CX78: 0 | CY78: -0.4559999332 | CZ78: -0.2302674026 | DA78: 0 | DB78: -6.989986931 | DC78: -0.2603591284 | DD78: 2.961584675 | DE78: 0.7352896612 | DF78: -1.05205736 | DG78: -1.599530955 | DH78: 3.314671496 | DI78: 1.021094459 | DJ78: 0.5053732641 | DK78: 1.119735445 | DL78: 1.710454293 | DM78: 0.497426903 | DN78: -4.06205143 | DP78: 66.1207921 | DQ78: =(DP78-T$58)*((1+(U$55+CF78)/100)*(1-T$62)+T$62*((1+(U$57+DD78)/100)))/(1+(U$54+BT78)/100)-(U$56+CR78)+U$58 -> 67.33397285 | DR78: 68.26171377 | DS78: 66.63604899 | DT78: 71.76872362 | DU78: 72.33256579 | DV78: 72.01864486 | DW78: 73.37435762 | DX78: 78.375678 | DY78: 79.21739752 | DZ78: 81.49926892 | EA78: 90.39408159
A79: 11 | B79: 1.756796555 | C79: 6.889149319 | D79: -1.085370511 | E79: 1.490090739 | H79: -0.472977221 | I79: -5.313792451 | J79: -1.962599761 | K79: 11.31896236 | L79: 1.272526338 | M79: 2.04374577 | N79: 8.510378034 | O79: 1.884428175 | P79: 0.8616845532 | Q79: 3.993929337 | R79: -2.733516353 | S79: 6.969013558 | T79: 0.3203187946 | U79: -1.903349923 | V79: -0.6185508982 | W79: 1.839919533 | X79: 0.4309527243 | Y79: 0.4430705954 | Z79: 0.3158028955 | AA79: 1.50511293 | AB79: -1.241037151 | AC79: 2.434436455 | AD79: -3.188812121 | AE79: 1.362993155 | AF79: 1.074977579 | AG79: -1.060189043 | AH79: -0.2305910104 | AI79: 0.671586436 | AJ79: -2.064614402 | AK79: -1.480640844 | AL79: 1.171653448 | AM79: 2.625471602 | AN79: -0.4240967297 | AO79: 2.542640982 | AP79: -2.926168776 | AQ79: 5.301698043 | AR79: 0.2523511345 | AS79: -2.709648252 | AT79: -0.7370451514 | AU79: 2.345732925 | AV79: 1.037976284 | AW79: 0.08758457259 | AX79: 1.667208044 | AY79: 2.589407354 | AZ79: -1.63249149 | BA79: 3.280225431 | BB79: -3.884630331 | BC79: 1.136360368 | BE79: 61.05235903 | BF79: =(BE79-T$58)*((1+(U$55+U79)/100)*(1-T$62)+T$62*((1+(U$57+AS79)/100)))/(1+(U$54+I79)/100)-(U$56+AG79)+U$58 -> 64.73378566 | BG79: 65.93306825 | BH79: 60.51600515 | BI79: 62.78672916 | BJ79: 63.53940759 | BK79: 58.67429129 | BL79: 56.54362937 | BM79: 56.12317738 | BN79: 53.43145881 | BO79: 56.28038909 | BP79: 48.53857702 | BS79: -0.472977221 | BT79: -5.313792451 | BU79: -1.962599761 | BV79: 11.31896236 | BW79: 1.272526338 | BX79: 2.04374577 | BY79: 8.510378034 | BZ79: 1.884428175 | CA79: 0.8616845532 | CB79: 3.993929337 | CC79: -2.733516353 | CD79: 6.969013558 | CE79: 0.3203187946 | CF79: -1.903349923 | CG79: -0.6185508982 | CH79: 1.839919533 | CI79: 0.4309527243 | CJ79: 0.4430705954 | CK79: 0.3158028955 | CL79: 1.50511293 | CM79: -1.241037151 | CN79: 2.434436455 | CO79: -3.188812121 | CP79: 1.362993155 | CQ79: 0 | CR79: -1.060189043 | CS79: -0.2305910104 | CT79: 0 | CU79: -2.064614402 | CV79: -1.480640844 | CW79: 0 | CX79: 0 | CY79: -0.4240967297 | CZ79: 0 | DA79: -2.926168776 | DB79: 0 | DC79: 0.2523511345 | DD79: -2.709648252 | DE79: -0.7370451514 | DF79: 2.345732925 | DG79: 1.037976284 | DH79: 0.08758457259 | DI79: 1.667208044 | DJ79: 2.589407354 | DK79: -1.63249149 | DL79: 3.280225431 | DM79: -3.884630331 | DN79: 1.136360368 | DP79: 62.12733661 | DQ79: =(DP79-T$58)*((1+(U$55+CF79)/100)*(1-T$62)+T$62*((1+(U$57+DD79)/100)))/(1+(U$54+BT79)/100)-(U$56+CR79)+U$58 -> 65.8268744 | DR79: 67.03970757 | DS79: 62.20547876 | DT79: 64.46540939 | DU79: 65.18223288 | DV79: 61.37348065 | DW79: 61.86284002 | DX79: 61.30105198 | DY79: 61.07808364 | DZ79: 63.82436221 | EA79: 60.96287682
A80: 12 | B80: 0.09543465964 | C80: 5.085263126 | D80: -6.978404655 | E80: -0.3523393615 | H80: -2.134339116 | I80: -3.060120041 | J80: -1.544411637 | K80: -4.455632087 | L80: -2.421200061 | M80: -2.639587972 | N80: -2.160147083 | O80: 7.830804983 | P80: 0.1229355542 | Q80: 4.193891691 | R80: -1.038161502 | S80: -5.452845886 | T80: -1.483567398 | U80: 1.709993106 | V80: -0.5808761732 | W80: 1.206512172 | X80: 1.797037462 | Y80: 1.608882104 | Z80: 2.182211088 | AA80: 0.9359232181 | AB80: -0.7927004742 | AC80: 1.448504349 | AD80: 0.03035693424 | AE80: -2.472703541 | AF80: -4.818056566 | AG80: 4.953495789 | AH80: -3.1720467 | AI80: 1.968095722 | AJ80: -1.467627061 | AK80: -2.160295132 | AL80: -0.235397519 | AM80: 1.683605676 | AN80: -4.318828313 | AO80: -2.187073287 | AP80: -2.428644399 | AQ80: -1.345466386 | AR80: -1.590078966 | AS80: 1.89120968 | AT80: -0.9635739623 | AU80: 0.6606333368 | AV80: 1.63261021 | AW80: 1.326031935 | AX80: 1.778898476 | AY80: 2.19601536 | AZ80: -0.9992349831 | BA80: 1.149529615 | BB80: -0.08528964142 | BC80: -3.432798766 | BE80: 66.8456507 | BF80: =(BE80-T$58)*((1+(U$55+U80)/100)*(1-T$62)+T$62*((1+(U$57+AS80)/100)))/(1+(U$54+I80)/100)-(U$56+AG80)+U$58 -> 65.86054397 | BG80: 69.66833366 | BH80: 71.71998243 | BI80: 76.50147928 | BJ80: 81.93646697 | BK80: 85.7248504 | BL80: 79.65407263 | BM80: 83.47206378 | BN80: 83.72488714 | BO80: 87.18594689 | BP80: 90.87855169 | BS80: -2.134339116 | BT80: -3.060120041 | BU80: -1.544411637 | BV80: -4.455632087 | BW80: -2.421200061 | BX80: -2.639587972 | BY80: -2.160147083 | BZ80: 7.830804983 | CA80: 0.1229355542 | CB80: 4.193891691 | CC80: -1.038161502 | CD80: -5.452845886 | CE80: -1.483567398 | CF80: 1.709993106 | CG80: -0.5808761732 | CH80: 1.206512172 | CI80: 1.797037462 | CJ80: 1.608882104 | CK80: 2.182211088 | CL80: 0.9359232181 | CM80: -0.7927004742 | CN80: 1.448504349 | CO80: 0.03035693424 | CP80: -2.472703541 | CQ80: -4.818056566 | CR80: 0 | CS80: -3.1720467 | CT80: 0 | CU80: -1.467627061 | CV80: -2.160295132 | CW80: -0.235397519 | CX80: 0 | CY80: -4.318828313 | CZ80: -2.187073287 | DA80: -2.428644399 | DB80: -1.345466386 | DC80: -1.590078966 | DD80: 1.89120968 | DE80: -0.9635739623 | DF80: 0.6606333368 | DG80: 1.63261021 | DH80: 1.326031935 | DI80: 1.778898476 | DJ80: 2.19601536 | DK80: -0.9992349831 | DL80: 1.149529615 | DM80: -0.08528964142 | DN80: -3.432798766 | DP80: 66.8456507 | DQ80: =(DP80-T$58)*((1+(U$55+CF80)/100)*(1-T$62)+T$62*((1+(U$57+DD80)/100)))/(1+(U$54+BT80)/100)-(U$56+CR80)+U$58 -> 70.81403976 | DR80: 74.65632519 | DS80: 78.94183369 | DT80: 84.004359 | DU80: 89.70842913 | DV80: 93.77563188 | DW80: 88.91094126 | DX80: 92.59633307 | DY80: 92.56377982 | DZ80: 96.0690924 | EA80: 99.94039151
A81: 13 | B81: -4.97401195 | C81: 3.027801073 | D81: -3.871648338 | E81: -3.820033049 | H81: -7.203785726 | I81: -0.1590897011 | J81: -0.768837028 | K81: 0.2625544894 | L81: -0.5998510657 | M81: -0.4423815827 | N81: 4.977159291 | O81: 2.543201352 | P81: 3.967689213 | Q81: -3.733948013 | R81: 4.592874342 | S81: 1.500800627 | T81: -3.541029452 | U81: -1.8395161 | V81: -1.249565205 | W81: -1.214850548 | X81: -1.904412752 | Y81: -0.1367956966 | Z81: -0.5910778205 | AA81: -0.4944901376 | AB81: -2.441258685 | AC81: 0.5075888411 | AD81: -0.9067545955 | AE81: -1.296926941 | AF81: -1.711300248 | AG81: -11.60259582 | AH81: 0.564823383 | AI81: -1.710480609 | AJ81: -2.596215543 | AK81: 2.440675032 | AL81: -2.712910426 | AM81: -7.710261517 | AN81: -4.357925408 | AO81: 2.044098173 | AP81: -4.346911032 | AQ81: 3.645922337 | AR81: -5.057772654 | AS81: -1.442145511 | AT81: -1.04863239 | AU81: -1.267475059 | AV81: -2.73439143 | AW81: -0.09864635263 | AX81: -0.3908075327 | AY81: -0.2741896651 | AZ81: -1.806832814 | BA81: 0.05638647119 | BB81: -0.2107159429 | BC81: -0.7698646558 | BE81: 64.94038572 | BF81: =(BE81-T$58)*((1+(U$55+U81)/100)*(1-T$62)+T$62*((1+(U$57+AS81)/100)))/(1+(U$54+I81)/100)-(U$56+AG81)+U$58 -> 76.55971987 | BG81: 75.92121074 | BH81: 76.92236641 | BI81: 78.67198593 | BJ81: 76.71687697 | BK81: 76.00084787 | BL81: 81.94523493 | BM81: 82.06744388 | BN81: 83.4902809 | BO81: 84.24617538 | BP81: 78.9030621 | BS81: -7.203785726 | BT81: -0.1590897011 | BU81: -0.768837028 | BV81: 0.2625544894 | BW81: -0.5998510657 | BX81: -0.4423815827 | BY81: 4.977159291 | BZ81: 2.543201352 | CA81: 3.967689213 | CB81: -3.733948013 | CC81: 4.592874342 | CD81: 1.500800627 | CE81: -3.541029452 | CF81: -1.8395161 | CG81: -1.249565205 | CH81: -1.214850548 | CI81: -1.904412752 | CJ81: -0.1367956966 | CK81: -0.5910778205 | CL81: -0.4944901376 | CM81: -2.441258685 | CN81: 0.5075888411 | CO81: -0.9067545955 | CP81: -1.296926941 | CQ81: -1.711300248 | CR81: -11.60259582 | CS81: 0 | CT81: -1.710480609 | CU81: -2.596215543 | CV81: 0 | CW81: -2.712910426 | CX81: -7.710261517 | CY81: -4.357925408 | CZ81: 0 | DA81: -4.346911032 | DB81: 0 | DC81: -5.057772654 | DD81: -1.442145511 | DE81: -1.04863239 | DF81: -1.267475059 | DG81: -2.73439143 | DH81: -0.09864635263 | DI81: -0.3908075327 | DJ81: -0.2741896651 | DK81: -1.806832814 | DL81: 0.05638647119 | DM81: -0.2107159429 | DN81: -0.7698646558 | DP81: 64.94038572 | DQ81: =(DP81-T$58)*((1+(U$55+CF81)/100)*(1-T$62)+T$62*((1+(U$57+DD81)/100)))/(1+(U$54+BT81)/100)-(U$56+CR81)+U$58 -> 76.55971987 | DR81: 76.48603412 | DS81: 77.47873067 | DT81: 79.21779988 | DU81: 79.70268113 | DV81: 78.82428403 | DW81: 84.67865539 | DX81: 84.63600375 | DY81: 88.1932898 | DZ81: 88.70774156 | EA81: 86.88555358
A82: 14 | B82: 4.580746926 | C82: 5.026057744 | D82: -7.086525617 | E82: 0.05054463302 | H82: 2.35097315 | I82: 11.38793536 | J82: 1.182416258 | K82: -1.472225063 | L82: -0.04563711945 | M82: -1.97584415 | N82: -5.415970065 | O82: -1.425608192 | P82: -3.941552466 | Q82: -2.07783961 | R82: 1.270721104 | S82: 4.340860273 | T82: -1.542772781 | U82: 3.962123455 | V82: 0.354106879 | W82: 2.682587403 | X82: 0.9585240275 | Y82: -3.587641719 | Z82: -1.461738918 | AA82: 1.407990014 | AB82: -0.9778136121 | AC82: -0.945741164 | AD82: 0.05638804618 | AE82: -0.6480353337 | AF82: -4.926177527 | AG82: 6.733147663 | AH82: -0.4393126255 | AI82: 0.5898068825 | AJ82: 2.679147867 | AK82: -3.84675982 | AL82: -2.560414869 | AM82: 6.681158264 | AN82: -1.743800873 | AO82: 1.640248312 | AP82: 0.7917688132 | AQ82: 4.92885461 | AR82: -1.187194972 | AS82: 5.338101063 | AT82: 0.8120708625 | AU82: 2.57949808 | AV82: 0.8164772194 | AW82: -3.579093423 | AX82: -2.94026793 | AY82: 1.585360163 | AZ82: -1.287542152 | BA82: -0.8888930111 | BB82: 0.458984002 | BC82: -0.1971479682 | BE82: 64.75812911 | BF82: =(BE82-T$58)*((1+(U$55+U82)/100)*(1-T$62)+T$62*((1+(U$57+AS82)/100)))/(1+(U$54+I82)/100)-(U$56+AG82)+U$58 -> 55.42701588 | BG82: 55.7770104 | BH82: 57.7271013 | BI82: 56.03423262 | BJ82: 59.35705482 | BK82: 64.13824183 | BL82: 59.56908114 | BM82: 63.28878848 | BN82: 62.70630037 | BO82: 61.68582573 | BP82: 54.4918601 | BS82: 2.35097315 | BT82: 11.38793536 | BU82: 1.182416258 | BV82: -1.472225063 | BW82: -0.04563711945 | BX82: -1.97584415 | BY82: -5.415970065 | BZ82: -1.425608192 | CA82: -3.941552466 | CB82: -2.07783961 | CC82: 1.270721104 | CD82: 4.340860273 | CE82: -1.542772781 | CF82: 3.962123455 | CG82: 0.354106879 | CH82: 2.682587403 | CI82: 0.9585240275 | CJ82: -3.587641719 | CK82: -1.461738918 | CL82: 1.407990014 | CM82: -0.9778136121 | CN82: -0.945741164 | CO82: 0.05638804618 | CP82: -0.6480353337 | CQ82: -4.926177527 | CR82: 0 | CS82: -0.4393126255 | CT82: 0 | CU82: 0 | CV82: -3.84675982 | CW82: -2.560414869 | CX82: 0 | CY82: -1.743800873 | CZ82: 0 | DA82: 0 | DB82: 0 | DC82: -1.187194972 | DD82: 5.338101063 | DE82: 0.8120708625 | DF82: 2.57949808 | DG82: 0.8164772194 | DH82: -3.579093423 | DI82: -2.94026793 | DJ82: 1.585360163 | DK82: -1.287542152 | DL82: -0.8888930111 | DM82: 0.458984002 | DN82: -0.1971479682 | DP82: 64.75812911 | DQ82: =(DP82-T$58)*((1+(U$55+CF82)/100)*(1-T$62)+T$62*((1+(U$57+DD82)/100)))/(1+(U$54+BT82)/100)-(U$56+CR82)+U$58 -> 62.16016355 | DR82: 62.47482295 | DS82: 65.27987026 | DT82: 66.32037339 | DU82: 69.43475919 | DV82: 74.48663375 | DW82: 76.84659896 | DX82: 80.96951849 | DY82: 82.14925472 | DZ82: 81.65098083 | EA82: 78.4287855
A83: 15 | B83: -1.28099846 | C83: 5.950213224 | D83: -2.192743518 | E83: 0.06150091366 | H83: -3.510772236 | I83: -4.695464731 | J83: -4.256104521 | K83: 0.3384690008 | L83: -3.48572844 | M83: 2.539523113 | N83: -2.658627871 | O83: -2.269251388 | P83: 5.975654212 | Q83: 1.29653424 | R83: 0.2299849176 | S83: -0.2249209427 | T83: -0.6186173001 | U83: -1.409601203 | V83: 0.1262830142 | W83: -1.882536579 | X83: -1.281912841 | Y83: 0.6086192705 | Z83: 1.846431559 | AA83: -0.5717856576 | AB83: 3.794407282 | AC83: 0.50394144 | AD83: -0.7064283505 | AE83: -0.1661004602 | AF83: -0.03239542794 | AG83: -1.976706343 | AH83: 2.217106058 | AI83: -3.461535259 | AJ83: -3.690850789 | AK83: -1.408255372 | AL83: 0.6214540674 | AM83: 2.151739265 | AN83: 5.345951233 | AO83: 2.48198668 | AP83: 1.774518935 | AQ83: -0.6171634662 | AR83: -1.176238691 | AS83: -2.261419842 | AT83: -0.5992347943 | AU83: -1.84974652 | AV83: -1.926645453 | AW83: 0.9965631859 | AX83: 1.461382478 | AY83: -1.149845223 | AZ83: 5.418810592 | BA83: 0.770202647 | BB83: -0.3758463841 | BC83: 0.04193842243 | BE83: 63.13711047 | BF83: =(BE83-T$58)*((1+(U$55+U83)/100)*(1-T$62)+T$62*((1+(U$57+AS83)/100)))/(1+(U$54+I83)/100)-(U$56+AG83)+U$58 -> 67.6694791 | BG83: 68.23333941 | BH83: 70.65902745 | BI83: 76.07397616 | BJ83: 76.54500269 | BK83: 79.42494361 | BL83: 78.54624173 | BM83: 72.62014079 | BN83: 70.02258832 | BO83: 68.06306952 | BP83: 69.12497158 | BS83: -3.510772236 | BT83: -4.695464731 | BU83: -4.256104521 | BV83: 0.3384690008 | BW83: -3.48572844 | BX83: 2.539523113 | BY83: -2.658627871 | BZ83: -2.269251388 | CA83: 5.975654212 | CB83: 1.29653424 | CC83: 0.2299849176 | CD83: -0.2249209427 | CE83: -0.6186173001 | CF83: -1.409601203 | CG83: 0.1262830142 | CH83: -1.882536579 | CI83: -1.281912841 | CJ83: 0.6086192705 | CK83: 1.846431559 | CL83: -0.5717856576 | CM83: 3.794407282 | CN83: 0.50394144 | CO83: -0.7064283505 | CP83: -0.1661004602 | CQ83: -0.03239542794 | CR83: -1.976706343 | CS83: 0 | CT83: -3.461535259 | CU83: -3.690850789 | CV83: -1.408255372 | CW83: 0 | CX83: 0 | CY83: 0 | CZ83: 0 | DA83: 0 | DB83: -0.6171634662 | DC83: -1.176238691 | DD83: -2.261419842 | DE83: -0.5992347943 | DF83: -1.84974652 | DG83: -1.926645453 | DH83: 0.9965631859 | DI83: 1.461382478 | DJ83: -1.149845223 | DK83: 5.418810592 | DL83: 0.770202647 | DM83: -0.3758463841 | DN83: 0.04193842243 | DP83: 63.13711047 | DQ83: =(DP83-T$58)*((1+(U$55+CF83)/100)*(1-T$62)+T$62*((1+(U$57+DD83)/100)))/(1+(U$54+BT83)/100)-(U$56+CR83)+U$58 -> 67.6694791 | DR83: 70.45044547 | DS83: 72.82819858 | DT83: 78.27896171 | DU83: 78.70509385 | DV83: 82.28806092 | DW83: 83.58543816 | DX83: 82.92688392 | DY83: 82.70318188 | DZ83: 82.36921315 | EA83: 83.39294635
A84: 16 | B84: 7.661682502 | C84: 6.492413924 | D84: -2.072883693 | E84: 1.954416236 | H84: 5.431908726 | I84: 3.572905383 | J84: 1.116398298 | K84: 0.465321671 | L84: 6.949426773 | M84: 2.429151181 | N84: 2.08833141 | O84: -2.133955501 | P84: -1.988662962 | Q84: -3.410114564 | R84: -4.921225579 | S84: 0.9633190083 | T84: -0.07641660054 | U84: 0.5257607992 | V84: 0.6545181432 | W84: 0.2365390017 | X84: 3.15122198 | Y84: -2.087890803 | Z84: -0.5137773356 | AA84: -1.554821981 | AB84: -1.699476104 | AC84: 4.673722983 | AD84: -0.8132331084 | AE84: -0.003043312102 | AF84: 0.08746439674 | AG84: -2.360633389 | AH84: 0.361588644 | AI84: -1.422244477 | AJ84: 4.398032205 | AK84: -1.928896552 | AL84: -4.909382112 | AM84: -3.78863604 | AN84: 0.499110242 | AO84: 3.964223695 | AP84: -4.713108242 | AQ84: 2.67696834 | AR84: 0.7166766315 | AS84: 1.459298349 | AT84: 0.7413776294 | AU84: 0.6409396556 | AV84: 4.383768605 | AW84: -2.52649569 | AX84: -0.6731346675 | AY84: -2.076220188 | AZ84: -2.723036921 | BA84: 4.862578786 | BB84: -1.822992082 | BC84: 0.02267510367 | BE84: 59.14101217 | BF84: =(BE84-T$58)*((1+(U$55+U84)/100)*(1-T$62)+T$62*((1+(U$57+AS84)/100)))/(1+(U$54+I84)/100)-(U$56+AG84)+U$58 -> 61.17487376 | BG84: 60.76769791 | BH84: 62.57308513 | BI84: 56.95654072 | BJ84: 56.73763883 | BK84: 60.66361527 | BL84: 64.93404607 | BM84: 64.58612806 | BN84: 66.11231892 | BO84: 73.41853327 | BP84: 70.39880301 | BS84: 5.431908726 | BT84: 3.572905383 | BU84: 1.116398298 | BV84: 0.465321671 | BW84: 6.949426773 | BX84: 2.429151181 | BY84: 2.08833141 | BZ84: -2.133955501 | CA84: -1.988662962 | CB84: -3.410114564 | CC84: -4.921225579 | CD84: 0.9633190083 | CE84: -0.07641660054 | CF84: 0.5257607992 | CG84: 0.6545181432 | CH84: 0.2365390017 | CI84: 3.15122198 | CJ84: -2.087890803 | CK84: -0.5137773356 | CL84: -1.554821981 | CM84: -1.699476104 | CN84: 4.673722983 | CO84: -0.8132331084 | CP84: -0.003043312102 | CQ84: 0 | CR84: -2.360633389 | CS84: 0 | CT84: -1.422244477 | CU84: 0 | CV84: -1.928896552 | CW84: -4.909382112 | CX84: -3.78863604 | CY84: 0 | CZ84: 0 | DA84: -4.713108242 | DB84: 0 | DC84: 0.7166766315 | DD84: 1.459298349 | DE84: 0.7413776294 | DF84: 0.6409396556 | DG84: 4.383768605 | DH84: -2.52649569 | DI84: -0.6731346675 | DJ84: -2.076220188 | DK84: -2.723036921 | DL84: 4.862578786 | DM84: -1.822992082 | DN84: 0.02267510367 | DP84: 59.22847657 | DQ84: =(DP84-T$58)*((1+(U$55+CF84)/100)*(1-T$62)+T$62*((1+(U$57+DD84)/100)))/(1+(U$54+BT84)/100)-(U$56+CR84)+U$58 -> 61.25932685 | DR84: 61.21340191 | DS84: 63.01865126 | DT84: 61.78698824 | DU84: 61.33055399 | DV84: 65.11963632 | DW84: 69.38039201 | DX84: 69.49878998 | DY84: 75.36730436 | DZ84: 82.9558712 | EA84: 82.48519696
A85: 17 | B85: 8.365136074 | C85: 9.582070335 | D85: 1.703886608 | E85: 4.789011314 | H85: 6.135362298 | I85: -1.719603509 | J85: -8.98654249 | K85: -5.04432335 | L85: 3.051332101 | M85: -4.046592788 | N85: -6.9747126 | O85: 1.459929334 | P85: -0.8423987804 | Q85: -2.953898333 | R85: 3.463274127 | S85: 5.127009532 | T85: 3.01323981 | U85: -0.160733718 | V85: -1.867928456 | W85: -0.8478531747 | X85: -0.1778462793 | Y85: -1.739646367 | Z85: -1.919148611 | AA85: 0.08805752036 | AB85: -0.479876436 | AC85: -0.6914318803 | AD85: 1.988580708 | AE85: 2.321341248 | AF85: 3.864234698 | AG85: -5.705443482 | AH85: -2.564850418 | AI85: -3.93736871 | AJ85: 1.247930814 | AK85: -3.032331033 | AL85: 0.275490962 | AM85: 1.058428288 | AN85: -5.690769355 | AO85: -3.271446838 | AP85: 6.133637402 | AQ85: 1.784450946 | AR85: 3.55127171 | AS85: -0.3255026578 | AT85: -3.058298517 | AU85: -1.432275145 | AV85: -0.09413216488 | AW85: -2.328226547 | AX85: -2.861900675 | AY85: 0.1466930727 | AZ85: -0.1758470252 | BA85: -1.185219481 | BB85: 1.430314493 | BC85: 2.496946715 | BE85: 56.51052328 | BF85: =(BE85-T$58)*((1+(U$55+U85)/100)*(1-T$62)+T$62*((1+(U$57+AS85)/100)))/(1+(U$54+I85)/100)-(U$56+AG85)+U$58 -> 63.96071896 | BG85: 70.88452889 | BH85: 77.88474075 | BI85: 74.8205799 | BJ85: 79.54779716 | BK85: 83.20485608 | BL85: 81.34168353 | BM85: 87.71455167 | BN85: 92.91497668 | BO85: 85.44638812 | BP85: 81.84889114 | BS85: 6.135362298 | BT85: -1.719603509 | BU85: -8.98654249 | BV85: -5.04432335 | BW85: 3.051332101 | BX85: -4.046592788 | BY85: -6.9747126 | BZ85: 1.459929334 | CA85: -0.8423987804 | CB85: -2.953898333 | CC85: 3.463274127 | CD85: 5.127009532 | CE85: 3.01323981 | CF85: -0.160733718 | CG85: -1.867928456 | CH85: -0.8478531747 | CI85: -0.1778462793 | CJ85: -1.739646367 | CK85: -1.919148611 | CL85: 0.08805752036 | CM85: -0.479876436 | CN85: -0.6914318803 | CO85: 1.988580708 | CP85: 2.321341248 | CQ85: 0 | CR85: -5.705443482 | CS85: -2.564850418 | CT85: -3.93736871 | CU85: 0 | CV85: -3.032331033 | CW85: 0 | CX85: 0 | CY85: -5.690769355 | CZ85: -3.271446838 | DA85: 0 | DB85: 0 | DC85: 3.55127171 | DD85: -0.3255026578 | DE85: -3.058298517 | DF85: -1.432275145 | DG85: -0.09413216488 | DH85: -2.328226547 | DI85: -2.861900675 | DJ85: 0.1466930727 | DK85: -0.1758470252 | DL85: -1.185219481 | DM85: 1.430314493 | DN85: 2.496946715 | DP85: 60.37475797 | DQ85: =(DP85-T$58)*((1+(U$55+CF85)/100)*(1-T$62)+T$62*((1+(U$57+DD85)/100)))/(1+(U$54+BT85)/100)-(U$56+CR85)+U$58 -> 67.83305909 | DR85: 75.01736363 | DS85: 82.17669269 | DT85: 80.22559 | DU85: 85.03473752 | DV85: 89.19681248 | DW85: 88.2883315 | DX85: 94.66664627 | DY85: 99.97166374 | DZ85: 98.48583666 | EA85: 96.29470705
A86: 18 | B86: 4.649649802 | C86: 9.702582516 | D86: 0.5907415256 | E86: 4.900338473 | H86: 2.419876026 | I86: -0.3780094221 | J86: -4.917212076 | K86: 2.788997359 | L86: 6.394387922 | M86: 2.129223991 | N86: -3.636546931 | O86: -6.867866308 | P86: -4.46029596 | Q86: -3.32275261 | R86: -3.505671573 | S86: 2.586945157 | T86: 3.133751992 | U86: -0.8860199398 | V86: 1.663330739 | W86: 1.478155611 | X86: 0.3975434433 | Y86: 0.1786129443 | Z86: -2.364394381 | AA86: -1.292167338 | AB86: -4.074328059 | AC86: 0.9670723008 | AD86: 0.7156315317 | AE86: 3.377927427 | AF86: 2.751089615 | AG86: 0.6688160995 | AH86: -0.737071112 | AI86: 5.052636509 | AJ86: 2.350063579 | AK86: -3.692622744 | AL86: -2.261746853 | AM86: -6.708508873 | AN86: -4.958362452 | AO86: -0.6540222302 | AP86: -0.4929061073 | AQ86: 4.752306779 | AR86: 3.662598868 | AS86: -0.4724364483 | AT86: 1.836740967 | AU86: 1.646889085 | AV86: 0.9341227603 | AW86: 1.307869814 | AX86: -2.374672329 | AY86: -2.325077909 | AZ86: -5.4935343 | BA86: 0.3693940494 | BB86: 0.2992859977 | BC86: 3.154270734 | BE86: 59.53865747 | BF86: =(BE86-T$58)*((1+(U$55+U86)/100)*(1-T$62)+T$62*((1+(U$57+AS86)/100)))/(1+(U$54+I86)/100)-(U$56+AG86)+U$58 -> 59.67777746 | BG86: 64.51720105 | BH86: 59.12523624 | BI86: 54.2929856 | BJ86: 57.68968421 | BK86: 61.06696588 | BL86: 71.13195269 | BM86: 76.09234438 | BN86: 79.96608654 | BO86: 83.80823538 | BP86: 79.84065179 | BS86: 2.419876026 | BT86: -0.3780094221 | BU86: -4.917212076 | BV86: 2.788997359 | BW86: 6.394387922 | BX86: 2.129223991 | BY86: -3.636546931 | BZ86: -6.867866308 | CA86: -4.46029596 | CB86: -3.32275261 | CC86: -3.505671573 | CD86: 2.586945157 | CE86: 3.133751992 | CF86: -0.8860199398 | CG86: 1.663330739 | CH86: 1.478155611 | CI86: 0.3975434433 | CJ86: 0.1786129443 | CK86: -2.364394381 | CL86: -1.292167338 | CM86: -4.074328059 | CN86: 0.9670723008 | CO86: 0.7156315317 | CP86: 3.377927427 | CQ86: 0 | CR86: 0 | CS86: -0.737071112 | CT86: 0 | CU86: 0 | CV86: -3.692622744 | CW86: -2.261746853 | CX86: -6.708508873 | CY86: -4.958362452 | CZ86: -0.6540222302 | DA86: -0.4929061073 | DB86: 0 | DC86: 3.662598868 | DD86: -0.4724364483 | DE86: 1.836740967 | DF86: 1.646889085 | DG86: 0.9341227603 | DH86: 1.307869814 | DI86: -2.374672329 | DJ86: -2.325077909 | DK86: -5.4935343 | DL86: 0.3693940494 | DM86: 0.2992859977 | DN86: 3.154270734 | DP86: 62.28974709 | DQ86: =(DP86-T$58)*((1+(U$55+CF86)/100)*(1-T$62)+T$62*((1+(U$57+DD86)/100)))/(1+(U$54+BT86)/100)-(U$56+CR86)+U$58 -> 63.05813999 | DR86: 68.12680932 | DS86: 67.74487854 | DT86: 64.80390075 | DU86: 68.02593191 | DV86: 71.48600205 | DW86: 82.0310777 | DX86: 86.89490247 | DY86: 91.14327193 | DZ86: 95.37389204 | EA86: 96.1814016
A87: 19 | B87: 5.695592871 | C87: 6.843013319 | D87: 4.32577114 | E87: 1.819005871 | H87: 3.465819095 | I87: -3.948881682 | J87: 0.3838228604 | K87: -0.5336968545 | L87: 7.8754682 | M87: -6.404815276 | N87: -4.165552406 | O87: 1.516479197 | P87: -1.081304798 | Q87: 2.501976084 | R87: 0.4134484769 | S87: -2.638419511 | T87: 0.2741827949 | U87: 0.4721553538 | V87: 0.596334592 | W87: 2.064007769 | X87: -0.613820787 | Y87: -0.9338643705 | Z87: 2.056973722 | AA87: 2.439492153 | AB87: 0.1745440556 | AC87: 0.1877958276 | AD87: -0.7225385861 | AE87: -1.394754292 | AF87: 6.48611923 | AG87: -2.243299978 | AH87: 0.26169395 | AI87: 5.393026689 | AJ87: -0.275082347 | AK87: -1.042921751 | AL87: 5.809996441 | AM87: 4.79873746 | AN87: -3.516719291 | AO87: 0.8553060431 | AP87: -1.259429826 | AQ87: -0.1478669513 | AR87: 0.5812662667 | AS87: 0.7354601803 | AT87: 0.6750008029 | AU87: 1.829077271 | AV87: 0.6512996436 | AW87: -1.860654905 | AX87: 1.398683364 | AY87: 2.355476008 | AZ87: -0.1883874558 | BA87: 0.76672388 | BB87: -0.07983280781 | BC87: -0.9280695051 | BE87: 53.72284903 | BF87: =(BE87-T$58)*((1+(U$55+U87)/100)*(1-T$62)+T$62*((1+(U$57+AS87)/100)))/(1+(U$54+I87)/100)-(U$56+AG87)+U$58 -> 59.32298581 | BG87: 59.39105723 | BH87: 55.74559734 | BI87: 52.7497131 | BJ87: 56.73620593 | BK87: 54.5772316 | BL87: 50.58346775 | BM87: 55.00320693 | BN87: 53.54721208 | BO87: 54.81011871 | BP87: 56.13717903 | BS87: 3.465819095 | BT87: -3.948881682 | BU87: 0.3838228604 | BV87: -0.5336968545 | BW87: 7.8754682 | BX87: -6.404815276 | BY87: -4.165552406 | BZ87: 1.516479197 | CA87: -1.081304798 | CB87: 2.501976084 | CC87: 0.4134484769 | CD87: -2.638419511 | CE87: 0.2741827949 | CF87: 0.4721553538 | CG87: 0.596334592 | CH87: 2.064007769 | CI87: -0.613820787 | CJ87: -0.9338643705 | CK87: 2.056973722 | CL87: 2.439492153 | CM87: 0.1745440556 | CN87: 0.1877958276 | CO87: -0.7225385861 | CP87: -1.394754292 | CQ87: 0 | CR87: -2.243299978 | CS87: 0 | CT87: 0 | CU87: -0.275082347 | CV87: -1.042921751 | CW87: 0 | CX87: 0 | CY87: -3.516719291 | CZ87: 0 | DA87: -1.259429826 | DB87: -0.1478669513 | DC87: 0.5812662667 | DD87: 0.7354601803 | DE87: 0.6750008029 | DF87: 1.829077271 | DG87: 0.6512996436 | DH87: -1.860654905 | DI87: 1.398683364 | DJ87: 2.355476008 | DK87: -0.1883874558 | DL87: 0.76672388 | DM87: -0.07983280781 | DN87: -0.9280695051 | DP87: 60.20896826 | DQ87: =(DP87-T$58)*((1+(U$55+CF87)/100)*(1-T$62)+T$62*((1+(U$57+DD87)/100)))/(1+(U$54+BT87)/100)-(U$56+CR87)+U$58 -> 66.02669353 | DR87: 66.37268252 | DS87: 68.28332163 | DT87: 64.39605297 | DU87: 68.9184058 | DV87: 73.22720982 | DW87: 74.10053954 | DX87: 78.65599097 | DY87: 77.51124609 | DZ87: 78.49029493 | EA87: 80.06442091
A88: 20 | B88: 6.958679301 | C88: 2.610125379 | D88: -10.71376771 | E88: -2.84968927 | H88: 4.728905525 | I88: 4.94205874 | J88: 0.6218838952 | K88: 3.67495153 | L88: 2.886498171 | M88: -4.224318633 | N88: -0.02709676648 | O88: -1.085451752 | P88: 1.004498227 | Q88: -3.63468588 | R88: -1.910291683 | S88: -3.873933079 | T88: -3.958705145 | U88: 1.044508156 | V88: -3.277580358 | W88: 0.3284459611 | X88: 0.09059188013 | Y88: -1.842260303 | Z88: -0.2629130785 | AA88: -1.943474396 | AB88: -3.362377283 | AC88: -0.0957449225 | AD88: 0.9463446508 | AE88: -1.681442894 | AF88: -8.553419625 | AG88: 3.680959216 | AH88: -4.594377585 | AI88: -0.1011395164 | AJ88: 0.190971302 | AK88: -2.857227048 | AL88: -4.28741262 | AM88: -2.901664336 | AN88: -3.286263237 | AO88: -2.699459551 | AP88: 0.1748841911 | AQ88: -8.171847668 | AR88: -4.087428875 | AS88: 1.288717902 | AT88: -2.733760412 | AU88: 1.040913265 | AV88: 0.5599192348 | AW88: -2.498550798 | AX88: -0.5353316742 | AY88: -2.259404635 | AZ88: -3.436567295 | BA88: -0.255402153 | BB88: 1.367054241 | BC88: -2.239626848 | BE88: 65.85334794 | BF88: =(BE88-T$58)*((1+(U$55+U88)/100)*(1-T$62)+T$62*((1+(U$57+AS88)/100)))/(1+(U$54+I88)/100)-(U$56+AG88)+U$58 -> 60.88872235 | BG88: 63.65589639 | BH88: 62.44904476 | BI88: 61.29730055 | BJ88: 65.66787434 | BK88: 70.09082332 | BL88: 72.5780636 | BM88: 73.18310726 | BN88: 78.65076454 | BO88: 81.08420859 | BP88: 91.01016334 | BS88: 4.728905525 | BT88: 4.94205874 | BU88: 0.6218838952 | BV88: 3.67495153 | BW88: 2.886498171 | BX88: -4.224318633 | BY88: -0.02709676648 | BZ88: -1.085451752 | CA88: 1.004498227 | CB88: -3.63468588 | CC88: -1.910291683 | CD88: -3.873933079 | CE88: -3.958705145 | CF88: 1.044508156 | CG88: -3.277580358 | CH88: 0.3284459611 | CI88: 0.09059188013 | CJ88: -1.842260303 | CK88: -0.2629130785 | CL88: -1.943474396 | CM88: -3.362377283 | CN88: -0.0957449225 | CO88: 0.9463446508 | CP88: -1.681442894 | CQ88: -8.553419625 | CR88: 0 | CS88: -4.594377585 | CT88: -0.1011395164 | CU88: 0 | CV88: -2.857227048 | CW88: -4.28741262 | CX88: -2.901664336 | CY88: -3.286263237 | CZ88: -2.699459551 | DA88: 0 | DB88: -8.171847668 | DC88: -4.087428875 | DD88: 1.288717902 | DE88: -2.733760412 | DF88: 1.040913265 | DG88: 0.5599192348 | DH88: -2.498550798 | DI88: -0.5353316742 | DJ88: -2.259404635 | DK88: -3.436567295 | DL88: -0.255402153 | DM88: 1.367054241 | DN88: -2.239626848 | DP88: 65.85334794 | DQ88: =(DP88-T$58)*((1+(U$55+CF88)/100)*(1-T$62)+T$62*((1+(U$57+DD88)/100)))/(1+(U$54+BT88)/100)-(U$56+CR88)+U$58 -> 64.56968157 | DR88: 67.21069378 | DS88: 65.90567302 | DT88: 64.85729722 | DU88: 69.28322866 | DV88: 73.67637997 | DW88: 76.11007633 | DX88: 76.55122833 | DY88: 82.11922712 | DZ88: 84.81686862 | EA88: 94.79586638
A89: 21 | B89: -0.3827919419 | C89: 5.966766271 | D89: -9.573707053 | E89: 0.3539205015 | H89: -2.612565718 | I89: -1.105328967 | J89: 2.511968241 | K89: -2.35692794 | L89: -4.364673684 | M89: -0.9074010163 | N89: -1.091750346 | O89: 6.087314865 | P89: 0.8876258644 | Q89: -4.710278191 | R89: -1.241092335 | S89: -8.068130597 | T89: -0.6020642532 | U89: 0.1690064249 | V89: 1.259724926 | W89: 2.232909791 | X89: 0.8454086741 | Y89: 0.2243530175 | Z89: 1.360324742 | AA89: 0.6317737037 | AB89: -0.05604448719 | AC89: -0.4709415887 | AD89: 2.914326414 | AE89: -1.561987129 | AF89: -7.413358964 | AG89: 1.533183965 | AH89: 1.12456904 | AI89: 1.188125315 | AJ89: -2.034430948 | AK89: 3.774156733 | AL89: -0.1188040939 | AM89: -1.358081696 | AN89: -0.1371887562 | AO89: 2.349103109 | AP89: 0.4047847665 | AQ89: 0.5516985156 | AR89: -0.8838191032 | AS89: -0.2634654804 | AT89: 1.204179345 | AU89: 2.611727975 | AV89: 1.202888646 | AW89: 0.3797625187 | AX89: 1.202974242 | AY89: 1.47124188 | AZ89: 0.1409789644 | BA89: -0.6136323145 | BB89: 2.836807191 | BC89: -2.244795803 | BE89: 70.12354553 | BF89: =(BE89-T$58)*((1+(U$55+U89)/100)*(1-T$62)+T$62*((1+(U$57+AS89)/100)))/(1+(U$54+I89)/100)-(U$56+AG89)+U$58 -> 70.06241949 | BG89: 68.29437926 | BH89: 70.64127303 | BI89: 76.89685702 | BJ89: 74.26502885 | BK89: 76.39436182 | BL89: 74.65683836 | BM89: 74.51403972 | BN89: 75.519807 | BO89: 78.35210568 | BP89: 82.97041771 | BS89: -2.612565718 | BT89: -1.105328967 | BU89: 2.511968241 | BV89: -2.35692794 | BW89: -4.364673684 | BX89: -0.9074010163 | BY89: -1.091750346 | BZ89: 6.087314865 | CA89: 0.8876258644 | CB89: -4.710278191 | CC89: -1.241092335 | CD89: -8.068130597 | CE89: -0.6020642532 | CF89: 0.1690064249 | CG89: 1.259724926 | CH89: 2.232909791 | CI89: 0.8454086741 | CJ89: 0.2243530175 | CK89: 1.360324742 | CL89: 0.6317737037 | CM89: -0.05604448719 | CN89: -0.4709415887 | CO89: 2.914326414 | CP89: -1.561987129 | CQ89: -7.413358964 | CR89: 0 | CS89: 0 | CT89: 0 | CU89: -2.034430948 | CV89: 0 | CW89: -0.1188040939 | CX89: -1.358081696 | CY89: -0.1371887562 | CZ89: 0 | DA89: 0 | DB89: 0 | DC89: -0.8838191032 | DD89: -0.2634654804 | DE89: 1.204179345 | DF89: 2.611727975 | DG89: 1.202888646 | DH89: 0.3797625187 | DI89: 1.202974242 | DJ89: 1.47124188 | DK89: 0.1409789644 | DL89: -0.6136323145 | DM89: 2.836807191 | DN89: -2.244795803 | DP89: 70.12354553 | DQ89: =(DP89-T$58)*((1+(U$55+CF89)/100)*(1-T$62)+T$62*((1+(U$57+DD89)/100)))/(1+(U$54+BT89)/100)-(U$56+CR89)+U$58 -> 71.59560346 | DR89: 70.9333329 | DS89: 74.59263597 | DT89: 81.05626213 | DU89: 82.22944898 | DV89: 84.50592685 | DW89: 82.36719259 | DX89: 82.12966784 | DY89: 85.76843641 | DZ89: 89.36758198 | EA89: 95.18898352
A90: 22 | B90: -2.946951322 | C90: 5.705581264 | D90: -7.703645994 | E90: 0.1107415937 | H90: -5.176725098 | I90: 9.146774878 | J90: 2.333399766 | K90: -1.486500495 | L90: -6.042154877 | M90: -7.30598303 | N90: -1.93110671 | O90: 5.356412544 | P90: -1.446261063 | Q90: -1.411678699 | R90: -2.8768012 | S90: -4.035029654 | T90: -0.8632492604 | U90: 2.706468364 | V90: 0.6827722807 | W90: 0.5116534528 | X90: -4.334145822 | Y90: -2.837008005 | Z90: 2.973879931 | AA90: 1.838757006 | AB90: 1.272192418 | AC90: 0.5170921123 | AD90: -1.023906561 | AE90: -3.34640073 | AF90: -5.543297905 | AG90: 8.454416118 | AH90: -2.745280449 | AI90: 5.183578853 | AJ90: -2.291816406 | AK90: -6.831951492 | AL90: 0.07481184633 | AM90: 3.871045975 | AN90: -0.1080755265 | AO90: -0.695071348 | AP90: -3.326765511 | AQ90: -7.485017399 | AR90: -1.126998011 | AS90: 4.372729697 | AT90: 0.7479943867 | AU90: 0.7278125174 | AV90: -4.991866668 | AW90: -3.813170497 | AX90: 3.07052171 | AY90: 1.636714003 | AZ90: 1.482425683 | BA90: 0.4737706896 | BB90: -1.088968326 | BC90: -4.064360321 | BE90: 69.55190936 | BF90: =(BE90-T$58)*((1+(U$55+U90)/100)*(1-T$62)+T$62*((1+(U$57+AS90)/100)))/(1+(U$54+I90)/100)-(U$56+AG90)+U$58 -> 58.78174865 | BG90: 60.8479474 | BH90: 57.269403 | BI90: 60.80151162 | BJ90: 70.33937622 | BK90: 73.97003853 | BL90: 67.97005875 | BM90: 70.24593356 | BN90: 72.54034083 | BO90: 77.42366026 | BP90: 85.39835872 | BS90: -5.176725098 | BT90: 9.146774878 | BU90: 2.333399766 | BV90: -1.486500495 | BW90: -6.042154877 | BX90: -7.30598303 | BY90: -1.93110671 | BZ90: 5.356412544 | CA90: -1.446261063 | CB90: -1.411678699 | CC90: -2.8768012 | CD90: -4.035029654 | CE90: -0.8632492604 | CF90: 2.706468364 | CG90: 0.6827722807 | CH90: 0.5116534528 | CI90: -4.334145822 | CJ90: -2.837008005 | CK90: 2.973879931 | CL90: 1.838757006 | CM90: 1.272192418 | CN90: 0.5170921123 | CO90: -1.023906561 | CP90: -3.34640073 | CQ90: -5.543297905 | CR90: 0 | CS90: -2.745280449 | CT90: 0 | CU90: -2.291816406 | CV90: -6.831951492 | CW90: 0 | CX90: 0 | CY90: -0.1080755265 | CZ90: -0.695071348 | DA90: -3.326765511 | DB90: -7.485017399 | DC90: -1.126998011 | DD90: 4.372729697 | DE90: 0.7479943867 | DF90: 0.7278125174 | DG90: -4.991866668 | DH90: -3.813170497 | DI90: 3.07052171 | DJ90: 1.636714003 | DK90: 1.482425683 | DL90: 0.4737706896 | DM90: -1.088968326 | DN90: -4.064360321 | DP90: 69.55190936 | DQ90: =(DP90-T$58)*((1+(U$55+CF90)/100)*(1-T$62)+T$62*((1+(U$57+DD90)/100)))/(1+(U$54+BT90)/100)-(U$56+CR90)+U$58 -> 67.23616477 | DR90: 69.17279992 | DS90: 70.94740643 | DT90: 74.64086394 | DU90: 84.67372869 | DV90: 89.01171965 | DW90: 86.31447672 | DX90: 89.01731413 | DY90: 91.57589673 | DZ90: 96.70987015 | EA90: 104.6508615
A91: 23 | B91: 2.858043633 | C91: 4.795851806 | D91: -2.646706258 | E91: -0.5457375008 | H91: 0.6282698568 | I91: -5.881379901 | J91: -4.686042979 | K91: 1.077467867 | L91: 2.529670342 | M91: -2.731243459 | N91: 3.379256067 | O91: 2.8569439 | P91: 4.694547089 | Q91: -2.217747209 | R91: -0.99406935 | S91: -3.893952836 | T91: -1.772978719 | U91: -0.2565239732 | V91: -0.4414901472 | W91: -1.647713401 | X91: 3.911546353 | Y91: -0.882278848 | Z91: 0.7802713878 | AA91: -0.691988587 | AB91: 3.476351392 | AC91: 0.2402148764 | AD91: -0.6163381927 | AE91: -0.9098450086 | AF91: -0.4863581683 | AG91: -0.9954480903 | AH91: -1.619955309 | AI91: -9.033351634 | AJ91: 1.174830111 | AK91: -2.344599147 | AL91: -0.737545337 | AM91: 1.496179281 | AN91: 6.758210164 | AO91: 1.589102706 | AP91: 0.07454047178 | AQ91: 2.047026499 | AR91: -1.783477106 | AS91: -0.6140516312 | AT91: -1.238724552 | AU91: -2.028244849 | AV91: 3.859556547 | AW91: -1.039913064 | AX91: 1.238727875 | AY91: 0.5307055762 | AZ91: 4.458293893 | BA91: -0.009600328603 | BB91: -1.089958817 | BC91: -1.105758116 | BE91: 60.94487512 | BF91: =(BE91-T$58)*((1+(U$55+U91)/100)*(1-T$62)+T$62*((1+(U$57+AS91)/100)))/(1+(U$54+I91)/100)-(U$56+AG91)+U$58 -> 66.06373324 | BG91: 70.29334815 | BH91: 77.76377423 | BI91: 78.0134748 | BJ91: 81.92634837 | BK91: 81.22665803 | BL91: 77.87400959 | BM91: 70.95174494 | BN91: 71.26091307 | BO91: 71.54156171 | BP91: 71.81323276 | BS91: 0.6282698568 | BT91: -5.881379901 | BU91: -4.686042979 | BV91: 1.077467867 | BW91: 2.529670342 | BX91: -2.731243459 | BY91: 3.379256067 | BZ91: 2.8569439 | CA91: 4.694547089 | CB91: -2.217747209 | CC91: -0.99406935 | CD91: -3.893952836 | CE91: -1.772978719 | CF91: -0.2565239732 | CG91: -0.4414901472 | CH91: -1.647713401 | CI91: 3.911546353 | CJ91: -0.882278848 | CK91: 0.7802713878 | CL91: -0.691988587 | CM91: 3.476351392 | CN91: 0.2402148764 | CO91: -0.6163381927 | CP91: -0.9098450086 | CQ91: -0.4863581683 | CR91: -0.9954480903 | CS91: -1.619955309 | CT91: -9.033351634 | CU91: 0 | CV91: -2.344599147 | CW91: -0.737545337 | CX91: 0 | CY91: 0 | CZ91: 0 | DA91: 0 | DB91: 0 | DC91: -1.783477106 | DD91: -0.6140516312 | DE91: -1.238724552 | DF91: -2.028244849 | DG91: 3.859556547 | DH91: -1.039913064 | DI91: 1.238727875 | DJ91: 0.5307055762 | DK91: 4.458293893 | DL91: -0.009600328603 | DM91: -1.089958817 | DN91: -1.105758116 | DP91: 60.94487512 | DQ91: =(DP91-T$58)*((1+(U$55+CF91)/100)*(1-T$62)+T$62*((1+(U$57+DD91)/100)))/(1+(U$54+BT91)/100)-(U$56+CR91)+U$58 -> 66.06373324 | DR91: 70.29334815 | DS91: 77.76377423 | DT91: 79.18830491 | DU91: 83.11630191 | DV91: 82.38553409 | DW91: 80.49322255 | DX91: 80.30231709 | DY91: 82.37106256 | DZ91: 82.68402223 | EA91: 85.27236996
A92: 24 | B92: 2.812829879 | C92: 2.846980583 | D92: -7.065839534 | E92: -2.585260428 | H92: 0.5830561028 | I92: 2.661403825 | J92: -3.380707644 | K92: 5.25911504 | L92: -5.008329301 | M92: 4.601718976 | N92: -0.6152933747 | O92: 0.5020973957 | P92: -7.684900774 | Q92: -1.310531459 | R92: 1.0422954 | S92: 3.950363507 | T92: -3.721849941 | U92: 2.344443424 | V92: 0.06003335251 | W92: -1.430031606 | X92: -1.621409898 | Y92: 0.6125690244 | Z92: 3.421516969 | AA92: 2.427305137 | AB92: -0.6745047051 | AC92: -1.649242792 | AD92: 1.18743767 | AE92: 0.4125170099 | AF92: -4.905491444 | AG92: 4.78223945 | AH92: -2.57688696 | AI92: -3.521386877 | AJ92: -4.240409687 | AK92: 0.7553902594 | AL92: 6.598908736 | AM92: 3.4065627 | AN92: -7.985581903 | AO92: -1.988619645 | AP92: 0.3767813196 | AQ92: 7.457061682 | AR92: -3.823000033 | AS92: 3.010426473 | AT92: 0.5527698992 | AU92: -1.172288418 | AV92: -2.121927436 | AW92: 0.7007968843 | AX92: 3.566376234 | AY92: 2.386959661 | AZ92: -1.848345955 | BA92: -2.228433872 | BB92: 1.242941901 | BC92: 0.7309696236 | BE92: 64.32446406 | BF92: =(BE92-T$58)*((1+(U$55+U92)/100)*(1-T$62)+T$62*((1+(U$57+AS92)/100)))/(1+(U$54+I92)/100)-(U$56+AG92)+U$58 -> 60.51166595 | BG92: 65.46851975 | BH92: 65.541826 | BI92: 72.2578284 | BJ92: 69.21388484 | BK92: 65.68070582 | BL92: 63.75503957 | BM92: 76.17325133 | BN92: 77.96779731 | BO92: 77.98827874 | BP92: 68.44809386 | BS92: 0.5830561028 | BT92: 2.661403825 | BU92: -3.380707644 | BV92: 5.25911504 | BW92: -5.008329301 | BX92: 4.601718976 | BY92: -0.6152933747 | BZ92: 0.5020973957 | CA92: -7.684900774 | CB92: -1.310531459 | CC92: 1.0422954 | CD92: 3.950363507 | CE92: -3.721849941 | CF92: 2.344443424 | CG92: 0.06003335251 | CH92: -1.430031606 | CI92: -1.621409898 | CJ92: 0.6125690244 | CK92: 3.421516969 | CL92: 2.427305137 | CM92: -0.6745047051 | CN92: -1.649242792 | CO92: 1.18743767 | CP92: 0.4125170099 | CQ92: -4.905491444 | CR92: 0 | CS92: -2.57688696 | CT92: -3.521386877 | CU92: -4.240409687 | CV92: 0 | CW92: 0 | CX92: 0 | CY92: -7.985581903 | CZ92: -1.988619645 | DA92: 0 | DB92: 0 | DC92: -3.823000033 | DD92: 3.010426473 | DE92: 0.5527698992 | DF92: -1.172288418 | DG92: -2.121927436 | DH92: 0.7007968843 | DI92: 3.566376234 | DJ92: 2.386959661 | DK92: -1.848345955 | DL92: -2.228433872 | DM92: 1.242941901 | DN92: 0.7309696236 | DP92: 64.32446406 | DQ92: =(DP92-T$58)*((1+(U$55+CF92)/100)*(1-T$62)+T$62*((1+(U$57+DD92)/100)))/(1+(U$54+BT92)/100)-(U$56+CR92)+U$58 -> 65.2939054 | DR92: 70.42967275 | DS92: 70.20322235 | DT92: 77.05707336 | DU92: 74.57397067 | DV92: 77.82955527 | DW92: 79.4751646 | DX92: 92.85540626 | DY92: 94.46572199 | DZ92: 94.81484527 | EA92: 92.136913
A93: 25 | B93: 1.135927785 | C93: 8.908581228 | D93: 1.254621082 | E93: 4.085258468 | H93: -1.093845992 | I93: -6.229628435 | J93: 0.0329283154 | K93: -4.432271176 | L93: 1.051323628 | M93: 0.5119224644 | N93: -5.365711795 | O93: 3.908037933 | P93: 5.598599285 | Q93: -0.6160238789 | R93: -1.061480598 | S93: 2.837292208 | T93: 2.339750703 | U93: -2.263776056 | V93: 1.009864761 | W93: -1.697376256 | X93: 1.552390126 | Y93: -1.228173627 | Z93: -0.6204359921 | AA93: 1.007038367 | AB93: 2.388006654 | AC93: -0.7976402405 | AD93: -0.2294213224 | AE93: 0.0007717087759 | AF93: 3.414969172 | AG93: -4.893838426 | AH93: -2.366024357 | AI93: -3.444496701 | AJ93: 3.861691138 | AK93: -2.140237904 | AL93: 2.899839138 | AM93: 2.872065419 | AN93: -1.309855176 | AO93: -2.778791814 | AP93: 0.5001110998 | AQ93: 6.429228553 | AR93: 2.847518864 | AS93: -2.174665431 | AT93: 0.8237839367 | AU93: -2.421312838 | AV93: 1.902598976 | AW93: -1.710427957 | AX93: -1.251504915 | AY93: 1.93926494 | AZ93: 3.636777082 | BA93: -0.8489076579 | BB93: 0.3587449368 | BC93: -0.09261799526 | BE93: 60.31935104 | BF93: =(BE93-T$58)*((1+(U$55+U93)/100)*(1-T$62)+T$62*((1+(U$57+AS93)/100)))/(1+(U$54+I93)/100)-(U$56+AG93)+U$58 -> 68.50012104 | BG93: 71.6020495 | BH93: 77.03244095 | BI93: 74.13081393 | BJ93: 75.13027318 | BK93: 75.82922129 | BL93: 71.61665649 | BM93: 71.65275172 | BN93: 74.60462408 | BO93: 75.22360307 | BP93: 67.10445404 | BS93: -1.093845992 | BT93: -6.229628435 | BU93: 0.0329283154 | BV93: -4.432271176 | BW93: 1.051323628 | BX93: 0.5119224644 | BY93: -5.365711795 | BZ93: 3.908037933 | CA93: 5.598599285 | CB93: -0.6160238789 | CC93: -1.061480598 | CD93: 2.837292208 | CE93: 2.339750703 | CF93: -2.263776056 | CG93: 1.009864761 | CH93: -1.697376256 | CI93: 1.552390126 | CJ93: -1.228173627 | CK93: -0.6204359921 | CL93: 1.007038367 | CM93: 2.388006654 | CN93: -0.7976402405 | CO93: -0.2294213224 | CP93: 0.0007717087759 | CQ93: 0 | CR93: -4.893838426 | CS93: -2.366024357 | CT93: -3.444496701 | CU93: 0 | CV93: -2.140237904 | CW93: 0 | CX93: 0 | CY93: -1.309855176 | CZ93: -2.778791814 | DA93: 0 | DB93: 0 | DC93: 2.847518864 | DD93: -2.174665431 | DE93: 0.8237839367 | DF93: -2.421312838 | DG93: 1.902598976 | DH93: -1.710427957 | DI93: -1.251504915 | DJ93: 1.93926494 | DK93: 3.636777082 | DL93: -0.8489076579 | DM93: 0.3587449368 | DN93: -0.09261799526 | DP93: 63.73432022 | DQ93: =(DP93-T$58)*((1+(U$55+CF93)/100)*(1-T$62)+T$62*((1+(U$57+DD93)/100)))/(1+(U$54+BT93)/100)-(U$56+CR93)+U$58 -> 72.01251867 | DR93: 75.1432268 | DS93: 80.65395351 | DT93: 81.63211132 | DU93: 82.45375528 | DV93: 86.34408835 | DW93: 84.72773424 | DX93: 84.41009286 | DY93: 87.27872621 | DZ93: 88.48419934 | EA93: 86.37863507
A94: 26 | B94: 0.6438646991 | C94: 5.077045935 | D94: 1.606105546 | E94: -0.408957301 | H94: -1.585909077 | I94: -0.2588830602 | J94: -6.276449731 | K94: -2.936540007 | L94: 5.481413307 | M94: -4.543071682 | N94: -0.8792052786 | O94: 2.37072358 | P94: -0.6173905696 | Q94: 4.888252407 | R94: 2.900429791 | S94: 3.28599781 | T94: -1.491784589 | U94: 1.798574983 | V94: -0.2724901383 | W94: -1.222605919 | X94: -1.119705843 | Y94: -0.5174417314 | Z94: -1.593222286 | AA94: 1.430641079 | AB94: 2.144609099 | AC94: 0.4620272736 | AD94: -0.1969122441 | AE94: -2.158352737 | AF94: 3.766453636 | AG94: -0.4854650859 | AH94: 0.09623550452 | AI94: -7.526343888 | AJ94: 1.257202637 | AK94: -1.179611711 | AL94: -2.827424369 | AM94: 2.991452677 | AN94: 2.945715267 | AO94: -5.679071852 | AP94: 3.022062011 | AQ94: -6.664144998 | AR94: -1.646696906 | AS94: 1.70340323 | AT94: -0.4617495447 | AU94: -1.821196992 | AV94: -0.8292661062 | AW94: -1.113203587 | AX94: -1.629429133 | AY94: 1.61166835 | AZ94: 3.144194844 | BA94: 1.782873277 | BB94: 0.8965014047 | BC94: -1.351207098 | BE94: 57.94750887 | BF94: =(BE94-T$58)*((1+(U$55+U94)/100)*(1-T$62)+T$62*((1+(U$57+AS94)/100)))/(1+(U$54+I94)/100)-(U$56+AG94)+U$58 -> 60.47106863 | BG94: 64.10083592 | BH94: 72.83675344 | BI94: 67.84978546 | BJ94: 71.77051536 | BK94: 74.44412857 | BL94: 71.1577056 | BM94: 70.77499017 | BN94: 74.44920498 | BO94: 70.04677913 | BP94: 73.85100102 | BS94: -1.585909077 | BT94: -0.2588830602 | BU94: -6.276449731 | BV94: -2.936540007 | BW94: 5.481413307 | BX94: -4.543071682 | BY94: -0.8792052786 | BZ94: 2.37072358 | CA94: -0.6173905696 | CB94: 4.888252407 | CC94: 2.900429791 | CD94: 3.28599781 | CE94: -1.491784589 | CF94: 1.798574983 | CG94: -0.2724901383 | CH94: -1.222605919 | CI94: -1.119705843 | CJ94: -0.5174417314 | CK94: -1.593222286 | CL94: 1.430641079 | CM94: 2.144609099 | CN94: 0.4620272736 | CO94: -0.1969122441 | CP94: -2.158352737 | CQ94: 0 | CR94: -0.4854650859 | CS94: 0 | CT94: -7.526343888 | CU94: 0 | CV94: -1.179611711 | CW94: -2.827424369 | CX94: 0 | CY94: 0 | CZ94: -5.679071852 | DA94: 0 | DB94: -6.664144998 | DC94: -1.646696906 | DD94: 1.70340323 | DE94: -0.4617495447 | DF94: -1.821196992 | DG94: -0.8292661062 | DH94: -1.113203587 | DI94: -1.629429133 | DJ94: 1.61166835 | DK94: 3.144194844 | DL94: 1.782873277 | DM94: 0.8965014047 | DN94: -1.351207098 | DP94: 61.7139625 | DQ94: =(DP94-T$58)*((1+(U$55+CF94)/100)*(1-T$62)+T$62*((1+(U$57+DD94)/100)))/(1+(U$54+BT94)/100)-(U$56+CR94)+U$58 -> 64.26506511 | DR94: 68.22045257 | DS94: 77.00977393 | DT94: 73.02758984 | DU94: 77.11660812 | DV94: 79.72798946 | DW94: 79.36747036 | DX94: 82.15935492 | DY94: 85.40069628 | DZ94: 83.72013631 | EA94: 86.83021719
A95: 27 | B95: -2.065186175 | C95: 6.872403493 | D95: -4.313781381 | E95: 0.2634374858 | H95: -4.294959951 | I95: -1.361630864 | J95: 4.114543969 | K95: 3.229038596 | L95: -3.017296919 | M95: 3.13075292 | N95: 0.469084061 | O95: -7.094650944 | P95: 4.947806734 | Q95: 6.085415031 | R95: -0.7549972188 | S95: 0.3601186323 | T95: 0.3035729687 | U95: -1.299180726 | V95: 0.9076082294 | W95: 2.75577593 | X95: -1.173682123 | Y95: -2.103681952 | Z95: -0.6780804249 | AA95: 0.6319763956 | AB95: 1.528741435 | AC95: 0.3735082789 | AD95: 2.471299248 | AE95: -4.107181695 | AF95: -2.153433292 | AG95: -6.735430401 | AH95: 3.674446893 | AI95: 4.609117744 | AJ95: -4.596470081 | AK95: 1.625284752 | AL95: -3.752527018 | AM95: -1.628768599 | AN95: 1.860970319 | AO95: 0.8255430388 | AP95: 5.027326281 | AQ95: -4.843490701 | AR95: -0.9743021189 | AS95: -1.260637185 | AT95: 0.9347230316 | AU95: 3.480684727 | AV95: -1.88850776 | AW95: -2.275300028 | AX95: -0.150993342 | AY95: 0.02277707279 | AZ95: 1.97562075 | BA95: 0.7147514026 | BB95: 1.95566015 | BC95: -3.849159062 | BE95: 65.96815844 | BF95: =(BE95-T$58)*((1+(U$55+U95)/100)*(1-T$62)+T$62*((1+(U$57+AS95)/100)))/(1+(U$54+I95)/100)-(U$56+AG95)+U$58 -> 73.61710121 | BG95: 68.00173711 | BH95: 63.7423126 | BI95: 69.69689931 | BJ95: 64.95912048 | BK95: 68.57940342 | BL95: 75.58697966 | BM95: 71.87878713 | BN95: 67.85316354 | BO95: 65.01320587 | BP95: 67.56679852 | BS95: -4.294959951 | BT95: -1.361630864 | BU95: 4.114543969 | BV95: 3.229038596 | BW95: -3.017296919 | BX95: 3.13075292 | BY95: 0.469084061 | BZ95: -7.094650944 | CA95: 4.947806734 | CB95: 6.085415031 | CC95: -0.7549972188 | CD95: 0.3601186323 | CE95: 0.3035729687 | CF95: -1.299180726 | CG95: 0.9076082294 | CH95: 2.75577593 | CI95: -1.173682123 | CJ95: -2.103681952 | CK95: -0.6780804249 | CL95: 0.6319763956 | CM95: 1.528741435 | CN95: 0.3735082789 | CO95: 2.471299248 | CP95: -4.107181695 | CQ95: -2.153433292 | CR95: -6.735430401 | CS95: 0 | CT95: 0 | CU95: -4.596470081 | CV95: 0 | CW95: -3.752527018 | CX95: -1.628768599 | CY95: 0 | CZ95: 0 | DA95: 0 | DB95: -4.843490701 | DC95: -0.9743021189 | DD95: -1.260637185 | DE95: 0.9347230316 | DF95: 3.480684727 | DG95: -1.88850776 | DH95: -2.275300028 | DI95: -0.150993342 | DJ95: 0.02277707279 | DK95: 1.97562075 | DL95: 0.7147514026 | DM95: 1.95566015 | DN95: -3.849159062 | DP95: 65.96815844 | DQ95: =(DP95-T$58)*((1+(U$55+CF95)/100)*(1-T$62)+T$62*((1+(U$57+DD95)/100)))/(1+(U$54+BT95)/100)-(U$56+CR95)+U$58 -> 73.61710121 | DR95: 71.676184 | DS95: 72.02300938 | DT95: 78.08079756 | DU95: 74.51449674 | DV95: 78.01486671 | DW95: 85.69287392 | DX95: 83.5094297 | DY95: 79.67666401 | DZ95: 82.14303931 | EA95: 83.91177259
A96: 28 | B96: -1.145469378 | C96: 6.811330923 | D96: -0.2212373487 | E96: 1.105619353 | H96: -3.375243154 | I96: 4.384192655 | J96: 6.724223173 | K96: 0.8855308487 | L96: -1.465590654 | M96: -0.5626960462 | N96: -4.648908979 | O96: 6.671717952 | P96: -0.4999967713 | Q96: 4.020877241 | R96: -2.724349835 | S96: -8.653263461 | T96: 0.2425003985 | U96: 2.694627249 | V96: 1.31909462 | W96: 2.578819909 | X96: -1.484317432 | Y96: 2.150859655 | Z96: -1.195723789 | AA96: 2.273761578 | AB96: -0.2008998563 | AC96: 0.1227024419 | AD96: -0.8817619447 | AE96: -0.6704791629 | AF96: 1.939110741 | AG96: -0.4636349202 | AH96: 0.07408055687 | AI96: 3.682751344 | AJ96: 0.2466692839 | AK96: 0.5195128662 | AL96: -1.876956118 | AM96: 8.229667319 | AN96: -0.2372953118 | AO96: -0.4507961294 | AP96: 0.1476926188 | AQ96: -0.4142236165 | AR96: -0.1321202517 | AS96: 3.201163287 | AT96: 1.802289281 | AU96: 1.678801784 | AV96: -2.242109571 | AW96: 1.219403191 | AX96: -0.9315573211 | AY96: 2.307559338 | AZ96: -0.7656864614 | BA96: 0.2774602946 | BB96: -1.447155856 | BC96: -2.259032751 | BE96: 61.62592178 | BF96: =(BE96-T$58)*((1+(U$55+U96)/100)*(1-T$62)+T$62*((1+(U$57+AS96)/100)))/(1+(U$54+I96)/100)-(U$56+AG96)+U$58 -> 62.28893103 | BG96: 59.60889139 | BH96: 56.93806494 | BI96: 56.93309902 | BJ96: 57.92191055 | BK96: 62.25254081 | BL96: 51.95781184 | BM96: 52.58035973 | BN96: 51.63694292 | BO96: 52.6154578 | BP96: 57.2126354 | BS96: -3.375243154 | BT96: 4.384192655 | BU96: 6.724223173 | BV96: 0.8855308487 | BW96: -1.465590654 | BX96: -0.5626960462 | BY96: -4.648908979 | BZ96: 6.671717952 | CA96: -0.4999967713 | CB96: 4.020877241 | CC96: -2.724349835 | CD96: -8.653263461 | CE96: 0.2425003985 | CF96: 2.694627249 | CG96: 1.31909462 | CH96: 2.578819909 | CI96: -1.484317432 | CJ96: 2.150859655 | CK96: -1.195723789 | CL96: 2.273761578 | CM96: -0.2008998563 | CN96: 0.1227024419 | CO96: -0.8817619447 | CP96: -0.6704791629 | CQ96: 0 | CR96: -0.4636349202 | CS96: 0 | CT96: 0 | CU96: 0 | CV96: 0 | CW96: -1.876956118 | CX96: 0 | CY96: -0.2372953118 | CZ96: -0.4507961294 | DA96: 0 | DB96: -0.4142236165 | DC96: -0.1321202517 | DD96: 3.201163287 | DE96: 1.802289281 | DF96: 1.678801784 | DG96: -2.242109571 | DH96: 1.219403191 | DI96: -0.9315573211 | DJ96: 2.307559338 | DK96: -0.7656864614 | DL96: 0.2774602946 | DM96: -1.447155856 | DN96: -2.259032751 | DP96: 63.56503252 | DQ96: =(DP96-T$58)*((1+(U$55+CF96)/100)*(1-T$62)+T$62*((1+(U$57+DD96)/100)))/(1+(U$54+BT96)/100)-(U$56+CR96)+U$58 -> 64.18126634 | DR96: 61.48751071 | DS96: 62.51926138 | DT96: 62.72659173 | DU96: 64.33156431 | DV96: 68.86515933 | DW96: 66.50904376 | DX96: 67.06412419 | DY96: 65.54698831 | DZ96: 66.81336724 | EA96: 72.39854408
A97: 29 | B97: 0.9511659034 | C97: 6.681138238 | D97: -8.703277358 | E97: 0.9677539975 | H97: -1.278607873 | I97: 3.763068075 | J97: -7.516241607 | K97: 1.416783983 | L97: -1.765560861 | M97: 4.944008016 | N97: 3.143065144 | O97: 2.623692008 | P97: -6.983225666 | Q97: -2.944482783 | R97: 7.80964082 | S97: 2.729038091 | T97: 0.1123077138 | U97: -1.4496609 | V97: 1.741222228 | W97: 0.8448464057 | X97: -0.03699448791 | Y97: 0.05068374702 | Z97: 1.14181213 | AA97: 2.617859098 | AB97: 0.08706879454 | AC97: -0.5054311024 | AD97: 2.305436408 | AE97: 0.4887040016 | AF97: -6.542929268 | AG97: -0.1539555276 | AH97: 0.1624980712 | AI97: -1.252984905 | AJ97: -1.093890834 | AK97: 4.57098468 | AL97: 1.979532037 | AM97: 2.085150515 | AN97: 3.26065916 | AO97: -1.619601334 | AP97: 1.82388086 | AQ97: 2.580134155 | AR97: -0.2699856072 | AS97: -1.502012047 | AT97: 1.301571762 | AU97: 1.123889817 | AV97: -0.8010875208 | AW97: 0.1761686594 | AX97: 2.064651113 | AY97: 2.29768114 | AZ97: -0.5009109512 | BA97: -0.2062457103 | BB97: 4.031466485 | BC97: 0.7893143443 | BE97: 68.88577919 | BF97: =(BE97-T$58)*((1+(U$55+U97)/100)*(1-T$62)+T$62*((1+(U$57+AS97)/100)))/(1+(U$54+I97)/100)-(U$56+AG97)+U$58 -> 66.65210028 | BG97: 72.7261577 | BH97: 74.07596701 | BI97: 76.54385922 | BJ97: 68.91057949 | BK97: 66.37465731 | BL97: 64.48234866 | BM97: 65.9277496 | BN97: 69.55089298 | BO97: 65.32647211 | BP97: 61.85657796 | BS97: -1.278607873 | BT97: 3.763068075 | BU97: -7.516241607 | BV97: 1.416783983 | BW97: -1.765560861 | BX97: 4.944008016 | BY97: 3.143065144 | BZ97: 2.623692008 | CA97: -6.983225666 | CB97: -2.944482783 | CC97: 7.80964082 | CD97: 2.729038091 | CE97: 0.1123077138 | CF97: -1.4496609 | CG97: 1.741222228 | CH97: 0.8448464057 | CI97: -0.03699448791 | CJ97: 0.05068374702 | CK97: 1.14181213 | CL97: 2.617859098 | CM97: 0.08706879454 | CN97: -0.5054311024 | CO97: 2.305436408 | CP97: 0.4887040016 | CQ97: -6.542929268 | CR97: -0.1539555276 | CS97: 0 | CT97: -1.252984905 | CU97: -1.093890834 | CV97: 0 | CW97: 0 | CX97: 0 | CY97: 0 | CZ97: -1.619601334 | DA97: 0 | DB97: 0 | DC97: -0.2699856072 | DD97: -1.502012047 | DE97: 1.301571762 | DF97: 1.123889817 | DG97: -0.8010875208 | DH97: 0.1761686594 | DI97: 2.064651113 | DJ97: 2.29768114 | DK97: -0.5009109512 | DL97: -0.2062457103 | DM97: 4.031466485 | DN97: 0.7893143443 | DP97: 68.88577919 | DQ97: =(DP97-T$58)*((1+(U$55+CF97)/100)*(1-T$62)+T$62*((1+(U$57+DD97)/100)))/(1+(U$54+BT97)/100)-(U$56+CR97)+U$58 -> 66.65210028 | DR97: 72.88865577 | DS97: 74.2377677 | DT97: 76.70742457 | DU97: 73.6371924 | DV97: 72.99524966 | DW97: 73.14550729 | DX97: 78.41319031 | DY97: 82.3020823 | DZ97: 79.33584092 | EA97: 78.11442119
A98: 30 | B98: 2.062439256 | C98: 4.281400414 | D98: -5.540639962 | E98: -1.490822173 | H98: -0.1673345198 | I98: -5.792670474 | J98: -2.134837614 | K98: 0.7800980823 | L98: 9.020851349 | M98: -7.193523909 | N98: 4.368869283 | O98: -2.154917753 | P98: 4.952409884 | Q98: -4.082421365 | R98: -0.8094729445 | S98: 5.10445614 | T98: -2.28743011 | U98: -1.137287736 | V98: 0.8406461342 | W98: -0.9226563958 | X98: 0.894189533 | Y98: 0.7309443869 | Z98: 0.02313020393 | AA98: -2.222000412 | AB98: -1.288703363 | AC98: -0.03388339532 | AD98: -1.728524899 | AE98: 2.4560616 | AF98: -3.380291873 | AG98: -5.395458781 | AH98: -0.7623233021 | AI98: 4.464430184 | AJ98: -1.075722606 | AK98: -0.8236183208 | AL98: -0.7858889897 | AM98: -6.161123149 | AN98: -0.9676138146 | AO98: -0.06284676465 | AP98: 5.261375225 | AQ98: 1.676956962 | AR98: -2.728561778 | AS98: -0.9429856876 | AT98: 0.06045761389 | AU98: -0.6172936484 | AV98: 2.135711475 | AW98: 0.2913619447 | AX98: 0.5300722602 | AY98: -3.301732626 | AZ98: -0.8538771287 | BA98: -0.5201282633 | BB98: -2.078430824 | BC98: 3.439146739 | BE98: 63.83273166 | BF98: =(BE98-T$58)*((1+(U$55+U98)/100)*(1-T$62)+T$62*((1+(U$57+AS98)/100)))/(1+(U$54+I98)/100)-(U$56+AG98)+U$58 -> 73.08279447 | BG98: 75.76906687 | BH98: 70.59636005 | BI98: 67.6087323 | BJ98: 73.95558417 | BK98: 72.37761794 | BL98: 78.31022639 | BM98: 75.341325 | BN98: 78.4857952 | BO98: 72.63858348 | BP98: 69.92304901 | BS98: -0.1673345198 | BT98: -5.792670474 | BU98: -2.134837614 | BV98: 0.7800980823 | BW98: 9.020851349 | BX98: -7.193523909 | BY98: 4.368869283 | BZ98: -2.154917753 | CA98: 4.952409884 | CB98: -4.082421365 | CC98: -0.8094729445 | CD98: 5.10445614 | CE98: -2.28743011 | CF98: -1.137287736 | CG98: 0.8406461342 | CH98: -0.9226563958 | CI98: 0.894189533 | CJ98: 0.7309443869 | CK98: 0.02313020393 | CL98: -2.222000412 | CM98: -1.288703363 | CN98: -0.03388339532 | CO98: -1.728524899 | CP98: 2.4560616 | CQ98: -3.380291873 | CR98: -5.395458781 | CS98: -0.7623233021 | CT98: 0 | CU98: -1.075722606 | CV98: -0.8236183208 | CW98: -0.7858889897 | CX98: -6.161123149 | CY98: -0.9676138146 | CZ98: -0.06284676465 | DA98: 0 | DB98: 0 | DC98: -2.728561778 | DD98: -0.9429856876 | DE98: 0.06045761389 | DF98: -0.6172936484 | DG98: 2.135711475 | DH98: 0.2913619447 | DI98: 0.5300722602 | DJ98: -3.301732626 | DK98: -0.8538771287 | DL98: -0.5201282633 | DM98: -2.078430824 | DN98: 3.439146739 | DP98: 63.83273166 | DQ98: =(DP98-T$58)*((1+(U$55+CF98)/100)*(1-T$62)+T$62*((1+(U$57+DD98)/100)))/(1+(U$54+BT98)/100)-(U$56+CR98)+U$58 -> 73.08279447 | DR98: 75.76906687 | DS98: 75.06079023 | DT98: 71.77279008 | DU98: 78.43053934 | DV98: 76.66568057 | DW98: 82.54756204 | DX98: 79.32750267 | DY98: 82.60416678 | DZ98: 81.95383389 | EA98: 80.69790433
A99: 31 | B99: 3.609011219 | C99: 4.923325993 | D99: -4.974722203 | E99: -1.047221675 | H99: 1.379237443 | I99: -0.5048260427 | J99: 5.151442945 | K99: 1.04382962 | L99: -4.615148382 | M99: -3.157256275 | N99: 1.329728669 | O99: -1.688074622 | P99: 0.05168961307 | Q99: -1.082188886 | R99: 4.60678773 | S99: -0.4093713945 | T99: -1.645504532 | U99: -0.959470115 | V99: -0.6964861677 | W99: -1.721143923 | X99: -0.3214036526 | Y99: 1.626085278 | Z99: 0.8295776468 | AA99: -0.395725079 | AB99: -0.4280526169 | AC99: -0.7989000862 | AD99: -0.5178511852 | AE99: 2.720786931 | AF99: -2.814374114 | AG99: -1.907805147 | AH99: 1.411929657 | AI99: -0.5886429926 | AJ99: 6.108493155 | AK99: 4.531367515 | AL99: 4.261545957 | AM99: -0.5891293762 | AN99: -1.474109032 | AO99: -1.07171248 | AP99: 0.837257211 | AQ99: 3.09128378 | AR99: -2.28496128 | AS99: -1.180744579 | AT99: 0.2808885291 | AU99: -1.96932577 | AV99: -1.082967067 | AW99: 0.7354502762 | AX99: 0.9958388335 | AY99: -0.3919612557 | AZ99: -0.01279742862 | BA99: -0.8346754534 | BB99: -0.1659260928 | BC99: 2.891458481 | BE99: 62.76064283 | BF99: =(BE99-T$58)*((1+(U$55+U99)/100)*(1-T$62)+T$62*((1+(U$57+AS99)/100)))/(1+(U$54+I99)/100)-(U$56+AG99)+U$58 -> 65.22419632 | BG99: 60.95242666 | BH99: 60.26794234 | BI99: 56.92043723 | BJ99: 55.07464227 | BK99: 51.03499376 | BL99: 52.62664935 | BM99: 54.37635815 | BN99: 55.97633557 | BO99: 53.04566163 | BP99: 51.96049736 | BS99: 1.379237443 | BT99: -0.5048260427 | BU99: 5.151442945 | BV99: 1.04382962 | BW99: -4.615148382 | BX99: -3.157256275 | BY99: 1.329728669 | BZ99: -1.688074622 | CA99: 0.05168961307 | CB99: -1.082188886 | CC99: 4.60678773 | CD99: -0.4093713945 | CE99: -1.645504532 | CF99: -0.959470115 | CG99: -0.6964861677 | CH99: -1.721143923 | CI99: -0.3214036526 | CJ99: 1.626085278 | CK99: 0.8295776468 | CL99: -0.395725079 | CM99: -0.4280526169 | CN99: -0.7989000862 | CO99: -0.5178511852 | CP99: 2.720786931 | CQ99: -2.814374114 | CR99: -1.907805147 | CS99: 0 | CT99: -0.5886429926 | CU99: 0 | CV99: 0 | CW99: 0 | CX99: -0.5891293762 | CY99: -1.474109032 | CZ99: -1.07171248 | DA99: 0 | DB99: 0 | DC99: -2.28496128 | DD99: -1.180744579 | DE99: 0.2808885291 | DF99: -1.96932577 | DG99: -1.082967067 | DH99: 0.7354502762 | DI99: 0.9958388335 | DJ99: -0.3919612557 | DK99: -0.01279742862 | DL99: -0.8346754534 | DM99: -0.1659260928 | DN99: 2.891458481 | DP99: 62.76064283 | DQ99: =(DP99-T$58)*((1+(U$55+CF99)/100)*(1-T$62)+T$62*((1+(U$57+DD99)/100)))/(1+(U$54+BT99)/100)-(U$56+CR99)+U$58 -> 65.22419632 | DR99: 62.36435631 | DS99: 61.63993102 | DT99: 64.4518028 | DU99: 67.4228352 | DV99: 67.54274088 | DW99: 69.2650189 | DX99: 70.90294441 | DY99: 72.47079804 | DZ99: 69.55633241 | EA99: 72.00522279
A100: 32 | B100: 4.550390931 | C100: 7.459535953 | D100: -4.12165766 | E100: 2.885644429 | H100: 2.320617155 | I100: 4.623821482 | J100: 7.249300087 | K100: -8.953507567 | L100: -2.613823897 | M100: 5.448616332 | N100: -2.692501634 | O100: 7.613700351 | P100: 0.1886767934 | Q100: -4.406121979 | R100: -2.104059843 | S100: 1.460511184 | T100: 0.8907054285 | U100: 0.8237940097 | V100: 1.109460909 | W100: -2.79696954 | X100: 0.5692264464 | Y100: 0.6108953877 | Z100: -2.531008362 | AA100: -0.07501556807 | AB100: -2.431398235 | AC100: 0.0006248608694 | AD100: -1.001837743 | AE100: -1.386241479 | AF100: -1.961309571 | AG100: 1.357607833 | AH100: 6.336785816 | AI100: -7.015087383 | AJ100: -0.07271649153 | AK100: -1.372780457 | AL100: -3.390385137 | AM100: 2.474845713 | AN100: -6.130703279 | AO100: -1.429463815 | AP100: -3.996266078 | AQ100: -0.3667626137 | AR100: 1.647904825 | AS100: 1.302655293 | AT100: 1.379654836 | AU100: -4.101103993 | AV100: 0.3476973025 | AW100: 1.600028097 | AX100: -2.84611434 | AY100: 1.09880849 | AZ100: -2.499258756 | BA100: 0.03005952725 | BB100: -1.083997746 | BC100: -1.93977903 | BE100: 63.20435865 | BF100: =(BE100-T$58)*((1+(U$55+U100)/100)*(1-T$62)+T$62*((1+(U$57+AS100)/100)))/(1+(U$54+I100)/100)-(U$56+AG100)+U$58 -> 60.81488992 | BG100: 51.49114844 | BH100: 61.70285569 | BI100: 64.06936484 | BJ100: 63.31463967 | BK100: 67.07463521 | BL100: 60.81340073 | BM100: 65.78616514 | BN100: 70.40976676 | BO100: 75.4118648 | BP100: 73.86107976 | BS100: 2.320617155 | BT100: 4.623821482 | BU100: 7.249300087 | BV100: -8.953507567 | BW100: -2.613823897 | BX100: 5.448616332 | BY100: -2.692501634 | BZ100: 7.613700351 | CA100: 0.1886767934 | CB100: -4.406121979 | CC100: -2.104059843 | CD100: 1.460511184 | CE100: 0.8907054285 | CF100: 0.8237940097 | CG100: 1.109460909 | CH100: -2.79696954 | CI100: 0.5692264464 | CJ100: 0.6108953877 | CK100: -2.531008362 | CL100: -0.07501556807 | CM100: -2.431398235 | CN100: 0.0006248608694 | CO100: -1.001837743 | CP100: -1.386241479 | CQ100: -1.961309571 | CR100: 0 | CS100: 0 | CT100: -7.015087383 | CU100: -0.07271649153 | CV100: -1.372780457 | CW100: -3.390385137 | CX100: 0 | CY100: -6.130703279 | CZ100: -1.429463815 | DA100: -3.996266078 | DB100: -0.3667626137 | DC100: 1.647904825 | DD100: 1.302655293 | DE100: 1.379654836 | DF100: -4.101103993 | DG100: 0.3476973025 | DH100: 1.600028097 | DI100: -2.84611434 | DJ100: 1.09880849 | DK100: -2.499258756 | DL100: 0.03005952725 | DM100: -1.083997746 | DN100: -1.93977903 | DP100: 63.20435865 | DQ100: =(DP100-T$58)*((1+(U$55+CF100)/100)*(1-T$62)+T$62*((1+(U$57+DD100)/100)))/(1+(U$54+BT100)/100)-(U$56+CR100)+U$58 -> 62.17249776 | DR100: 59.11218106 | DS100: 69.75221871 | DT100: 72.34763243 | DU100: 71.23474091 | DV100: 74.95693581 | DW100: 70.64229678 | DX100: 75.32079719 | DY100: 80.32423207 | DZ100: 85.38173068 | EA100: 83.48855934
A101: 33 | B101: 1.282460503 | C101: 5.857597842 | D101: -0.4144475302 | E101: 0.04273918161 | H101: -0.9473132731 | I101: -1.527319516 | J101: -0.2984668557 | K101: -2.292344518 | L101: -1.304987637 | M101: 6.764921286 | N101: 6.925389285 | O101: -5.36972204 | P101: -4.418461349 | Q101: 2.350090647 | R101: 3.105121325 | S101: 7.038360162 | T101: -0.7112326821 | U101: 1.292375596 | V101: -2.277749212 | W101: -0.3240463676 | X101: -0.8192527591 | Y101: 1.310378749 | Z101: -0.1504802839 | AA101: -2.068932266 | AB101: -2.803950078 | AC101: 0.2544971305 | AD101: 1.973330438 | AE101: -0.2496417527 | AF101: 1.74590056 | AG101: -1.591549154 | AH101: -4.964948233 | AI101: -2.9330424 | AJ101: -3.455591204 | AK101: 4.600314266 | AL101: 4.586074538 | AM101: -3.928112603 | AN101: -9.678144925 | AO101: -0.9012119891 | AP101: -0.1593482848 | AQ101: 1.269334236 | AR101: -1.195000423 | AS101: 1.081885434 | AT101: -2.034115782 | AU101: -0.2901228935 | AV101: -1.161202019 | AW101: 2.112393282 | AX101: 0.5105040258 | AY101: -2.546652319 | AZ101: -3.67417374 | BA101: -0.3572689152 | BB101: 2.681766477 | BC101: 0.09116149018 | BE101: 59.94362681 | BF101: =(BE101-T$58)*((1+(U$55+U101)/100)*(1-T$62)+T$62*((1+(U$57+AS101)/100)))/(1+(U$54+I101)/100)-(U$56+AG101)+U$58 -> 63.9818217 | BG101: 68.03427017 | BH101: 72.63809364 | BI101: 76.75438057 | BJ101: 69.0234552 | BK101: 60.73250639 | BL101: 66.79192727 | BM101: 77.52450273 | BN101: 76.97365481 | BO101: 76.9123177 | BP101: 71.12844911 | BS101: -0.9473132731 | BT101: -1.527319516 | BU101: -0.2984668557 | BV101: -2.292344518 | BW101: -1.304987637 | BX101: 6.764921286 | BY101: 6.925389285 | BZ101: -5.36972204 | CA101: -4.418461349 | CB101: 2.350090647 | CC101: 3.105121325 | CD101: 7.038360162 | CE101: -0.7112326821 | CF101: 1.292375596 | CG101: -2.277749212 | CH101: -0.3240463676 | CI101: -0.8192527591 | CJ101: 1.310378749 | CK101: -0.1504802839 | CL101: -2.068932266 | CM101: -2.803950078 | CN101: 0.2544971305 | CO101: 1.973330438 | CP101: -0.2496417527 | CQ101: 0 | CR101: -1.591549154 | CS101: -4.964948233 | CT101: -2.9330424 | CU101: -3.455591204 | CV101: 0 | CW101: 0 | CX101: -3.928112603 | CY101: -9.678144925 | CZ101: -0.9012119891 | DA101: -0.1593482848 | DB101: 0 | DC101: -1.195000423 | DD101: 1.081885434 | DE101: -2.034115782 | DF101: -0.2901228935 | DG101: -1.161202019 | DH101: 2.112393282 | DI101: 0.5105040258 | DJ101: -2.546652319 | DK101: -3.67417374 | DL101: -0.3572689152 | DM101: 2.681766477 | DN101: 0.09116149018 | DP101: 61.68952737 | DQ101: =(DP101-T$58)*((1+(U$55+CF101)/100)*(1-T$62)+T$62*((1+(U$57+DD101)/100)))/(1+(U$54+BT101)/100)-(U$56+CR101)+U$58 -> 65.75241673 | DR101: 69.77333924 | DS101: 74.41047066 | DT101: 78.52869721 | DU101: 75.31061742 | DV101: 71.19926354 | DW101: 77.52731198 | DX101: 88.33134711 | DY101: 87.48456974 | DZ101: 87.30615146 | EA101: 82.0840716
A102: 34 | B102: -4.540487037 | C102: 5.440868596 | D102: -7.848541402 | E102: -0.9831849967 | H102: -6.770260813 | I102: -5.511232531 | J102: 4.446358279 | K102: -3.716612308 | L102: 4.819251511 | M102: 5.587191768 | N102: -13.68669171 | O102: 3.092708614 | P102: 1.109737192 | Q102: 1.298183278 | R102: -0.9003223764 | S102: 8.793810523 | T102: -1.127961929 | U102: -0.660813888 | V102: 0.1977088417 | W102: -2.560318632 | X102: -0.2312671559 | Y102: 2.017666608 | Z102: -0.7311809881 | AA102: 2.101921372 | AB102: -0.9453308507 | AC102: -1.909082702 | AD102: 1.918188687 | AE102: 4.672968222 | AF102: -5.688193312 | AG102: -4.230644731 | AH102: 4.028197077 | AI102: -1.841678392 | AJ102: 0.09781250575 | AK102: 4.254417533 | AL102: -3.637695991 | AM102: -3.352194572 | AN102: -3.48401533 | AO102: -0.6444292557 | AP102: 5.750361644 | AQ102: 6.144937417 | AR102: -2.220924601 | AS102: -1.57519951 | AT102: 0.4591501865 | AU102: -3.090549019 | AV102: -0.222477588 | AW102: 2.997421111 | AX102: -2.020432367 | AY102: 2.680952493 | AZ102: -0.2802427667 | BA102: -1.74585459 | BB102: 1.815765617 | BC102: 6.688991339 | BE102: 70.1900241 | BF102: =(BE102-T$58)*((1+(U$55+U102)/100)*(1-T$62)+T$62*((1+(U$57+AS102)/100)))/(1+(U$54+I102)/100)-(U$56+AG102)+U$58 -> 78.14622858 | BG102: 71.41882985 | BH102: 74.21204806 | BI102: 71.20368473 | BJ102: 65.32211087 | BK102: 77.95426752 | BL102: 81.10932041 | BM102: 83.59551213 | BN102: 82.0765359 | BO102: 78.72665585 | BP102: 70.85383451 | BS102: -6.770260813 | BT102: -5.511232531 | BU102: 4.446358279 | BV102: -3.716612308 | BW102: 4.819251511 | BX102: 5.587191768 | BY102: -13.68669171 | BZ102: 3.092708614 | CA102: 1.109737192 | CB102: 1.298183278 | CC102: -0.9003223764 | CD102: 8.793810523 | CE102: -1.127961929 | CF102: -0.660813888 | CG102: 0.1977088417 | CH102: -2.560318632 | CI102: -0.2312671559 | CJ102: 2.017666608 | CK102: -0.7311809881 | CL102: 2.101921372 | CM102: -0.9453308507 | CN102: -1.909082702 | CO102: 1.918188687 | CP102: 4.672968222 | CQ102: -5.688193312 | CR102: -4.230644731 | CS102: 0 | CT102: -1.841678392 | CU102: 0 | CV102: 0 | CW102: -3.637695991 | CX102: -3.352194572 | CY102: -3.48401533 | CZ102: -0.6444292557 | DA102: 0 | DB102: 0 | DC102: -2.220924601 | DD102: -1.57519951 | DE102: 0.4591501865 | DF102: -3.090549019 | DG102: -0.222477588 | DH102: 2.997421111 | DI102: -2.020432367 | DJ102: 2.680952493 | DK102: -0.2802427667 | DL102: -1.74585459 | DM102: 1.815765617 | DN102: 6.688991339 | DP102: 70.1900241 | DQ102: =(DP102-T$58)*((1+(U$55+CF102)/100)*(1-T$62)+T$62*((1+(U$57+DD102)/100)))/(1+(U$54+BT102)/100)-(U$56+CR102)+U$58 -> 78.14622858 | DR102: 75.44702693 | DS102: 78.27205738 | DT102: 75.16633831 | DU102: 73.41368364 | DV102: 87.10078842 | DW102: 90.15928058 | DX102: 92.46174627 | DY102: 90.6411473 | DZ102: 93.23071743 | EA102: 91.06169732
A103: 35 | B103: -0.3757780931 | C103: 6.167930569 | D103: -3.889314533 | E103: 0.7008398486 | H103: -2.605551869 | I103: -3.963894615 | J103: 0.1123037967 | K103: 0.5612322103 | L103: -1.465682096 | M103: -11.69881272 | N103: 4.848387306 | O103: 0.8557577742 | P103: -11.00581607 | Q103: -7.607581563 | R103: 6.502789112 | S103: -0.5527257384 | T103: -0.4008999556 | U103: 0.2449137224 | V103: -2.042314464 | W103: 1.393899391 | X103: -0.829938949 | Y103: -0.856492757 | Z103: 0.1703204927 | AA103: 1.463780638 | AB103: -1.838403589 | AC103: -2.718792644 | AD103: 0.89672535 | AE103: 0.8944929519 | AF103: -1.728966443 | AG103: 2.581386738 | AH103: -1.184494957 | AI103: 1.503063273 | AJ103: 0.6884642307 | AK103: 3.859571391 | AL103: -0.843809554 | AM103: 4.866398882 | AN103: -4.788536581 | AO103: -1.877666989 | AP103: 2.329676134 | AQ103: 5.917293909 | AR103: -0.5368997561 | AS103: -0.8586949582 | AT103: -1.754150513 | AU103: 1.880051235 | AV103: -1.660917909 | AW103: -2.950771471 | AX103: 1.134160385 | AY103: 1.883763059 | AZ103: -3.641374072 | BA103: -3.590050122 | BB103: 1.670670961 | BC103: 0.4715161548 | BE103: 64.59353212 | BF103: =(BE103-T$58)*((1+(U$55+U103)/100)*(1-T$62)+T$62*((1+(U$57+AS103)/100)))/(1+(U$54+I103)/100)-(U$56+AG103)+U$58 -> 65.05958541 | BG103: 65.22726182 | BH103: 64.78241154 | BI103: 64.66576352 | BJ103: 67.69250939 | BK103: 66.40320448 | BL103: 62.37927952 | BM103: 72.82955797 | BN103: 78.25235989 | BO103: 72.6272696 | BP103: 67.85088565 | BS103: -2.605551869 | BT103: -3.963894615 | BU103: 0.1123037967 | BV103: 0.5612322103 | BW103: -1.465682096 | BX103: -11.69881272 | BY103: 4.848387306 | BZ103: 0.8557577742 | CA103: -11.00581607 | CB103: -7.607581563 | CC103: 6.502789112 | CD103: -0.5527257384 | CE103: -0.4008999556 | CF103: 0.2449137224 | CG103: -2.042314464 | CH103: 1.393899391 | CI103: -0.829938949 | CJ103: -0.856492757 | CK103: 0.1703204927 | CL103: 1.463780638 | CM103: -1.838403589 | CN103: -2.718792644 | CO103: 0.89672535 | CP103: 0.8944929519 | CQ103: -1.728966443 | CR103: 0 | CS103: -1.184494957 | CT103: 0 | CU103: 0 | CV103: 0 | CW103: -0.843809554 | CX103: 0 | CY103: -4.788536581 | CZ103: -1.877666989 | DA103: 0 | DB103: 0 | DC103: -0.5368997561 | DD103: -0.8586949582 | DE103: -1.754150513 | DF103: 1.880051235 | DG103: -1.660917909 | DH103: -2.950771471 | DI103: 1.134160385 | DJ103: 1.883763059 | DK103: -3.641374072 | DL103: -3.590050122 | DM103: 1.670670961 | DN103: 0.4715161548 | DP103: 64.59353212 | DQ103: =(DP103-T$58)*((1+(U$55+CF103)/100)*(1-T$62)+T$62*((1+(U$57+DD103)/100)))/(1+(U$54+BT103)/100)-(U$56+CR103)+U$58 -> 67.64097214 | DR103: 67.75920123 | DS103: 68.84361594 | DT103: 69.41472116 | DU103: 76.77448085 | DV103: 75.10164947 | DW103: 75.97522213 | DX103: 87.55056958 | DY103: 93.57433622 | DZ103: 89.49765021 | EA103: 90.76144193
A104: 36 | B104: 4.429803601 | C104: 9.170582389 | D104: 2.594701216 | E104: 4.153363445 | H104: 2.200029825 | I104: 2.545260363 | J104: 1.827684448 | K104: -2.769172344 | L104: 1.707394229 | M104: -1.42637985 | N104: 0.2769726609 | O104: 11.24827476 | P104: 9.929720805 | Q104: 4.771529321 | R104: -7.133241855 | S104: 4.537155902 | T104: 2.601751864 | U104: 0.9980251571 | V104: 1.263783706 | W104: -2.108142305 | X104: -0.415984432 | Y104: 0.6307127472 | Z104: -1.788586541 | AA104: 1.887775068 | AB104: -0.1899700845 | AC104: 0.9088109744 | AD104: -2.345272612 | AE104: 4.447632896 | AF104: 4.755049306 | AG104: 0.8471027591 | AH104: 5.159442716 | AI104: -1.267852349 | AJ104: 5.109297461 | AK104: -2.744558859 | AL104: -3.389858927 | AM104: -3.423114535 | AN104: 3.153158339 | AO104: 6.713167903 | AP104: 0.1378676916 | AQ104: 5.699357894 | AR104: 2.915623841 | AS104: 1.19279053 | AT104: 1.129686748 | AU104: -2.605245195 | AV104: -0.6408979993 | AW104: 0.795649373 | AX104: -1.939407202 | AY104: 3.837509075 | AZ104: 0.2144496611 | BA104: 1.261756636 | BB104: -3.00559097 | BC104: 4.921831089 | BE104: 57.30294382 | BF104: =(BE104-T$58)*((1+(U$55+U104)/100)*(1-T$62)+T$62*((1+(U$57+AS104)/100)))/(1+(U$54+I104)/100)-(U$56+AG104)+U$58 -> 56.70776864 | BG104: 51.39614469 | BH104: 53.21988562 | BI104: 47.50366028 | BJ104: 51.59294268 | BK104: 54.38757946 | BL104: 54.43242985 | BM104: 47.08089795 | BN104: 39.26632775 | BO104: 41.27678818 | BP104: 36.09953936 | BS104: 2.200029825 | BT104: 2.545260363 | BU104: 1.827684448 | BV104: -2.769172344 | BW104: 1.707394229 | BX104: -1.42637985 | BY104: 0.2769726609 | BZ104: 11.24827476 | CA104: 9.929720805 | CB104: 4.771529321 | CC104: -7.133241855 | CD104: 4.537155902 | CE104: 2.601751864 | CF104: 0.9980251571 | CG104: 1.263783706 | CH104: -2.108142305 | CI104: -0.415984432 | CJ104: 0.6307127472 | CK104: -1.788586541 | CL104: 1.887775068 | CM104: -0.1899700845 | CN104: 0.9088109744 | CO104: -2.345272612 | CP104: 4.447632896 | CQ104: 0 | CR104: 0 | CS104: 0 | CT104: -1.267852349 | CU104: 0 | CV104: -2.744558859 | CW104: -3.389858927 | CX104: -3.423114535 | CY104: 0 | CZ104: 0 | DA104: 0 | DB104: 0 | DC104: 2.915623841 | DD104: 1.19279053 | DE104: 1.129686748 | DF104: -2.605245195 | DG104: -0.6408979993 | DH104: 0.795649373 | DI104: -1.939407202 | DJ104: 3.837509075 | DK104: 0.2144496611 | DL104: 1.261756636 | DM104: -3.00559097 | DN104: 4.921831089 | DP104: 62.05799312 | DQ104: =(DP104-T$58)*((1+(U$55+CF104)/100)*(1-T$62)+T$62*((1+(U$57+DD104)/100)))/(1+(U$54+BT104)/100)-(U$56+CR104)+U$58 -> 62.19074902 | DR104: 62.00416641 | DS104: 63.86092307 | DT104: 63.00901153 | DU104: 67.35483788 | DV104: 69.75348022 | DW104: 68.64016995 | DX104: 63.14995841 | DY104: 61.43844234 | DZ104: 64.48265078 | EA104: 64.94628692
A105: 37 | B105: 2.588944308 | C105: 5.347542688 | D105: 1.438520352 | E105: -0.6110966157 | H105: 0.3591705323 | I105: 1.364702271 | J105: 6.16453358 | K105: 5.086865333 | L105: -0.6332081456 | M105: 8.944025173 | N105: -2.474622161 | O105: 3.794715997 | P105: 1.385584118 | Q105: 0.5819108437 | R105: -0.8099521216 | S105: -0.1303461145 | T105: -1.221287837 | U105: -0.8172409662 | V105: 2.767064638 | W105: 0.468482031 | X105: 2.709095056 | Y105: 0.9077701714 | Z105: 0.34640771 | AA105: 1.456168221 | AB105: 1.10680858 | AC105: 0.524601159 | AD105: -1.109504136 | AE105: 2.626283996 | AF105: 3.598868442 | AG105: 2.201978068 | AH105: 0.2312921473 | AI105: -1.411437685 | AJ105: 3.563875396 | AK105: 3.19769532 | AL105: 1.661507655 | AM105: 1.789968633 | AN105: -0.02879000295 | AO105: 1.401947202 | AP105: 3.069601181 | AQ105: 4.195134952 | AR105: -1.84883622 | AS105: -0.818047257 | AT105: 3.597806913 | AU105: 0.9083800673 | AV105: 2.479145584 | AW105: 0.8929334577 | AX105: 0.6547333606 | AY105: 2.422246345 | AZ105: 1.484265734 | BA105: 0.6384139773 | BB105: -2.131507966 | BC105: 2.868714586 | BE105: 57.09182708 | BF105: =(BE105-T$58)*((1+(U$55+U105)/100)*(1-T$62)+T$62*((1+(U$57+AS105)/100)))/(1+(U$54+I105)/100)-(U$56+AG105)+U$58 -> 54.73590599 | BG105: 53.30895084 | BH105: 53.03577653 | BI105: 51.56817596 | BJ105: 45.17356225 | BK105: 45.27046103 | BL105: 43.17766683 | BM105: 43.62023301 | BN105: 42.66572882 | BO105: 39.65775802 | BP105: 36.9844099 | BS105: 0.3591705323 | BT105: 1.364702271 | BU105: 6.16453358 | BV105: 5.086865333 | BW105: -0.6332081456 | BX105: 8.944025173 | BY105: -2.474622161 | BZ105: 3.794715997 | CA105: 1.385584118 | CB105: 0.5819108437 | CC105: -0.8099521216 | CD105: -0.1303461145 | CE105: -1.221287837 | CF105: -0.8172409662 | CG105: 2.767064638 | CH105: 0.468482031 | CI105: 2.709095056 | CJ105: 0.9077701714 | CK105: 0.34640771 | CL105: 1.456168221 | CM105: 1.10680858 | CN105: 0.524601159 | CO105: -1.109504136 | CP105: 2.626283996 | CQ105: 0 | CR105: 0 | CS105: 0 | CT105: -1.411437685 | CU105: 0 | CV105: 0 | CW105: 0 | CX105: 0 | CY105: -0.02879000295 | CZ105: 0 | DA105: 0 | DB105: 0 | DC105: -1.84883622 | DD105: -0.818047257 | DE105: 3.597806913 | DF105: 0.9083800673 | DG105: 2.479145584 | DH105: 0.8929334577 | DI105: 0.6547333606 | DJ105: 2.422246345 | DK105: 1.484265734 | DL105: 0.6384139773 | DM105: -2.131507966 | DN105: 2.868714586 | DP105: 60.69069552 | DQ105: =(DP105-T$58)*((1+(U$55+CF105)/100)*(1-T$62)+T$62*((1+(U$57+DD105)/100)))/(1+(U$54+BT105)/100)-(U$56+CR105)+U$58 -> 60.41956233 | DR105: 59.0744363 | DS105: 58.56796464 | DT105: 60.82682059 | DU105: 56.93193647 | DV105: 58.98429182 | DW105: 58.39556853 | DX105: 58.76313251 | DY105: 59.14461179 | DZ105: 58.98276096 | EA105: 60.95941337
A106: 38 | B106: 5.159372654 | C106: 7.280095182 | D106: -2.073287525 | E106: 1.954826672 | H106: 2.929598878 | I106: -4.033791579 | J106: 8.556706692 | K106: -3.788844642 | L106: -2.166493177 | M106: -0.123059057 | N106: -1.950830133 | O106: 4.761316367 | P106: 5.192546557 | Q106: 2.01463502 | R106: 0.3107857657 | S106: -1.49241363 | T106: 0.7112646571 | U106: 0.1197765538 | V106: -0.8461570258 | W106: -1.040839662 | X106: 1.391626141 | Y106: 0.6779682622 | Z106: 0.3635151635 | AA106: 0.7678442087 | AB106: 0.5114117467 | AC106: -1.373216311 | AD106: 0.2424632437 | AE106: 1.073476849 | AF106: 0.08706056452 | AG106: -4.973316851 | AH106: 2.068838214 | AI106: -2.882702669 | AJ106: -5.603430569 | AK106: 0.9717075044 | AL106: 0.8198714358 | AM106: -4.141965168 | AN106: 4.387348971 | AO106: -1.9252648 | AP106: -0.5042334083 | AQ106: -3.450466867 | AR106: 0.7170870669 | AS106: -0.1291882846 | AT106: 0.02973650047 | AU106: -0.721486757 | AV106: 1.859968793 | AW106: 0.9636120295 | AX106: 0.09820612927 | AY106: 1.259942774 | AZ106: 1.322657806 | BA106: -1.661955679 | BB106: 0.01239544498 | BC106: 1.088148639 | BE106: 60.51977988 | BF106: =(BE106-T$58)*((1+(U$55+U106)/100)*(1-T$62)+T$62*((1+(U$57+AS106)/100)))/(1+(U$54+I106)/100)-(U$56+AG106)+U$58 -> 68.73345958 | BG106: 61.57627024 | BH106: 66.59333154 | BI106: 75.11434361 | BJ106: 75.08564839 | BK106: 76.15867073 | BL106: 78.03344731 | BM106: 70.98290176 | BN106: 70.90156583 | BO106: 71.56566371 | BP106: 77.09130426 | BS106: 2.929598878 | BT106: -4.033791579 | BU106: 8.556706692 | BV106: -3.788844642 | BW106: -2.166493177 | BX106: -0.123059057 | BY106: -1.950830133 | BZ106: 4.761316367 | CA106: 5.192546557 | CB106: 2.01463502 | CC106: 0.3107857657 | CD106: -1.49241363 | CE106: 0.7112646571 | CF106: 0.1197765538 | CG106: -0.8461570258 | CH106: -1.040839662 | CI106: 1.391626141 | CJ106: 0.6779682622 | CK106: 0.3635151635 | CL106: 0.7678442087 | CM106: 0.5114117467 | CN106: -1.373216311 | CO106: 0.2424632437 | CP106: 1.073476849 | CQ106: 0 | CR106: -4.973316851 | CS106: 0 | CT106: -2.882702669 | CU106: -5.603430569 | CV106: 0 | CW106: 0 | CX106: -4.141965168 | CY106: 0 | CZ106: -1.9252648 | DA106: -0.5042334083 | DB106: -3.450466867 | DC106: 0.7170870669 | DD106: -0.1291882846 | DE106: 0.02973650047 | DF106: -0.721486757 | DG106: 1.859968793 | DH106: 0.9636120295 | DI106: 0.09820612927 | DJ106: 1.259942774 | DK106: 1.322657806 | DL106: -1.661955679 | DM106: 0.01239544498 | DN106: 1.088148639 | DP106: 60.60684045 | DQ106: =(DP106-T$58)*((1+(U$55+CF106)/100)*(1-T$62)+T$62*((1+(U$57+DD106)/100)))/(1+(U$54+BT106)/100)-(U$56+CR106)+U$58 -> 68.82292581 | DR106: 63.72749651 | DS106: 68.80687915 | DT106: 77.4073323 | DU106: 78.36156477 | DV106: 80.30907545 | DW106: 82.02395267 | DX106: 79.18971811 | DY106: 78.79705751 | DZ106: 79.40878284 | EA106: 85.09692301
A107: 39 | B107: 1.769277307 | C107: 4.164716231 | D107: -5.41953463 | E107: -1.403582902 | H107: -0.460496469 | I107: 3.600353968 | J107: 5.046377833 | K107: 6.946988088 | L107: 0.8930979022 | M107: 3.72178784 | N107: 5.013053875 | O107: 2.870649972 | P107: -4.400949963 | Q107: 4.968218863 | R107: 4.516221572 | S107: 1.582795868 | T107: -2.404114294 | U107: 0.3998879288 | V107: -0.838799177 | W107: -1.129475918 | X107: 1.833147265 | Y107: 0.1913835969 | Z107: 1.854068395 | AA107: -2.700318542 | AB107: -0.8723407616 | AC107: 0.6182127599 | AD107: 0.1479084249 | AE107: 0.7653473925 | AF107: -3.25918654 | AG107: -6.921052255 | AH107: -3.683145254 | AI107: -3.056124227 | AJ107: 2.19720266 | AK107: 0.9841617809 | AL107: 5.40331731 | AM107: -8.251458682 | AN107: -0.8310097268 | AO107: 3.085541935 | AP107: 1.147506055 | AQ107: 0.9164792523 | AR107: -2.641322507 | AS107: 1.426861633 | AT107: -0.7089082825 | AU107: -0.7249819951 | AV107: 2.10814358 | AW107: -0.047338828 | AX107: 2.227012158 | AY107: -1.540165722 | AZ107: -1.801029256 | BA107: 1.309757233 | BB107: 0.3803905443 | BC107: 1.024098346 | BE107: 63.86580764 | BF107: =(BE107-T$58)*((1+(U$55+U107)/100)*(1-T$62)+T$62*((1+(U$57+AS107)/100)))/(1+(U$54+I107)/100)-(U$56+AG107)+U$58 -> 70.24402059 | BG107: 70.45999015 | BH107: 69.02303762 | BI107: 68.00149577 | BJ107: 65.04725046 | BK107: 58.31655391 | BL107: 64.32306925 | BM107: 67.38125817 | BN107: 62.25003058 | BO107: 59.07845016 | BP107: 58.17009241 | BS107: -0.460496469 | BT107: 3.600353968 | BU107: 5.046377833 | BV107: 6.946988088 | BW107: 0.8930979022 | BX107: 3.72178784 | BY107: 5.013053875 | BZ107: 2.870649972 | CA107: -4.400949963 | CB107: 4.968218863 | CC107: 4.516221572 | CD107: 1.582795868 | CE107: -2.404114294 | CF107: 0.3998879288 | CG107: -0.838799177 | CH107: -1.129475918 | CI107: 1.833147265 | CJ107: 0.1913835969 | CK107: 1.854068395 | CL107: -2.700318542 | CM107: -0.8723407616 | CN107: 0.6182127599 | CO107: 0.1479084249 | CP107: 0.7653473925 | CQ107: -3.25918654 | CR107: -6.921052255 | CS107: -3.683145254 | CT107: -3.056124227 | CU107: 0 | CV107: 0 | CW107: 0 | CX107: -8.251458682 | CY107: -0.8310097268 | CZ107: 0 | DA107: 0 | DB107: 0 | DC107: -2.641322507 | DD107: 1.426861633 | DE107: -0.7089082825 | DF107: -0.7249819951 | DG107: 2.10814358 | DH107: -0.047338828 | DI107: 2.227012158 | DJ107: -1.540165722 | DK107: -1.801029256 | DL107: 1.309757233 | DM107: 0.3803905443 | DN107: 1.024098346 | DP107: 63.86580764 | DQ107: =(DP107-T$58)*((1+(U$55+CF107)/100)*(1-T$62)+T$62*((1+(U$57+DD107)/100)))/(1+(U$54+BT107)/100)-(U$56+CR107)+U$58 -> 70.24402059 | DR107: 70.45999015 | DS107: 69.02303762 | DT107: 70.19869843 | DU107: 68.14436248 | DV107: 66.7199837 | DW107: 72.30442252 | DX107: 75.56668782 | DY107: 73.18867405 | DZ107: 70.68876911 | EA107: 70.57312039
A108: 40 | B108: 2.613177204 | C108: 7.855791138 | D108: 2.014673575 | E108: 1.645250098 | H108: 0.3834034283 | I108: -1.427555922 | J108: 7.44886184 | K108: -3.03678301 | L108: -2.010465252 | M108: -2.642666474 | N108: 1.26330884 | O108: -0.9599869191 | P108: -3.478382182 | Q108: -3.398972781 | R108: -2.629698583 | S108: -2.153570428 | T108: 1.286960613 | U108: 2.113310504 | V108: 0.934032428 | W108: 2.13269459 | X108: 2.251813068 | Y108: -0.02574118186 | Z108: -0.3271176783 | AA108: 0.5178415306 | AB108: -1.403951876 | AC108: 1.28230576 | AD108: 0.6763435331 | AE108: -3.476286786 | AF108: 4.175021665 | AG108: -0.2041119644 | AH108: 6.174560394 | AI108: 3.964025929 | AJ108: 2.822846333 | AK108: 2.692392385 | AL108: 2.600681127 | AM108: -0.7635436775 | AN108: -5.077752401 | AO108: 0.2641795808 | AP108: -0.8958873611 | AQ108: -3.054532279 | AR108: 0.407510493 | AS108: 2.375967988 | AT108: 2.45899954 | AU108: 2.658750829 | AV108: 2.00884057 | AW108: -0.6735545361 | AX108: -0.9154025927 | AY108: 0.6220105457 | AZ108: -1.349590481 | BA108: 1.262613488 | BB108: -0.5150768338 | BC108: -4.324681184 | BE108: 57.75502836 | BF108: =(BE108-T$58)*((1+(U$55+U108)/100)*(1-T$62)+T$62*((1+(U$57+AS108)/100)))/(1+(U$54+I108)/100)-(U$56+AG108)+U$58 -> 60.92792454 | BG108: 51.99004641 | BH108: 51.14284125 | BI108: 50.82488304 | BJ108: 49.58799388 | BK108: 46.55669366 | BL108: 48.39256144 | BM108: 54.86163758 | BN108: 57.46612364 | BO108: 60.14849329 | BP108: 62.52077748 | BS108: 0.3834034283 | BT108: -1.427555922 | BU108: 7.44886184 | BV108: -3.03678301 | BW108: -2.010465252 | BX108: -2.642666474 | BY108: 1.26330884 | BZ108: -0.9599869191 | CA108: -3.478382182 | CB108: -3.398972781 | CC108: -2.629698583 | CD108: -2.153570428 | CE108: 1.286960613 | CF108: 2.113310504 | CG108: 0.934032428 | CH108: 2.13269459 | CI108: 2.251813068 | CJ108: -0.02574118186 | CK108: -0.3271176783 | CL108: 0.5178415306 | CM108: -1.403951876 | CN108: 1.28230576 | CO108: 0.6763435331 | CP108: -3.476286786 | CQ108: 0 | CR108: -0.2041119644 | CS108: 0 | CT108: 0 | CU108: 0 | CV108: 0 | CW108: 0 | CX108: -0.7635436775 | CY108: -5.077752401 | CZ108: 0 | DA108: -0.8958873611 | DB108: -3.054532279 | DC108: 0.407510493 | DD108: 2.375967988 | DE108: 2.45899954 | DF108: 2.658750829 | DG108: 2.00884057 | DH108: -0.6735545361 | DI108: -0.9154025927 | DJ108: 0.6220105457 | DK108: -1.349590481 | DL108: 1.262613488 | DM108: -0.5150768338 | DN108: -4.324681184 | DP108: 61.93005002 | DQ108: =(DP108-T$58)*((1+(U$55+CF108)/100)*(1-T$62)+T$62*((1+(U$57+DD108)/100)))/(1+(U$54+BT108)/100)-(U$56+CR108)+U$58 -> 65.20362216 | DR108: 62.22592949 | DS108: 65.89607069 | DT108: 68.9726067 | DU108: 70.74888626 | DV108: 69.83682888 | DW108: 71.91124299 | DX108: 78.7669963 | DY108: 82.63709652 | DZ108: 85.84343724 | EA108: 87.64459236
A109: 41 | B109: 3.595525745 | C109: 7.22502573 | D109: 1.378668488 | E109: 2.53606017 | H109: 1.365751969 | I109: -3.098832598 | J109: 3.211540163 | K109: -9.357214948 | L109: -4.863581365 | M109: 1.299299209 | N109: 3.523555201 | O109: -3.170298456 | P109: 4.176702083 | Q109: -2.326615716 | R109: 0.08567417082 | S109: 3.936035192 | T109: 0.6561952054 | U109: -0.3035797991 | V109: 0.3938803109 | W109: -3.372043002 | X109: -2.008537808 | Y109: 1.757822294 | Z109: 3.516710794 | AA109: -1.514230428 | AB109: -1.140659579 | AC109: 1.67465077 | AD109: 0.6992194686 | AE109: -0.7963337996 | AF109: 3.539016578 | AG109: -2.686382775 | AH109: -1.279919676 | AI109: -6.246422563 | AJ109: -4.164965746 | AK109: 7.97282716 | AL109: 2.333610884 | AM109: -5.168188889 | AN109: -0.4646081206 | AO109: 4.121784898 | AP109: 2.17017885 | AQ109: -1.633725677 | AR109: 1.298320565 | AS109: -0.774344583 | AT109: 1.125117103 | AU109: -4.340807453 | AV109: -3.340102703 | AW109: 2.165560956 | AX109: 4.413505817 | AY109: -1.869423746 | AZ109: -1.076719416 | BA109: 1.589337331 | BB109: 0.4029193091 | BC109: -0.4673824877 | BE109: 58.03333523 | BF109: =(BE109-T$58)*((1+(U$55+U109)/100)*(1-T$62)+T$62*((1+(U$57+AS109)/100)))/(1+(U$54+I109)/100)-(U$56+AG109)+U$58 -> 63.04659889 | BG109: 63.1636489 | BH109: 73.29759755 | BI109: 79.43362196 | BJ109: 72.21756321 | BK109: 70.57735822 | BL109: 77.01223559 | BM109: 74.08309823 | BN109: 73.08964773 | BO109: 71.50642306 | BP109: 70.51322083 | BS109: 1.365751969 | BT109: -3.098832598 | BU109: 3.211540163 | BV109: -9.357214948 | BW109: -4.863581365 | BX109: 1.299299209 | BY109: 3.523555201 | BZ109: -3.170298456 | CA109: 4.176702083 | CB109: -2.326615716 | CC109: 0.08567417082 | CD109: 3.936035192 | CE109: 0.6561952054 | CF109: -0.3035797991 | CG109: 0.3938803109 | CH109: -3.372043002 | CI109: -2.008537808 | CJ109: 1.757822294 | CK109: 3.516710794 | CL109: -1.514230428 | CM109: -1.140659579 | CN109: 1.67465077 | CO109: 0.6992194686 | CP109: -0.7963337996 | CQ109: 0 | CR109: -2.686382775 | CS109: -1.279919676 | CT109: -6.246422563 | CU109: -4.164965746 | CV109: 0 | CW109: 0 | CX109: -5.168188889 | CY109: -0.4646081206 | CZ109: 0 | DA109: 0 | DB109: -1.633725677 | DC109: 1.298320565 | DD109: -0.774344583 | DE109: 1.125117103 | DF109: -4.340807453 | DG109: -3.340102703 | DH109: 2.165560956 | DI109: 4.413505817 | DJ109: -1.869423746 | DK109: -1.076719416 | DL109: 1.589337331 | DM109: 0.4029193091 | DN109: -0.4673824877 | DP109: 61.5723518 | DQ109: =(DP109-T$58)*((1+(U$55+CF109)/100)*(1-T$62)+T$62*((1+(U$57+DD109)/100)))/(1+(U$54+BT109)/100)-(U$56+CR109)+U$58 -> 66.62978542 | DR109: 66.66736181 | DS109: 77.00022168 | DT109: 83.20787378 | DU109: 83.9730759 | DV109: 84.67120734 | DW109: 91.23994333 | DX109: 87.55519988 | DY109: 91.14671398 | DZ109: 91.72520693 | EA109: 89.79420868
A110: 42 | B110: 1.610322251 | C110: 2.400564123 | D110: -5.397920671 | E110: -3.702636218 | H110: -0.6194515255 | I110: -2.273322866 | J110: -2.486779719 | K110: 1.426904238 | L110: -2.227191047 | M110: 3.8457327 | N110: -2.064941025 | O110: -2.508929305 | P110: -1.66073052 | Q110: 1.057159527 | R110: -0.5676060472 | S110: -2.972371423 | T110: -4.168266401 | U110: -1.540685396 | V110: -1.223404481 | W110: 0.2547958451 | X110: 0.1587511206 | Y110: 1.623094936 | Z110: -2.46351215 | AA110: 0.7063766023 | AB110: -1.603925261 | AC110: 2.231453132 | AD110: 1.057027139 | AE110: -0.1208674647 | AF110: -3.237572581 | AG110: -0.0551216087 | AH110: -3.369327536 | AI110: 1.025625373 | AJ110: 1.362475739 | AK110: 3.97326845 | AL110: -6.917687405 | AM110: 3.678611638 | AN110: -2.584851419 | AO110: -4.165024364 | AP110: -0.244369256 | AQ110: -1.083503531 | AR110: -4.940375823 | AS110: -2.285196194 | AT110: -1.375762416 | AU110: 0.4849941923 | AV110: -0.3324790318 | AW110: 2.690375644 | AX110: -2.253187008 | AY110: 0.6538040941 | AZ110: -1.060307635 | BA110: 2.870292586 | BB110: 0.8107573021 | BC110: -0.1981600947 | BE110: 62.80638745 | BF110: =(BE110-T$58)*((1+(U$55+U110)/100)*(1-T$62)+T$62*((1+(U$57+AS110)/100)))/(1+(U$54+I110)/100)-(U$56+AG110)+U$58 -> 63.90780567 | BG110: 68.17690227 | BH110: 66.86970439 | BI110: 67.32903972 | BJ110: 62.67248155 | BK110: 69.80875163 | BL110: 68.55968387 | BM110: 71.70614666 | BN110: 77.22352025 | BO110: 78.81655255 | BP110: 82.32785071 | BS110: -0.6194515255 | BT110: -2.273322866 | BU110: -2.486779719 | BV110: 1.426904238 | BW110: -2.227191047 | BX110: 3.8457327 | BY110: -2.064941025 | BZ110: -2.508929305 | CA110: -1.66073052 | CB110: 1.057159527 | CC110: -0.5676060472 | CD110: -2.972371423 | CE110: -4.168266401 | CF110: -1.540685396 | CG110: -1.223404481 | CH110: 0.2547958451 | CI110: 0.1587511206 | CJ110: 1.623094936 | CK110: -2.46351215 | CL110: 0.7063766023 | CM110: -1.603925261 | CN110: 2.231453132 | CO110: 1.057027139 | CP110: -0.1208674647 | CQ110: -3.237572581 | CR110: -0.0551216087 | CS110: -3.369327536 | CT110: 0 | CU110: 0 | CV110: 0 | CW110: -6.917687405 | CX110: 0 | CY110: -2.584851419 | CZ110: -4.165024364 | DA110: -0.244369256 | DB110: -1.083503531 | DC110: -4.940375823 | DD110: -2.285196194 | DE110: -1.375762416 | DF110: 0.4849941923 | DG110: -0.3324790318 | DH110: 2.690375644 | DI110: -2.253187008 | DJ110: 0.6538040941 | DK110: -1.060307635 | DL110: 2.870292586 | DM110: 0.8107573021 | DN110: -0.1981600947 | DP110: 62.80638745 | DQ110: =(DP110-T$58)*((1+(U$55+CF110)/100)*(1-T$62)+T$62*((1+(U$57+DD110)/100)))/(1+(U$54+BT110)/100)-(U$56+CR110)+U$58 -> 63.90780567 | DR110: 68.17690227 | DS110: 67.89532976 | DT110: 69.73659078 | DU110: 69.00705502 | DV110: 76.09715233 | DW110: 78.69409521 | DX110: 81.83182346 | DY110: 87.45314029 | DZ110: 89.14447969 | EA110: 92.89677749
A111: 43 | B111: -7.569186374 | C111: 7.188265399 | D111: 0.8209018543 | E111: 0.8181713225 | H111: -9.798960151 | I111: -10.34709244 | J111: -5.940081994 | K111: 1.384655377 | L111: 0.5434346767 | M111: -5.232380938 | N111: -0.3797972724 | O111: 3.478680452 | P111: -3.325851754 | Q111: 3.459236332 | R111: -5.800343934 | S111: -7.471956761 | T111: 0.6194348744 | U111: -1.179427236 | V111: -1.43885346 | W111: 1.154840782 | X111: -0.8466281056 | Y111: 0.3484693221 | Z111: 2.107702038 | AA111: -0.1292683152 | AB111: -1.157543061 | AC111: -1.586291719 | AD111: -4.76213789 | AE111: -2.296617507 | AF111: 2.981249944 | AG111: -1.981751644 | AH111: 1.082118308 | AI111: 3.421155306 | AJ111: -1.907050935 | AK111: -1.579926804 | AL111: 2.274504891 | AM111: -3.139732836 | AN111: -3.008398545 | AO111: -2.711787224 | AP111: -4.758256887 | AQ111: 0.4253039371 | AR111: -0.4195682822 | AS111: -2.341543528 | AT111: -2.102247556 | AU111: 1.304679818 | AV111: -0.9325406966 | AW111: 0.2316627558 | AX111: 2.336290963 | AY111: -0.07667581551 | AZ111: -2.163810845 | BA111: -1.441273768 | BB111: -5.769185006 | BC111: -3.640276391 | BE111: 64.40851273 | BF111: =(BE111-T$58)*((1+(U$55+U111)/100)*(1-T$62)+T$62*((1+(U$57+AS111)/100)))/(1+(U$54+I111)/100)-(U$56+AG111)+U$58 -> 72.80406778 | BG111: 74.86864206 | BH111: 71.71891319 | BI111: 73.12170799 | BJ111: 78.96056031 | BK111: 78.96569649 | BL111: 79.78191337 | BM111: 84.29657907 | BN111: 83.45043777 | BO111: 88.78700545 | BP111: 92.56928526 | BS111: -9.798960151 | BT111: -10.34709244 | BU111: -5.940081994 | BV111: 1.384655377 | BW111: 0.5434346767 | BX111: -5.232380938 | BY111: -0.3797972724 | BZ111: 3.478680452 | CA111: -3.325851754 | CB111: 3.459236332 | CC111: -5.800343934 | CD111: -7.471956761 | CE111: 0.6194348744 | CF111: -1.179427236 | CG111: -1.43885346 | CH111: 1.154840782 | CI111: -0.8466281056 | CJ111: 0.3484693221 | CK111: 2.107702038 | CL111: -0.1292683152 | CM111: -1.157543061 | CN111: -1.586291719 | CO111: -4.76213789 | CP111: -2.296617507 | CQ111: 0 | CR111: -1.981751644 | CS111: 0 | CT111: 0 | CU111: -1.907050935 | CV111: -1.579926804 | CW111: 0 | CX111: -3.139732836 | CY111: -3.008398545 | CZ111: -2.711787224 | DA111: -4.758256887 | DB111: 0 | DC111: -0.4195682822 | DD111: -2.341543528 | DE111: -2.102247556 | DF111: 1.304679818 | DG111: -0.9325406966 | DH111: 0.2316627558 | DI111: 2.336290963 | DJ111: -0.07667581551 | DK111: -2.163810845 | DL111: -1.441273768 | DM111: -5.769185006 | DN111: -3.640276391 | DP111: 67.38976268 | DQ111: =(DP111-T$58)*((1+(U$55+CF111)/100)*(1-T$62)+T$62*((1+(U$57+DD111)/100)))/(1+(U$54+BT111)/100)-(U$56+CR111)+U$58 -> 76.01481085 | DR111: 79.29553897 | DS111: 79.55909573 | DT111: 80.84043902 | DU111: 87.07513977 | DV111: 89.52378736 | DW111: 89.94030048 | DX111: 94.56996491 | DY111: 93.20436143 | DZ111: 98.53590792 | EA111: 103.1436766
A112: 44 | B112: -9.511051375 | C112: 5.459356786 | D112: -8.822660144 | E112: -0.9420459668 | H112: -11.74082515 | I112: -6.334316075 | J112: 0.04123372108 | K112: 1.574072443 | L112: -2.542637408 | M112: -3.06028844 | N112: 3.115957622 | O112: 1.597108855 | P112: 0.9856749166 | Q112: 3.416439164 | R112: -2.820898896 | S112: 2.711100688 | T112: -1.109473739 | U112: -2.102280508 | V112: 0.09940706269 | W112: -0.4811912262 | X112: -2.569926579 | Y112: -1.822158931 | Z112: -2.236908279 | AA112: -2.878410196 | AB112: -0.2824492589 | AC112: -1.236876022 | AD112: 0.8867928154 | AE112: -1.061682359 | AF112: -6.662312055 | AG112: -7.546892717 | AH112: -5.729709813 | AI112: 2.070207532 | AJ112: -4.286808078 | AK112: -1.807513954 | AL112: 0.178378231 | AM112: -2.92930536 | AN112: 0.9780289699 | AO112: -5.121454402 | AP112: 1.691302062 | AQ112: 1.532027019 | AR112: -2.179785572 | AS112: -3.194090861 | AT112: 0.1360855052 | AU112: -0.3274684984 | AV112: -3.266485498 | AW112: -2.417068545 | AX112: -1.829815773 | AY112: -3.546350391 | AZ112: -0.235032653 | BA112: -0.6494474985 | BB112: 0.629716958 | BC112: -0.5389608113 | BE112: 74.26695403 | BF112: =(BE112-T$58)*((1+(U$55+U112)/100)*(1-T$62)+T$62*((1+(U$57+AS112)/100)))/(1+(U$54+I112)/100)-(U$56+AG112)+U$58 -> 85.14368035 | BG112: 91.12085285 | BH112: 87.74531293 | BI112: 92.10101125 | BJ112: 94.88702692 | BK112: 90.49489088 | BL112: 89.5055555 | BM112: 87.72173638 | BN112: 89.6291707 | BO112: 91.23727065 | BP112: 87.01699299 | BS112: -11.74082515 | BT112: -6.334316075 | BU112: 0.04123372108 | BV112: 1.574072443 | BW112: -2.542637408 | BX112: -3.06028844 | BY112: 3.115957622 | BZ112: 1.597108855 | CA112: 0.9856749166 | CB112: 3.416439164 | CC112: -2.820898896 | CD112: 2.711100688 | CE112: -1.109473739 | CF112: -2.102280508 | CG112: 0.09940706269 | CH112: -0.4811912262 | CI112: -2.569926579 | CJ112: -1.822158931 | CK112: -2.236908279 | CL112: -2.878410196 | CM112: -0.2824492589 | CN112: -1.236876022 | CO112: 0.8867928154 | CP112: -1.061682359 | CQ112: -6.662312055 | CR112: -7.546892717 | CS112: -5.729709813 | CT112: 0 | CU112: -4.286808078 | CV112: -1.807513954 | CW112: 0 | CX112: -2.92930536 | CY112: 0 | CZ112: -5.121454402 | DA112: 0 | DB112: 0 | DC112: -2.179785572 | DD112: -3.194090861 | DE112: 0.1360855052 | DF112: -0.3274684984 | DG112: -3.266485498 | DH112: -2.417068545 | DI112: -1.829815773 | DJ112: -3.546350391 | DK112: -0.235032653 | DL112: -0.6494474985 | DM112: 0.629716958 | DN112: -0.5389608113 | DP112: 74.26695403 | DQ112: =(DP112-T$58)*((1+(U$55+CF112)/100)*(1-T$62)+T$62*((1+(U$57+DD112)/100)))/(1+(U$54+BT112)/100)-(U$56+CR112)+U$58 -> 85.14368035 | DR112: 91.12085285 | DS112: 89.81552046 | DT112: 94.15887529 | DU112: 96.95387955 | DV112: 92.63222202 | DW112: 91.53415544 | DX112: 90.69553254 | DY112: 92.47042451 | DZ112: 95.85614831 | EA112: 92.99758663
A113: 45 | B113: 1.747025734 | C113: 9.613217555 | D113: 3.588888272 | E113: 4.283097656 | H113: -0.4827480418 | I113: -5.51444349 | J113: 8.12251096 | K113: -4.441884789 | L113: -2.286732337 | M113: -3.857970022 | N113: -0.7115563377 | O113: -0.1855472865 | P113: -5.497288007 | Q113: -5.488070128 | R113: -5.175777237 | S113: 0.09124175757 | T113: 3.044387031 | U113: 1.136454983 | V113: 1.446110364 | W113: -3.364464325 | X113: -4.806156228 | Y113: 3.342086985 | Z113: -0.9745767284 | AA113: 1.509847719 | AB113: -0.1749267119 | AC113: -1.577586857 | AD113: -1.367661821 | AE113: 1.512040021 | AF113: 5.749236362 | AG113: -5.258481798 | AH113: 2.604867381 | AI113: -10.06772927 | AJ113: -4.529616956 | AK113: 2.916439021 | AL113: -5.588792761 | AM113: 5.405695879 | AN113: 6.061110198 | AO113: -1.018002114 | AP113: -2.467965442 | AQ113: 3.09272177 | AR113: 3.045358051 | AS113: 0.1342884866 | AT113: 2.549363892 | AU113: -3.996044814 | AV113: -4.725905189 | AW113: 3.114746898 | AX113: -1.840010811 | AY113: 1.569069806 | AZ113: -0.576083647 | BA113: -2.206755755 | BB113: -2.385344004 | BC113: 1.687784564 | BE113: 57.86502596 | BF113: =(BE113-T$58)*((1+(U$55+U113)/100)*(1-T$62)+T$62*((1+(U$57+AS113)/100)))/(1+(U$54+I113)/100)-(U$56+AG113)+U$58 -> 67.45633384 | BG113: 61.52874251 | BH113: 72.38902561 | BI113: 75.65188287 | BJ113: 78.22681254 | BK113: 83.57020713 | BL113: 79.76073913 | BM113: 78.01243891 | BN113: 82.06588401 | BO113: 87.37111206 | BP113: 85.78310619 | BS113: -0.4827480418 | BT113: -5.51444349 | BU113: 8.12251096 | BV113: -4.441884789 | BW113: -2.286732337 | BX113: -3.857970022 | BY113: -0.7115563377 | BZ113: -0.1855472865 | CA113: -5.497288007 | CB113: -5.488070128 | CC113: -5.175777237 | CD113: 0.09124175757 | CE113: 3.044387031 | CF113: 1.136454983 | CG113: 1.446110364 | CH113: -3.364464325 | CI113: -4.806156228 | CJ113: 3.342086985 | CK113: -0.9745767284 | CL113: 1.509847719 | CM113: -0.1749267119 | CN113: -1.577586857 | CO113: -1.367661821 | CP113: 1.512040021 | CQ113: 0 | CR113: -5.258481798 | CS113: 0 | CT113: -10.06772927 | CU113: -4.529616956 | CV113: 0 | CW113: -5.588792761 | CX113: 0 | CY113: 0 | CZ113: -1.018002114 | DA113: -2.467965442 | DB113: 0 | DC113: 3.045358051 | DD113: 0.1342884866 | DE113: 2.549363892 | DF113: -3.996044814 | DG113: -4.725905189 | DH113: 3.114746898 | DI113: -1.840010811 | DJ113: 1.569069806 | DK113: -0.576083647 | DL113: -2.206755755 | DM113: -2.385344004 | DN113: 1.687784564 | DP113: 63.61426232 | DQ113: =(DP113-T$58)*((1+(U$55+CF113)/100)*(1-T$62)+T$62*((1+(U$57+DD113)/100)))/(1+(U$54+BT113)/100)-(U$56+CR113)+U$58 -> 73.48500944 | DR113: 69.83864314 | DS113: 80.75330816 | DT113: 83.79780188 | DU113: 89.82795392 | DV113: 95.03382164 | DW113: 96.76770962 | DX113: 101.8825707 | DY113: 106.6856075 | DZ113: 112.6678576 | EA113: 114.4323247
A114: 46 | B114: -2.167519998 | C114: 4.281845016 | D114: -8.687407221 | E114: -1.595032611 | H114: -4.397293774 | I114: -4.439499627 | J114: -1.992556066 | K114: -5.872910709 | L114: -1.710458922 | M114: 4.336690071 | N114: 5.066448149 | O114: -4.05571119 | P114: 6.831537235 | Q114: 4.124444728 | R114: 0.9682570315 | S114: 9.654052365 | T114: -2.286985509 | U114: -0.1223372505 | V114: -0.350468469 | W114: -3.241804464 | X114: 1.612143365 | Y114: -0.7738064133 | Z114: 0.2591975597 | AA114: -0.149463936 | AB114: -1.040767488 | AC114: 0.414821672 | AD114: 0.5581844119 | AE114: -0.9975103741 | AF114: -6.527059131 | AG114: 4.073395588 | AH114: 5.419542559 | AI114: 0.1891842954 | AJ114: -1.464385673 | AK114: 4.504012877 | AL114: 0.1436713063 | AM114: -0.02099278157 | AN114: -1.757285 | AO114: 1.581838063 | AP114: -2.161074889 | AQ114: -3.983329633 | AR114: -2.832772215 | AS114: -0.3280391907 | AT114: -0.1890213015 | AU114: -3.731539259 | AV114: 0.7940260047 | AW114: -0.4655673411 | AX114: 1.219456664 | AY114: -0.2004019333 | AZ114: -0.2502193311 | BA114: 0.588975187 | BB114: 0.1903606369 | BC114: 0.4579770329 | BE114: 69.20397258 | BF114: =(BE114-T$58)*((1+(U$55+U114)/100)*(1-T$62)+T$62*((1+(U$57+AS114)/100)))/(1+(U$54+I114)/100)-(U$56+AG114)+U$58 -> 68.74721675 | BG114: 64.65944825 | BH114: 66.34376012 | BI114: 70.08930706 | BJ114: 62.74611467 | BK114: 60.60951093 | BL114: 63.24967698 | BM114: 61.22787322 | BN114: 58.02209497 | BO114: 60.20175214 | BP114: 59.48791854 | BS114: -4.397293774 | BT114: -4.439499627 | BU114: -1.992556066 | BV114: -5.872910709 | BW114: -1.710458922 | BX114: 4.336690071 | BY114: 5.066448149 | BZ114: -4.05571119 | CA114: 6.831537235 | CB114: 4.124444728 | CC114: 0.9682570315 | CD114: 9.654052365 | CE114: -2.286985509 | CF114: -0.1223372505 | CG114: -0.350468469 | CH114: -3.241804464 | CI114: 1.612143365 | CJ114: -0.7738064133 | CK114: 0.2591975597 | CL114: -0.149463936 | CM114: -1.040767488 | CN114: 0.414821672 | CO114: 0.5581844119 | CP114: -0.9975103741 | CQ114: -6.527059131 | CR114: 0 | CS114: 0 | CT114: 0 | CU114: -1.464385673 | CV114: 0 | CW114: 0 | CX114: -0.02099278157 | CY114: -1.757285 | CZ114: 0 | DA114: -2.161074889 | DB114: -3.983329633 | DC114: -2.832772215 | DD114: -0.3280391907 | DE114: -0.1890213015 | DF114: -3.731539259 | DG114: 0.7940260047 | DH114: -0.4655673411 | DI114: 1.219456664 | DJ114: -0.2004019333 | DK114: -0.2502193311 | DL114: 0.588975187 | DM114: 0.1903606369 | DN114: 0.4579770329 | DP114: 69.20397258 | DQ114: =(DP114-T$58)*((1+(U$55+CF114)/100)*(1-T$62)+T$62*((1+(U$57+DD114)/100)))/(1+(U$54+BT114)/100)-(U$56+CR114)+U$58 -> 72.82061234 | DR114: 74.22200524 | DS114: 76.31929433 | DT114: 80.32626164 | DU114: 76.97689245 | DV114: 74.36705658 | DW114: 77.47453153 | DX114: 74.44035765 | DY114: 72.31798928 | DZ114: 74.34552258 | EA114: 72.35105583
A115: 47 | B115: -3.804171772 | C115: 6.393090826 | D115: -4.14474751 | E115: 0.7643648102 | H115: -6.033945548 | I115: -3.034228854 | J115: 2.879606367 | K115: -3.189552845 | L115: 1.492933867 | M115: 2.994567502 | N115: 4.211700442 | O115: -3.915453046 | P115: 4.17171426 | Q115: 1.212791218 | R115: 2.229292506 | S115: 1.384943053 | T115: -0.1757396988 | U115: -0.09143355642 | V115: -1.318402074 | W115: -1.014089243 | X115: -0.170088688 | Y115: 2.287925911 | Z115: -0.4320282208 | AA115: -4.090119699 | AB115: 1.683003472 | AC115: -1.441143224 | AD115: 0.7599214252 | AE115: 0.7974516432 | AF115: -1.98439942 | AG115: 0.7283871784 | AH115: -1.756182241 | AI115: 3.30035714 | AJ115: -0.9032550371 | AK115: 2.065439892 | AL115: 1.321178906 | AM115: -1.734081709 | AN115: 0.4545905813 | AO115: -4.882363699 | AP115: 2.279250825 | AQ115: 2.966177639 | AR115: -0.4733747945 | AS115: -0.9352003528 | AT115: -1.048315539 | AU115: -2.008723058 | AV115: 0.3503529499 | AW115: 2.770224346 | AX115: -0.217933906 | AY115: -5.563323166 | AZ115: 2.467351256 | BA115: -2.059913617 | BB115: 1.339251754 | BC115: 0.3232731724 | BE115: 66.86713465 | BF115: =(BE115-T$58)*((1+(U$55+U115)/100)*(1-T$62)+T$62*((1+(U$57+AS115)/100)))/(1+(U$54+I115)/100)-(U$56+AG115)+U$58 -> 68.5181504 | BG115: 67.93850344 | BH115: 66.04633715 | BI115: 66.58777276 | BJ115: 64.56351966 | BK115: 60.99477713 | BL115: 62.41751271 | BM115: 61.17332889 | BN115: 64.71396628 | BO115: 62.0972332 | BP115: 58.99753693 | BS115: -6.033945548 | BT115: -3.034228854 | BU115: 2.879606367 | BV115: -3.189552845 | BW115: 1.492933867 | BX115: 2.994567502 | BY115: 4.211700442 | BZ115: -3.915453046 | CA115: 4.17171426 | CB115: 1.212791218 | CC115: 2.229292506 | CD115: 1.384943053 | CE115: -0.1757396988 | CF115: -0.09143355642 | CG115: -1.318402074 | CH115: -1.014089243 | CI115: -0.170088688 | CJ115: 2.287925911 | CK115: -0.4320282208 | CL115: -4.090119699 | CM115: 1.683003472 | CN115: -1.441143224 | CO115: 0.7599214252 | CP115: 0.7974516432 | CQ115: -1.98439942 | CR115: 0 | CS115: -1.756182241 | CT115: 0 | CU115: -0.9032550371 | CV115: 0 | CW115: 0 | CX115: -1.734081709 | CY115: 0 | CZ115: -4.882363699 | DA115: 0 | DB115: 0 | DC115: -0.4733747945 | DD115: -0.9352003528 | DE115: -1.048315539 | DF115: -2.008723058 | DG115: 0.3503529499 | DH115: 2.770224346 | DI115: -0.217933906 | DJ115: -5.563323166 | DK115: 2.467351256 | DL115: -2.059913617 | DM115: 1.339251754 | DN115: 0.3232731724 | DP115: 66.86713465 | DQ115: =(DP115-T$58)*((1+(U$55+CF115)/100)*(1-T$62)+T$62*((1+(U$57+DD115)/100)))/(1+(U$54+BT115)/100)-(U$56+CR115)+U$58 -> 69.24653758 | DR115: 68.63921946 | DS115: 70.0580701 | DT115: 70.54075368 | DU115: 70.54909978 | DV115: 68.02538885 | DW115: 69.33926598 | DX115: 68.38971258 | DY115: 71.69196991 | DZ115: 71.24881225 | EA115: 71.00121731
A116: 48 | B116: 1.811854011 | C116: 4.378380111 | D116: -2.37583869 | E116: -0.7404385844 | H116: -0.4179197655 | I116: 2.026242477 | J116: -6.958361787 | K116: 3.13052101 | L116: -2.006814826 | M116: -0.9572746303 | N116: 7.586920371 | O116: -0.08517657617 | P116: -3.495382914 | Q116: -4.213468488 | R116: 4.052875019 | S116: 1.247322654 | T116: -2.190450414 | U116: -3.270086962 | V116: 0.6289030034 | W116: 3.477177604 | X116: 1.098283269 | Y116: -0.1902757306 | Z116: 1.086585893 | AA116: 1.668294435 | AB116: -1.141407048 | AC116: -2.590024323 | AD116: 0.6412610223 | AE116: 1.650522407 | AF116: -0.2154906006 | AG116: -3.907073572 | AH116: 0.8434660593 | AI116: 0.9773741941 | AJ116: 1.762924109 | AK116: -1.303895209 | AL116: 1.215136006 | AM116: 5.135143937 | AN116: -3.085285329 | AO116: -6.62201274 | AP116: -2.054580236 | AQ116: 7.169533019 | AR116: -1.978178189 | AS116: -3.569816668 | AT116: 0.07565450149 | AU116: 4.771180904 | AV116: 0.8097373397 | AW116: -0.3948635681 | AX116: 2.760818847 | AY116: 1.847022163 | AZ116: -2.538962756 | BA116: -3.270341158 | BB116: 1.129876315 | BC116: 2.312892532 | BE116: 61.06005483 | BF116: =(BE116-T$58)*((1+(U$55+U116)/100)*(1-T$62)+T$62*((1+(U$57+AS116)/100)))/(1+(U$54+I116)/100)-(U$56+AG116)+U$58 -> 62.85967644 | BG116: 66.76587722 | BH116: 66.84713149 | BI116: 67.43860412 | BJ116: 69.44856772 | BK116: 65.23280638 | BL116: 61.55281574 | BM116: 65.91644016 | BN116: 73.66925347 | BO116: 73.93275554 | BP116: 67.61117404 | BS116: -0.4179197655 | BT116: 2.026242477 | BU116: -6.958361787 | BV116: 3.13052101 | BW116: -2.006814826 | BX116: -0.9572746303 | BY116: 7.586920371 | BZ116: -0.08517657617 | CA116: -3.495382914 | CB116: -4.213468488 | CC116: 4.052875019 | CD116: 1.247322654 | CE116: -2.190450414 | CF116: -3.270086962 | CG116: 0.6289030034 | CH116: 3.477177604 | CI116: 1.098283269 | CJ116: -0.1902757306 | CK116: 1.086585893 | CL116: 1.668294435 | CM116: -1.141407048 | CN116: -2.590024323 | CO116: 0.6412610223 | CP116: 1.650522407 | CQ116: -0.2154906006 | CR116: -3.907073572 | CS116: 0 | CT116: 0 | CU116: 0 | CV116: -1.303895209 | CW116: 0 | CX116: 0 | CY116: -3.085285329 | CZ116: -6.62201274 | DA116: -2.054580236 | DB116: 0 | DC116: -1.978178189 | DD116: -3.569816668 | DE116: 0.07565450149 | DF116: 4.771180904 | DG116: 0.8097373397 | DH116: -0.3948635681 | DI116: 2.760818847 | DJ116: 1.847022163 | DK116: -2.538962756 | DL116: -3.270341158 | DM116: 1.129876315 | DN116: 2.312892532 | DP116: 61.06005483 | DQ116: =(DP116-T$58)*((1+(U$55+CF116)/100)*(1-T$62)+T$62*((1+(U$57+DD116)/100)))/(1+(U$54+BT116)/100)-(U$56+CR116)+U$58 -> 62.85967644 | DR116: 67.60934328 | DS116: 68.67649913 | DT116: 71.08051849 | DU116: 73.09730156 | DV116: 69.90003187 | DW116: 71.41702314 | DX116: 75.88877709 | DY116: 83.71888205 | DZ116: 83.64677768 | EA116: 84.52494879
A117: 49 | B117: 4.481051562 | C117: 8.904852663 | D117: -0.4241410944 | E117: 4.178776571 | H117: 2.251277786 | I117: 0.03671630409 | J117: 1.090371249 | K117: -0.1283838933 | L117: 1.562288387 | M117: 0.4100685071 | N117: 5.390050026 | O117: 2.249368729 | P117: 0.1663728548 | Q117: -1.688344204 | R117: -4.412830238 | S117: 1.77780307 | T117: 2.336022139 | U117: 2.817302299 | V117: 1.278805323 | W117: 0.9024922514 | X117: 3.031105764 | Y117: -1.272770038 | Z117: 0.02507408203 | AA117: -2.080804238 | AB117: 0.2944901229 | AC117: -1.166634332 | AD117: -5.382092968 | AE117: -0.1278124549 | AF117: 1.736206995 | AG117: 5.269519431 | AH117: 1.898798006 | AI117: 0.01699948569 | AJ117: 5.165735059 | AK117: -0.4281692375 | AL117: 2.859436122 | AM117: -0.7006500235 | AN117: 2.966455639 | AO117: -2.783646943 | AP117: -6.408357603 | AQ117: -0.7417601821 | AR117: 2.941036966 | AS117: 3.232622966 | AT117: 1.422489255 | AU117: 0.6188690971 | AV117: 3.255080739 | AW117: -0.7278669273 | AX117: 0.2448948599 | AY117: -1.974826308 | AZ117: -0.3064013828 | BA117: -1.548943848 | BB117: -6.204634174 | BC117: 0.4981998623 | BE117: 60.24850777 | BF117: =(BE117-T$58)*((1+(U$55+U117)/100)*(1-T$62)+T$62*((1+(U$57+AS117)/100)))/(1+(U$54+I117)/100)-(U$56+AG117)+U$58 -> 57.61762294 | BG117: 56.05270207 | BH117: 56.86323975 | BI117: 53.02548063 | BJ117: 53.13150716 | BK117: 48.23783742 | BL117: 47.45349156 | BM117: 44.809776 | BN117: 48.15693607 | BO117: 54.27113081 | BP117: 54.63376084 | BS117: 2.251277786 | BT117: 0.03671630409 | BU117: 1.090371249 | BV117: -0.1283838933 | BW117: 1.562288387 | BX117: 0.4100685071 | BY117: 5.390050026 | BZ117: 2.249368729 | CA117: 0.1663728548 | CB117: -1.688344204 | CC117: -4.412830238 | CD117: 1.77780307 | CE117: 2.336022139 | CF117: 2.817302299 | CG117: 1.278805323 | CH117: 0.9024922514 | CI117: 3.031105764 | CJ117: -1.272770038 | CK117: 0.02507408203 | CL117: -2.080804238 | CM117: 0.2944901229 | CN117: -1.166634332 | CO117: -5.382092968 | CP117: -0.1278124549 | CQ117: 0 | CR117: 0 | CS117: 0 | CT117: 0 | CU117: 0 | CV117: -0.4281692375 | CW117: 0 | CX117: -0.7006500235 | CY117: 0 | CZ117: -2.783646943 | DA117: -6.408357603 | DB117: -0.7417601821 | DC117: 2.941036966 | DD117: 3.232622966 | DE117: 1.422489255 | DF117: 0.6188690971 | DG117: 3.255080739 | DH117: -0.7278669273 | DI117: 0.2448948599 | DJ117: -1.974826308 | DK117: -0.3064013828 | DL117: -1.548943848 | DM117: -6.204634174 | DN117: 0.4981998623 | DP117: 61.98471477 | DQ117: =(DP117-T$58)*((1+(U$55+CF117)/100)*(1-T$62)+T$62*((1+(U$57+DD117)/100)))/(1+(U$54+BT117)/100)-(U$56+CR117)+U$58 -> 64.65352751 | DR117: 65.00547454 | DS117: 65.90327822 | DT117: 67.35300316 | DU117: 67.20780833 | DV117: 64.43863752 | DW117: 62.9284704 | DX117: 63.15140906 | DY117: 66.46996161 | DZ117: 72.22548778 | EA117: 72.2476684
A118: 50 | B118: 7.55794559 | C118: 6.52083721 | D118: -1.701092543 | E118: 1.356331066 | H118: 5.328171814 | I118: 4.442652046 | J118: 13.52005021 | K118: 9.233512117 | L118: 2.128758737 | M118: -0.6436661302 | N118: -2.913401731 | O118: 3.775127401 | P118: 0.8012628775 | Q118: 4.255259825 | R118: 10.00848119 | S118: 0.08023245518 | T118: -0.04799331451 | U118: -0.5070733454 | V118: 2.509808961 | W118: 2.485790921 | X118: 2.756307908 | Y118: -1.305395605 | Z118: 1.386398724 | AA118: 1.923522466 | AB118: 0.9190919485 | AC118: 0.5326290277 | AD118: -2.576026088 | AE118: -0.1791647675 | AF118: 0.4592555465 | AG118: -2.579458122 | AH118: 0.6461145282 | AI118: 6.087159373 | AJ118: 7.365289263 | AK118: -0.7378675834 | AL118: 4.580185881 | AM118: 4.351739175 | AN118: 5.307377025 | AO118: 8.315989523 | AP118: 3.385224987 | AQ118: -1.393212016 | AR118: 0.1185914617 | AS118: -0.6090247631 | AT118: 3.671753676 | AU118: 4.005041458 | AV118: 3.633107753 | AW118: -1.478620481 | AX118: 1.258919058 | AY118: 2.478233199 | AZ118: 0.7068832032 | BA118: 1.05488359 | BB118: -1.544386509 | BC118: -0.001252279702 | BE118: 58.64083504 | BF118: =(BE118-T$58)*((1+(U$55+U118)/100)*(1-T$62)+T$62*((1+(U$57+AS118)/100)))/(1+(U$54+I118)/100)-(U$56+AG118)+U$58 -> 59.59273225 | BG118: 54.07260095 | BH118: 45.66254468 | BI118: 39.27662253 | BJ118: 40.15025116 | BK118: 37.67862632 | BL118: 33.26278726 | BM118: 28.43531932 | BN118: 19.78010057 | BO118: 15.01132308 | BP118: 16.9471526 | BS118: 5.328171814 | BT118: 4.442652046 | BU118: 13.52005021 | BV118: 9.233512117 | BW118: 2.128758737 | BX118: -0.6436661302 | BY118: -2.913401731 | BZ118: 3.775127401 | CA118: 0.8012628775 | CB118: 4.255259825 | CC118: 10.00848119 | CD118: 0.08023245518 | CE118: -0.04799331451 | CF118: -0.5070733454 | CG118: 2.509808961 | CH118: 2.485790921 | CI118: 2.756307908 | CJ118: -1.305395605 | CK118: 1.386398724 | CL118: 1.923522466 | CM118: 0.9190919485 | CN118: 0.5326290277 | CO118: -2.576026088 | CP118: -0.1791647675 | CQ118: 0 | CR118: -2.579458122 | CS118: 0 | CT118: 0 | CU118: 0 | CV118: -0.7378675834 | CW118: 0 | CX118: 0 | CY118: 0 | CZ118: 0 | DA118: 0 | DB118: -1.393212016 | DC118: 0.1185914617 | DD118: -0.6090247631 | DE118: 3.671753676 | DF118: 4.005041458 | DG118: 3.633107753 | DH118: -1.478620481 | DI118: 1.258919058 | DJ118: 2.478233199 | DK118: 0.7068832032 | DL118: 1.05488359 | DM118: -1.544386509 | DN118: -0.001252279702 | DP118: 59.10009058 | DQ118: =(DP118-T$58)*((1+(U$55+CF118)/100)*(1-T$62)+T$62*((1+(U$57+DD118)/100)))/(1+(U$54+BT118)/100)-(U$56+CR118)+U$58 -> 60.0254369 | DR118: 55.11336322 | DS118: 52.73626909 | DT118: 53.77919882 | DU118: 54.48163244 | DV118: 57.12456393 | DW118: 56.69827453 | DX118: 57.07539885 | DY118: 55.70631449 | DZ118: 50.39386043 | EA118: 52.12136893
A119: 51 | B119: 7.936878149 | C119: 11.18972512 | D119: -0.2588564784 | E119: 6.830168838 | H119: 5.707104373 | I119: 2.242440136 | J119: 3.693419417 | K119: -0.6418682447 | L119: 1.161458506 | M119: -2.156885206 | N119: 5.989663669 | O119: -5.420261373 | P119: -8.92127352 | Q119: -3.833412365 | R119: 2.997593658 | S119: -5.213947982 | T119: 4.620894593 | U119: 0.3013410347 | V119: -1.212139571 | W119: 1.948405533 | X119: 1.029187168 | Y119: -1.717341387 | Z119: -0.4781700223 | AA119: -1.329923737 | AB119: 1.917371117 | AC119: -1.483763073 | AD119: -2.277194332 | AE119: 0.5068193044 | AF119: 1.901491611 | AG119: 0.652431266 | AH119: 3.474178452 | AI119: 3.796948338 | AJ119: 4.817187763 | AK119: 1.915644145 | AL119: -1.292067176 | AM119: -1.668910261 | AN119: -0.7344233105 | AO119: -6.652698994 | AP119: -2.363371782 | AQ119: -1.112393385 | AR119: 5.592429233 | AS119: 1.095735215 | AT119: -1.046135876 | AU119: 1.728333167 | AV119: 1.42886305 | AW119: -1.981523784 | AX119: 1.29281408 | AY119: -2.205322062 | AZ119: 1.260723905 | BA119: -2.198838683 | BB119: -1.740936343 | BC119: 0.3826880832 | BE119: 59.62599129 | BF119: =(BE119-T$58)*((1+(U$55+U119)/100)*(1-T$62)+T$62*((1+(U$57+AS119)/100)))/(1+(U$54+I119)/100)-(U$56+AG119)+U$58 -> 59.15598338 | BG119: 53.30531454 | BH119: 51.11581518 | BI119: 46.84328448 | BJ119: 45.43466046 | BK119: 45.02104226 | BL119: 48.66215166 | BM119: 54.9946385 | BN119: 63.07011522 | BO119: 62.91795123 | BP119: 67.89144196 | BS119: 5.707104373 | BT119: 2.242440136 | BU119: 3.693419417 | BV119: -0.6418682447 | BW119: 1.161458506 | BX119: -2.156885206 | BY119: 5.989663669 | BZ119: -5.420261373 | CA119: -8.92127352 | CB119: -3.833412365 | CC119: 2.997593658 | CD119: -5.213947982 | CE119: 4.620894593 | CF119: 0.3013410347 | CG119: -1.212139571 | CH119: 1.948405533 | CI119: 1.029187168 | CJ119: -1.717341387 | CK119: -0.4781700223 | CL119: -1.329923737 | CM119: 1.917371117 | CN119: -1.483763073 | CO119: -2.277194332 | CP119: 0.5068193044 | CQ119: 0 | CR119: 0 | CS119: 0 | CT119: 0 | CU119: 0 | CV119: 0 | CW119: -1.292067176 | CX119: -1.668910261 | CY119: -0.7344233105 | CZ119: -6.652698994 | DA119: -2.363371782 | DB119: -1.112393385 | DC119: 5.592429233 | DD119: 1.095735215 | DE119: -1.046135876 | DF119: 1.728333167 | DG119: 1.42886305 | DH119: -1.981523784 | DI119: 1.29281408 | DJ119: -2.205322062 | DK119: 1.260723905 | DL119: -2.198838683 | DM119: -1.740936343 | DN119: 0.3826880832 | DP119: 61.5274829 | DQ119: =(DP119-T$58)*((1+(U$55+CF119)/100)*(1-T$62)+T$62*((1+(U$57+DD119)/100)))/(1+(U$54+BT119)/100)-(U$56+CR119)+U$58 -> 61.66187669 | DR119: 59.17281118 | DS119: 60.91754032 | DT119: 61.45463876 | DU119: 61.93737995 | DV119: 60.63464312 | DW119: 64.76399214 | DX119: 72.79428796 | DY119: 81.13292251 | DZ119: 80.06141112 | EA119: 85.93815809
A120: 52 | B120: 5.751530046 | C120: 8.369067374 | D120: -0.1922453725 | E120: 3.910807254 | H120: 3.521756269 | I120: -7.232408276 | J120: 4.030174851 | K120: 0.3222446462 | L120: 2.165510588 | M120: -0.7350906283 | N120: -6.833573754 | O120: 0.7144315849 | P120: 0.2797243526 | Q120: -3.885604775 | R120: -1.299636945 | S120: -1.864871228 | T120: 1.800236849 | U120: -0.3737127744 | V120: 1.027523447 | W120: -0.06239377052 | X120: -0.3319304897 | Y120: 1.566649515 | Z120: -2.634478291 | AA120: 1.570966659 | AB120: 0.1896581627 | AC120: -0.6540028686 | AD120: -0.02223700051 | AE120: 0.4261243626 | AF120: 1.968102717 | AG120: -2.062670807 | AH120: 2.821769882 | AI120: -0.210805395 | AJ120: -1.620109765 | AK120: 4.226839803 | AL120: -1.137120316 | AM120: 1.049681516 | AN120: -1.667101464 | AO120: -4.32609649 | AP120: -0.3135474881 | AQ120: -0.4629641024 | AR120: 2.67306765 | AS120: -1.132546911 | AT120: 1.875631582 | AU120: 0.4287897432 | AV120: 0.620531337 | AW120: 1.128526776 | AX120: -3.712196983 | AY120: 2.019520983 | AZ120: 0.8899374204 | BA120: -0.1006883846 | BB120: 0.06630836994 | BC120: 0.05175597914 | BE120: 59.17692162 | BF120: =(BE120-T$58)*((1+(U$55+U120)/100)*(1-T$62)+T$62*((1+(U$57+AS120)/100)))/(1+(U$54+I120)/100)-(U$56+AG120)+U$58 -> 65.8989735 | BG120: 61.79596665 | BH120: 62.3297959 | BI120: 63.31156027 | BJ120: 60.62362696 | BK120: 64.328288 | BL120: 64.2737131 | BM120: 66.47251901 | BN120: 73.43685104 | BO120: 74.96486844 | BP120: 77.22094845 | BS120: 3.521756269 | BT120: -7.232408276 | BU120: 4.030174851 | BV120: 0.3222446462 | BW120: 2.165510588 | BX120: -0.7350906283 | BY120: -6.833573754 | BZ120: 0.7144315849 | CA120: 0.2797243526 | CB120: -3.885604775 | CC120: -1.299636945 | CD120: -1.864871228 | CE120: 1.800236849 | CF120: -0.3737127744 | CG120: 1.027523447 | CH120: -0.06239377052 | CI120: -0.3319304897 | CJ120: 1.566649515 | CK120: -2.634478291 | CL120: 1.570966659 | CM120: 0.1896581627 | CN120: -0.6540028686 | CO120: -0.02223700051 | CP120: 0.4261243626 | CQ120: 0 | CR120: -2.062670807 | CS120: 0 | CT120: -0.210805395 | CU120: -1.620109765 | CV120: 0 | CW120: -1.137120316 | CX120: 0 | CY120: -1.667101464 | CZ120: -4.32609649 | DA120: -0.3135474881 | DB120: -0.4629641024 | DC120: 2.67306765 | DD120: -1.132546911 | DE120: 1.875631582 | DF120: 0.4287897432 | DG120: 0.620531337 | DH120: 1.128526776 | DI120: -3.712196983 | DJ120: 2.019520983 | DK120: 0.8899374204 | DL120: -0.1006883846 | DM120: 0.06630836994 | DN120: 0.05175597914 | DP120: 61.14502434 | DQ120: =(DP120-T$58)*((1+(U$55+CF120)/100)*(1-T$62)+T$62*((1+(U$57+DD120)/100)))/(1+(U$54+BT120)/100)-(U$56+CR120)+U$58 -> 67.97182467 | DR120: 66.64282511 | DS120: 67.17032745 | DT120: 68.05484919 | DU120: 69.66707175 | DV120: 73.66242404 | DW120: 74.71466851 | DX120: 76.89889179 | DY120: 84.18505892 | DZ120: 85.80176336 | EA120: 88.23041019
A121: 53 | B121: 3.128269973 | C121: 6.149695295 | D121: -0.03397316797 | E121: 1.417319524 | H121: 0.8984961972 | I121: 1.260720239 | J121: -2.402220094 | K121: 2.673003305 | L121: 3.510484038 | M121: -1.224409102 | N121: 3.007607506 | O121: 5.226532905 | P121: 0.6920876191 | Q121: 4.763122169 | R121: 4.151625476 | S121: 6.359729248 | T121: -0.4191352292 | U121: 2.813294288 | V121: 2.699603115 | W121: 0.9134790316 | X121: 0.8534340784 | Y121: -0.2246194219 | Z121: 0.160637075 | AA121: 0.01899957723 | AB121: 0.2488823027 | AC121: -1.961294792 | AD121: 0.2072698645 | AE121: 1.366612253 | AF121: 2.126374922 | AG121: 4.82595306 | AH121: 3.683512138 | AI121: -3.078133458 | AJ121: 3.105209538 | AK121: -6.284706314 | AL121: 2.299665933 | AM121: 0.06364674322 | AN121: 0.2286119658 | AO121: 0.257688896 | AP121: 3.25889838 | AQ121: 5.607307487 | AR121: 0.1795799192 | AS121: 3.278847662 | AT121: 3.292301689 | AU121: 1.162626158 | AV121: 1.899027655 | AW121: -0.5242824447 | AX121: 0.2028717559 | AY121: 1.206567888 | AZ121: 0.4573206426 | BA121: -1.740911158 | BB121: 0.1435789319 | BC121: 2.296190104 | BE121: 59.10555509 | BF121: =(BE121-T$58)*((1+(U$55+U121)/100)*(1-T$62)+T$62*((1+(U$57+AS121)/100)))/(1+(U$54+I121)/100)-(U$56+AG121)+U$58 -> 56.23952629 | BG121: 55.68249998 | BH121: 58.32193135 | BI121: 54.61697611 | BJ121: 61.6764287 | BK121: 58.18865212 | BL121: 56.14561145 | BM121: 56.12848627 | BN121: 52.94672038 | BO121: 48.17830425 | BP121: 41.10835479 | BS121: 0.8984961972 | BT121: 1.260720239 | BU121: -2.402220094 | BV121: 2.673003305 | BW121: 3.510484038 | BX121: -1.224409102 | BY121: 3.007607506 | BZ121: 5.226532905 | CA121: 0.6920876191 | CB121: 4.763122169 | CC121: 4.151625476 | CD121: 6.359729248 | CE121: -0.4191352292 | CF121: 2.813294288 | CG121: 2.699603115 | CH121: 0.9134790316 | CI121: 0.8534340784 | CJ121: -0.2246194219 | CK121: 0.160637075 | CL121: 0.01899957723 | CM121: 0.2488823027 | CN121: -1.961294792 | CO121: 0.2072698645 | CP121: 1.366612253 | CQ121: 0 | CR121: 0 | CS121: 0 | CT121: -3.078133458 | CU121: 0 | CV121: -6.284706314 | CW121: 0 | CX121: 0 | CY121: 0 | CZ121: 0 | DA121: 0 | DB121: 0 | DC121: 0.1795799192 | DD121: 3.278847662 | DE121: 3.292301689 | DF121: 1.162626158 | DG121: 1.899027655 | DH121: -0.5242824447 | DI121: 0.2028717559 | DJ121: 1.206567888 | DK121: 0.4573206426 | DL121: -1.740911158 | DM121: 0.1435789319 | DN121: 2.296190104 | DP121: 61.23193001 | DQ121: =(DP121-T$58)*((1+(U$55+CF121)/100)*(1-T$62)+T$62*((1+(U$57+DD121)/100)))/(1+(U$54+BT121)/100)-(U$56+CR121)+U$58 -> 63.20416196 | DR121: 66.70759623 | DS121: 69.17526795 | DT121: 68.34947524 | DU121: 75.45857457 | DV121: 73.84652509 | DW121: 71.15222139 | DX121: 71.25178471 | DY121: 67.34439377 | DZ121: 65.23929652 | EA121: 63.01536262
A122: 54 | B122: 0.9809544332 | C122: 6.329796845 | D122: -4.492519437 | E122: 0.2422224865 | H122: -1.248819343 | I122: -5.865926843 | J122: -1.953807008 | K122: 2.360770792 | L122: 5.595601503 | M122: -3.127072953 | N122: -7.221117199 | O122: -2.438272276 | P122: 3.604521259 | Q122: 4.309952999 | R122: 0.1185072908 | S122: 2.106908231 | T122: -0.239033679 | U122: -1.033429317 | V122: 1.499349809 | W122: -1.262148565 | X122: -0.4466361003 | Y122: -2.052964356 | Z122: 2.399525328 | AA122: -2.335105228 | AB122: 0.868642261 | AC122: 2.46651642 | AD122: -1.630537744 | AE122: 4.596447373 | AF122: -2.332171348 | AG122: -3.312168594 | AH122: 3.312867312 | AI122: 1.363186628 | AJ122: 2.266349802 | AK122: -6.315887207 | AL122: 0.1973819763 | AM122: -2.967506677 | AN122: 5.043087184 | AO122: 0.6714905215 | AP122: 0.4094354595 | AQ122: 5.33251095 | AR122: -0.9955171182 | AS122: -1.958683461 | AT122: 0.7720279433 | AU122: -1.753944209 | AV122: 0.2855756771 | AW122: -2.75043126 | AX122: 2.166468797 | AY122: -2.821673426 | AZ122: 0.9861182927 | BA122: 3.681206089 | BB122: -1.751792945 | BC122: 4.229605157 | BE122: 64.34733092 | BF122: =(BE122-T$58)*((1+(U$55+U122)/100)*(1-T$62)+T$62*((1+(U$57+AS122)/100)))/(1+(U$54+I122)/100)-(U$56+AG122)+U$58 -> 71.19605751 | BG122: 70.10679357 | BH122: 66.58773726 | BI122: 61.45635905 | BJ122: 68.48429695 | BK122: 75.21412701 | BL122: 78.30042643 | BM122: 71.64193314 | BN122: 70.55535288 | BO122: 69.23341157 | BP122: 65.69205832 | BS122: -1.248819343 | BT122: -5.865926843 | BU122: -1.953807008 | BV122: 2.360770792 | BW122: 5.595601503 | BX122: -3.127072953 | BY122: -7.221117199 | BZ122: -2.438272276 | CA122: 3.604521259 | CB122: 4.309952999 | CC122: 0.1185072908 | CD122: 2.106908231 | CE122: -0.239033679 | CF122: -1.033429317 | CG122: 1.499349809 | CH122: -1.262148565 | CI122: -0.4466361003 | CJ122: -2.052964356 | CK122: 2.399525328 | CL122: -2.335105228 | CM122: 0.868642261 | CN122: 2.46651642 | CO122: -1.630537744 | CP122: 4.596447373 | CQ122: -2.332171348 | CR122: -3.312168594 | CS122: 0 | CT122: 0 | CU122: 0 | CV122: -6.315887207 | CW122: 0 | CX122: -2.967506677 | CY122: 0 | CZ122: 0 | DA122: 0 | DB122: 0 | DC122: -0.9955171182 | DD122: -1.958683461 | DE122: 0.7720279433 | DF122: -1.753944209 | DG122: 0.2855756771 | DH122: -2.75043126 | DI122: 2.166468797 | DJ122: -2.821673426 | DK122: 0.9861182927 | DL122: 3.681206089 | DM122: -1.751792945 | DN122: 4.229605157 | DP122: 64.34733092 | DQ122: =(DP122-T$58)*((1+(U$55+CF122)/100)*(1-T$62)+T$62*((1+(U$57+DD122)/100)))/(1+(U$54+BT122)/100)-(U$56+CR122)+U$58 -> 71.19605751 | DR122: 73.41966088 | DS122: 71.13984164 | DT122: 68.03352691 | DU122: 75.07566354 | DV122: 82.61848426 | DW122: 85.65543195 | DX122: 83.8261498 | DY122: 83.22945198 | DZ122: 82.03576601 | EA122: 84.04765654
A123: 55 | B123: 9.500809042 | C123: 6.478115867 | D123: 1.478336153 | E123: 1.520214329 | H123: 7.271035266 | I123: -4.418328305 | J123: 0.3804092521 | K123: 7.348336074 | L123: 5.080663447 | M123: -1.788156271 | N123: -1.228889411 | O123: 3.63825099 | P123: 2.704442179 | Q123: -0.01553853879 | R123: 0.9118930021 | S123: 1.817728264 | T123: -0.09071465701 | U123: -2.254861931 | V123: -0.04702479077 | W123: -2.692816451 | X123: -1.100431646 | Y123: 0.5661596661 | Z123: 1.353274861 | AA123: -2.326779685 | AB123: -2.033481671 | AC123: -3.061063537 | AD123: 0.4179148844 | AE123: 1.487074341 | AF123: 3.638684243 | AG123: -1.431670101 | AH123: 1.238710236 | AI123: -2.014072038 | AJ123: 2.297348774 | AK123: 0.8924457765 | AL123: -3.968916506 | AM123: -6.474286564 | AN123: 2.230642829 | AO123: -1.891120955 | AP123: 5.193667038 | AQ123: 1.597222195 | AR123: 0.2824747245 | AS123: -2.526612877 | AT123: -0.2776479104 | AU123: -1.788010592 | AV123: -1.409611537 | AW123: -0.2483805823 | AX123: 0.8949280076 | AY123: -1.663071374 | AZ123: -1.933377769 | BA123: -4.495384624 | BB123: 0.5225762142 | BC123: 2.782491117 | BE123: 54.59674549 | BF123: =(BE123-T$58)*((1+(U$55+U123)/100)*(1-T$62)+T$62*((1+(U$57+AS123)/100)))/(1+(U$54+I123)/100)-(U$56+AG123)+U$58 -> 58.05483105 | BG123: 56.69119551 | BH123: 54.38429335 | BI123: 49.49871071 | BJ123: 49.86253759 | BK123: 55.37235524 | BL123: 59.42150775 | BM123: 55.01533907 | BN123: 55.30473726 | BO123: 50.26086018 | BP123: 49.26479108 | BS123: 7.271035266 | BT123: -4.418328305 | BU123: 0.3804092521 | BV123: 7.348336074 | BW123: 5.080663447 | BX123: -1.788156271 | BY123: -1.228889411 | BZ123: 3.63825099 | CA123: 2.704442179 | CB123: -0.01553853879 | CC123: 0.9118930021 | CD123: 1.817728264 | CE123: -0.09071465701 | CF123: -2.254861931 | CG123: -0.04702479077 | CH123: -2.692816451 | CI123: -1.100431646 | CJ123: 0.5661596661 | CK123: 1.353274861 | CL123: -2.326779685 | CM123: -2.033481671 | CN123: -3.061063537 | CO123: 0.4179148844 | CP123: 1.487074341 | CQ123: 0 | CR123: -1.431670101 | CS123: 0 | CT123: -2.014072038 | CU123: 0 | CV123: 0 | CW123: -3.968916506 | CX123: -6.474286564 | CY123: 0 | CZ123: -1.891120955 | DA123: 0 | DB123: 0 | DC123: 0.2824747245 | DD123: -2.526612877 | DE123: -0.2776479104 | DF123: -1.788010592 | DG123: -1.409611537 | DH123: -0.2483805823 | DI123: 0.8949280076 | DJ123: -1.663071374 | DK123: -1.933377769 | DL123: -4.495384624 | DM123: 0.5225762142 | DN123: 2.782491117 | DP123: 58.23542974 | DQ123: =(DP123-T$58)*((1+(U$55+CF123)/100)*(1-T$62)+T$62*((1+(U$57+DD123)/100)))/(1+(U$54+BT123)/100)-(U$56+CR123)+U$58 -> 61.72101567 | DR123: 61.5754235 | DS123: 58.84865016 | DT123: 55.99251874 | DU123: 57.3398249 | DV123: 62.98488721 | DW123: 66.60535577 | DX123: 64.08350154 | DY123: 63.99489816 | DZ123: 64.06872293 | EA123: 64.66384784
A124: 56 | B124: -6.07394648 | C124: 4.010595159 | D124: -2.681704479 | E124: -3.042242664 | H124: -8.303720256 | I124: -5.820473462 | J124: 0.8395178033 | K124: -4.01193767 | L124: -2.152941509 | M124: 1.166985706 | N124: 2.128106707 | O124: -1.507080202 | P124: 7.640664782 | Q124: 7.024341498 | R124: -2.617040728 | S124: 3.744792396 | T124: -2.558235365 | U124: -2.101374682 | V124: 2.98242363 | W124: -0.7509227334 | X124: -0.3039512504 | Y124: -1.861881777 | Z124: -0.04920318909 | AA124: 0.779906803 | AB124: 0.4442940023 | AC124: 0.6426797498 | AD124: -1.639247821 | AE124: -0.2191404953 | AF124: -0.521356389 | AG124: -1.87758577 | AH124: 2.928476358 | AI124: 2.903942954 | AJ124: -5.069946538 | AK124: 2.347813467 | AL124: -8.707922543 | AM124: 3.597123474 | AN124: 4.253684558 | AO124: 2.773304058 | AP124: -3.754349613 | AQ124: 3.507576372 | AR124: -4.279982269 | AS124: -3.214650188 | AT124: 3.724472995 | AU124: -1.893708568 | AV124: -0.3988013419 | AW124: -1.500540069 | AX124: 0.4312585759 | AY124: 0.7308023921 | AZ124: 1.245169825 | BA124: 1.959121675 | BB124: -1.661666481 | BC124: 0.6025995585 | BE124: 64.89139451 | BF124: =(BE124-T$58)*((1+(U$55+U124)/100)*(1-T$62)+T$62*((1+(U$57+AS124)/100)))/(1+(U$54+I124)/100)-(U$56+AG124)+U$58 -> 69.53312692 | BG124: 68.48164578 | BH124: 67.66959674 | BI124: 74.37406803 | BJ124: 70.33093524 | BK124: 78.16557597 | BL124: 76.50624423 | BM124: 68.02788963 | BN124: 62.22708586 | BO124: 66.89007727 | BP124: 61.60258385 | BS124: -8.303720256 | BT124: -5.820473462 | BU124: 0.8395178033 | BV124: -4.01193767 | BW124: -2.152941509 | BX124: 1.166985706 | BY124: 2.128106707 | BZ124: -1.507080202 | CA124: 7.640664782 | CB124: 7.024341498 | CC124: -2.617040728 | CD124: 3.744792396 | CE124: -2.558235365 | CF124: -2.101374682 | CG124: 2.98242363 | CH124: -0.7509227334 | CI124: -0.3039512504 | CJ124: -1.861881777 | CK124: -0.04920318909 | CL124: 0.779906803 | CM124: 0.4442940023 | CN124: 0.6426797498 | CO124: -1.639247821 | CP124: -0.2191404953 | CQ124: -0.521356389 | CR124: -1.87758577 | CS124: 0 | CT124: 0 | CU124: -5.069946538 | CV124: 0 | CW124: -8.707922543 | CX124: 0 | CY124: 0 | CZ124: 0 | DA124: -3.754349613 | DB124: 0 | DC124: -4.279982269 | DD124: -3.214650188 | DE124: 3.724472995 | DF124: -1.893708568 | DG124: -0.3988013419 | DH124: -1.500540069 | DI124: 0.4312585759 | DJ124: 0.7308023921 | DK124: 1.245169825 | DL124: 1.959121675 | DM124: -1.661666481 | DN124: 0.6025995585 | DP124: 64.89139451 | DQ124: =(DP124-T$58)*((1+(U$55+CF124)/100)*(1-T$62)+T$62*((1+(U$57+DD124)/100)))/(1+(U$54+BT124)/100)-(U$56+CR124)+U$58 -> 69.53312692 | DR124: 71.41012214 | DS124: 73.57621067 | DT124: 80.374612 | DU124: 78.49190636 | DV124: 86.14434089 | DW124: 88.22022979 | DX124: 83.23958467 | DY124: 79.37616627 | DZ124: 84.12046111 | EA124: 81.70799799
A125: 57 | B125: -1.101416202 | C125: 5.910625682 | D125: -1.81374621 | E125: 0.1552689502 | H125: -3.331189978 | I125: 10.06977869 | J125: -0.4782347501 | K125: -0.7063193787 | L125: -8.073762232 | M125: -3.309131107 | N125: 2.449127114 | O125: 11.71552487 | P125: -0.7427733885 | Q125: -1.623001754 | R125: -0.6978285211 | S125: -1.799945091 | T125: -0.6582048422 | U125: 2.786839083 | V125: -1.060666373 | W125: 1.002845919 | X125: -1.166268998 | Y125: 0.9048104823 | Z125: 2.908058324 | AA125: 1.330821218 | AB125: -0.4517238239 | AC125: -0.06038336046 | AD125: -1.2393028 | AE125: 0.01993106282 | AF125: 0.3466018798 | AG125: 2.865129973 | AH125: -1.919348986 | AI125: 0.4733779007 | AJ125: -5.113823912 | AK125: 3.805198771 | AL125: -2.875243643 | AM125: 5.43594015 | AN125: 3.635923714 | AO125: -4.527528068 | AP125: -2.000539787 | AQ125: 2.779880283 | AR125: -1.082470655 | AS125: 4.358910842 | AT125: -0.3021199678 | AU125: 0.7857224193 | AV125: -2.02437878 | AW125: 0.3898225243 | AX125: 3.753807046 | AY125: 2.510729244 | AZ125: -0.6381086498 | BA125: 0.07294770682 | BB125: -1.188315914 | BC125: -0.6165367101 | BE125: 62.68108172 | BF125: =(BE125-T$58)*((1+(U$55+U125)/100)*(1-T$62)+T$62*((1+(U$57+AS125)/100)))/(1+(U$54+I125)/100)-(U$56+AG125)+U$58 -> 57.45310005 | BG125: 59.50304085 | BH125: 60.28975901 | BI125: 69.81369428 | BJ125: 68.94573104 | BK125: 72.79062583 | BL125: 61.69311275 | BM125: 58.51830293 | BN125: 64.33370381 | BO125: 66.34793815 | BP125: 64.82863472 | BS125: -3.331189978 | BT125: 10.06977869 | BU125: -0.4782347501 | BV125: -0.7063193787 | BW125: -8.073762232 | BX125: -3.309131107 | BY125: 2.449127114 | BZ125: 11.71552487 | CA125: -0.7427733885 | CB125: -1.623001754 | CC125: -0.6978285211 | CD125: -1.799945091 | CE125: -0.6582048422 | CF125: 2.786839083 | CG125: -1.060666373 | CH125: 1.002845919 | CI125: -1.166268998 | CJ125: 0.9048104823 | CK125: 2.908058324 | CL125: 1.330821218 | CM125: -0.4517238239 | CN125: -0.06038336046 | CO125: -1.2393028 | CP125: 0.01993106282 | CQ125: 0 | CR125: 0 | CS125: -1.919348986 | CT125: 0 | CU125: -5.113823912 | CV125: 0 | CW125: -2.875243643 | CX125: 0 | CY125: 0 | CZ125: -4.527528068 | DA125: -2.000539787 | DB125: 0 | DC125: -1.082470655 | DD125: 4.358910842 | DE125: -0.3021199678 | DF125: 0.7857224193 | DG125: -2.02437878 | DH125: 0.3898225243 | DI125: 3.753807046 | DJ125: 2.510729244 | DK125: -0.6381086498 | DL125: 0.07294770682 | DM125: -1.188315914 | DN125: -0.6165367101 | DP125: 63.0276836 | DQ125: =(DP125-T$58)*((1+(U$55+CF125)/100)*(1-T$62)+T$62*((1+(U$57+DD125)/100)))/(1+(U$54+BT125)/100)-(U$56+CR125)+U$58 -> 60.64191499 | DR125: 62.68837917 | DS125: 63.99584241 | DT125: 73.76120611 | DU125: 76.83437999 | DV125: 80.71487837 | DW125: 74.35646098 | DX125: 74.78429338 | DY125: 80.78687821 | DZ125: 82.64232791 | EA125: 84.06312038
A126: 58 | B126: 2.205877708 | C126: 7.294157802 | D126: -4.920268184 | E126: 1.853694573 | H126: -0.02389606782 | I126: 1.721567223 | J126: -0.07784547314 | K126: -5.315440616 | L126: -0.262646846 | M126: 0.45549341 | N126: -0.8757904732 | O126: -0.1072773141 | P126: -2.838601024 | Q126: 4.446413042 | R126: 6.579866715 | S126: 2.877449711 | T126: 0.7253272773 | U126: 2.27236025 | V126: 0.3603354073 | W126: -0.8240800431 | X126: -2.560048444 | Y126: 1.34273536 | Z126: -1.04230112 | AA126: 2.172714646 | AB126: -2.208090275 | AC126: -1.606429716 | AD126: -0.7862912036 | AE126: -1.294285619 | AF126: -2.759920094 | AG126: 5.32475756 | AH126: 2.259309263 | AI126: -2.503400137 | AJ126: -5.617103743 | AK126: 5.025278835 | AL126: -0.7752132081 | AM126: 0.8854835589 | AN126: -8.779184647 | AO126: -2.509915317 | AP126: -3.25772767 | AQ126: -5.809461384 | AR126: 0.6159549679 | AS126: 2.488615054 | AT126: 0.6375785195 | AU126: -0.9615022482 | AV126: -1.870745032 | AW126: 0.9886268298 | AX126: -0.5445504795 | AY126: 2.127929604 | AZ126: -2.389143917 | BA126: -1.77840702 | BB126: 0.2210413232 | BC126: -1.553998345 | BE126: 64.85290514 | BF126: =(BE126-T$58)*((1+(U$55+U126)/100)*(1-T$62)+T$62*((1+(U$57+AS126)/100)))/(1+(U$54+I126)/100)-(U$56+AG126)+U$58 -> 60.83149758 | BG126: 59.10647718 | BH126: 64.55448428 | BI126: 69.48886191 | BJ126: 65.19433712 | BK126: 66.42079138 | BL126: 67.25189561 | BM126: 76.69716261 | BN126: 75.24221191 | BO126: 74.27799428 | BP126: 77.45209522 | BS126: -0.02389606782 | BT126: 1.721567223 | BU126: -0.07784547314 | BV126: -5.315440616 | BW126: -0.262646846 | BX126: 0.45549341 | BY126: -0.8757904732 | BZ126: -0.1072773141 | CA126: -2.838601024 | CB126: 4.446413042 | CC126: 6.579866715 | CD126: 2.877449711 | CE126: 0.7253272773 | CF126: 2.27236025 | CG126: 0.3603354073 | CH126: -0.8240800431 | CI126: -2.560048444 | CJ126: 1.34273536 | CK126: -1.04230112 | CL126: 2.172714646 | CM126: -2.208090275 | CN126: -1.606429716 | CO126: -0.7862912036 | CP126: -1.294285619 | CQ126: -2.759920094 | CR126: 0 | CS126: 0 | CT126: -2.503400137 | CU126: -5.617103743 | CV126: 0 | CW126: -0.7752132081 | CX126: 0 | CY126: -8.779184647 | CZ126: -2.509915317 | DA126: -3.25772767 | DB126: -5.809461384 | DC126: 0.6159549679 | DD126: 2.488615054 | DE126: 0.6375785195 | DF126: -0.9615022482 | DG126: -1.870745032 | DH126: 0.9886268298 | DI126: -0.5445504795 | DJ126: 2.127929604 | DK126: -2.389143917 | DL126: -1.77840702 | DM126: 0.2210413232 | DN126: -1.553998345 | DP126: 64.85290514 | DQ126: =(DP126-T$58)*((1+(U$55+CF126)/100)*(1-T$62)+T$62*((1+(U$57+DD126)/100)))/(1+(U$54+BT126)/100)-(U$56+CR126)+U$58 -> 66.15625514 | DR126: 66.72161216 | DS126: 72.50732098 | DT126: 77.28197142 | DU126: 78.02970522 | DV126: 79.21313823 | DW126: 81.14760692 | DX126: 90.60271979 | DY126: 88.29844 | DZ126: 86.47737916 | EA126: 89.10576434
A127: 59 | B127: -0.8968984202 | C127: 3.753545789 | D127: -5.762387997 | E127: -2.594607354 | H127: -3.126672196 | I127: 0.9314110978 | J127: -5.516742777 | K127: -1.502491969 | L127: 3.299916078 | M127: 7.071305836 | N127: 5.106470766 | O127: -1.2757038 | P127: 0.6724812436 | Q127: -0.7788712526 | R127: 0.8833415561 | S127: -0.001537932713 | T127: -2.815284735 | U127: 0.9992848514 | V127: 1.441874254 | W127: -0.917684064 | X127: -1.417294437 | Y127: 0.6781588006 | Z127: -0.3771482387 | AA127: 0.3848792493 | AB127: -1.263019294 | AC127: -0.01936148688 | AD127: -0.5993382262 | AE127: -0.7726574334 | AF127: -3.602039907 | AG127: 5.859567598 | AH127: -0.61644902 | AI127: -3.968686353 | AJ127: -1.737965155 | AK127: 2.692376664 | AL127: 0.4915129141 | AM127: 3.391416867 | AN127: -5.954310234 | AO127: -0.5247349292 | AP127: -2.797155967 | AQ127: 2.621767008 | AR127: -3.832346959 | AS127: 1.350035494 | AT127: 0.7556658863 | AU127: -1.627607011 | AV127: -0.8337095383 | AW127: 1.991914626 | AX127: -0.05061729164 | AY127: -0.09756422394 | AZ127: -1.390642056 | BA127: -0.4638953846 | BB127: -0.6365167472 | BC127: -1.314793397 | BE127: 65.13376296 | BF127: =(BE127-T$58)*((1+(U$55+U127)/100)*(1-T$62)+T$62*((1+(U$57+AS127)/100)))/(1+(U$54+I127)/100)-(U$56+AG127)+U$58 -> 60.33486932 | BG127: 65.02262216 | BH127: 69.46049025 | BI127: 68.89006784 | BJ127: 63.0713705 | BK127: 59.98573604 | BL127: 57.70905129 | BM127: 62.95632757 | BN127: 64.13782366 | BO127: 66.36464356 | BP127: 63.40634284 | BS127: -3.126672196 | BT127: 0.9314110978 | BU127: -5.516742777 | BV127: -1.502491969 | BW127: 3.299916078 | BX127: 7.071305836 | BY127: 5.106470766 | BZ127: -1.2757038 | CA127: 0.6724812436 | CB127: -0.7788712526 | CC127: 0.8833415561 | CD127: -0.001537932713 | CE127: -2.815284735 | CF127: 0.9992848514 | CG127: 1.441874254 | CH127: -0.917684064 | CI127: -1.417294437 | CJ127: 0.6781588006 | CK127: -0.3771482387 | CL127: 0.3848792493 | CM127: -1.263019294 | CN127: -0.01936148688 | CO127: -0.5993382262 | CP127: -0.7726574334 | CQ127: -3.602039907 | CR127: 0 | CS127: -0.61644902 | CT127: -3.968686353 | CU127: -1.737965155 | CV127: 0 | CW127: 0 | CX127: 0 | CY127: -5.954310234 | CZ127: -0.5247349292 | DA127: -2.797155967 | DB127: 0 | DC127: -3.832346959 | DD127: 1.350035494 | DE127: 0.7556658863 | DF127: -1.627607011 | DG127: -0.8337095383 | DH127: 1.991914626 | DI127: -0.05061729164 | DJ127: -0.09756422394 | DK127: -1.390642056 | DL127: -0.4638953846 | DM127: -0.6365167472 | DN127: -1.314793397 | DP127: 65.13376296 | DQ127: =(DP127-T$58)*((1+(U$55+CF127)/100)*(1-T$62)+T$62*((1+(U$57+DD127)/100)))/(1+(U$54+BT127)/100)-(U$56+CR127)+U$58 -> 66.19443692 | DR127: 71.27197226 | DS127: 75.71653623 | DT127: 74.8798055 | DU127: 71.42416451 | DV127: 68.38839056 | DW127: 69.57555316 | DX127: 74.54306041 | DY127: 75.7293826 | DZ127: 77.73598554 | EA127: 77.23146106
A128: 60 | B128: 2.314065028 | C128: 7.404763541 | D128: -0.8647967036 | E128: 2.492236228 | H128: 0.08429125171 | I128: -0.7775270738 | J128: 1.440340523 | K128: -0.4840694838 | L128: -6.857757903 | M128: -1.894118312 | N128: -0.4470954934 | O128: -7.05929632 | P128: -0.6591707653 | Q128: 3.251352259 | R128: 5.038425219 | S128: -4.648767255 | T128: 0.8359330169 | U128: 2.14660578 | V128: 2.644167655 | W128: -1.022133191 | X128: -3.53667271 | Y128: -0.1579874061 | Z128: -1.321928804 | AA128: 1.121608255 | AB128: -0.2267210486 | AC128: 1.007143382 | AD128: 1.869190808 | AE128: -1.374761836 | AF128: 1.295551386 | AG128: 3.718468824 | AH128: 1.169167212 | AI128: -5.891675658 | AJ128: -6.846777417 | AK128: 3.302571192 | AL128: -6.005936921 | AM128: -2.52987833 | AN128: -1.560638765 | AO128: 1.93192342 | AP128: 1.242471669 | AQ128: 0.5790251991 | AR128: 1.254496623 | AS128: 2.770575932 | AT128: 2.459513597 | AU128: -0.7957614134 | AV128: -4.013197936 | AW128: 0.03543442449 | AX128: -1.547838235 | AY128: 0.3718924882 | AZ128: -0.4071311657 | BA128: 0.8666742911 | BB128: 2.820965719 | BC128: -1.941111381 | BE128: 60.96940951 | BF128: =(BE128-T$58)*((1+(U$55+U128)/100)*(1-T$62)+T$62*((1+(U$57+AS128)/100)))/(1+(U$54+I128)/100)-(U$56+AG128)+U$58 -> 60.06748312 | BG128: 59.68489044 | BH128: 65.72596525 | BI128: 75.0555027 | BJ128: 73.33909046 | BK128: 78.98903187 | BL128: 87.93154096 | BM128: 90.00590688 | BN128: 86.40035116 | BO128: 83.37324769 | BP128: 85.47938615 | BS128: 0.08429125171 | BT128: -0.7775270738 | BU128: 1.440340523 | BV128: -0.4840694838 | BW128: -6.857757903 | BX128: -1.894118312 | BY128: -0.4470954934 | BZ128: -7.05929632 | CA128: -0.6591707653 | CB128: 3.251352259 | CC128: 5.038425219 | CD128: -4.648767255 | CE128: 0.8359330169 | CF128: 2.14660578 | CG128: 2.644167655 | CH128: -1.022133191 | CI128: -3.53667271 | CJ128: -0.1579874061 | CK128: -1.321928804 | CL128: 1.121608255 | CM128: -0.2267210486 | CN128: 1.007143382 | CO128: 1.869190808 | CP128: -1.374761836 | CQ128: 0 | CR128: 0 | CS128: 0 | CT128: -5.891675658 | CU128: -6.846777417 | CV128: 0 | CW128: -6.005936921 | CX128: -2.52987833 | CY128: -1.560638765 | CZ128: 0 | DA128: 0 | DB128: 0 | DC128: 1.254496623 | DD128: 2.770575932 | DE128: 2.459513597 | DF128: -0.7957614134 | DG128: -4.013197936 | DH128: 0.03543442449 | DI128: -1.547838235 | DJ128: 0.3718924882 | DK128: -0.4071311657 | DL128: 0.8666742911 | DM128: 2.820965719 | DN128: -1.941111381 | DP128: 62.26496089 | DQ128: =(DP128-T$58)*((1+(U$55+CF128)/100)*(1-T$62)+T$62*((1+(U$57+DD128)/100)))/(1+(U$54+BT128)/100)-(U$56+CR128)+U$58 -> 65.10767262 | DR128: 65.94594124 | DS128: 71.95977917 | DT128: 81.47383259 | DU128: 83.14749264 | DV128: 88.65816938 | DW128: 98.32440552 | DX128: 100.3860663 | DY128: 98.44227943 | DZ128: 96.31669231 | EA128: 99.32775152
A129: 61 | B129: 10.57514054 | C129: 6.60310832 | D129: -0.3910840715 | E129: 2.022721375 | H129: 8.345366768 | I129: 2.014655657 | J129: 5.30232113 | K129: -1.713520233 | L129: -10.90042444 | M129: -1.889281822 | N129: 1.969575206 | O129: 7.849870875 | P129: -3.731038877 | Q129: 2.620125111 | R129: 2.40028785 | S129: -1.305427328 | T129: 0.03427779597 | U129: -1.197343607 | V129: 0.2591542344 | W129: 1.718652952 | X129: -4.223753273 | Y129: 0.5116176826 | Z129: 0.4119214074 | AA129: 0.101144212 | AB129: 1.668337038 | AC129: 1.487078754 | AD129: 2.485848055 | AE129: -1.622940251 | AF129: 1.769264018 | AG129: 3.074457618 | AH129: 2.922185795 | AI129: 0.4824999402 | AJ129: -9.075881707 | AK129: 1.506567281 | AL129: 0.96844956 | AM129: 2.362276153 | AN129: -0.07974126164 | AO129: -0.6920258551 | AP129: 0.3958564734 | AQ129: -0.4672545201 | AR129: 0.7849817699 | AS129: -1.029954173 | AT129: -0.1206769896 | AU129: 1.841606475 | AV129: -6.286311438 | AW129: 0.4190012836 | AX129: 0.6988779507 | AY129: 0.510412974 | AZ129: 1.372977147 | BA129: 1.925084205 | BB129: 3.034084741 | BC129: -1.584714768 | BE129: 56.15280839 | BF129: =(BE129-T$58)*((1+(U$55+U129)/100)*(1-T$62)+T$62*((1+(U$57+AS129)/100)))/(1+(U$54+I129)/100)-(U$56+AG129)+U$58 -> 52.49542838 | BG129: 47.30471281 | BH129: 48.76902033 | BI129: 61.13014902 | BJ129: 61.31317677 | BK129: 59.95873281 | BL129: 54.02298551 | BM129: 57.23019283 | BN129: 57.8484277 | BO129: 58.03594573 | BP129: 58.71198489 | BS129: 8.345366768 | BT129: 2.014655657 | BU129: 5.30232113 | BV129: -1.713520233 | BW129: -10.90042444 | BX129: -1.889281822 | BY129: 1.969575206 | BZ129: 7.849870875 | CA129: -3.731038877 | CB129: 2.620125111 | CC129: 2.40028785 | CD129: -1.305427328 | CE129: 0.03427779597 | CF129: -1.197343607 | CG129: 0.2591542344 | CH129: 1.718652952 | CI129: -4.223753273 | CJ129: 0.5116176826 | CK129: 0.4119214074 | CL129: 0.101144212 | CM129: 1.668337038 | CN129: 1.487078754 | CO129: 2.485848055 | CP129: -1.622940251 | CQ129: 0 | CR129: 0 | CS129: 0 | CT129: 0 | CU129: -9.075881707 | CV129: 0 | CW129: 0 | CX129: 0 | CY129: -0.07974126164 | CZ129: -0.6920258551 | DA129: 0 | DB129: -0.4672545201 | DC129: 0.7849817699 | DD129: -1.029954173 | DE129: -0.1206769896 | DF129: 1.841606475 | DG129: -6.286311438 | DH129: 0.4190012836 | DI129: 0.6988779507 | DJ129: 0.510412974 | DK129: 1.372977147 | DL129: 1.925084205 | DM129: 3.034084741 | DN129: -1.584714768 | DP129: 57.9220724 | DQ129: =(DP129-T$58)*((1+(U$55+CF129)/100)*(1-T$62)+T$62*((1+(U$57+DD129)/100)))/(1+(U$54+BT129)/100)-(U$56+CR129)+U$58 -> 57.26644567 | DR129: 54.76550987 | DS129: 56.96546051 | DT129: 69.7955686 | DU129: 71.64587139 | DV129: 71.07852722 | DW129: 66.70965292 | DX129: 70.52203061 | DY129: 70.97228882 | DZ129: 71.54701862 | EA129: 72.12428368
A130: 62 | B130: 6.634462729 | C130: 8.435226305 | D130: 0.566503519 | E130: 3.223322782 | H130: 4.404688953 | I130: 0.1272759626 | J130: 1.575455348 | K130: -0.8203456548 | L130: -1.180421024 | M130: -1.973152886 | N130: 1.118908274 | O130: 2.478178807 | P130: 0.4956514637 | Q130: -1.006574174 | R130: -5.121140116 | S130: 1.837199079 | T130: 1.86639578 | U130: 0.3741766328 | V130: 0.04715932437 | W130: -1.188272421 | X130: 0.6760460347 | Y130: 1.031369015 | Z130: 1.749597331 | AA130: 0.07113197421 | AB130: 0.2889662267 | AC130: 0.3480309147 | AD130: -1.35613999 | AE130: -3.059212007 | AF130: 2.726851609 | AG130: 2.513787291 | AH130: -2.519176004 | AI130: 3.269837636 | AJ130: 3.942998002 | AK130: -2.17759673 | AL130: 2.346255041 | AM130: 0.7622863428 | AN130: -0.8383135246 | AO130: 5.486794307 | AP130: -0.7892207967 | AQ130: -3.978812147 | AR130: 1.985583177 | AS130: 0.3868050918 | AT130: 0.5043194451 | AU130: -0.6446074446 | AV130: 1.417641682 | AW130: 0.9771050967 | AX130: 1.748883439 | AY130: -0.07548221617 | AZ130: 0.6479028828 | BA130: -0.2114478679 | BB130: -1.538666306 | BC130: -2.871673148 | BE130: 57.77988937 | BF130: =(BE130-T$58)*((1+(U$55+U130)/100)*(1-T$62)+T$62*((1+(U$57+AS130)/100)))/(1+(U$54+I130)/100)-(U$56+AG130)+U$58 -> 56.37058605 | BG130: 58.43379786 | BH130: 55.51720127 | BI130: 53.2632185 | BJ130: 57.30361519 | BK130: 55.71097694 | BL130: 54.03779272 | BM130: 55.26515208 | BN130: 50.70903519 | BO130: 53.70098419 | BP130: 55.70962522 | BS130: 4.404688953 | BT130: 0.1272759626 | BU130: 1.575455348 | BV130: -0.8203456548 | BW130: -1.180421024 | BX130: -1.973152886 | BY130: 1.118908274 | BZ130: 2.478178807 | CA130: 0.4956514637 | CB130: -1.006574174 | CC130: -5.121140116 | CD130: 1.837199079 | CE130: 1.86639578 | CF130: 0.3741766328 | CG130: 0.04715932437 | CH130: -1.188272421 | CI130: 0.6760460347 | CJ130: 1.031369015 | CK130: 1.749597331 | CL130: 0.07113197421 | CM130: 0.2889662267 | CN130: 0.3480309147 | CO130: -1.35613999 | CP130: -3.059212007 | CQ130: 0 | CR130: 0 | CS130: -2.519176004 | CT130: 0 | CU130: 0 | CV130: -2.17759673 | CW130: 0 | CX130: 0 | CY130: -0.8383135246 | CZ130: 0 | DA130: -0.7892207967 | DB130: -3.978812147 | DC130: 1.985583177 | DD130: 0.3868050918 | DE130: 0.5043194451 | DF130: -0.6446074446 | DG130: 1.417641682 | DH130: 0.9771050967 | DI130: 1.748883439 | DJ130: -0.07548221617 | DK130: 0.6479028828 | DL130: -0.2114478679 | DM130: -1.538666306 | DN130: -2.871673148 | DP130: 60.50674098 | DQ130: =(DP130-T$58)*((1+(U$55+CF130)/100)*(1-T$62)+T$62*((1+(U$57+DD130)/100)))/(1+(U$54+BT130)/100)-(U$56+CR130)+U$58 -> 61.58535753 | DR130: 63.58650977 | DS130: 63.93537283 | DT130: 65.7968954 | DU130: 70.1469076 | DV130: 70.92090658 | DW130: 69.58344544 | DX130: 70.74269854 | DY130: 71.75952309 | DZ130: 75.42768093 | EA130: 76.35827024
A131: 63 | B131: -2.485228811 | C131: 4.833615097 | D131: -4.491865687 | E131: -0.4807377813 | H131: -4.715002587 | I131: 2.12218724 | J131: -0.5173492876 | K131: 8.384130733 | L131: -1.246381531 | M131: 8.770468573 | N131: -3.904599002 | O131: -5.38915199 | P131: 9.791280977 | Q131: -1.841479312 | R131: -4.706941822 | S131: 5.389453503 | T131: -1.735215427 | U131: -0.08069766242 | V131: -0.1750399762 | W131: 0.2113791996 | X131: 2.298429783 | Y131: 2.024736218 | Z131: 0.5493890783 | AA131: -3.57089018 | AB131: 2.070610623 | AC131: 0.7863760674 | AD131: -2.958781142 | AE131: -1.44161555 | AF131: -2.331517597 | AG131: 2.250088992 | AH131: 4.458228522 | AI131: 4.248132415 | AJ131: 0.9117444746 | AK131: -0.04996773891 | AL131: -5.174688236 | AM131: -7.442419285 | AN131: 0.9552004533 | AO131: -1.208917918 | AP131: -3.740079397 | AQ131: 0.2889089729 | AR131: -1.718477386 | AS131: 0.7166775331 | AT131: -0.2901649064 | AU131: 1.839482194 | AV131: 2.931077652 | AW131: 3.442879408 | AX131: -0.1766385628 | AY131: -4.336320904 | AZ131: 3.92606629 | BA131: 1.357314485 | BB131: -4.111987991 | BC131: -1.566210827 | BE131: 65.68389007 | BF131: =(BE131-T$58)*((1+(U$55+U131)/100)*(1-T$62)+T$62*((1+(U$57+AS131)/100)))/(1+(U$54+I131)/100)-(U$56+AG131)+U$58 -> 63.30573364 | BG131: 59.19225608 | BH131: 51.63511467 | BI131: 53.12745957 | BJ131: 50.82622412 | BK131: 58.43255285 | BL131: 66.98958084 | BM131: 62.54910263 | BN131: 65.88170988 | BO131: 70.61393931 | BP131: 66.28953906 | BS131: -4.715002587 | BT131: 2.12218724 | BU131: -0.5173492876 | BV131: 8.384130733 | BW131: -1.246381531 | BX131: 8.770468573 | BY131: -3.904599002 | BZ131: -5.38915199 | CA131: 9.791280977 | CB131: -1.841479312 | CC131: -4.706941822 | CD131: 5.389453503 | CE131: -1.735215427 | CF131: -0.08069766242 | CG131: -0.1750399762 | CH131: 0.2113791996 | CI131: 2.298429783 | CJ131: 2.024736218 | CK131: 0.5493890783 | CL131: -3.57089018 | CM131: 2.070610623 | CN131: 0.7863760674 | CO131: -2.958781142 | CP131: -1.44161555 | CQ131: -2.331517597 | CR131: 0 | CS131: 0 | CT131: 0 | CU131: 0 | CV131: -0.04996773891 | CW131: -5.174688236 | CX131: -7.442419285 | CY131: 0 | CZ131: -1.208917918 | DA131: -3.740079397 | DB131: 0 | DC131: -1.718477386 | DD131: 0.7166775331 | DE131: -0.2901649064 | DF131: 1.839482194 | DG131: 2.931077652 | DH131: 3.442879408 | DI131: -0.1766385628 | DJ131: -4.336320904 | DK131: 3.92606629 | DL131: 1.357314485 | DM131: -4.111987991 | DN131: -1.566210827 | DP131: 65.68389007 | DQ131: =(DP131-T$58)*((1+(U$55+CF131)/100)*(1-T$62)+T$62*((1+(U$57+DD131)/100)))/(1+(U$54+BT131)/100)-(U$56+CR131)+U$58 -> 65.55582263 | DR131: 65.90621529 | DS131: 62.16347155 | DT131: 64.95031331 | DU131: 61.97811624 | DV131: 69.98333066 | DW131: 78.64261561 | DX131: 74.42755976 | DY131: 78.05033493 | DZ131: 82.85275559 | EA131: 77.99302322
A132: 64 | B132: 6.673469032 | C132: 6.25376348 | D132: -1.076684677 | E132: 1.644163419 | H132: 4.443695256 | I132: 9.695504369 | J132: -0.8849112456 | K132: -3.388007589 | L132: 0.6715067743 | M132: 3.281966969 | N132: -3.800826381 | O132: -3.027341206 | P132: 2.447739444 | Q132: -4.382691814 | R132: -0.552955023 | S132: 1.739137992 | T132: -0.3150670446 | U132: 0.5626876273 | V132: 0.3608657394 | W132: 0.5165950741 | X132: -0.1054957264 | Y132: -0.6944810613 | Z132: 1.771650259 | AA132: 0.09386856732 | AB132: 0.9403426133 | AC132: -0.6878966079 | AD132: -1.854860221 | AE132: 0.3854571553 | AF132: 1.083663413 | AG132: 5.8737071 | AH132: 1.881258835 | AI132: -2.16314538 | AJ132: -2.217077838 | AK132: -3.051230516 | AL132: -1.759857221 | AM132: 4.864870244 | AN132: -0.705817848 | AO132: 0.9933362799 | AP132: -5.139111225 | AQ132: -0.6518928432 | AR132: 0.4064238146 | AS132: 0.6743220371 | AT132: 0.8177156599 | AU132: -0.1249825243 | AV132: -0.4505005837 | AW132: -0.7154922575 | AX132: 0.9064820978 | AY132: -0.04447857527 | AZ132: 1.39046674 | BA132: -0.8711619108 | BB132: -1.968048281 | BC132: 0.9658288312 | BE132: 58.47439958 | BF132: =(BE132-T$58)*((1+(U$55+U132)/100)*(1-T$62)+T$62*((1+(U$57+AS132)/100)))/(1+(U$54+I132)/100)-(U$56+AG132)+U$58 -> 49.12811097 | BG132: 48.1386323 | BH132: 52.30844478 | BI132: 54.54863703 | BJ132: 55.97794202 | BK132: 60.91808341 | BL132: 58.16830754 | BM132: 58.58326544 | BN132: 60.01776278 | BO132: 64.72598307 | BP132: 65.11527205 | BS132: 4.443695256 | BT132: 9.695504369 | BU132: -0.8849112456 | BV132: -3.388007589 | BW132: 0.6715067743 | BX132: 3.281966969 | BY132: -3.800826381 | BZ132: -3.027341206 | CA132: 2.447739444 | CB132: -4.382691814 | CC132: -0.552955023 | CD132: 1.739137992 | CE132: -0.3150670446 | CF132: 0.5626876273 | CG132: 0.3608657394 | CH132: 0.5165950741 | CI132: -0.1054957264 | CJ132: -0.6944810613 | CK132: 1.771650259 | CL132: 0.09386856732 | CM132: 0.9403426133 | CN132: -0.6878966079 | CO132: -1.854860221 | CP132: 0.3854571553 | CQ132: 0 | CR132: 0 | CS132: 0 | CT132: -2.16314538 | CU132: -2.217077838 | CV132: -3.051230516 | CW132: -1.759857221 | CX132: 0 | CY132: -0.705817848 | CZ132: 0 | DA132: -5.139111225 | DB132: -0.6518928432 | DC132: 0.4064238146 | DD132: 0.6743220371 | DE132: 0.8177156599 | DF132: -0.1249825243 | DG132: -0.4505005837 | DH132: -0.7154922575 | DI132: 0.9064820978 | DJ132: -0.04447857527 | DK132: 1.39046674 | DL132: -0.8711619108 | DM132: -1.968048281 | DN132: 0.9658288312 | DP132: 59.55806299 | DQ132: =(DP132-T$58)*((1+(U$55+CF132)/100)*(1-T$62)+T$62*((1+(U$57+DD132)/100)))/(1+(U$54+BT132)/100)-(U$56+CR132)+U$58 -> 55.98706837 | DR132: 56.98083945 | DS132: 61.45668364 | DT132: 63.59600848 | DU132: 64.64982447 | DV132: 69.98987454 | DW132: 72.3345939 | DX132: 72.52220419 | DY132: 75.38837675 | DZ132: 79.82064079 | EA132: 79.99879505
A133: 65 | B133: 6.489532719 | C133: 6.822065005 | D133: 1.463551518 | E133: 2.193017665 | H133: 4.259758943 | I133: 4.138247915 | J133: -4.763472952 | K133: 4.184494943 | L133: 5.066481461 | M133: 10.14311105 | N133: 8.850431914 | O133: -3.271043956 | P133: -3.782860297 | Q133: 4.189802423 | R133: -0.9933652647 | S133: -2.413268715 | T133: 0.2532344807 | U133: 2.449423621 | V133: -0.7656755231 | W133: 0.7733892609 | X133: -3.070939341 | Y133: 2.562741597 | Z133: 1.780830584 | AA133: 1.169047385 | AB133: -3.457711336 | AC133: -2.544859375 | AD133: -0.1773315088 | AE133: -0.09601812091 | AF133: 3.623899608 | AG133: 10.7797733 | AH133: -3.840068322 | AI133: 1.366231665 | AJ133: -7.152239959 | AK133: 3.168853177 | AL133: 1.408594297 | AM133: 1.42079088 | AN133: -2.120849952 | AO133: -5.328709653 | AP133: 0.5299438383 | AQ133: 1.002580148 | AR133: 0.9552780598 | AS133: 2.694735434 | AT133: -0.8919040807 | AU133: 1.554287921 | AV133: -2.094697072 | AW133: 4.183211396 | AX133: 3.077447892 | AY133: 0.1725754935 | AZ133: -3.910810911 | BA133: -1.685017372 | BB133: -0.7447777679 | BC133: -0.1155494663 | BE133: 56.30819266 | BF133: =(BE133-T$58)*((1+(U$55+U133)/100)*(1-T$62)+T$62*((1+(U$57+AS133)/100)))/(1+(U$54+I133)/100)-(U$56+AG133)+U$58 -> 45.77042903 | BG133: 51.53476238 | BH133: 49.19099976 | BI133: 53.53245133 | BJ133: 47.69649005 | BK133: 44.16501425 | BL133: 44.77869545 | BM133: 47.35041532 | BN133: 50.46086197 | BO133: 50.54720356 | BP133: 51.06375589 | BS133: 4.259758943 | BT133: 4.138247915 | BU133: -4.763472952 | BV133: 4.184494943 | BW133: 5.066481461 | BX133: 10.14311105 | BY133: 8.850431914 | BZ133: -3.271043956 | CA133: -3.782860297 | CB133: 4.189802423 | CC133: -0.9933652647 | CD133: -2.413268715 | CE133: 0.2532344807 | CF133: 2.449423621 | CG133: -0.7656755231 | CH133: 0.7733892609 | CI133: -3.070939341 | CJ133: 2.562741597 | CK133: 1.780830584 | CL133: 1.169047385 | CM133: -3.457711336 | CN133: -2.544859375 | CO133: -0.1773315088 | CP133: -0.09601812091 | CQ133: 0 | CR133: 0 | CS133: -3.840068322 | CT133: 0 | CU133: -7.152239959 | CV133: 0 | CW133: 0 | CX133: 0 | CY133: -2.120849952 | CZ133: -5.328709653 | DA133: 0 | DB133: 0 | DC133: 0.9552780598 | DD133: 2.694735434 | DE133: -0.8919040807 | DF133: 1.554287921 | DG133: -2.094697072 | DH133: 4.183211396 | DI133: 3.077447892 | DJ133: 0.1725754935 | DK133: -3.910810911 | DL133: -1.685017372 | DM133: -0.7447777679 | DN133: -0.1155494663 | DP133: 59.93209226 | DQ133: =(DP133-T$58)*((1+(U$55+CF133)/100)*(1-T$62)+T$62*((1+(U$57+DD133)/100)))/(1+(U$54+BT133)/100)-(U$56+CR133)+U$58 -> 60.08094197 | DR133: 66.41198464 | DS133: 65.02232683 | DT133: 68.23629488 | DU133: 64.652054 | DV133: 61.50741363 | DW133: 64.12035211 | DX133: 66.61682437 | DY133: 68.53126506 | DZ133: 69.14598862 | EA133: 71.00479284
